Workbook

Sheet Control
A1: Sheets | B1: Text File Names | C1: Description | E1: Notes: 50 sheets maximum
A2: 1EPond | B2: Project_1EPond.txt | C2: Project concentrations for the 1E Pond | E2: Referenced text files must be in same root folder as this spreadsheet
A3: 2EPond | B3: Project_2EPond.txt | C3: Project concentrations for the 2E Pond

Sheet PlotControl
A2: Model Name: | B2: Plant Site Version 6.0
A4: Plot: | B4: Annual Max | C4: =B2 & " Model " & IF(B4="Annual Max", "Annual Maximum", B4) & " of Concentration Statistics " & B6 & " in the FTB Pond" -> Plant Site Version 6.0 Model Annual Maximum of Concentration Statistics Cl in the FTB Pond | AA4: Directory to save PDFs to: | AB4: C:\Users\jem4\Desktop\temp
C5: =B2 & " Model Monthly Concentration Statistics " & B6 & " in the FTB Pond" -> Plant Site Version 6.0 Model Monthly Concentration Statistics Cl in the FTB Pond | AA5: Starting figure caption | AB5: 56
A6: Constituent to Plot (dropdown): | B6: Cl | C6: =MATCH(B6,$A$25:$A$52,0) -> 10
AA7: Note: This loops through the plot and constituent drop down menus.
A8: Location to Plot (dropdown): | B8: Pond | C8: =MATCH(B8,$A$15:$A$21,0) -> 1
A10: Initial Time for Monthly Plot (yr): | B10: 40
B11: =B10+20 -> 60
A12: Standard | B12: =VLOOKUP($B$6,$A$25:$B$52,2,FALSE) -> 230000
A14: Locations
A15: Pond
A17: Plot
A18: Annual Max
A19: Annual Average
I23: Annual Project Results | N23: Annual "Other" results | T23: Monthly Project Results
A24: Constituent | B24: Embarrass Standard (ug/L) | H24: Time | I24: P10 | J24: P50 | K24: P90 | L24: SW Standard | M24: Time | N24: P10 | O24: P50 | P24: P90 | Q24: SW Standard | S24: Time | T24: P10 | U24: P50 | V24: P90 | W24: SW Standard
A25: Ag | B25: 1 | H25: 0 | I25: =VLOOKUP($H25,P_All!$A$5:$D$205,3*($C$8-1)+2) -> 23000 | J25: =VLOOKUP($H25,P_All!$A$5:$D$205,3*($C$8-1)+3) -> 23000 | K25: =VLOOKUP($H25,P_All!$A$5:$D$205,3*($C$8-1)+4) -> 24402 | L25: =IF(ISNA(VLOOKUP($B$6,$A$25:$E$51,IF($B$8=$A$22,3,2))),EXP(VLOOKUP($B$6,$A$25:$E$51,4)*LN(VLOOKUP($H25,#REF!,$C$8+1)/1000)+VLOOKUP($B$6,$A$25:$E$51,5)),VLOOKUP($B$6,$A$25:$E$51,IF($B$8=$A$22,3,2))) -> 230000 | M25: 0 | N25: =VLOOKUP($H25,P_All!$A$5:$D$205,3*($C$8-1)+2) -> 23000 | O25: =VLOOKUP($H25,P_All!$A$5:$D$205,3*($C$8-1)+3) -> 23000 | P25: =VLOOKUP($H25,P_All!$A$5:$D$205,3*($C$8-1)+4) -> 24402 | Q25: =IF(ISNA(VLOOKUP($B$6,$A$25:$E$51,IF($B$8=$A$22,3,2))),EXP(VLOOKUP($B$6,$A$25:$E$51,4)*LN(VLOOKUP($H25,#REF!,$C$8+1)/1000)+VLOOKUP($B$6,$A$25:$E$51,5)),VLOOKUP($B$6,$A$25:$E$51,IF($B$8=$A$22,3,2))) -> 230000 | S25: =B10 -> 40 | T25: =VLOOKUP($S25,P_All!$X$5:$AS$245,3*($C$8-1)+2) -> 1492.1 | U25: =VLOOKUP($S25,P_All!$X$5:$AS$245,3*($C$8-1)+3) -> 1622.9 | V25: =VLOOKUP($S25,P_All!$X$5:$AS$245,3*($C$8-1)+4) -> 1768.2 | W25: =IF(ISNA(VLOOKUP($B$6,$A$25:$E$52,IF($B$8=$A$22,3,2))),EXP(VLOOKUP($B$6,$A$25:$E$52,4)*LN(VLOOKUP($S25,#REF!,$C$8+1)/1000)+VLOOKUP($B$6,$A$25:$E$52,5)),VLOOKUP($B$6,$A$25:$E$52,IF($B$8=$A$22,3,2))) -> 230000
A26: Al | B26: 125 | H26: 1 | I26: =VLOOKUP($H26,P_All!$A$5:$D$205,3*($C$8-1)+2) -> 21370 | J26: =VLOOKUP($H26,P_All!$A$5:$D$205,3*($C$8-1)+3) -> 23759 | K26: =VLOOKUP($H26,P_All!$A$5:$D$205,3*($C$8-1)+4) -> 27240 | L26: =IF(ISNA(VLOOKUP($B$6,$A$25:$E$51,IF($B$8=$A$22,3,2))),EXP(VLOOKUP($B$6,$A$25:$E$51,4)*LN(VLOOKUP($H26,#REF!,$C$8+1)/1000)+VLOOKUP($B$6,$A$25:$E$51,5)),VLOOKUP($B$6,$A$25:$E$51,IF($B$8=$A$22,3,2))) -> 230000 | M26: 1 | N26: =VLOOKUP($H26,P_All!$A$5:$D$205,3*($C$8-1)+2) -> 21370 | O26: =VLOOKUP($H26,P_All!$A$5:$D$205,3*($C$8-1)+3) -> 23759 | P26: =VLOOKUP($H26,P_All!$A$5:$D$205,3*($C$8-1)+4) -> 27240 | Q26: =IF(ISNA(VLOOKUP($B$6,$A$25:$E$51,IF($B$8=$A$22,3,2))),EXP(VLOOKUP($B$6,$A$25:$E$51,4)*LN(VLOOKUP($H26,#REF!,$C$8+1)/1000)+VLOOKUP($B$6,$A$25:$E$51,5)),VLOOKUP($B$6,$A$25:$E$51,IF($B$8=$A$22,3,2))) -> 230000 | S26: =S25+1/12 -> 40.08333333 | T26: =VLOOKUP($S26,P_All!$X$5:$AS$245,3*($C$8-1)+2) -> 1489.4 | U26: =VLOOKUP($S26,P_All!$X$5:$AS$245,3*($C$8-1)+3) -> 1613.8 | V26: =VLOOKUP($S26,P_All!$X$5:$AS$245,3*($C$8-1)+4) -> 1754.6 | W26: =IF(ISNA(VLOOKUP($B$6,$A$25:$E$52,IF($B$8=$A$22,3,2))),EXP(VLOOKUP($B$6,$A$25:$E$52,4)*LN(VLOOKUP($S26,#REF!,$C$8+1)/1000)+VLOOKUP($B$6,$A$25:$E$52,5)),VLOOKUP($B$6,$A$25:$E$52,IF($B$8=$A$22,3,2))) -> 230000
A27: Alkalinity | H27: 2 | I27: =VLOOKUP($H27,P_All!$A$5:$D$205,3*($C$8-1)+2) -> 22519 | J27: =VLOOKUP($H27,P_All!$A$5:$D$205,3*($C$8-1)+3) -> 25048 | K27: =VLOOKUP($H27,P_All!$A$5:$D$205,3*($C$8-1)+4) -> 29073 | L27: =IF(ISNA(VLOOKUP($B$6,$A$25:$E$51,IF($B$8=$A$22,3,2))),EXP(VLOOKUP($B$6,$A$25:$E$51,4)*LN(VLOOKUP($H27,#REF!,$C$8+1)/1000)+VLOOKUP($B$6,$A$25:$E$51,5)),VLOOKUP($B$6,$A$25:$E$51,IF($B$8=$A$22,3,2))) -> 230000 | M27: 2 | N27: =VLOOKUP($H27,P_All!$A$5:$D$205,3*($C$8-1)+2) -> 22519 | O27: =VLOOKUP($H27,P_All!$A$5:$D$205,3*($C$8-1)+3) -> 25048 | P27: =VLOOKUP($H27,P_All!$A$5:$D$205,3*($C$8-1)+4) -> 29073 | Q27: =IF(ISNA(VLOOKUP($B$6,$A$25:$E$51,IF($B$8=$A$22,3,2))),EXP(VLOOKUP($B$6,$A$25:$E$51,4)*LN(VLOOKUP($H27,#REF!,$C$8+1)/1000)+VLOOKUP($B$6,$A$25:$E$51,5)),VLOOKUP($B$6,$A$25:$E$51,IF($B$8=$A$22,3,2))) -> 230000 | S27: =S26+1/12 -> 40.16666667 | T27: =VLOOKUP($S27,P_All!$X$5:$AS$245,3*($C$8-1)+2) -> 1482.6 | U27: =VLOOKUP($S27,P_All!$X$5:$AS$245,3*($C$8-1)+3) -> 1603.2 | V27: =VLOOKUP($S27,P_All!$X$5:$AS$245,3*($C$8-1)+4) -> 1738.5 | W27: =IF(ISNA(VLOOKUP($B$6,$A$25:$E$52,IF($B$8=$A$22,3,2))),EXP(VLOOKUP($B$6,$A$25:$E$52,4)*LN(VLOOKUP($S27,#REF!,$C$8+1)/1000)+VLOOKUP($B$6,$A$25:$E$52,5)),VLOOKUP($B$6,$A$25:$E$52,IF($B$8=$A$22,3,2))) -> 230000
A28: As | B28: 53 | H28: 3 | I28: =VLOOKUP($H28,P_All!$A$5:$D$205,3*($C$8-1)+2) -> 22597 | J28: =VLOOKUP($H28,P_All!$A$5:$D$205,3*($C$8-1)+3) -> 25360 | K28: =VLOOKUP($H28,P_All!$A$5:$D$205,3*($C$8-1)+4) -> 29866 | L28: =IF(ISNA(VLOOKUP($B$6,$A$25:$E$51,IF($B$8=$A$22,3,2))),EXP(VLOOKUP($B$6,$A$25:$E$51,4)*LN(VLOOKUP($H28,#REF!,$C$8+1)/1000)+VLOOKUP($B$6,$A$25:$E$51,5)),VLOOKUP($B$6,$A$25:$E$51,IF($B$8=$A$22,3,2))) -> 230000 | M28: 3 | N28: =VLOOKUP($H28,P_All!$A$5:$D$205,3*($C$8-1)+2) -> 22597 | O28: =VLOOKUP($H28,P_All!$A$5:$D$205,3*($C$8-1)+3) -> 25360 | P28: =VLOOKUP($H28,P_All!$A$5:$D$205,3*($C$8-1)+4) -> 29866 | Q28: =IF(ISNA(VLOOKUP($B$6,$A$25:$E$51,IF($B$8=$A$22,3,2))),EXP(VLOOKUP($B$6,$A$25:$E$51,4)*LN(VLOOKUP($H28,#REF!,$C$8+1)/1000)+VLOOKUP($B$6,$A$25:$E$51,5)),VLOOKUP($B$6,$A$25:$E$51,IF($B$8=$A$22,3,2))) -> 230000 | S28: 40.25 | T28: =VLOOKUP($S28,P_All!$X$5:$AS$245,3*($C$8-1)+2) -> 1481.3 | U28: =VLOOKUP($S28,P_All!$X$5:$AS$245,3*($C$8-1)+3) -> 1600 | V28: =VLOOKUP($S28,P_All!$X$5:$AS$245,3*($C$8-1)+4) -> 1730.7 | W28: =IF(ISNA(VLOOKUP($B$6,$A$25:$E$52,IF($B$8=$A$22,3,2))),EXP(VLOOKUP($B$6,$A$25:$E$52,4)*LN(VLOOKUP($S28,#REF!,$C$8+1)/1000)+VLOOKUP($B$6,$A$25:$E$52,5)),VLOOKUP($B$6,$A$25:$E$52,IF($B$8=$A$22,3,2))) -> 230000
A29: B | B29: 500 | H29: 4 | I29: =VLOOKUP($H29,P_All!$A$5:$D$205,3*($C$8-1)+2) -> 22590 | J29: =VLOOKUP($H29,P_All!$A$5:$D$205,3*($C$8-1)+3) -> 24994 | K29: =VLOOKUP($H29,P_All!$A$5:$D$205,3*($C$8-1)+4) -> 29184 | L29: =IF(ISNA(VLOOKUP($B$6,$A$25:$E$51,IF($B$8=$A$22,3,2))),EXP(VLOOKUP($B$6,$A$25:$E$51,4)*LN(VLOOKUP($H29,#REF!,$C$8+1)/1000)+VLOOKUP($B$6,$A$25:$E$51,5)),VLOOKUP($B$6,$A$25:$E$51,IF($B$8=$A$22,3,2))) -> 230000 | M29: 4 | N29: =VLOOKUP($H29,P_All!$A$5:$D$205,3*($C$8-1)+2) -> 22590 | O29: =VLOOKUP($H29,P_All!$A$5:$D$205,3*($C$8-1)+3) -> 24994 | P29: =VLOOKUP($H29,P_All!$A$5:$D$205,3*($C$8-1)+4) -> 29184 | Q29: =IF(ISNA(VLOOKUP($B$6,$A$25:$E$51,IF($B$8=$A$22,3,2))),EXP(VLOOKUP($B$6,$A$25:$E$51,4)*LN(VLOOKUP($H29,#REF!,$C$8+1)/1000)+VLOOKUP($B$6,$A$25:$E$51,5)),VLOOKUP($B$6,$A$25:$E$51,IF($B$8=$A$22,3,2))) -> 230000 | S29: 40.33333333 | T29: =VLOOKUP($S29,P_All!$X$5:$AS$245,3*($C$8-1)+2) -> 1494.3 | U29: =VLOOKUP($S29,P_All!$X$5:$AS$245,3*($C$8-1)+3) -> 1611.8 | V29: =VLOOKUP($S29,P_All!$X$5:$AS$245,3*($C$8-1)+4) -> 1751.4 | W29: =IF(ISNA(VLOOKUP($B$6,$A$25:$E$52,IF($B$8=$A$22,3,2))),EXP(VLOOKUP($B$6,$A$25:$E$52,4)*LN(VLOOKUP($S29,#REF!,$C$8+1)/1000)+VLOOKUP($B$6,$A$25:$E$52,5)),VLOOKUP($B$6,$A$25:$E$52,IF($B$8=$A$22,3,2))) -> 230000
A30: Ba | H30: 5 | I30: =VLOOKUP($H30,P_All!$A$5:$D$205,3*($C$8-1)+2) -> 21752 | J30: =VLOOKUP($H30,P_All!$A$5:$D$205,3*($C$8-1)+3) -> 24382 | K30: =VLOOKUP($H30,P_All!$A$5:$D$205,3*($C$8-1)+4) -> 28303 | L30: =IF(ISNA(VLOOKUP($B$6,$A$25:$E$51,IF($B$8=$A$22,3,2))),EXP(VLOOKUP($B$6,$A$25:$E$51,4)*LN(VLOOKUP($H30,#REF!,$C$8+1)/1000)+VLOOKUP($B$6,$A$25:$E$51,5)),VLOOKUP($B$6,$A$25:$E$51,IF($B$8=$A$22,3,2))) -> 230000 | M30: 5 | N30: =VLOOKUP($H30,P_All!$A$5:$D$205,3*($C$8-1)+2) -> 21752 | O30: =VLOOKUP($H30,P_All!$A$5:$D$205,3*($C$8-1)+3) -> 24382 | P30: =VLOOKUP($H30,P_All!$A$5:$D$205,3*($C$8-1)+4) -> 28303 | Q30: =IF(ISNA(VLOOKUP($B$6,$A$25:$E$51,IF($B$8=$A$22,3,2))),EXP(VLOOKUP($B$6,$A$25:$E$51,4)*LN(VLOOKUP($H30,#REF!,$C$8+1)/1000)+VLOOKUP($B$6,$A$25:$E$51,5)),VLOOKUP($B$6,$A$25:$E$51,IF($B$8=$A$22,3,2))) -> 230000 | S30: 40.41666667 | T30: =VLOOKUP($S30,P_All!$X$5:$AS$245,3*($C$8-1)+2) -> 1497.5 | U30: =VLOOKUP($S30,P_All!$X$5:$AS$245,3*($C$8-1)+3) -> 1617.3 | V30: =VLOOKUP($S30,P_All!$X$5:$AS$245,3*($C$8-1)+4) -> 1757.7 | W30: =IF(ISNA(VLOOKUP($B$6,$A$25:$E$52,IF($B$8=$A$22,3,2))),EXP(VLOOKUP($B$6,$A$25:$E$52,4)*LN(VLOOKUP($S30,#REF!,$C$8+1)/1000)+VLOOKUP($B$6,$A$25:$E$52,5)),VLOOKUP($B$6,$A$25:$E$52,IF($B$8=$A$22,3,2))) -> 230000
A31: Be | H31: 6 | I31: =VLOOKUP($H31,P_All!$A$5:$D$205,3*($C$8-1)+2) -> 21181 | J31: =VLOOKUP($H31,P_All!$A$5:$D$205,3*($C$8-1)+3) -> 23591 | K31: =VLOOKUP($H31,P_All!$A$5:$D$205,3*($C$8-1)+4) -> 27675 | L31: =IF(ISNA(VLOOKUP($B$6,$A$25:$E$51,IF($B$8=$A$22,3,2))),EXP(VLOOKUP($B$6,$A$25:$E$51,4)*LN(VLOOKUP($H31,#REF!,$C$8+1)/1000)+VLOOKUP($B$6,$A$25:$E$51,5)),VLOOKUP($B$6,$A$25:$E$51,IF($B$8=$A$22,3,2))) -> 230000 | M31: 6 | N31: =VLOOKUP($H31,P_All!$A$5:$D$205,3*($C$8-1)+2) -> 21181 | O31: =VLOOKUP($H31,P_All!$A$5:$D$205,3*($C$8-1)+3) -> 23591 | P31: =VLOOKUP($H31,P_All!$A$5:$D$205,3*($C$8-1)+4) -> 27675 | Q31: =IF(ISNA(VLOOKUP($B$6,$A$25:$E$51,IF($B$8=$A$22,3,2))),EXP(VLOOKUP($B$6,$A$25:$E$51,4)*LN(VLOOKUP($H31,#REF!,$C$8+1)/1000)+VLOOKUP($B$6,$A$25:$E$51,5)),VLOOKUP($B$6,$A$25:$E$51,IF($B$8=$A$22,3,2))) -> 230000 | S31: 40.5 | T31: =VLOOKUP($S31,P_All!$X$5:$AS$245,3*($C$8-1)+2) -> 1476.5 | U31: =VLOOKUP($S31,P_All!$X$5:$AS$245,3*($C$8-1)+3) -> 1603.1 | V31: =VLOOKUP($S31,P_All!$X$5:$AS$245,3*($C$8-1)+4) -> 1743.6 | W31: =IF(ISNA(VLOOKUP($B$6,$A$25:$E$52,IF($B$8=$A$22,3,2))),EXP(VLOOKUP($B$6,$A$25:$E$52,4)*LN(VLOOKUP($S31,#REF!,$C$8+1)/1000)+VLOOKUP($B$6,$A$25:$E$52,5)),VLOOKUP($B$6,$A$25:$E$52,IF($B$8=$A$22,3,2))) -> 230000
A32: Ca | H32: 7 | I32: =VLOOKUP($H32,P_All!$A$5:$D$205,3*($C$8-1)+2) -> 20406 | J32: =VLOOKUP($H32,P_All!$A$5:$D$205,3*($C$8-1)+3) -> 22721 | K32: =VLOOKUP($H32,P_All!$A$5:$D$205,3*($C$8-1)+4) -> 26631 | L32: =IF(ISNA(VLOOKUP($B$6,$A$25:$E$51,IF($B$8=$A$22,3,2))),EXP(VLOOKUP($B$6,$A$25:$E$51,4)*LN(VLOOKUP($H32,#REF!,$C$8+1)/1000)+VLOOKUP($B$6,$A$25:$E$51,5)),VLOOKUP($B$6,$A$25:$E$51,IF($B$8=$A$22,3,2))) -> 230000 | M32: 7 | N32: =VLOOKUP($H32,P_All!$A$5:$D$205,3*($C$8-1)+2) -> 20406 | O32: =VLOOKUP($H32,P_All!$A$5:$D$205,3*($C$8-1)+3) -> 22721 | P32: =VLOOKUP($H32,P_All!$A$5:$D$205,3*($C$8-1)+4) -> 26631 | Q32: =IF(ISNA(VLOOKUP($B$6,$A$25:$E$51,IF($B$8=$A$22,3,2))),EXP(VLOOKUP($B$6,$A$25:$E$51,4)*LN(VLOOKUP($H32,#REF!,$C$8+1)/1000)+VLOOKUP($B$6,$A$25:$E$51,5)),VLOOKUP($B$6,$A$25:$E$51,IF($B$8=$A$22,3,2))) -> 230000 | S32: 40.58333333 | T32: =VLOOKUP($S32,P_All!$X$5:$AS$245,3*($C$8-1)+2) -> 1463.5 | U32: =VLOOKUP($S32,P_All!$X$5:$AS$245,3*($C$8-1)+3) -> 1592.4 | V32: =VLOOKUP($S32,P_All!$X$5:$AS$245,3*($C$8-1)+4) -> 1729.9 | W32: =IF(ISNA(VLOOKUP($B$6,$A$25:$E$52,IF($B$8=$A$22,3,2))),EXP(VLOOKUP($B$6,$A$25:$E$52,4)*LN(VLOOKUP($S32,#REF!,$C$8+1)/1000)+VLOOKUP($B$6,$A$25:$E$52,5)),VLOOKUP($B$6,$A$25:$E$52,IF($B$8=$A$22,3,2))) -> 230000
A33: Cd | H33: 8 | I33: =VLOOKUP($H33,P_All!$A$5:$D$205,3*($C$8-1)+2) -> 23730 | J33: =VLOOKUP($H33,P_All!$A$5:$D$205,3*($C$8-1)+3) -> 26536 | K33: =VLOOKUP($H33,P_All!$A$5:$D$205,3*($C$8-1)+4) -> 30832 | L33: =IF(ISNA(VLOOKUP($B$6,$A$25:$E$51,IF($B$8=$A$22,3,2))),EXP(VLOOKUP($B$6,$A$25:$E$51,4)*LN(VLOOKUP($H33,#REF!,$C$8+1)/1000)+VLOOKUP($B$6,$A$25:$E$51,5)),VLOOKUP($B$6,$A$25:$E$51,IF($B$8=$A$22,3,2))) -> 230000 | M33: 8 | N33: =VLOOKUP($H33,P_All!$A$5:$D$205,3*($C$8-1)+2) -> 23730 | O33: =VLOOKUP($H33,P_All!$A$5:$D$205,3*($C$8-1)+3) -> 26536 | P33: =VLOOKUP($H33,P_All!$A$5:$D$205,3*($C$8-1)+4) -> 30832 | Q33: =IF(ISNA(VLOOKUP($B$6,$A$25:$E$51,IF($B$8=$A$22,3,2))),EXP(VLOOKUP($B$6,$A$25:$E$51,4)*LN(VLOOKUP($H33,#REF!,$C$8+1)/1000)+VLOOKUP($B$6,$A$25:$E$51,5)),VLOOKUP($B$6,$A$25:$E$51,IF($B$8=$A$22,3,2))) -> 230000 | S33: 40.66666667 | T33: =VLOOKUP($S33,P_All!$X$5:$AS$245,3*($C$8-1)+2) -> 1453.5 | U33: =VLOOKUP($S33,P_All!$X$5:$AS$245,3*($C$8-1)+3) -> 1578.1 | V33: =VLOOKUP($S33,P_All!$X$5:$AS$245,3*($C$8-1)+4) -> 1717.5 | W33: =IF(ISNA(VLOOKUP($B$6,$A$25:$E$52,IF($B$8=$A$22,3,2))),EXP(VLOOKUP($B$6,$A$25:$E$52,4)*LN(VLOOKUP($S33,#REF!,$C$8+1)/1000)+VLOOKUP($B$6,$A$25:$E$52,5)),VLOOKUP($B$6,$A$25:$E$52,IF($B$8=$A$22,3,2))) -> 230000
A34: Cl | B34: 230000 | H34: 9 | I34: =VLOOKUP($H34,P_All!$A$5:$D$205,3*($C$8-1)+2) -> 26236 | J34: =VLOOKUP($H34,P_All!$A$5:$D$205,3*($C$8-1)+3) -> 29294 | K34: =VLOOKUP($H34,P_All!$A$5:$D$205,3*($C$8-1)+4) -> 33765 | L34: =IF(ISNA(VLOOKUP($B$6,$A$25:$E$51,IF($B$8=$A$22,3,2))),EXP(VLOOKUP($B$6,$A$25:$E$51,4)*LN(VLOOKUP($H34,#REF!,$C$8+1)/1000)+VLOOKUP($B$6,$A$25:$E$51,5)),VLOOKUP($B$6,$A$25:$E$51,IF($B$8=$A$22,3,2))) -> 230000 | M34: 9 | N34: =VLOOKUP($H34,P_All!$A$5:$D$205,3*($C$8-1)+2) -> 26236 | O34: =VLOOKUP($H34,P_All!$A$5:$D$205,3*($C$8-1)+3) -> 29294 | P34: =VLOOKUP($H34,P_All!$A$5:$D$205,3*($C$8-1)+4) -> 33765 | Q34: =IF(ISNA(VLOOKUP($B$6,$A$25:$E$51,IF($B$8=$A$22,3,2))),EXP(VLOOKUP($B$6,$A$25:$E$51,4)*LN(VLOOKUP($H34,#REF!,$C$8+1)/1000)+VLOOKUP($B$6,$A$25:$E$51,5)),VLOOKUP($B$6,$A$25:$E$51,IF($B$8=$A$22,3,2))) -> 230000 | S34: 40.75 | T34: =VLOOKUP($S34,P_All!$X$5:$AS$245,3*($C$8-1)+2) -> 1425.4 | U34: =VLOOKUP($S34,P_All!$X$5:$AS$245,3*($C$8-1)+3) -> 1560.3 | V34: =VLOOKUP($S34,P_All!$X$5:$AS$245,3*($C$8-1)+4) -> 1699.5 | W34: =IF(ISNA(VLOOKUP($B$6,$A$25:$E$52,IF($B$8=$A$22,3,2))),EXP(VLOOKUP($B$6,$A$25:$E$52,4)*LN(VLOOKUP($S34,#REF!,$C$8+1)/1000)+VLOOKUP($B$6,$A$25:$E$52,5)),VLOOKUP($B$6,$A$25:$E$52,IF($B$8=$A$22,3,2))) -> 230000
A35: Co | B35: 5 | H35: 10 | I35: =VLOOKUP($H35,P_All!$A$5:$D$205,3*($C$8-1)+2) -> 27710 | J35: =VLOOKUP($H35,P_All!$A$5:$D$205,3*($C$8-1)+3) -> 30688 | K35: =VLOOKUP($H35,P_All!$A$5:$D$205,3*($C$8-1)+4) -> 35554 | L35: =IF(ISNA(VLOOKUP($B$6,$A$25:$E$51,IF($B$8=$A$22,3,2))),EXP(VLOOKUP($B$6,$A$25:$E$51,4)*LN(VLOOKUP($H35,#REF!,$C$8+1)/1000)+VLOOKUP($B$6,$A$25:$E$51,5)),VLOOKUP($B$6,$A$25:$E$51,IF($B$8=$A$22,3,2))) -> 230000 | M35: 10 | N35: =VLOOKUP($H35,P_All!$A$5:$D$205,3*($C$8-1)+2) -> 27710 | O35: =VLOOKUP($H35,P_All!$A$5:$D$205,3*($C$8-1)+3) -> 30688 | P35: =VLOOKUP($H35,P_All!$A$5:$D$205,3*($C$8-1)+4) -> 35554 | Q35: =IF(ISNA(VLOOKUP($B$6,$A$25:$E$51,IF($B$8=$A$22,3,2))),EXP(VLOOKUP($B$6,$A$25:$E$51,4)*LN(VLOOKUP($H35,#REF!,$C$8+1)/1000)+VLOOKUP($B$6,$A$25:$E$51,5)),VLOOKUP($B$6,$A$25:$E$51,IF($B$8=$A$22,3,2))) -> 230000 | S35: 40.83333333 | T35: =VLOOKUP($S35,P_All!$X$5:$AS$245,3*($C$8-1)+2) -> 1409 | U35: =VLOOKUP($S35,P_All!$X$5:$AS$245,3*($C$8-1)+3) -> 1547.2 | V35: =VLOOKUP($S35,P_All!$X$5:$AS$245,3*($C$8-1)+4) -> 1685.4 | W35: =IF(ISNA(VLOOKUP($B$6,$A$25:$E$52,IF($B$8=$A$22,3,2))),EXP(VLOOKUP($B$6,$A$25:$E$52,4)*LN(VLOOKUP($S35,#REF!,$C$8+1)/1000)+VLOOKUP($B$6,$A$25:$E$52,5)),VLOOKUP($B$6,$A$25:$E$52,IF($B$8=$A$22,3,2))) -> 230000
A36: Cr | B36: 11 | H36: 11 | I36: =VLOOKUP($H36,P_All!$A$5:$D$205,3*($C$8-1)+2) -> 30556 | J36: =VLOOKUP($H36,P_All!$A$5:$D$205,3*($C$8-1)+3) -> 33759 | K36: =VLOOKUP($H36,P_All!$A$5:$D$205,3*($C$8-1)+4) -> 38877 | L36: =IF(ISNA(VLOOKUP($B$6,$A$25:$E$51,IF($B$8=$A$22,3,2))),EXP(VLOOKUP($B$6,$A$25:$E$51,4)*LN(VLOOKUP($H36,#REF!,$C$8+1)/1000)+VLOOKUP($B$6,$A$25:$E$51,5)),VLOOKUP($B$6,$A$25:$E$51,IF($B$8=$A$22,3,2))) -> 230000 | M36: 11 | N36: =VLOOKUP($H36,P_All!$A$5:$D$205,3*($C$8-1)+2) -> 30556 | O36: =VLOOKUP($H36,P_All!$A$5:$D$205,3*($C$8-1)+3) -> 33759 | P36: =VLOOKUP($H36,P_All!$A$5:$D$205,3*($C$8-1)+4) -> 38877 | Q36: =IF(ISNA(VLOOKUP($B$6,$A$25:$E$51,IF($B$8=$A$22,3,2))),EXP(VLOOKUP($B$6,$A$25:$E$51,4)*LN(VLOOKUP($H36,#REF!,$C$8+1)/1000)+VLOOKUP($B$6,$A$25:$E$51,5)),VLOOKUP($B$6,$A$25:$E$51,IF($B$8=$A$22,3,2))) -> 230000 | S36: 40.91666667 | T36: =VLOOKUP($S36,P_All!$X$5:$AS$245,3*($C$8-1)+2) -> 1403.3 | U36: =VLOOKUP($S36,P_All!$X$5:$AS$245,3*($C$8-1)+3) -> 1536.1 | V36: =VLOOKUP($S36,P_All!$X$5:$AS$245,3*($C$8-1)+4) -> 1675.6 | W36: =IF(ISNA(VLOOKUP($B$6,$A$25:$E$52,IF($B$8=$A$22,3,2))),EXP(VLOOKUP($B$6,$A$25:$E$52,4)*LN(VLOOKUP($S36,#REF!,$C$8+1)/1000)+VLOOKUP($B$6,$A$25:$E$52,5)),VLOOKUP($B$6,$A$25:$E$52,IF($B$8=$A$22,3,2))) -> 230000
A37: Cu | H37: 12 | I37: =VLOOKUP($H37,P_All!$A$5:$D$205,3*($C$8-1)+2) -> 33055 | J37: =VLOOKUP($H37,P_All!$A$5:$D$205,3*($C$8-1)+3) -> 36675 | K37: =VLOOKUP($H37,P_All!$A$5:$D$205,3*($C$8-1)+4) -> 41541 | L37: =IF(ISNA(VLOOKUP($B$6,$A$25:$E$51,IF($B$8=$A$22,3,2))),EXP(VLOOKUP($B$6,$A$25:$E$51,4)*LN(VLOOKUP($H37,#REF!,$C$8+1)/1000)+VLOOKUP($B$6,$A$25:$E$51,5)),VLOOKUP($B$6,$A$25:$E$51,IF($B$8=$A$22,3,2))) -> 230000 | M37: 12 | N37: =VLOOKUP($H37,P_All!$A$5:$D$205,3*($C$8-1)+2) -> 33055 | O37: =VLOOKUP($H37,P_All!$A$5:$D$205,3*($C$8-1)+3) -> 36675 | P37: =VLOOKUP($H37,P_All!$A$5:$D$205,3*($C$8-1)+4) -> 41541 | Q37: =IF(ISNA(VLOOKUP($B$6,$A$25:$E$51,IF($B$8=$A$22,3,2))),EXP(VLOOKUP($B$6,$A$25:$E$51,4)*LN(VLOOKUP($H37,#REF!,$C$8+1)/1000)+VLOOKUP($B$6,$A$25:$E$51,5)),VLOOKUP($B$6,$A$25:$E$51,IF($B$8=$A$22,3,2))) -> 230000 | S37: 41 | T37: =VLOOKUP($S37,P_All!$X$5:$AS$245,3*($C$8-1)+2) -> 1396.3 | U37: =VLOOKUP($S37,P_All!$X$5:$AS$245,3*($C$8-1)+3) -> 1523.4 | V37: =VLOOKUP($S37,P_All!$X$5:$AS$245,3*($C$8-1)+4) -> 1660.7 | W37: =IF(ISNA(VLOOKUP($B$6,$A$25:$E$52,IF($B$8=$A$22,3,2))),EXP(VLOOKUP($B$6,$A$25:$E$52,4)*LN(VLOOKUP($S37,#REF!,$C$8+1)/1000)+VLOOKUP($B$6,$A$25:$E$52,5)),VLOOKUP($B$6,$A$25:$E$52,IF($B$8=$A$22,3,2))) -> 230000
A38: F | H38: 13 | I38: =VLOOKUP($H38,P_All!$A$5:$D$205,3*($C$8-1)+2) -> 32634 | J38: =VLOOKUP($H38,P_All!$A$5:$D$205,3*($C$8-1)+3) -> 36214 | K38: =VLOOKUP($H38,P_All!$A$5:$D$205,3*($C$8-1)+4) -> 40984 | L38: =IF(ISNA(VLOOKUP($B$6,$A$25:$E$51,IF($B$8=$A$22,3,2))),EXP(VLOOKUP($B$6,$A$25:$E$51,4)*LN(VLOOKUP($H38,#REF!,$C$8+1)/1000)+VLOOKUP($B$6,$A$25:$E$51,5)),VLOOKUP($B$6,$A$25:$E$51,IF($B$8=$A$22,3,2))) -> 230000 | M38: 13 | N38: =VLOOKUP($H38,P_All!$A$5:$D$205,3*($C$8-1)+2) -> 32634 | O38: =VLOOKUP($H38,P_All!$A$5:$D$205,3*($C$8-1)+3) -> 36214 | P38: =VLOOKUP($H38,P_All!$A$5:$D$205,3*($C$8-1)+4) -> 40984 | Q38: =IF(ISNA(VLOOKUP($B$6,$A$25:$E$51,IF($B$8=$A$22,3,2))),EXP(VLOOKUP($B$6,$A$25:$E$51,4)*LN(VLOOKUP($H38,#REF!,$C$8+1)/1000)+VLOOKUP($B$6,$A$25:$E$51,5)),VLOOKUP($B$6,$A$25:$E$51,IF($B$8=$A$22,3,2))) -> 230000 | S38: 41.08333333 | T38: =VLOOKUP($S38,P_All!$X$5:$AS$245,3*($C$8-1)+2) -> 1389.7 | U38: =VLOOKUP($S38,P_All!$X$5:$AS$245,3*($C$8-1)+3) -> 1514.3 | V38: =VLOOKUP($S38,P_All!$X$5:$AS$245,3*($C$8-1)+4) -> 1646.2 | W38: =IF(ISNA(VLOOKUP($B$6,$A$25:$E$52,IF($B$8=$A$22,3,2))),EXP(VLOOKUP($B$6,$A$25:$E$52,4)*LN(VLOOKUP($S38,#REF!,$C$8+1)/1000)+VLOOKUP($B$6,$A$25:$E$52,5)),VLOOKUP($B$6,$A$25:$E$52,IF($B$8=$A$22,3,2))) -> 230000
A39: Fe | H39: 14 | I39: =VLOOKUP($H39,P_All!$A$5:$D$205,3*($C$8-1)+2) -> 30496 | J39: =VLOOKUP($H39,P_All!$A$5:$D$205,3*($C$8-1)+3) -> 33730 | K39: =VLOOKUP($H39,P_All!$A$5:$D$205,3*($C$8-1)+4) -> 38633 | L39: =IF(ISNA(VLOOKUP($B$6,$A$25:$E$51,IF($B$8=$A$22,3,2))),EXP(VLOOKUP($B$6,$A$25:$E$51,4)*LN(VLOOKUP($H39,#REF!,$C$8+1)/1000)+VLOOKUP($B$6,$A$25:$E$51,5)),VLOOKUP($B$6,$A$25:$E$51,IF($B$8=$A$22,3,2))) -> 230000 | M39: 14 | N39: =VLOOKUP($H39,P_All!$A$5:$D$205,3*($C$8-1)+2) -> 30496 | O39: =VLOOKUP($H39,P_All!$A$5:$D$205,3*($C$8-1)+3) -> 33730 | P39: =VLOOKUP($H39,P_All!$A$5:$D$205,3*($C$8-1)+4) -> 38633 | Q39: =IF(ISNA(VLOOKUP($B$6,$A$25:$E$51,IF($B$8=$A$22,3,2))),EXP(VLOOKUP($B$6,$A$25:$E$51,4)*LN(VLOOKUP($H39,#REF!,$C$8+1)/1000)+VLOOKUP($B$6,$A$25:$E$51,5)),VLOOKUP($B$6,$A$25:$E$51,IF($B$8=$A$22,3,2))) -> 230000 | S39: 41.16666667 | T39: =VLOOKUP($S39,P_All!$X$5:$AS$245,3*($C$8-1)+2) -> 1387 | U39: =VLOOKUP($S39,P_All!$X$5:$AS$245,3*($C$8-1)+3) -> 1508.1 | V39: =VLOOKUP($S39,P_All!$X$5:$AS$245,3*($C$8-1)+4) -> 1633.5 | W39: =IF(ISNA(VLOOKUP($B$6,$A$25:$E$52,IF($B$8=$A$22,3,2))),EXP(VLOOKUP($B$6,$A$25:$E$52,4)*LN(VLOOKUP($S39,#REF!,$C$8+1)/1000)+VLOOKUP($B$6,$A$25:$E$52,5)),VLOOKUP($B$6,$A$25:$E$52,IF($B$8=$A$22,3,2))) -> 230000
A40: K | H40: 15 | I40: =VLOOKUP($H40,P_All!$A$5:$D$205,3*($C$8-1)+2) -> 28998 | J40: =VLOOKUP($H40,P_All!$A$5:$D$205,3*($C$8-1)+3) -> 31897 | K40: =VLOOKUP($H40,P_All!$A$5:$D$205,3*($C$8-1)+4) -> 36479 | L40: =IF(ISNA(VLOOKUP($B$6,$A$25:$E$51,IF($B$8=$A$22,3,2))),EXP(VLOOKUP($B$6,$A$25:$E$51,4)*LN(VLOOKUP($H40,#REF!,$C$8+1)/1000)+VLOOKUP($B$6,$A$25:$E$51,5)),VLOOKUP($B$6,$A$25:$E$51,IF($B$8=$A$22,3,2))) -> 230000 | M40: 15 | N40: =VLOOKUP($H40,P_All!$A$5:$D$205,3*($C$8-1)+2) -> 28998 | O40: =VLOOKUP($H40,P_All!$A$5:$D$205,3*($C$8-1)+3) -> 31897 | P40: =VLOOKUP($H40,P_All!$A$5:$D$205,3*($C$8-1)+4) -> 36479 | Q40: =IF(ISNA(VLOOKUP($B$6,$A$25:$E$51,IF($B$8=$A$22,3,2))),EXP(VLOOKUP($B$6,$A$25:$E$51,4)*LN(VLOOKUP($H40,#REF!,$C$8+1)/1000)+VLOOKUP($B$6,$A$25:$E$51,5)),VLOOKUP($B$6,$A$25:$E$51,IF($B$8=$A$22,3,2))) -> 230000 | S40: 41.25 | T40: =VLOOKUP($S40,P_All!$X$5:$AS$245,3*($C$8-1)+2) -> 1387.4 | U40: =VLOOKUP($S40,P_All!$X$5:$AS$245,3*($C$8-1)+3) -> 1506.6 | V40: =VLOOKUP($S40,P_All!$X$5:$AS$245,3*($C$8-1)+4) -> 1629.3 | W40: =IF(ISNA(VLOOKUP($B$6,$A$25:$E$52,IF($B$8=$A$22,3,2))),EXP(VLOOKUP($B$6,$A$25:$E$52,4)*LN(VLOOKUP($S40,#REF!,$C$8+1)/1000)+VLOOKUP($B$6,$A$25:$E$52,5)),VLOOKUP($B$6,$A$25:$E$52,IF($B$8=$A$22,3,2))) -> 230000
A41: Mg | H41: 16 | I41: =VLOOKUP($H41,P_All!$A$5:$D$205,3*($C$8-1)+2) -> 22951 | J41: =VLOOKUP($H41,P_All!$A$5:$D$205,3*($C$8-1)+3) -> 25703 | K41: =VLOOKUP($H41,P_All!$A$5:$D$205,3*($C$8-1)+4) -> 30330 | L41: =IF(ISNA(VLOOKUP($B$6,$A$25:$E$51,IF($B$8=$A$22,3,2))),EXP(VLOOKUP($B$6,$A$25:$E$51,4)*LN(VLOOKUP($H41,#REF!,$C$8+1)/1000)+VLOOKUP($B$6,$A$25:$E$51,5)),VLOOKUP($B$6,$A$25:$E$51,IF($B$8=$A$22,3,2))) -> 230000 | M41: 16 | N41: =VLOOKUP($H41,P_All!$A$5:$D$205,3*($C$8-1)+2) -> 22951 | O41: =VLOOKUP($H41,P_All!$A$5:$D$205,3*($C$8-1)+3) -> 25703 | P41: =VLOOKUP($H41,P_All!$A$5:$D$205,3*($C$8-1)+4) -> 30330 | Q41: =IF(ISNA(VLOOKUP($B$6,$A$25:$E$51,IF($B$8=$A$22,3,2))),EXP(VLOOKUP($B$6,$A$25:$E$51,4)*LN(VLOOKUP($H41,#REF!,$C$8+1)/1000)+VLOOKUP($B$6,$A$25:$E$51,5)),VLOOKUP($B$6,$A$25:$E$51,IF($B$8=$A$22,3,2))) -> 230000 | S41: 41.33333333 | T41: =VLOOKUP($S41,P_All!$X$5:$AS$245,3*($C$8-1)+2) -> 1405.5 | U41: =VLOOKUP($S41,P_All!$X$5:$AS$245,3*($C$8-1)+3) -> 1526.9 | V41: =VLOOKUP($S41,P_All!$X$5:$AS$245,3*($C$8-1)+4) -> 1653.5 | W41: =IF(ISNA(VLOOKUP($B$6,$A$25:$E$52,IF($B$8=$A$22,3,2))),EXP(VLOOKUP($B$6,$A$25:$E$52,4)*LN(VLOOKUP($S41,#REF!,$C$8+1)/1000)+VLOOKUP($B$6,$A$25:$E$52,5)),VLOOKUP($B$6,$A$25:$E$52,IF($B$8=$A$22,3,2))) -> 230000
A42: Mn | H42: 17 | I42: =VLOOKUP($H42,P_All!$A$5:$D$205,3*($C$8-1)+2) -> 18943 | J42: =VLOOKUP($H42,P_All!$A$5:$D$205,3*($C$8-1)+3) -> 22041 | K42: =VLOOKUP($H42,P_All!$A$5:$D$205,3*($C$8-1)+4) -> 27052 | L42: =IF(ISNA(VLOOKUP($B$6,$A$25:$E$51,IF($B$8=$A$22,3,2))),EXP(VLOOKUP($B$6,$A$25:$E$51,4)*LN(VLOOKUP($H42,#REF!,$C$8+1)/1000)+VLOOKUP($B$6,$A$25:$E$51,5)),VLOOKUP($B$6,$A$25:$E$51,IF($B$8=$A$22,3,2))) -> 230000 | M42: 17 | N42: =VLOOKUP($H42,P_All!$A$5:$D$205,3*($C$8-1)+2) -> 18943 | O42: =VLOOKUP($H42,P_All!$A$5:$D$205,3*($C$8-1)+3) -> 22041 | P42: =VLOOKUP($H42,P_All!$A$5:$D$205,3*($C$8-1)+4) -> 27052 | Q42: =IF(ISNA(VLOOKUP($B$6,$A$25:$E$51,IF($B$8=$A$22,3,2))),EXP(VLOOKUP($B$6,$A$25:$E$51,4)*LN(VLOOKUP($H42,#REF!,$C$8+1)/1000)+VLOOKUP($B$6,$A$25:$E$51,5)),VLOOKUP($B$6,$A$25:$E$51,IF($B$8=$A$22,3,2))) -> 230000 | S42: 41.41666667 | T42: =VLOOKUP($S42,P_All!$X$5:$AS$245,3*($C$8-1)+2) -> 1416.6 | U42: =VLOOKUP($S42,P_All!$X$5:$AS$245,3*($C$8-1)+3) -> 1533.7 | V42: =VLOOKUP($S42,P_All!$X$5:$AS$245,3*($C$8-1)+4) -> 1669 | W42: =IF(ISNA(VLOOKUP($B$6,$A$25:$E$52,IF($B$8=$A$22,3,2))),EXP(VLOOKUP($B$6,$A$25:$E$52,4)*LN(VLOOKUP($S42,#REF!,$C$8+1)/1000)+VLOOKUP($B$6,$A$25:$E$52,5)),VLOOKUP($B$6,$A$25:$E$52,IF($B$8=$A$22,3,2))) -> 230000
A43: Na | H43: 18 | I43: =VLOOKUP($H43,P_All!$A$5:$D$205,3*($C$8-1)+2) -> 21405 | J43: =VLOOKUP($H43,P_All!$A$5:$D$205,3*($C$8-1)+3) -> 25826 | K43: =VLOOKUP($H43,P_All!$A$5:$D$205,3*($C$8-1)+4) -> 32241 | L43: =IF(ISNA(VLOOKUP($B$6,$A$25:$E$51,IF($B$8=$A$22,3,2))),EXP(VLOOKUP($B$6,$A$25:$E$51,4)*LN(VLOOKUP($H43,#REF!,$C$8+1)/1000)+VLOOKUP($B$6,$A$25:$E$51,5)),VLOOKUP($B$6,$A$25:$E$51,IF($B$8=$A$22,3,2))) -> 230000 | M43: 18 | N43: =VLOOKUP($H43,P_All!$A$5:$D$205,3*($C$8-1)+2) -> 21405 | O43: =VLOOKUP($H43,P_All!$A$5:$D$205,3*($C$8-1)+3) -> 25826 | P43: =VLOOKUP($H43,P_All!$A$5:$D$205,3*($C$8-1)+4) -> 32241 | Q43: =IF(ISNA(VLOOKUP($B$6,$A$25:$E$51,IF($B$8=$A$22,3,2))),EXP(VLOOKUP($B$6,$A$25:$E$51,4)*LN(VLOOKUP($H43,#REF!,$C$8+1)/1000)+VLOOKUP($B$6,$A$25:$E$51,5)),VLOOKUP($B$6,$A$25:$E$51,IF($B$8=$A$22,3,2))) -> 230000 | S43: 41.5 | T43: =VLOOKUP($S43,P_All!$X$5:$AS$245,3*($C$8-1)+2) -> 1404.1 | U43: =VLOOKUP($S43,P_All!$X$5:$AS$245,3*($C$8-1)+3) -> 1519.4 | V43: =VLOOKUP($S43,P_All!$X$5:$AS$245,3*($C$8-1)+4) -> 1660.7 | W43: =IF(ISNA(VLOOKUP($B$6,$A$25:$E$52,IF($B$8=$A$22,3,2))),EXP(VLOOKUP($B$6,$A$25:$E$52,4)*LN(VLOOKUP($S43,#REF!,$C$8+1)/1000)+VLOOKUP($B$6,$A$25:$E$52,5)),VLOOKUP($B$6,$A$25:$E$52,IF($B$8=$A$22,3,2))) -> 230000
A44: Ni | H44: 19 | I44: =VLOOKUP($H44,P_All!$A$5:$D$205,3*($C$8-1)+2) -> 21924 | J44: =VLOOKUP($H44,P_All!$A$5:$D$205,3*($C$8-1)+3) -> 26320 | K44: =VLOOKUP($H44,P_All!$A$5:$D$205,3*($C$8-1)+4) -> 32454 | L44: =IF(ISNA(VLOOKUP($B$6,$A$25:$E$51,IF($B$8=$A$22,3,2))),EXP(VLOOKUP($B$6,$A$25:$E$51,4)*LN(VLOOKUP($H44,#REF!,$C$8+1)/1000)+VLOOKUP($B$6,$A$25:$E$51,5)),VLOOKUP($B$6,$A$25:$E$51,IF($B$8=$A$22,3,2))) -> 230000 | M44: 19 | N44: =VLOOKUP($H44,P_All!$A$5:$D$205,3*($C$8-1)+2) -> 21924 | O44: =VLOOKUP($H44,P_All!$A$5:$D$205,3*($C$8-1)+3) -> 26320 | P44: =VLOOKUP($H44,P_All!$A$5:$D$205,3*($C$8-1)+4) -> 32454 | Q44: =IF(ISNA(VLOOKUP($B$6,$A$25:$E$51,IF($B$8=$A$22,3,2))),EXP(VLOOKUP($B$6,$A$25:$E$51,4)*LN(VLOOKUP($H44,#REF!,$C$8+1)/1000)+VLOOKUP($B$6,$A$25:$E$51,5)),VLOOKUP($B$6,$A$25:$E$51,IF($B$8=$A$22,3,2))) -> 230000 | S44: 41.58333333 | T44: =VLOOKUP($S44,P_All!$X$5:$AS$245,3*($C$8-1)+2) -> 1391 | U44: =VLOOKUP($S44,P_All!$X$5:$AS$245,3*($C$8-1)+3) -> 1511 | V44: =VLOOKUP($S44,P_All!$X$5:$AS$245,3*($C$8-1)+4) -> 1656.3 | W44: =IF(ISNA(VLOOKUP($B$6,$A$25:$E$52,IF($B$8=$A$22,3,2))),EXP(VLOOKUP($B$6,$A$25:$E$52,4)*LN(VLOOKUP($S44,#REF!,$C$8+1)/1000)+VLOOKUP($B$6,$A$25:$E$52,5)),VLOOKUP($B$6,$A$25:$E$52,IF($B$8=$A$22,3,2))) -> 230000
A45: Pb | H45: 20 | I45: =VLOOKUP($H45,P_All!$A$5:$D$205,3*($C$8-1)+2) -> 27064 | J45: =VLOOKUP($H45,P_All!$A$5:$D$205,3*($C$8-1)+3) -> 32354 | K45: =VLOOKUP($H45,P_All!$A$5:$D$205,3*($C$8-1)+4) -> 39971 | L45: =IF(ISNA(VLOOKUP($B$6,$A$25:$E$51,IF($B$8=$A$22,3,2))),EXP(VLOOKUP($B$6,$A$25:$E$51,4)*LN(VLOOKUP($H45,#REF!,$C$8+1)/1000)+VLOOKUP($B$6,$A$25:$E$51,5)),VLOOKUP($B$6,$A$25:$E$51,IF($B$8=$A$22,3,2))) -> 230000 | M45: 20 | N45: =VLOOKUP($H45,P_All!$A$5:$D$205,3*($C$8-1)+2) -> 27064 | O45: =VLOOKUP($H45,P_All!$A$5:$D$205,3*($C$8-1)+3) -> 32354 | P45: =VLOOKUP($H45,P_All!$A$5:$D$205,3*($C$8-1)+4) -> 39971 | Q45: =IF(ISNA(VLOOKUP($B$6,$A$25:$E$51,IF($B$8=$A$22,3,2))),EXP(VLOOKUP($B$6,$A$25:$E$51,4)*LN(VLOOKUP($H45,#REF!,$C$8+1)/1000)+VLOOKUP($B$6,$A$25:$E$51,5)),VLOOKUP($B$6,$A$25:$E$51,IF($B$8=$A$22,3,2))) -> 230000 | S45: 41.66666667 | T45: =VLOOKUP($S45,P_All!$X$5:$AS$245,3*($C$8-1)+2) -> 1380.8 | U45: =VLOOKUP($S45,P_All!$X$5:$AS$245,3*($C$8-1)+3) -> 1502 | V45: =VLOOKUP($S45,P_All!$X$5:$AS$245,3*($C$8-1)+4) -> 1642.1 | W45: =IF(ISNA(VLOOKUP($B$6,$A$25:$E$52,IF($B$8=$A$22,3,2))),EXP(VLOOKUP($B$6,$A$25:$E$52,4)*LN(VLOOKUP($S45,#REF!,$C$8+1)/1000)+VLOOKUP($B$6,$A$25:$E$52,5)),VLOOKUP($B$6,$A$25:$E$52,IF($B$8=$A$22,3,2))) -> 230000
A46: Sb | B46: 31 | H46: 21 | I46: =VLOOKUP($H46,P_All!$A$5:$D$205,3*($C$8-1)+2) -> 22410 | J46: =VLOOKUP($H46,P_All!$A$5:$D$205,3*($C$8-1)+3) -> 26751 | K46: =VLOOKUP($H46,P_All!$A$5:$D$205,3*($C$8-1)+4) -> 33227 | L46: =IF(ISNA(VLOOKUP($B$6,$A$25:$E$51,IF($B$8=$A$22,3,2))),EXP(VLOOKUP($B$6,$A$25:$E$51,4)*LN(VLOOKUP($H46,#REF!,$C$8+1)/1000)+VLOOKUP($B$6,$A$25:$E$51,5)),VLOOKUP($B$6,$A$25:$E$51,IF($B$8=$A$22,3,2))) -> 230000 | M46: 21 | N46: =VLOOKUP($H46,P_All!$A$5:$D$205,3*($C$8-1)+2) -> 22410 | O46: =VLOOKUP($H46,P_All!$A$5:$D$205,3*($C$8-1)+3) -> 26751 | P46: =VLOOKUP($H46,P_All!$A$5:$D$205,3*($C$8-1)+4) -> 33227 | Q46: =IF(ISNA(VLOOKUP($B$6,$A$25:$E$51,IF($B$8=$A$22,3,2))),EXP(VLOOKUP($B$6,$A$25:$E$51,4)*LN(VLOOKUP($H46,#REF!,$C$8+1)/1000)+VLOOKUP($B$6,$A$25:$E$51,5)),VLOOKUP($B$6,$A$25:$E$51,IF($B$8=$A$22,3,2))) -> 230000 | S46: 41.75 | T46: =VLOOKUP($S46,P_All!$X$5:$AS$245,3*($C$8-1)+2) -> 1359.2 | U46: =VLOOKUP($S46,P_All!$X$5:$AS$245,3*($C$8-1)+3) -> 1482.8 | V46: =VLOOKUP($S46,P_All!$X$5:$AS$245,3*($C$8-1)+4) -> 1622.4 | W46: =IF(ISNA(VLOOKUP($B$6,$A$25:$E$52,IF($B$8=$A$22,3,2))),EXP(VLOOKUP($B$6,$A$25:$E$52,4)*LN(VLOOKUP($S46,#REF!,$C$8+1)/1000)+VLOOKUP($B$6,$A$25:$E$52,5)),VLOOKUP($B$6,$A$25:$E$52,IF($B$8=$A$22,3,2))) -> 230000
A47: Se | B47: 5 | H47: 22 | I47: =VLOOKUP($H47,P_All!$A$5:$D$205,3*($C$8-1)+2) -> 18251 | J47: =VLOOKUP($H47,P_All!$A$5:$D$205,3*($C$8-1)+3) -> 22173 | K47: =VLOOKUP($H47,P_All!$A$5:$D$205,3*($C$8-1)+4) -> 27154 | L47: =IF(ISNA(VLOOKUP($B$6,$A$25:$E$51,IF($B$8=$A$22,3,2))),EXP(VLOOKUP($B$6,$A$25:$E$51,4)*LN(VLOOKUP($H47,#REF!,$C$8+1)/1000)+VLOOKUP($B$6,$A$25:$E$51,5)),VLOOKUP($B$6,$A$25:$E$51,IF($B$8=$A$22,3,2))) -> 230000 | M47: 22 | N47: =VLOOKUP($H47,P_All!$A$5:$D$205,3*($C$8-1)+2) -> 18251 | O47: =VLOOKUP($H47,P_All!$A$5:$D$205,3*($C$8-1)+3) -> 22173 | P47: =VLOOKUP($H47,P_All!$A$5:$D$205,3*($C$8-1)+4) -> 27154 | Q47: =IF(ISNA(VLOOKUP($B$6,$A$25:$E$51,IF($B$8=$A$22,3,2))),EXP(VLOOKUP($B$6,$A$25:$E$51,4)*LN(VLOOKUP($H47,#REF!,$C$8+1)/1000)+VLOOKUP($B$6,$A$25:$E$51,5)),VLOOKUP($B$6,$A$25:$E$51,IF($B$8=$A$22,3,2))) -> 230000 | S47: 41.83333333 | T47: =VLOOKUP($S47,P_All!$X$5:$AS$245,3*($C$8-1)+2) -> 1350.6 | U47: =VLOOKUP($S47,P_All!$X$5:$AS$245,3*($C$8-1)+3) -> 1473.5 | V47: =VLOOKUP($S47,P_All!$X$5:$AS$245,3*($C$8-1)+4) -> 1612.7 | W47: =IF(ISNA(VLOOKUP($B$6,$A$25:$E$52,IF($B$8=$A$22,3,2))),EXP(VLOOKUP($B$6,$A$25:$E$52,4)*LN(VLOOKUP($S47,#REF!,$C$8+1)/1000)+VLOOKUP($B$6,$A$25:$E$52,5)),VLOOKUP($B$6,$A$25:$E$52,IF($B$8=$A$22,3,2))) -> 230000
A48: SO4 | H48: 23 | I48: =VLOOKUP($H48,P_All!$A$5:$D$205,3*($C$8-1)+2) -> 14934 | J48: =VLOOKUP($H48,P_All!$A$5:$D$205,3*($C$8-1)+3) -> 18241 | K48: =VLOOKUP($H48,P_All!$A$5:$D$205,3*($C$8-1)+4) -> 22581 | L48: =IF(ISNA(VLOOKUP($B$6,$A$25:$E$51,IF($B$8=$A$22,3,2))),EXP(VLOOKUP($B$6,$A$25:$E$51,4)*LN(VLOOKUP($H48,#REF!,$C$8+1)/1000)+VLOOKUP($B$6,$A$25:$E$51,5)),VLOOKUP($B$6,$A$25:$E$51,IF($B$8=$A$22,3,2))) -> 230000 | M48: 23 | N48: =VLOOKUP($H48,P_All!$A$5:$D$205,3*($C$8-1)+2) -> 14934 | O48: =VLOOKUP($H48,P_All!$A$5:$D$205,3*($C$8-1)+3) -> 18241 | P48: =VLOOKUP($H48,P_All!$A$5:$D$205,3*($C$8-1)+4) -> 22581 | Q48: =IF(ISNA(VLOOKUP($B$6,$A$25:$E$51,IF($B$8=$A$22,3,2))),EXP(VLOOKUP($B$6,$A$25:$E$51,4)*LN(VLOOKUP($H48,#REF!,$C$8+1)/1000)+VLOOKUP($B$6,$A$25:$E$51,5)),VLOOKUP($B$6,$A$25:$E$51,IF($B$8=$A$22,3,2))) -> 230000 | S48: 41.91666667 | T48: =VLOOKUP($S48,P_All!$X$5:$AS$245,3*($C$8-1)+2) -> 1343.9 | U48: =VLOOKUP($S48,P_All!$X$5:$AS$245,3*($C$8-1)+3) -> 1469.1 | V48: =VLOOKUP($S48,P_All!$X$5:$AS$245,3*($C$8-1)+4) -> 1601.6 | W48: =IF(ISNA(VLOOKUP($B$6,$A$25:$E$52,IF($B$8=$A$22,3,2))),EXP(VLOOKUP($B$6,$A$25:$E$52,4)*LN(VLOOKUP($S48,#REF!,$C$8+1)/1000)+VLOOKUP($B$6,$A$25:$E$52,5)),VLOOKUP($B$6,$A$25:$E$52,IF($B$8=$A$22,3,2))) -> 230000
A49: Tl | B49: 0.56 | H49: 24 | I49: =VLOOKUP($H49,P_All!$A$5:$D$205,3*($C$8-1)+2) -> 12683 | J49: =VLOOKUP($H49,P_All!$A$5:$D$205,3*($C$8-1)+3) -> 15224 | K49: =VLOOKUP($H49,P_All!$A$5:$D$205,3*($C$8-1)+4) -> 18790 | L49: =IF(ISNA(VLOOKUP($B$6,$A$25:$E$51,IF($B$8=$A$22,3,2))),EXP(VLOOKUP($B$6,$A$25:$E$51,4)*LN(VLOOKUP($H49,#REF!,$C$8+1)/1000)+VLOOKUP($B$6,$A$25:$E$51,5)),VLOOKUP($B$6,$A$25:$E$51,IF($B$8=$A$22,3,2))) -> 230000 | M49: 24 | N49: =VLOOKUP($H49,P_All!$A$5:$D$205,3*($C$8-1)+2) -> 12683 | O49: =VLOOKUP($H49,P_All!$A$5:$D$205,3*($C$8-1)+3) -> 15224 | P49: =VLOOKUP($H49,P_All!$A$5:$D$205,3*($C$8-1)+4) -> 18790 | Q49: =IF(ISNA(VLOOKUP($B$6,$A$25:$E$51,IF($B$8=$A$22,3,2))),EXP(VLOOKUP($B$6,$A$25:$E$51,4)*LN(VLOOKUP($H49,#REF!,$C$8+1)/1000)+VLOOKUP($B$6,$A$25:$E$51,5)),VLOOKUP($B$6,$A$25:$E$51,IF($B$8=$A$22,3,2))) -> 230000 | S49: 42 | T49: =VLOOKUP($S49,P_All!$X$5:$AS$245,3*($C$8-1)+2) -> 1336.8 | U49: =VLOOKUP($S49,P_All!$X$5:$AS$245,3*($C$8-1)+3) -> 1460.8 | V49: =VLOOKUP($S49,P_All!$X$5:$AS$245,3*($C$8-1)+4) -> 1587.6 | W49: =IF(ISNA(VLOOKUP($B$6,$A$25:$E$52,IF($B$8=$A$22,3,2))),EXP(VLOOKUP($B$6,$A$25:$E$52,4)*LN(VLOOKUP($S49,#REF!,$C$8+1)/1000)+VLOOKUP($B$6,$A$25:$E$52,5)),VLOOKUP($B$6,$A$25:$E$52,IF($B$8=$A$22,3,2))) -> 230000
A50: V | H50: 25 | I50: =VLOOKUP($H50,P_All!$A$5:$D$205,3*($C$8-1)+2) -> 10727 | J50: =VLOOKUP($H50,P_All!$A$5:$D$205,3*($C$8-1)+3) -> 13041 | K50: =VLOOKUP($H50,P_All!$A$5:$D$205,3*($C$8-1)+4) -> 15819 | L50: =IF(ISNA(VLOOKUP($B$6,$A$25:$E$51,IF($B$8=$A$22,3,2))),EXP(VLOOKUP($B$6,$A$25:$E$51,4)*LN(VLOOKUP($H50,#REF!,$C$8+1)/1000)+VLOOKUP($B$6,$A$25:$E$51,5)),VLOOKUP($B$6,$A$25:$E$51,IF($B$8=$A$22,3,2))) -> 230000 | M50: 25 | N50: =VLOOKUP($H50,P_All!$A$5:$D$205,3*($C$8-1)+2) -> 10727 | O50: =VLOOKUP($H50,P_All!$A$5:$D$205,3*($C$8-1)+3) -> 13041 | P50: =VLOOKUP($H50,P_All!$A$5:$D$205,3*($C$8-1)+4) -> 15819 | Q50: =IF(ISNA(VLOOKUP($B$6,$A$25:$E$51,IF($B$8=$A$22,3,2))),EXP(VLOOKUP($B$6,$A$25:$E$51,4)*LN(VLOOKUP($H50,#REF!,$C$8+1)/1000)+VLOOKUP($B$6,$A$25:$E$51,5)),VLOOKUP($B$6,$A$25:$E$51,IF($B$8=$A$22,3,2))) -> 230000 | S50: 42.08333333 | T50: =VLOOKUP($S50,P_All!$X$5:$AS$245,3*($C$8-1)+2) -> 1333.6 | U50: =VLOOKUP($S50,P_All!$X$5:$AS$245,3*($C$8-1)+3) -> 1452.9 | V50: =VLOOKUP($S50,P_All!$X$5:$AS$245,3*($C$8-1)+4) -> 1574.8 | W50: =IF(ISNA(VLOOKUP($B$6,$A$25:$E$52,IF($B$8=$A$22,3,2))),EXP(VLOOKUP($B$6,$A$25:$E$52,4)*LN(VLOOKUP($S50,#REF!,$C$8+1)/1000)+VLOOKUP($B$6,$A$25:$E$52,5)),VLOOKUP($B$6,$A$25:$E$52,IF($B$8=$A$22,3,2))) -> 230000
A51: Zn | H51: 26 | I51: =VLOOKUP($H51,P_All!$A$5:$D$205,3*($C$8-1)+2) -> 9248 | J51: =VLOOKUP($H51,P_All!$A$5:$D$205,3*($C$8-1)+3) -> 11270 | K51: =VLOOKUP($H51,P_All!$A$5:$D$205,3*($C$8-1)+4) -> 13754 | L51: =IF(ISNA(VLOOKUP($B$6,$A$25:$E$51,IF($B$8=$A$22,3,2))),EXP(VLOOKUP($B$6,$A$25:$E$51,4)*LN(VLOOKUP($H51,#REF!,$C$8+1)/1000)+VLOOKUP($B$6,$A$25:$E$51,5)),VLOOKUP($B$6,$A$25:$E$51,IF($B$8=$A$22,3,2))) -> 230000 | M51: 26 | N51: =VLOOKUP($H51,P_All!$A$5:$D$205,3*($C$8-1)+2) -> 9248 | O51: =VLOOKUP($H51,P_All!$A$5:$D$205,3*($C$8-1)+3) -> 11270 | P51: =VLOOKUP($H51,P_All!$A$5:$D$205,3*($C$8-1)+4) -> 13754 | Q51: =IF(ISNA(VLOOKUP($B$6,$A$25:$E$51,IF($B$8=$A$22,3,2))),EXP(VLOOKUP($B$6,$A$25:$E$51,4)*LN(VLOOKUP($H51,#REF!,$C$8+1)/1000)+VLOOKUP($B$6,$A$25:$E$51,5)),VLOOKUP($B$6,$A$25:$E$51,IF($B$8=$A$22,3,2))) -> 230000 | S51: 42.16666667 | T51: =VLOOKUP($S51,P_All!$X$5:$AS$245,3*($C$8-1)+2) -> 1332.4 | U51: =VLOOKUP($S51,P_All!$X$5:$AS$245,3*($C$8-1)+3) -> 1447 | V51: =VLOOKUP($S51,P_All!$X$5:$AS$245,3*($C$8-1)+4) -> 1566.2 | W51: =IF(ISNA(VLOOKUP($B$6,$A$25:$E$52,IF($B$8=$A$22,3,2))),EXP(VLOOKUP($B$6,$A$25:$E$52,4)*LN(VLOOKUP($S51,#REF!,$C$8+1)/1000)+VLOOKUP($B$6,$A$25:$E$52,5)),VLOOKUP($B$6,$A$25:$E$52,IF($B$8=$A$22,3,2))) -> 230000
A52: Hardness | B52: 500000 | H52: 27 | I52: =VLOOKUP($H52,P_All!$A$5:$D$205,3*($C$8-1)+2) -> 7978.6 | J52: =VLOOKUP($H52,P_All!$A$5:$D$205,3*($C$8-1)+3) -> 9641 | K52: =VLOOKUP($H52,P_All!$A$5:$D$205,3*($C$8-1)+4) -> 11720 | L52: =IF(ISNA(VLOOKUP($B$6,$A$25:$E$51,IF($B$8=$A$22,3,2))),EXP(VLOOKUP($B$6,$A$25:$E$51,4)*LN(VLOOKUP($H52,#REF!,$C$8+1)/1000)+VLOOKUP($B$6,$A$25:$E$51,5)),VLOOKUP($B$6,$A$25:$E$51,IF($B$8=$A$22,3,2))) -> 230000 | M52: 27 | N52: =VLOOKUP($H52,P_All!$A$5:$D$205,3*($C$8-1)+2) -> 7978.6 | O52: =VLOOKUP($H52,P_All!$A$5:$D$205,3*($C$8-1)+3) -> 9641 | P52: =VLOOKUP($H52,P_All!$A$5:$D$205,3*($C$8-1)+4) -> 11720 | Q52: =IF(ISNA(VLOOKUP($B$6,$A$25:$E$51,IF($B$8=$A$22,3,2))),EXP(VLOOKUP($B$6,$A$25:$E$51,4)*LN(VLOOKUP($H52,#REF!,$C$8+1)/1000)+VLOOKUP($B$6,$A$25:$E$51,5)),VLOOKUP($B$6,$A$25:$E$51,IF($B$8=$A$22,3,2))) -> 230000 | S52: 42.25 | T52: =VLOOKUP($S52,P_All!$X$5:$AS$245,3*($C$8-1)+2) -> 1334.8 | U52: =VLOOKUP($S52,P_All!$X$5:$AS$245,3*($C$8-1)+3) -> 1446.8 | V52: =VLOOKUP($S52,P_All!$X$5:$AS$245,3*($C$8-1)+4) -> 1567 | W52: =IF(ISNA(VLOOKUP($B$6,$A$25:$E$52,IF($B$8=$A$22,3,2))),EXP(VLOOKUP($B$6,$A$25:$E$52,4)*LN(VLOOKUP($S52,#REF!,$C$8+1)/1000)+VLOOKUP($B$6,$A$25:$E$52,5)),VLOOKUP($B$6,$A$25:$E$52,IF($B$8=$A$22,3,2))) -> 230000
H53: 28 | I53: =VLOOKUP($H53,P_All!$A$5:$D$205,3*($C$8-1)+2) -> 6576.8 | J53: =VLOOKUP($H53,P_All!$A$5:$D$205,3*($C$8-1)+3) -> 7903.5 | K53: =VLOOKUP($H53,P_All!$A$5:$D$205,3*($C$8-1)+4) -> 9718 | L53: =IF(ISNA(VLOOKUP($B$6,$A$25:$E$51,IF($B$8=$A$22,3,2))),EXP(VLOOKUP($B$6,$A$25:$E$51,4)*LN(VLOOKUP($H53,#REF!,$C$8+1)/1000)+VLOOKUP($B$6,$A$25:$E$51,5)),VLOOKUP($B$6,$A$25:$E$51,IF($B$8=$A$22,3,2))) -> 230000 | M53: 28 | N53: =VLOOKUP($H53,P_All!$A$5:$D$205,3*($C$8-1)+2) -> 6576.8 | O53: =VLOOKUP($H53,P_All!$A$5:$D$205,3*($C$8-1)+3) -> 7903.5 | P53: =VLOOKUP($H53,P_All!$A$5:$D$205,3*($C$8-1)+4) -> 9718 | Q53: =IF(ISNA(VLOOKUP($B$6,$A$25:$E$51,IF($B$8=$A$22,3,2))),EXP(VLOOKUP($B$6,$A$25:$E$51,4)*LN(VLOOKUP($H53,#REF!,$C$8+1)/1000)+VLOOKUP($B$6,$A$25:$E$51,5)),VLOOKUP($B$6,$A$25:$E$51,IF($B$8=$A$22,3,2))) -> 230000 | S53: 42.33333333 | T53: =VLOOKUP($S53,P_All!$X$5:$AS$245,3*($C$8-1)+2) -> 1358.1 | U53: =VLOOKUP($S53,P_All!$X$5:$AS$245,3*($C$8-1)+3) -> 1466 | V53: =VLOOKUP($S53,P_All!$X$5:$AS$245,3*($C$8-1)+4) -> 1590.3 | W53: =IF(ISNA(VLOOKUP($B$6,$A$25:$E$52,IF($B$8=$A$22,3,2))),EXP(VLOOKUP($B$6,$A$25:$E$52,4)*LN(VLOOKUP($S53,#REF!,$C$8+1)/1000)+VLOOKUP($B$6,$A$25:$E$52,5)),VLOOKUP($B$6,$A$25:$E$52,IF($B$8=$A$22,3,2))) -> 230000
H54: 29 | I54: =VLOOKUP($H54,P_All!$A$5:$D$205,3*($C$8-1)+2) -> 5249.6 | J54: =VLOOKUP($H54,P_All!$A$5:$D$205,3*($C$8-1)+3) -> 6252.8 | K54: =VLOOKUP($H54,P_All!$A$5:$D$205,3*($C$8-1)+4) -> 7579.9 | L54: =IF(ISNA(VLOOKUP($B$6,$A$25:$E$51,IF($B$8=$A$22,3,2))),EXP(VLOOKUP($B$6,$A$25:$E$51,4)*LN(VLOOKUP($H54,#REF!,$C$8+1)/1000)+VLOOKUP($B$6,$A$25:$E$51,5)),VLOOKUP($B$6,$A$25:$E$51,IF($B$8=$A$22,3,2))) -> 230000 | M54: 29 | N54: =VLOOKUP($H54,P_All!$A$5:$D$205,3*($C$8-1)+2) -> 5249.6 | O54: =VLOOKUP($H54,P_All!$A$5:$D$205,3*($C$8-1)+3) -> 6252.8 | P54: =VLOOKUP($H54,P_All!$A$5:$D$205,3*($C$8-1)+4) -> 7579.9 | Q54: =IF(ISNA(VLOOKUP($B$6,$A$25:$E$51,IF($B$8=$A$22,3,2))),EXP(VLOOKUP($B$6,$A$25:$E$51,4)*LN(VLOOKUP($H54,#REF!,$C$8+1)/1000)+VLOOKUP($B$6,$A$25:$E$51,5)),VLOOKUP($B$6,$A$25:$E$51,IF($B$8=$A$22,3,2))) -> 230000 | S54: 42.41666667 | T54: =VLOOKUP($S54,P_All!$X$5:$AS$245,3*($C$8-1)+2) -> 1370.1 | U54: =VLOOKUP($S54,P_All!$X$5:$AS$245,3*($C$8-1)+3) -> 1474.3 | V54: =VLOOKUP($S54,P_All!$X$5:$AS$245,3*($C$8-1)+4) -> 1600.8 | W54: =IF(ISNA(VLOOKUP($B$6,$A$25:$E$52,IF($B$8=$A$22,3,2))),EXP(VLOOKUP($B$6,$A$25:$E$52,4)*LN(VLOOKUP($S54,#REF!,$C$8+1)/1000)+VLOOKUP($B$6,$A$25:$E$52,5)),VLOOKUP($B$6,$A$25:$E$52,IF($B$8=$A$22,3,2))) -> 230000
H55: 30 | I55: =VLOOKUP($H55,P_All!$A$5:$D$205,3*($C$8-1)+2) -> 4246.5 | J55: =VLOOKUP($H55,P_All!$A$5:$D$205,3*($C$8-1)+3) -> 4901.7 | K55: =VLOOKUP($H55,P_All!$A$5:$D$205,3*($C$8-1)+4) -> 5896.8 | L55: =IF(ISNA(VLOOKUP($B$6,$A$25:$E$51,IF($B$8=$A$22,3,2))),EXP(VLOOKUP($B$6,$A$25:$E$51,4)*LN(VLOOKUP($H55,#REF!,$C$8+1)/1000)+VLOOKUP($B$6,$A$25:$E$51,5)),VLOOKUP($B$6,$A$25:$E$51,IF($B$8=$A$22,3,2))) -> 230000 | M55: 30 | N55: =VLOOKUP($H55,P_All!$A$5:$D$205,3*($C$8-1)+2) -> 4246.5 | O55: =VLOOKUP($H55,P_All!$A$5:$D$205,3*($C$8-1)+3) -> 4901.7 | P55: =VLOOKUP($H55,P_All!$A$5:$D$205,3*($C$8-1)+4) -> 5896.8 | Q55: =IF(ISNA(VLOOKUP($B$6,$A$25:$E$51,IF($B$8=$A$22,3,2))),EXP(VLOOKUP($B$6,$A$25:$E$51,4)*LN(VLOOKUP($H55,#REF!,$C$8+1)/1000)+VLOOKUP($B$6,$A$25:$E$51,5)),VLOOKUP($B$6,$A$25:$E$51,IF($B$8=$A$22,3,2))) -> 230000 | S55: 42.5 | T55: =VLOOKUP($S55,P_All!$X$5:$AS$245,3*($C$8-1)+2) -> 1356 | U55: =VLOOKUP($S55,P_All!$X$5:$AS$245,3*($C$8-1)+3) -> 1462.1 | V55: =VLOOKUP($S55,P_All!$X$5:$AS$245,3*($C$8-1)+4) -> 1588.9 | W55: =IF(ISNA(VLOOKUP($B$6,$A$25:$E$52,IF($B$8=$A$22,3,2))),EXP(VLOOKUP($B$6,$A$25:$E$52,4)*LN(VLOOKUP($S55,#REF!,$C$8+1)/1000)+VLOOKUP($B$6,$A$25:$E$52,5)),VLOOKUP($B$6,$A$25:$E$52,IF($B$8=$A$22,3,2))) -> 230000
H56: 31 | I56: =VLOOKUP($H56,P_All!$A$5:$D$205,3*($C$8-1)+2) -> 3493.3 | J56: =VLOOKUP($H56,P_All!$A$5:$D$205,3*($C$8-1)+3) -> 4004.9 | K56: =VLOOKUP($H56,P_All!$A$5:$D$205,3*($C$8-1)+4) -> 4723.1 | L56: =IF(ISNA(VLOOKUP($B$6,$A$25:$E$51,IF($B$8=$A$22,3,2))),EXP(VLOOKUP($B$6,$A$25:$E$51,4)*LN(VLOOKUP($H56,#REF!,$C$8+1)/1000)+VLOOKUP($B$6,$A$25:$E$51,5)),VLOOKUP($B$6,$A$25:$E$51,IF($B$8=$A$22,3,2))) -> 230000 | M56: 31 | N56: =VLOOKUP($H56,P_All!$A$5:$D$205,3*($C$8-1)+2) -> 3493.3 | O56: =VLOOKUP($H56,P_All!$A$5:$D$205,3*($C$8-1)+3) -> 4004.9 | P56: =VLOOKUP($H56,P_All!$A$5:$D$205,3*($C$8-1)+4) -> 4723.1 | Q56: =IF(ISNA(VLOOKUP($B$6,$A$25:$E$51,IF($B$8=$A$22,3,2))),EXP(VLOOKUP($B$6,$A$25:$E$51,4)*LN(VLOOKUP($H56,#REF!,$C$8+1)/1000)+VLOOKUP($B$6,$A$25:$E$51,5)),VLOOKUP($B$6,$A$25:$E$51,IF($B$8=$A$22,3,2))) -> 230000 | S56: 42.58333333 | T56: =VLOOKUP($S56,P_All!$X$5:$AS$245,3*($C$8-1)+2) -> 1353.1 | U56: =VLOOKUP($S56,P_All!$X$5:$AS$245,3*($C$8-1)+3) -> 1459.9 | V56: =VLOOKUP($S56,P_All!$X$5:$AS$245,3*($C$8-1)+4) -> 1577.8 | W56: =IF(ISNA(VLOOKUP($B$6,$A$25:$E$52,IF($B$8=$A$22,3,2))),EXP(VLOOKUP($B$6,$A$25:$E$52,4)*LN(VLOOKUP($S56,#REF!,$C$8+1)/1000)+VLOOKUP($B$6,$A$25:$E$52,5)),VLOOKUP($B$6,$A$25:$E$52,IF($B$8=$A$22,3,2))) -> 230000
H57: 32 | I57: =VLOOKUP($H57,P_All!$A$5:$D$205,3*($C$8-1)+2) -> 3012.4 | J57: =VLOOKUP($H57,P_All!$A$5:$D$205,3*($C$8-1)+3) -> 3386.9 | K57: =VLOOKUP($H57,P_All!$A$5:$D$205,3*($C$8-1)+4) -> 3972.8 | L57: =IF(ISNA(VLOOKUP($B$6,$A$25:$E$51,IF($B$8=$A$22,3,2))),EXP(VLOOKUP($B$6,$A$25:$E$51,4)*LN(VLOOKUP($H57,#REF!,$C$8+1)/1000)+VLOOKUP($B$6,$A$25:$E$51,5)),VLOOKUP($B$6,$A$25:$E$51,IF($B$8=$A$22,3,2))) -> 230000 | M57: 32 | N57: =VLOOKUP($H57,P_All!$A$5:$D$205,3*($C$8-1)+2) -> 3012.4 | O57: =VLOOKUP($H57,P_All!$A$5:$D$205,3*($C$8-1)+3) -> 3386.9 | P57: =VLOOKUP($H57,P_All!$A$5:$D$205,3*($C$8-1)+4) -> 3972.8 | Q57: =IF(ISNA(VLOOKUP($B$6,$A$25:$E$51,IF($B$8=$A$22,3,2))),EXP(VLOOKUP($B$6,$A$25:$E$51,4)*LN(VLOOKUP($H57,#REF!,$C$8+1)/1000)+VLOOKUP($B$6,$A$25:$E$51,5)),VLOOKUP($B$6,$A$25:$E$51,IF($B$8=$A$22,3,2))) -> 230000 | S57: 42.66666667 | T57: =VLOOKUP($S57,P_All!$X$5:$AS$245,3*($C$8-1)+2) -> 1337.5 | U57: =VLOOKUP($S57,P_All!$X$5:$AS$245,3*($C$8-1)+3) -> 1450 | V57: =VLOOKUP($S57,P_All!$X$5:$AS$245,3*($C$8-1)+4) -> 1570 | W57: =IF(ISNA(VLOOKUP($B$6,$A$25:$E$52,IF($B$8=$A$22,3,2))),EXP(VLOOKUP($B$6,$A$25:$E$52,4)*LN(VLOOKUP($S57,#REF!,$C$8+1)/1000)+VLOOKUP($B$6,$A$25:$E$52,5)),VLOOKUP($B$6,$A$25:$E$52,IF($B$8=$A$22,3,2))) -> 230000
H58: 33 | I58: =VLOOKUP($H58,P_All!$A$5:$D$205,3*($C$8-1)+2) -> 2690.9 | J58: =VLOOKUP($H58,P_All!$A$5:$D$205,3*($C$8-1)+3) -> 2982.2 | K58: =VLOOKUP($H58,P_All!$A$5:$D$205,3*($C$8-1)+4) -> 3446.6 | L58: =IF(ISNA(VLOOKUP($B$6,$A$25:$E$51,IF($B$8=$A$22,3,2))),EXP(VLOOKUP($B$6,$A$25:$E$51,4)*LN(VLOOKUP($H58,#REF!,$C$8+1)/1000)+VLOOKUP($B$6,$A$25:$E$51,5)),VLOOKUP($B$6,$A$25:$E$51,IF($B$8=$A$22,3,2))) -> 230000 | M58: 33 | N58: =VLOOKUP($H58,P_All!$A$5:$D$205,3*($C$8-1)+2) -> 2690.9 | O58: =VLOOKUP($H58,P_All!$A$5:$D$205,3*($C$8-1)+3) -> 2982.2 | P58: =VLOOKUP($H58,P_All!$A$5:$D$205,3*($C$8-1)+4) -> 3446.6 | Q58: =IF(ISNA(VLOOKUP($B$6,$A$25:$E$51,IF($B$8=$A$22,3,2))),EXP(VLOOKUP($B$6,$A$25:$E$51,4)*LN(VLOOKUP($H58,#REF!,$C$8+1)/1000)+VLOOKUP($B$6,$A$25:$E$51,5)),VLOOKUP($B$6,$A$25:$E$51,IF($B$8=$A$22,3,2))) -> 230000 | S58: 42.75 | T58: =VLOOKUP($S58,P_All!$X$5:$AS$245,3*($C$8-1)+2) -> 1313.2 | U58: =VLOOKUP($S58,P_All!$X$5:$AS$245,3*($C$8-1)+3) -> 1434.4 | V58: =VLOOKUP($S58,P_All!$X$5:$AS$245,3*($C$8-1)+4) -> 1554.9 | W58: =IF(ISNA(VLOOKUP($B$6,$A$25:$E$52,IF($B$8=$A$22,3,2))),EXP(VLOOKUP($B$6,$A$25:$E$52,4)*LN(VLOOKUP($S58,#REF!,$C$8+1)/1000)+VLOOKUP($B$6,$A$25:$E$52,5)),VLOOKUP($B$6,$A$25:$E$52,IF($B$8=$A$22,3,2))) -> 230000
H59: 34 | I59: =VLOOKUP($H59,P_All!$A$5:$D$205,3*($C$8-1)+2) -> 2465.4 | J59: =VLOOKUP($H59,P_All!$A$5:$D$205,3*($C$8-1)+3) -> 2684.8 | K59: =VLOOKUP($H59,P_All!$A$5:$D$205,3*($C$8-1)+4) -> 3047.3 | L59: =IF(ISNA(VLOOKUP($B$6,$A$25:$E$51,IF($B$8=$A$22,3,2))),EXP(VLOOKUP($B$6,$A$25:$E$51,4)*LN(VLOOKUP($H59,#REF!,$C$8+1)/1000)+VLOOKUP($B$6,$A$25:$E$51,5)),VLOOKUP($B$6,$A$25:$E$51,IF($B$8=$A$22,3,2))) -> 230000 | M59: 34 | N59: =VLOOKUP($H59,P_All!$A$5:$D$205,3*($C$8-1)+2) -> 2465.4 | O59: =VLOOKUP($H59,P_All!$A$5:$D$205,3*($C$8-1)+3) -> 2684.8 | P59: =VLOOKUP($H59,P_All!$A$5:$D$205,3*($C$8-1)+4) -> 3047.3 | Q59: =IF(ISNA(VLOOKUP($B$6,$A$25:$E$51,IF($B$8=$A$22,3,2))),EXP(VLOOKUP($B$6,$A$25:$E$51,4)*LN(VLOOKUP($H59,#REF!,$C$8+1)/1000)+VLOOKUP($B$6,$A$25:$E$51,5)),VLOOKUP($B$6,$A$25:$E$51,IF($B$8=$A$22,3,2))) -> 230000 | S59: 42.83333333 | T59: =VLOOKUP($S59,P_All!$X$5:$AS$245,3*($C$8-1)+2) -> 1301.8 | U59: =VLOOKUP($S59,P_All!$X$5:$AS$245,3*($C$8-1)+3) -> 1425.9 | V59: =VLOOKUP($S59,P_All!$X$5:$AS$245,3*($C$8-1)+4) -> 1546.9 | W59: =IF(ISNA(VLOOKUP($B$6,$A$25:$E$52,IF($B$8=$A$22,3,2))),EXP(VLOOKUP($B$6,$A$25:$E$52,4)*LN(VLOOKUP($S59,#REF!,$C$8+1)/1000)+VLOOKUP($B$6,$A$25:$E$52,5)),VLOOKUP($B$6,$A$25:$E$52,IF($B$8=$A$22,3,2))) -> 230000
H60: 35 | I60: =VLOOKUP($H60,P_All!$A$5:$D$205,3*($C$8-1)+2) -> 2237 | J60: =VLOOKUP($H60,P_All!$A$5:$D$205,3*($C$8-1)+3) -> 2441.5 | K60: =VLOOKUP($H60,P_All!$A$5:$D$205,3*($C$8-1)+4) -> 2731.6 | L60: =IF(ISNA(VLOOKUP($B$6,$A$25:$E$51,IF($B$8=$A$22,3,2))),EXP(VLOOKUP($B$6,$A$25:$E$51,4)*LN(VLOOKUP($H60,#REF!,$C$8+1)/1000)+VLOOKUP($B$6,$A$25:$E$51,5)),VLOOKUP($B$6,$A$25:$E$51,IF($B$8=$A$22,3,2))) -> 230000 | M60: 35 | N60: =VLOOKUP($H60,P_All!$A$5:$D$205,3*($C$8-1)+2) -> 2237 | O60: =VLOOKUP($H60,P_All!$A$5:$D$205,3*($C$8-1)+3) -> 2441.5 | P60: =VLOOKUP($H60,P_All!$A$5:$D$205,3*($C$8-1)+4) -> 2731.6 | Q60: =IF(ISNA(VLOOKUP($B$6,$A$25:$E$51,IF($B$8=$A$22,3,2))),EXP(VLOOKUP($B$6,$A$25:$E$51,4)*LN(VLOOKUP($H60,#REF!,$C$8+1)/1000)+VLOOKUP($B$6,$A$25:$E$51,5)),VLOOKUP($B$6,$A$25:$E$51,IF($B$8=$A$22,3,2))) -> 230000 | S60: 42.91666667 | T60: =VLOOKUP($S60,P_All!$X$5:$AS$245,3*($C$8-1)+2) -> 1296.7 | U60: =VLOOKUP($S60,P_All!$X$5:$AS$245,3*($C$8-1)+3) -> 1420.5 | V60: =VLOOKUP($S60,P_All!$X$5:$AS$245,3*($C$8-1)+4) -> 1539.8 | W60: =IF(ISNA(VLOOKUP($B$6,$A$25:$E$52,IF($B$8=$A$22,3,2))),EXP(VLOOKUP($B$6,$A$25:$E$52,4)*LN(VLOOKUP($S60,#REF!,$C$8+1)/1000)+VLOOKUP($B$6,$A$25:$E$52,5)),VLOOKUP($B$6,$A$25:$E$52,IF($B$8=$A$22,3,2))) -> 230000
H61: 36 | I61: =VLOOKUP($H61,P_All!$A$5:$D$205,3*($C$8-1)+2) -> 2010.7 | J61: =VLOOKUP($H61,P_All!$A$5:$D$205,3*($C$8-1)+3) -> 2181.3 | K61: =VLOOKUP($H61,P_All!$A$5:$D$205,3*($C$8-1)+4) -> 2418 | L61: =IF(ISNA(VLOOKUP($B$6,$A$25:$E$51,IF($B$8=$A$22,3,2))),EXP(VLOOKUP($B$6,$A$25:$E$51,4)*LN(VLOOKUP($H61,#REF!,$C$8+1)/1000)+VLOOKUP($B$6,$A$25:$E$51,5)),VLOOKUP($B$6,$A$25:$E$51,IF($B$8=$A$22,3,2))) -> 230000 | M61: 36 | N61: =VLOOKUP($H61,P_All!$A$5:$D$205,3*($C$8-1)+2) -> 2010.7 | O61: =VLOOKUP($H61,P_All!$A$5:$D$205,3*($C$8-1)+3) -> 2181.3 | P61: =VLOOKUP($H61,P_All!$A$5:$D$205,3*($C$8-1)+4) -> 2418 | Q61: =IF(ISNA(VLOOKUP($B$6,$A$25:$E$51,IF($B$8=$A$22,3,2))),EXP(VLOOKUP($B$6,$A$25:$E$51,4)*LN(VLOOKUP($H61,#REF!,$C$8+1)/1000)+VLOOKUP($B$6,$A$25:$E$51,5)),VLOOKUP($B$6,$A$25:$E$51,IF($B$8=$A$22,3,2))) -> 230000 | S61: 43 | T61: =VLOOKUP($S61,P_All!$X$5:$AS$245,3*($C$8-1)+2) -> 1291.8 | U61: =VLOOKUP($S61,P_All!$X$5:$AS$245,3*($C$8-1)+3) -> 1411.9 | V61: =VLOOKUP($S61,P_All!$X$5:$AS$245,3*($C$8-1)+4) -> 1527.4 | W61: =IF(ISNA(VLOOKUP($B$6,$A$25:$E$52,IF($B$8=$A$22,3,2))),EXP(VLOOKUP($B$6,$A$25:$E$52,4)*LN(VLOOKUP($S61,#REF!,$C$8+1)/1000)+VLOOKUP($B$6,$A$25:$E$52,5)),VLOOKUP($B$6,$A$25:$E$52,IF($B$8=$A$22,3,2))) -> 230000
H62: 37 | I62: =VLOOKUP($H62,P_All!$A$5:$D$205,3*($C$8-1)+2) -> 1812.8 | J62: =VLOOKUP($H62,P_All!$A$5:$D$205,3*($C$8-1)+3) -> 1970.8 | K62: =VLOOKUP($H62,P_All!$A$5:$D$205,3*($C$8-1)+4) -> 2157.4 | L62: =IF(ISNA(VLOOKUP($B$6,$A$25:$E$51,IF($B$8=$A$22,3,2))),EXP(VLOOKUP($B$6,$A$25:$E$51,4)*LN(VLOOKUP($H62,#REF!,$C$8+1)/1000)+VLOOKUP($B$6,$A$25:$E$51,5)),VLOOKUP($B$6,$A$25:$E$51,IF($B$8=$A$22,3,2))) -> 230000 | M62: 37 | N62: =VLOOKUP($H62,P_All!$A$5:$D$205,3*($C$8-1)+2) -> 1812.8 | O62: =VLOOKUP($H62,P_All!$A$5:$D$205,3*($C$8-1)+3) -> 1970.8 | P62: =VLOOKUP($H62,P_All!$A$5:$D$205,3*($C$8-1)+4) -> 2157.4 | Q62: =IF(ISNA(VLOOKUP($B$6,$A$25:$E$51,IF($B$8=$A$22,3,2))),EXP(VLOOKUP($B$6,$A$25:$E$51,4)*LN(VLOOKUP($H62,#REF!,$C$8+1)/1000)+VLOOKUP($B$6,$A$25:$E$51,5)),VLOOKUP($B$6,$A$25:$E$51,IF($B$8=$A$22,3,2))) -> 230000 | S62: 43.08333333 | T62: =VLOOKUP($S62,P_All!$X$5:$AS$245,3*($C$8-1)+2) -> 1290.1 | U62: =VLOOKUP($S62,P_All!$X$5:$AS$245,3*($C$8-1)+3) -> 1405.4 | V62: =VLOOKUP($S62,P_All!$X$5:$AS$245,3*($C$8-1)+4) -> 1515.6 | W62: =IF(ISNA(VLOOKUP($B$6,$A$25:$E$52,IF($B$8=$A$22,3,2))),EXP(VLOOKUP($B$6,$A$25:$E$52,4)*LN(VLOOKUP($S62,#REF!,$C$8+1)/1000)+VLOOKUP($B$6,$A$25:$E$52,5)),VLOOKUP($B$6,$A$25:$E$52,IF($B$8=$A$22,3,2))) -> 230000
H63: 38 | I63: =VLOOKUP($H63,P_All!$A$5:$D$205,3*($C$8-1)+2) -> 1659.9 | J63: =VLOOKUP($H63,P_All!$A$5:$D$205,3*($C$8-1)+3) -> 1811.7 | K63: =VLOOKUP($H63,P_All!$A$5:$D$205,3*($C$8-1)+4) -> 1977.5 | L63: =IF(ISNA(VLOOKUP($B$6,$A$25:$E$51,IF($B$8=$A$22,3,2))),EXP(VLOOKUP($B$6,$A$25:$E$51,4)*LN(VLOOKUP($H63,#REF!,$C$8+1)/1000)+VLOOKUP($B$6,$A$25:$E$51,5)),VLOOKUP($B$6,$A$25:$E$51,IF($B$8=$A$22,3,2))) -> 230000 | M63: 38 | N63: =VLOOKUP($H63,P_All!$A$5:$D$205,3*($C$8-1)+2) -> 1659.9 | O63: =VLOOKUP($H63,P_All!$A$5:$D$205,3*($C$8-1)+3) -> 1811.7 | P63: =VLOOKUP($H63,P_All!$A$5:$D$205,3*($C$8-1)+4) -> 1977.5 | Q63: =IF(ISNA(VLOOKUP($B$6,$A$25:$E$51,IF($B$8=$A$22,3,2))),EXP(VLOOKUP($B$6,$A$25:$E$51,4)*LN(VLOOKUP($H63,#REF!,$C$8+1)/1000)+VLOOKUP($B$6,$A$25:$E$51,5)),VLOOKUP($B$6,$A$25:$E$51,IF($B$8=$A$22,3,2))) -> 230000 | S63: 43.16666667 | T63: =VLOOKUP($S63,P_All!$X$5:$AS$245,3*($C$8-1)+2) -> 1291 | U63: =VLOOKUP($S63,P_All!$X$5:$AS$245,3*($C$8-1)+3) -> 1400.2 | V63: =VLOOKUP($S63,P_All!$X$5:$AS$245,3*($C$8-1)+4) -> 1506.6 | W63: =IF(ISNA(VLOOKUP($B$6,$A$25:$E$52,IF($B$8=$A$22,3,2))),EXP(VLOOKUP($B$6,$A$25:$E$52,4)*LN(VLOOKUP($S63,#REF!,$C$8+1)/1000)+VLOOKUP($B$6,$A$25:$E$52,5)),VLOOKUP($B$6,$A$25:$E$52,IF($B$8=$A$22,3,2))) -> 230000
H64: 39 | I64: =VLOOKUP($H64,P_All!$A$5:$D$205,3*($C$8-1)+2) -> 1580.7 | J64: =VLOOKUP($H64,P_All!$A$5:$D$205,3*($C$8-1)+3) -> 1693.5 | K64: =VLOOKUP($H64,P_All!$A$5:$D$205,3*($C$8-1)+4) -> 1847.5 | L64: =IF(ISNA(VLOOKUP($B$6,$A$25:$E$51,IF($B$8=$A$22,3,2))),EXP(VLOOKUP($B$6,$A$25:$E$51,4)*LN(VLOOKUP($H64,#REF!,$C$8+1)/1000)+VLOOKUP($B$6,$A$25:$E$51,5)),VLOOKUP($B$6,$A$25:$E$51,IF($B$8=$A$22,3,2))) -> 230000 | M64: 39 | N64: =VLOOKUP($H64,P_All!$A$5:$D$205,3*($C$8-1)+2) -> 1580.7 | O64: =VLOOKUP($H64,P_All!$A$5:$D$205,3*($C$8-1)+3) -> 1693.5 | P64: =VLOOKUP($H64,P_All!$A$5:$D$205,3*($C$8-1)+4) -> 1847.5 | Q64: =IF(ISNA(VLOOKUP($B$6,$A$25:$E$51,IF($B$8=$A$22,3,2))),EXP(VLOOKUP($B$6,$A$25:$E$51,4)*LN(VLOOKUP($H64,#REF!,$C$8+1)/1000)+VLOOKUP($B$6,$A$25:$E$51,5)),VLOOKUP($B$6,$A$25:$E$51,IF($B$8=$A$22,3,2))) -> 230000 | S64: 43.25 | T64: =VLOOKUP($S64,P_All!$X$5:$AS$245,3*($C$8-1)+2) -> 1294.9 | U64: =VLOOKUP($S64,P_All!$X$5:$AS$245,3*($C$8-1)+3) -> 1404 | V64: =VLOOKUP($S64,P_All!$X$5:$AS$245,3*($C$8-1)+4) -> 1508.4 | W64: =IF(ISNA(VLOOKUP($B$6,$A$25:$E$52,IF($B$8=$A$22,3,2))),EXP(VLOOKUP($B$6,$A$25:$E$52,4)*LN(VLOOKUP($S64,#REF!,$C$8+1)/1000)+VLOOKUP($B$6,$A$25:$E$52,5)),VLOOKUP($B$6,$A$25:$E$52,IF($B$8=$A$22,3,2))) -> 230000
H65: 40 | I65: =VLOOKUP($H65,P_All!$A$5:$D$205,3*($C$8-1)+2) -> 1497.5 | J65: =VLOOKUP($H65,P_All!$A$5:$D$205,3*($C$8-1)+3) -> 1622.9 | K65: =VLOOKUP($H65,P_All!$A$5:$D$205,3*($C$8-1)+4) -> 1768.2 | L65: =IF(ISNA(VLOOKUP($B$6,$A$25:$E$51,IF($B$8=$A$22,3,2))),EXP(VLOOKUP($B$6,$A$25:$E$51,4)*LN(VLOOKUP($H65,#REF!,$C$8+1)/1000)+VLOOKUP($B$6,$A$25:$E$51,5)),VLOOKUP($B$6,$A$25:$E$51,IF($B$8=$A$22,3,2))) -> 230000 | M65: 40 | N65: =VLOOKUP($H65,P_All!$A$5:$D$205,3*($C$8-1)+2) -> 1497.5 | O65: =VLOOKUP($H65,P_All!$A$5:$D$205,3*($C$8-1)+3) -> 1622.9 | P65: =VLOOKUP($H65,P_All!$A$5:$D$205,3*($C$8-1)+4) -> 1768.2 | Q65: =IF(ISNA(VLOOKUP($B$6,$A$25:$E$51,IF($B$8=$A$22,3,2))),EXP(VLOOKUP($B$6,$A$25:$E$51,4)*LN(VLOOKUP($H65,#REF!,$C$8+1)/1000)+VLOOKUP($B$6,$A$25:$E$51,5)),VLOOKUP($B$6,$A$25:$E$51,IF($B$8=$A$22,3,2))) -> 230000 | S65: 43.33333333 | T65: =VLOOKUP($S65,P_All!$X$5:$AS$245,3*($C$8-1)+2) -> 1314.8 | U65: =VLOOKUP($S65,P_All!$X$5:$AS$245,3*($C$8-1)+3) -> 1419.4 | V65: =VLOOKUP($S65,P_All!$X$5:$AS$245,3*($C$8-1)+4) -> 1531.7 | W65: =IF(ISNA(VLOOKUP($B$6,$A$25:$E$52,IF($B$8=$A$22,3,2))),EXP(VLOOKUP($B$6,$A$25:$E$52,4)*LN(VLOOKUP($S65,#REF!,$C$8+1)/1000)+VLOOKUP($B$6,$A$25:$E$52,5)),VLOOKUP($B$6,$A$25:$E$52,IF($B$8=$A$22,3,2))) -> 230000
H66: 41 | I66: =VLOOKUP($H66,P_All!$A$5:$D$205,3*($C$8-1)+2) -> 1416.6 | J66: =VLOOKUP($H66,P_All!$A$5:$D$205,3*($C$8-1)+3) -> 1533.7 | K66: =VLOOKUP($H66,P_All!$A$5:$D$205,3*($C$8-1)+4) -> 1669 | L66: =IF(ISNA(VLOOKUP($B$6,$A$25:$E$51,IF($B$8=$A$22,3,2))),EXP(VLOOKUP($B$6,$A$25:$E$51,4)*LN(VLOOKUP($H66,#REF!,$C$8+1)/1000)+VLOOKUP($B$6,$A$25:$E$51,5)),VLOOKUP($B$6,$A$25:$E$51,IF($B$8=$A$22,3,2))) -> 230000 | M66: 41 | N66: =VLOOKUP($H66,P_All!$A$5:$D$205,3*($C$8-1)+2) -> 1416.6 | O66: =VLOOKUP($H66,P_All!$A$5:$D$205,3*($C$8-1)+3) -> 1533.7 | P66: =VLOOKUP($H66,P_All!$A$5:$D$205,3*($C$8-1)+4) -> 1669 | Q66: =IF(ISNA(VLOOKUP($B$6,$A$25:$E$51,IF($B$8=$A$22,3,2))),EXP(VLOOKUP($B$6,$A$25:$E$51,4)*LN(VLOOKUP($H66,#REF!,$C$8+1)/1000)+VLOOKUP($B$6,$A$25:$E$51,5)),VLOOKUP($B$6,$A$25:$E$51,IF($B$8=$A$22,3,2))) -> 230000 | S66: 43.41666667 | T66: =VLOOKUP($S66,P_All!$X$5:$AS$245,3*($C$8-1)+2) -> 1328.6 | U66: =VLOOKUP($S66,P_All!$X$5:$AS$245,3*($C$8-1)+3) -> 1425.4 | V66: =VLOOKUP($S66,P_All!$X$5:$AS$245,3*($C$8-1)+4) -> 1551.6 | W66: =IF(ISNA(VLOOKUP($B$6,$A$25:$E$52,IF($B$8=$A$22,3,2))),EXP(VLOOKUP($B$6,$A$25:$E$52,4)*LN(VLOOKUP($S66,#REF!,$C$8+1)/1000)+VLOOKUP($B$6,$A$25:$E$52,5)),VLOOKUP($B$6,$A$25:$E$52,IF($B$8=$A$22,3,2))) -> 230000
H67: 42 | I67: =VLOOKUP($H67,P_All!$A$5:$D$205,3*($C$8-1)+2) -> 1370.1 | J67: =VLOOKUP($H67,P_All!$A$5:$D$205,3*($C$8-1)+3) -> 1474.3 | K67: =VLOOKUP($H67,P_All!$A$5:$D$205,3*($C$8-1)+4) -> 1600.8 | L67: =IF(ISNA(VLOOKUP($B$6,$A$25:$E$51,IF($B$8=$A$22,3,2))),EXP(VLOOKUP($B$6,$A$25:$E$51,4)*LN(VLOOKUP($H67,#REF!,$C$8+1)/1000)+VLOOKUP($B$6,$A$25:$E$51,5)),VLOOKUP($B$6,$A$25:$E$51,IF($B$8=$A$22,3,2))) -> 230000 | M67: 42 | N67: =VLOOKUP($H67,P_All!$A$5:$D$205,3*($C$8-1)+2) -> 1370.1 | O67: =VLOOKUP($H67,P_All!$A$5:$D$205,3*($C$8-1)+3) -> 1474.3 | P67: =VLOOKUP($H67,P_All!$A$5:$D$205,3*($C$8-1)+4) -> 1600.8 | Q67: =IF(ISNA(VLOOKUP($B$6,$A$25:$E$51,IF($B$8=$A$22,3,2))),EXP(VLOOKUP($B$6,$A$25:$E$51,4)*LN(VLOOKUP($H67,#REF!,$C$8+1)/1000)+VLOOKUP($B$6,$A$25:$E$51,5)),VLOOKUP($B$6,$A$25:$E$51,IF($B$8=$A$22,3,2))) -> 230000 | S67: 43.5 | T67: =VLOOKUP($S67,P_All!$X$5:$AS$245,3*($C$8-1)+2) -> 1313.6 | U67: =VLOOKUP($S67,P_All!$X$5:$AS$245,3*($C$8-1)+3) -> 1417.7 | V67: =VLOOKUP($S67,P_All!$X$5:$AS$245,3*($C$8-1)+4) -> 1534.9 | W67: =IF(ISNA(VLOOKUP($B$6,$A$25:$E$52,IF($B$8=$A$22,3,2))),EXP(VLOOKUP($B$6,$A$25:$E$52,4)*LN(VLOOKUP($S67,#REF!,$C$8+1)/1000)+VLOOKUP($B$6,$A$25:$E$52,5)),VLOOKUP($B$6,$A$25:$E$52,IF($B$8=$A$22,3,2))) -> 230000
H68: 43 | I68: =VLOOKUP($H68,P_All!$A$5:$D$205,3*($C$8-1)+2) -> 1328.6 | J68: =VLOOKUP($H68,P_All!$A$5:$D$205,3*($C$8-1)+3) -> 1425.4 | K68: =VLOOKUP($H68,P_All!$A$5:$D$205,3*($C$8-1)+4) -> 1551.6 | L68: =IF(ISNA(VLOOKUP($B$6,$A$25:$E$51,IF($B$8=$A$22,3,2))),EXP(VLOOKUP($B$6,$A$25:$E$51,4)*LN(VLOOKUP($H68,#REF!,$C$8+1)/1000)+VLOOKUP($B$6,$A$25:$E$51,5)),VLOOKUP($B$6,$A$25:$E$51,IF($B$8=$A$22,3,2))) -> 230000 | M68: 43 | N68: =VLOOKUP($H68,P_All!$A$5:$D$205,3*($C$8-1)+2) -> 1328.6 | O68: =VLOOKUP($H68,P_All!$A$5:$D$205,3*($C$8-1)+3) -> 1425.4 | P68: =VLOOKUP($H68,P_All!$A$5:$D$205,3*($C$8-1)+4) -> 1551.6 | Q68: =IF(ISNA(VLOOKUP($B$6,$A$25:$E$51,IF($B$8=$A$22,3,2))),EXP(VLOOKUP($B$6,$A$25:$E$51,4)*LN(VLOOKUP($H68,#REF!,$C$8+1)/1000)+VLOOKUP($B$6,$A$25:$E$51,5)),VLOOKUP($B$6,$A$25:$E$51,IF($B$8=$A$22,3,2))) -> 230000 | S68: 43.58333333 | T68: =VLOOKUP($S68,P_All!$X$5:$AS$245,3*($C$8-1)+2) -> 1310.8 | U68: =VLOOKUP($S68,P_All!$X$5:$AS$245,3*($C$8-1)+3) -> 1413.8 | V68: =VLOOKUP($S68,P_All!$X$5:$AS$245,3*($C$8-1)+4) -> 1530.3 | W68: =IF(ISNA(VLOOKUP($B$6,$A$25:$E$52,IF($B$8=$A$22,3,2))),EXP(VLOOKUP($B$6,$A$25:$E$52,4)*LN(VLOOKUP($S68,#REF!,$C$8+1)/1000)+VLOOKUP($B$6,$A$25:$E$52,5)),VLOOKUP($B$6,$A$25:$E$52,IF($B$8=$A$22,3,2))) -> 230000
H69: 44 | I69: =VLOOKUP($H69,P_All!$A$5:$D$205,3*($C$8-1)+2) -> 1282.8 | J69: =VLOOKUP($H69,P_All!$A$5:$D$205,3*($C$8-1)+3) -> 1390.9 | K69: =VLOOKUP($H69,P_All!$A$5:$D$205,3*($C$8-1)+4) -> 1520.5 | L69: =IF(ISNA(VLOOKUP($B$6,$A$25:$E$51,IF($B$8=$A$22,3,2))),EXP(VLOOKUP($B$6,$A$25:$E$51,4)*LN(VLOOKUP($H69,#REF!,$C$8+1)/1000)+VLOOKUP($B$6,$A$25:$E$51,5)),VLOOKUP($B$6,$A$25:$E$51,IF($B$8=$A$22,3,2))) -> 230000 | M69: 44 | N69: =VLOOKUP($H69,P_All!$A$5:$D$205,3*($C$8-1)+2) -> 1282.8 | O69: =VLOOKUP($H69,P_All!$A$5:$D$205,3*($C$8-1)+3) -> 1390.9 | P69: =VLOOKUP($H69,P_All!$A$5:$D$205,3*($C$8-1)+4) -> 1520.5 | Q69: =IF(ISNA(VLOOKUP($B$6,$A$25:$E$51,IF($B$8=$A$22,3,2))),EXP(VLOOKUP($B$6,$A$25:$E$51,4)*LN(VLOOKUP($H69,#REF!,$C$8+1)/1000)+VLOOKUP($B$6,$A$25:$E$51,5)),VLOOKUP($B$6,$A$25:$E$51,IF($B$8=$A$22,3,2))) -> 230000 | S69: 43.66666667 | T69: =VLOOKUP($S69,P_All!$X$5:$AS$245,3*($C$8-1)+2) -> 1300.4 | U69: =VLOOKUP($S69,P_All!$X$5:$AS$245,3*($C$8-1)+3) -> 1405.3 | V69: =VLOOKUP($S69,P_All!$X$5:$AS$245,3*($C$8-1)+4) -> 1527.8 | W69: =IF(ISNA(VLOOKUP($B$6,$A$25:$E$52,IF($B$8=$A$22,3,2))),EXP(VLOOKUP($B$6,$A$25:$E$52,4)*LN(VLOOKUP($S69,#REF!,$C$8+1)/1000)+VLOOKUP($B$6,$A$25:$E$52,5)),VLOOKUP($B$6,$A$25:$E$52,IF($B$8=$A$22,3,2))) -> 230000
H70: 45 | I70: =VLOOKUP($H70,P_All!$A$5:$D$205,3*($C$8-1)+2) -> 1260.6 | J70: =VLOOKUP($H70,P_All!$A$5:$D$205,3*($C$8-1)+3) -> 1357.2 | K70: =VLOOKUP($H70,P_All!$A$5:$D$205,3*($C$8-1)+4) -> 1489.8 | L70: =IF(ISNA(VLOOKUP($B$6,$A$25:$E$51,IF($B$8=$A$22,3,2))),EXP(VLOOKUP($B$6,$A$25:$E$51,4)*LN(VLOOKUP($H70,#REF!,$C$8+1)/1000)+VLOOKUP($B$6,$A$25:$E$51,5)),VLOOKUP($B$6,$A$25:$E$51,IF($B$8=$A$22,3,2))) -> 230000 | M70: 45 | N70: =VLOOKUP($H70,P_All!$A$5:$D$205,3*($C$8-1)+2) -> 1260.6 | O70: =VLOOKUP($H70,P_All!$A$5:$D$205,3*($C$8-1)+3) -> 1357.2 | P70: =VLOOKUP($H70,P_All!$A$5:$D$205,3*($C$8-1)+4) -> 1489.8 | Q70: =IF(ISNA(VLOOKUP($B$6,$A$25:$E$51,IF($B$8=$A$22,3,2))),EXP(VLOOKUP($B$6,$A$25:$E$51,4)*LN(VLOOKUP($H70,#REF!,$C$8+1)/1000)+VLOOKUP($B$6,$A$25:$E$51,5)),VLOOKUP($B$6,$A$25:$E$51,IF($B$8=$A$22,3,2))) -> 230000 | S70: 43.75 | T70: =VLOOKUP($S70,P_All!$X$5:$AS$245,3*($C$8-1)+2) -> 1278.3 | U70: =VLOOKUP($S70,P_All!$X$5:$AS$245,3*($C$8-1)+3) -> 1387 | V70: =VLOOKUP($S70,P_All!$X$5:$AS$245,3*($C$8-1)+4) -> 1515 | W70: =IF(ISNA(VLOOKUP($B$6,$A$25:$E$52,IF($B$8=$A$22,3,2))),EXP(VLOOKUP($B$6,$A$25:$E$52,4)*LN(VLOOKUP($S70,#REF!,$C$8+1)/1000)+VLOOKUP($B$6,$A$25:$E$52,5)),VLOOKUP($B$6,$A$25:$E$52,IF($B$8=$A$22,3,2))) -> 230000
H71: 46 | I71: =VLOOKUP($H71,P_All!$A$5:$D$205,3*($C$8-1)+2) -> 1228 | J71: =VLOOKUP($H71,P_All!$A$5:$D$205,3*($C$8-1)+3) -> 1332.4 | K71: =VLOOKUP($H71,P_All!$A$5:$D$205,3*($C$8-1)+4) -> 1458.7 | L71: =IF(ISNA(VLOOKUP($B$6,$A$25:$E$51,IF($B$8=$A$22,3,2))),EXP(VLOOKUP($B$6,$A$25:$E$51,4)*LN(VLOOKUP($H71,#REF!,$C$8+1)/1000)+VLOOKUP($B$6,$A$25:$E$51,5)),VLOOKUP($B$6,$A$25:$E$51,IF($B$8=$A$22,3,2))) -> 230000 | M71: 46 | N71: =VLOOKUP($H71,P_All!$A$5:$D$205,3*($C$8-1)+2) -> 1228 | O71: =VLOOKUP($H71,P_All!$A$5:$D$205,3*($C$8-1)+3) -> 1332.4 | P71: =VLOOKUP($H71,P_All!$A$5:$D$205,3*($C$8-1)+4) -> 1458.7 | Q71: =IF(ISNA(VLOOKUP($B$6,$A$25:$E$51,IF($B$8=$A$22,3,2))),EXP(VLOOKUP($B$6,$A$25:$E$51,4)*LN(VLOOKUP($H71,#REF!,$C$8+1)/1000)+VLOOKUP($B$6,$A$25:$E$51,5)),VLOOKUP($B$6,$A$25:$E$51,IF($B$8=$A$22,3,2))) -> 230000 | S71: 43.83333333 | T71: =VLOOKUP($S71,P_All!$X$5:$AS$245,3*($C$8-1)+2) -> 1263 | U71: =VLOOKUP($S71,P_All!$X$5:$AS$245,3*($C$8-1)+3) -> 1380 | V71: =VLOOKUP($S71,P_All!$X$5:$AS$245,3*($C$8-1)+4) -> 1508.5 | W71: =IF(ISNA(VLOOKUP($B$6,$A$25:$E$52,IF($B$8=$A$22,3,2))),EXP(VLOOKUP($B$6,$A$25:$E$52,4)*LN(VLOOKUP($S71,#REF!,$C$8+1)/1000)+VLOOKUP($B$6,$A$25:$E$52,5)),VLOOKUP($B$6,$A$25:$E$52,IF($B$8=$A$22,3,2))) -> 230000
H72: 47 | I72: =VLOOKUP($H72,P_All!$A$5:$D$205,3*($C$8-1)+2) -> 1200.3 | J72: =VLOOKUP($H72,P_All!$A$5:$D$205,3*($C$8-1)+3) -> 1315.7 | K72: =VLOOKUP($H72,P_All!$A$5:$D$205,3*($C$8-1)+4) -> 1427.5 | L72: =IF(ISNA(VLOOKUP($B$6,$A$25:$E$51,IF($B$8=$A$22,3,2))),EXP(VLOOKUP($B$6,$A$25:$E$51,4)*LN(VLOOKUP($H72,#REF!,$C$8+1)/1000)+VLOOKUP($B$6,$A$25:$E$51,5)),VLOOKUP($B$6,$A$25:$E$51,IF($B$8=$A$22,3,2))) -> 230000 | M72: 47 | N72: =VLOOKUP($H72,P_All!$A$5:$D$205,3*($C$8-1)+2) -> 1200.3 | O72: =VLOOKUP($H72,P_All!$A$5:$D$205,3*($C$8-1)+3) -> 1315.7 | P72: =VLOOKUP($H72,P_All!$A$5:$D$205,3*($C$8-1)+4) -> 1427.5 | Q72: =IF(ISNA(VLOOKUP($B$6,$A$25:$E$51,IF($B$8=$A$22,3,2))),EXP(VLOOKUP($B$6,$A$25:$E$51,4)*LN(VLOOKUP($H72,#REF!,$C$8+1)/1000)+VLOOKUP($B$6,$A$25:$E$51,5)),VLOOKUP($B$6,$A$25:$E$51,IF($B$8=$A$22,3,2))) -> 230000 | S72: 43.91666667 | T72: =VLOOKUP($S72,P_All!$X$5:$AS$245,3*($C$8-1)+2) -> 1259.2 | U72: =VLOOKUP($S72,P_All!$X$5:$AS$245,3*($C$8-1)+3) -> 1373.7 | V72: =VLOOKUP($S72,P_All!$X$5:$AS$245,3*($C$8-1)+4) -> 1497.8 | W72: =IF(ISNA(VLOOKUP($B$6,$A$25:$E$52,IF($B$8=$A$22,3,2))),EXP(VLOOKUP($B$6,$A$25:$E$52,4)*LN(VLOOKUP($S72,#REF!,$C$8+1)/1000)+VLOOKUP($B$6,$A$25:$E$52,5)),VLOOKUP($B$6,$A$25:$E$52,IF($B$8=$A$22,3,2))) -> 230000
H73: 48 | I73: =VLOOKUP($H73,P_All!$A$5:$D$205,3*($C$8-1)+2) -> 1177.1 | J73: =VLOOKUP($H73,P_All!$A$5:$D$205,3*($C$8-1)+3) -> 1296.1 | K73: =VLOOKUP($H73,P_All!$A$5:$D$205,3*($C$8-1)+4) -> 1430.4 | L73: =IF(ISNA(VLOOKUP($B$6,$A$25:$E$51,IF($B$8=$A$22,3,2))),EXP(VLOOKUP($B$6,$A$25:$E$51,4)*LN(VLOOKUP($H73,#REF!,$C$8+1)/1000)+VLOOKUP($B$6,$A$25:$E$51,5)),VLOOKUP($B$6,$A$25:$E$51,IF($B$8=$A$22,3,2))) -> 230000 | M73: 48 | N73: =VLOOKUP($H73,P_All!$A$5:$D$205,3*($C$8-1)+2) -> 1177.1 | O73: =VLOOKUP($H73,P_All!$A$5:$D$205,3*($C$8-1)+3) -> 1296.1 | P73: =VLOOKUP($H73,P_All!$A$5:$D$205,3*($C$8-1)+4) -> 1430.4 | Q73: =IF(ISNA(VLOOKUP($B$6,$A$25:$E$51,IF($B$8=$A$22,3,2))),EXP(VLOOKUP($B$6,$A$25:$E$51,4)*LN(VLOOKUP($H73,#REF!,$C$8+1)/1000)+VLOOKUP($B$6,$A$25:$E$51,5)),VLOOKUP($B$6,$A$25:$E$51,IF($B$8=$A$22,3,2))) -> 230000 | S73: 44 | T73: =VLOOKUP($S73,P_All!$X$5:$AS$245,3*($C$8-1)+2) -> 1253.5 | U73: =VLOOKUP($S73,P_All!$X$5:$AS$245,3*($C$8-1)+3) -> 1365.7 | V73: =VLOOKUP($S73,P_All!$X$5:$AS$245,3*($C$8-1)+4) -> 1489.6 | W73: =IF(ISNA(VLOOKUP($B$6,$A$25:$E$52,IF($B$8=$A$22,3,2))),EXP(VLOOKUP($B$6,$A$25:$E$52,4)*LN(VLOOKUP($S73,#REF!,$C$8+1)/1000)+VLOOKUP($B$6,$A$25:$E$52,5)),VLOOKUP($B$6,$A$25:$E$52,IF($B$8=$A$22,3,2))) -> 230000
H74: 49 | I74: =VLOOKUP($H74,P_All!$A$5:$D$205,3*($C$8-1)+2) -> 1165 | J74: =VLOOKUP($H74,P_All!$A$5:$D$205,3*($C$8-1)+3) -> 1275.7 | K74: =VLOOKUP($H74,P_All!$A$5:$D$205,3*($C$8-1)+4) -> 1398.2 | L74: =IF(ISNA(VLOOKUP($B$6,$A$25:$E$51,IF($B$8=$A$22,3,2))),EXP(VLOOKUP($B$6,$A$25:$E$51,4)*LN(VLOOKUP($H74,#REF!,$C$8+1)/1000)+VLOOKUP($B$6,$A$25:$E$51,5)),VLOOKUP($B$6,$A$25:$E$51,IF($B$8=$A$22,3,2))) -> 230000 | M74: 49 | N74: =VLOOKUP($H74,P_All!$A$5:$D$205,3*($C$8-1)+2) -> 1165 | O74: =VLOOKUP($H74,P_All!$A$5:$D$205,3*($C$8-1)+3) -> 1275.7 | P74: =VLOOKUP($H74,P_All!$A$5:$D$205,3*($C$8-1)+4) -> 1398.2 | Q74: =IF(ISNA(VLOOKUP($B$6,$A$25:$E$51,IF($B$8=$A$22,3,2))),EXP(VLOOKUP($B$6,$A$25:$E$51,4)*LN(VLOOKUP($H74,#REF!,$C$8+1)/1000)+VLOOKUP($B$6,$A$25:$E$51,5)),VLOOKUP($B$6,$A$25:$E$51,IF($B$8=$A$22,3,2))) -> 230000 | S74: 44.08333333 | T74: =VLOOKUP($S74,P_All!$X$5:$AS$245,3*($C$8-1)+2) -> 1250.8 | U74: =VLOOKUP($S74,P_All!$X$5:$AS$245,3*($C$8-1)+3) -> 1361.2 | V74: =VLOOKUP($S74,P_All!$X$5:$AS$245,3*($C$8-1)+4) -> 1479.8 | W74: =IF(ISNA(VLOOKUP($B$6,$A$25:$E$52,IF($B$8=$A$22,3,2))),EXP(VLOOKUP($B$6,$A$25:$E$52,4)*LN(VLOOKUP($S74,#REF!,$C$8+1)/1000)+VLOOKUP($B$6,$A$25:$E$52,5)),VLOOKUP($B$6,$A$25:$E$52,IF($B$8=$A$22,3,2))) -> 230000
H75: 50 | I75: =VLOOKUP($H75,P_All!$A$5:$D$205,3*($C$8-1)+2) -> 1135.3 | J75: =VLOOKUP($H75,P_All!$A$5:$D$205,3*($C$8-1)+3) -> 1252.1 | K75: =VLOOKUP($H75,P_All!$A$5:$D$205,3*($C$8-1)+4) -> 1395.5 | L75: =IF(ISNA(VLOOKUP($B$6,$A$25:$E$51,IF($B$8=$A$22,3,2))),EXP(VLOOKUP($B$6,$A$25:$E$51,4)*LN(VLOOKUP($H75,#REF!,$C$8+1)/1000)+VLOOKUP($B$6,$A$25:$E$51,5)),VLOOKUP($B$6,$A$25:$E$51,IF($B$8=$A$22,3,2))) -> 230000 | M75: 50 | N75: =VLOOKUP($H75,P_All!$A$5:$D$205,3*($C$8-1)+2) -> 1135.3 | O75: =VLOOKUP($H75,P_All!$A$5:$D$205,3*($C$8-1)+3) -> 1252.1 | P75: =VLOOKUP($H75,P_All!$A$5:$D$205,3*($C$8-1)+4) -> 1395.5 | Q75: =IF(ISNA(VLOOKUP($B$6,$A$25:$E$51,IF($B$8=$A$22,3,2))),EXP(VLOOKUP($B$6,$A$25:$E$51,4)*LN(VLOOKUP($H75,#REF!,$C$8+1)/1000)+VLOOKUP($B$6,$A$25:$E$51,5)),VLOOKUP($B$6,$A$25:$E$51,IF($B$8=$A$22,3,2))) -> 230000 | S75: 44.16666667 | T75: =VLOOKUP($S75,P_All!$X$5:$AS$245,3*($C$8-1)+2) -> 1251.5 | U75: =VLOOKUP($S75,P_All!$X$5:$AS$245,3*($C$8-1)+3) -> 1357.8 | V75: =VLOOKUP($S75,P_All!$X$5:$AS$245,3*($C$8-1)+4) -> 1472.4 | W75: =IF(ISNA(VLOOKUP($B$6,$A$25:$E$52,IF($B$8=$A$22,3,2))),EXP(VLOOKUP($B$6,$A$25:$E$52,4)*LN(VLOOKUP($S75,#REF!,$C$8+1)/1000)+VLOOKUP($B$6,$A$25:$E$52,5)),VLOOKUP($B$6,$A$25:$E$52,IF($B$8=$A$22,3,2))) -> 230000
H76: 51 | I76: =VLOOKUP($H76,P_All!$A$5:$D$205,3*($C$8-1)+2) -> 1121.3 | J76: =VLOOKUP($H76,P_All!$A$5:$D$205,3*($C$8-1)+3) -> 1229.5 | K76: =VLOOKUP($H76,P_All!$A$5:$D$205,3*($C$8-1)+4) -> 1378.6 | L76: =IF(ISNA(VLOOKUP($B$6,$A$25:$E$51,IF($B$8=$A$22,3,2))),EXP(VLOOKUP($B$6,$A$25:$E$51,4)*LN(VLOOKUP($H76,#REF!,$C$8+1)/1000)+VLOOKUP($B$6,$A$25:$E$51,5)),VLOOKUP($B$6,$A$25:$E$51,IF($B$8=$A$22,3,2))) -> 230000 | M76: 51 | N76: =VLOOKUP($H76,P_All!$A$5:$D$205,3*($C$8-1)+2) -> 1121.3 | O76: =VLOOKUP($H76,P_All!$A$5:$D$205,3*($C$8-1)+3) -> 1229.5 | P76: =VLOOKUP($H76,P_All!$A$5:$D$205,3*($C$8-1)+4) -> 1378.6 | Q76: =IF(ISNA(VLOOKUP($B$6,$A$25:$E$51,IF($B$8=$A$22,3,2))),EXP(VLOOKUP($B$6,$A$25:$E$51,4)*LN(VLOOKUP($H76,#REF!,$C$8+1)/1000)+VLOOKUP($B$6,$A$25:$E$51,5)),VLOOKUP($B$6,$A$25:$E$51,IF($B$8=$A$22,3,2))) -> 230000 | S76: 44.25 | T76: =VLOOKUP($S76,P_All!$X$5:$AS$245,3*($C$8-1)+2) -> 1257.6 | U76: =VLOOKUP($S76,P_All!$X$5:$AS$245,3*($C$8-1)+3) -> 1358.9 | V76: =VLOOKUP($S76,P_All!$X$5:$AS$245,3*($C$8-1)+4) -> 1474.9 | W76: =IF(ISNA(VLOOKUP($B$6,$A$25:$E$52,IF($B$8=$A$22,3,2))),EXP(VLOOKUP($B$6,$A$25:$E$52,4)*LN(VLOOKUP($S76,#REF!,$C$8+1)/1000)+VLOOKUP($B$6,$A$25:$E$52,5)),VLOOKUP($B$6,$A$25:$E$52,IF($B$8=$A$22,3,2))) -> 230000
H77: 52 | I77: =VLOOKUP($H77,P_All!$A$5:$D$205,3*($C$8-1)+2) -> 1102.8 | J77: =VLOOKUP($H77,P_All!$A$5:$D$205,3*($C$8-1)+3) -> 1220.2 | K77: =VLOOKUP($H77,P_All!$A$5:$D$205,3*($C$8-1)+4) -> 1395.5 | L77: =IF(ISNA(VLOOKUP($B$6,$A$25:$E$51,IF($B$8=$A$22,3,2))),EXP(VLOOKUP($B$6,$A$25:$E$51,4)*LN(VLOOKUP($H77,#REF!,$C$8+1)/1000)+VLOOKUP($B$6,$A$25:$E$51,5)),VLOOKUP($B$6,$A$25:$E$51,IF($B$8=$A$22,3,2))) -> 230000 | M77: 52 | N77: =VLOOKUP($H77,P_All!$A$5:$D$205,3*($C$8-1)+2) -> 1102.8 | O77: =VLOOKUP($H77,P_All!$A$5:$D$205,3*($C$8-1)+3) -> 1220.2 | P77: =VLOOKUP($H77,P_All!$A$5:$D$205,3*($C$8-1)+4) -> 1395.5 | Q77: =IF(ISNA(VLOOKUP($B$6,$A$25:$E$51,IF($B$8=$A$22,3,2))),EXP(VLOOKUP($B$6,$A$25:$E$51,4)*LN(VLOOKUP($H77,#REF!,$C$8+1)/1000)+VLOOKUP($B$6,$A$25:$E$51,5)),VLOOKUP($B$6,$A$25:$E$51,IF($B$8=$A$22,3,2))) -> 230000 | S77: 44.33333333 | T77: =VLOOKUP($S77,P_All!$X$5:$AS$245,3*($C$8-1)+2) -> 1278.6 | U77: =VLOOKUP($S77,P_All!$X$5:$AS$245,3*($C$8-1)+3) -> 1382.9 | V77: =VLOOKUP($S77,P_All!$X$5:$AS$245,3*($C$8-1)+4) -> 1506.6 | W77: =IF(ISNA(VLOOKUP($B$6,$A$25:$E$52,IF($B$8=$A$22,3,2))),EXP(VLOOKUP($B$6,$A$25:$E$52,4)*LN(VLOOKUP($S77,#REF!,$C$8+1)/1000)+VLOOKUP($B$6,$A$25:$E$52,5)),VLOOKUP($B$6,$A$25:$E$52,IF($B$8=$A$22,3,2))) -> 230000
H78: 53 | I78: =VLOOKUP($H78,P_All!$A$5:$D$205,3*($C$8-1)+2) -> 1091.6 | J78: =VLOOKUP($H78,P_All!$A$5:$D$205,3*($C$8-1)+3) -> 1203.5 | K78: =VLOOKUP($H78,P_All!$A$5:$D$205,3*($C$8-1)+4) -> 1418.3 | L78: =IF(ISNA(VLOOKUP($B$6,$A$25:$E$51,IF($B$8=$A$22,3,2))),EXP(VLOOKUP($B$6,$A$25:$E$51,4)*LN(VLOOKUP($H78,#REF!,$C$8+1)/1000)+VLOOKUP($B$6,$A$25:$E$51,5)),VLOOKUP($B$6,$A$25:$E$51,IF($B$8=$A$22,3,2))) -> 230000 | M78: 53 | N78: =VLOOKUP($H78,P_All!$A$5:$D$205,3*($C$8-1)+2) -> 1091.6 | O78: =VLOOKUP($H78,P_All!$A$5:$D$205,3*($C$8-1)+3) -> 1203.5 | P78: =VLOOKUP($H78,P_All!$A$5:$D$205,3*($C$8-1)+4) -> 1418.3 | Q78: =IF(ISNA(VLOOKUP($B$6,$A$25:$E$51,IF($B$8=$A$22,3,2))),EXP(VLOOKUP($B$6,$A$25:$E$51,4)*LN(VLOOKUP($H78,#REF!,$C$8+1)/1000)+VLOOKUP($B$6,$A$25:$E$51,5)),VLOOKUP($B$6,$A$25:$E$51,IF($B$8=$A$22,3,2))) -> 230000 | S78: 44.41666667 | T78: =VLOOKUP($S78,P_All!$X$5:$AS$245,3*($C$8-1)+2) -> 1282.8 | U78: =VLOOKUP($S78,P_All!$X$5:$AS$245,3*($C$8-1)+3) -> 1390.9 | V78: =VLOOKUP($S78,P_All!$X$5:$AS$245,3*($C$8-1)+4) -> 1516.8 | W78: =IF(ISNA(VLOOKUP($B$6,$A$25:$E$52,IF($B$8=$A$22,3,2))),EXP(VLOOKUP($B$6,$A$25:$E$52,4)*LN(VLOOKUP($S78,#REF!,$C$8+1)/1000)+VLOOKUP($B$6,$A$25:$E$52,5)),VLOOKUP($B$6,$A$25:$E$52,IF($B$8=$A$22,3,2))) -> 230000
H79: 54 | I79: =VLOOKUP($H79,P_All!$A$5:$D$205,3*($C$8-1)+2) -> 1066.1 | J79: =VLOOKUP($H79,P_All!$A$5:$D$205,3*($C$8-1)+3) -> 1193.6 | K79: =VLOOKUP($H79,P_All!$A$5:$D$205,3*($C$8-1)+4) -> 1403.2 | L79: =IF(ISNA(VLOOKUP($B$6,$A$25:$E$51,IF($B$8=$A$22,3,2))),EXP(VLOOKUP($B$6,$A$25:$E$51,4)*LN(VLOOKUP($H79,#REF!,$C$8+1)/1000)+VLOOKUP($B$6,$A$25:$E$51,5)),VLOOKUP($B$6,$A$25:$E$51,IF($B$8=$A$22,3,2))) -> 230000 | M79: 54 | N79: =VLOOKUP($H79,P_All!$A$5:$D$205,3*($C$8-1)+2) -> 1066.1 | O79: =VLOOKUP($H79,P_All!$A$5:$D$205,3*($C$8-1)+3) -> 1193.6 | P79: =VLOOKUP($H79,P_All!$A$5:$D$205,3*($C$8-1)+4) -> 1403.2 | Q79: =IF(ISNA(VLOOKUP($B$6,$A$25:$E$51,IF($B$8=$A$22,3,2))),EXP(VLOOKUP($B$6,$A$25:$E$51,4)*LN(VLOOKUP($H79,#REF!,$C$8+1)/1000)+VLOOKUP($B$6,$A$25:$E$51,5)),VLOOKUP($B$6,$A$25:$E$51,IF($B$8=$A$22,3,2))) -> 230000 | S79: 44.5 | T79: =VLOOKUP($S79,P_All!$X$5:$AS$245,3*($C$8-1)+2) -> 1275.1 | U79: =VLOOKUP($S79,P_All!$X$5:$AS$245,3*($C$8-1)+3) -> 1382.1 | V79: =VLOOKUP($S79,P_All!$X$5:$AS$245,3*($C$8-1)+4) -> 1520.5 | W79: =IF(ISNA(VLOOKUP($B$6,$A$25:$E$52,IF($B$8=$A$22,3,2))),EXP(VLOOKUP($B$6,$A$25:$E$52,4)*LN(VLOOKUP($S79,#REF!,$C$8+1)/1000)+VLOOKUP($B$6,$A$25:$E$52,5)),VLOOKUP($B$6,$A$25:$E$52,IF($B$8=$A$22,3,2))) -> 230000
H80: 55 | I80: =VLOOKUP($H80,P_All!$A$5:$D$205,3*($C$8-1)+2) -> 1048.5 | J80: =VLOOKUP($H80,P_All!$A$5:$D$205,3*($C$8-1)+3) -> 1174.6 | K80: =VLOOKUP($H80,P_All!$A$5:$D$205,3*($C$8-1)+4) -> 1411.2 | L80: =IF(ISNA(VLOOKUP($B$6,$A$25:$E$51,IF($B$8=$A$22,3,2))),EXP(VLOOKUP($B$6,$A$25:$E$51,4)*LN(VLOOKUP($H80,#REF!,$C$8+1)/1000)+VLOOKUP($B$6,$A$25:$E$51,5)),VLOOKUP($B$6,$A$25:$E$51,IF($B$8=$A$22,3,2))) -> 230000 | M80: 55 | N80: =VLOOKUP($H80,P_All!$A$5:$D$205,3*($C$8-1)+2) -> 1048.5 | O80: =VLOOKUP($H80,P_All!$A$5:$D$205,3*($C$8-1)+3) -> 1174.6 | P80: =VLOOKUP($H80,P_All!$A$5:$D$205,3*($C$8-1)+4) -> 1411.2 | Q80: =IF(ISNA(VLOOKUP($B$6,$A$25:$E$51,IF($B$8=$A$22,3,2))),EXP(VLOOKUP($B$6,$A$25:$E$51,4)*LN(VLOOKUP($H80,#REF!,$C$8+1)/1000)+VLOOKUP($B$6,$A$25:$E$51,5)),VLOOKUP($B$6,$A$25:$E$51,IF($B$8=$A$22,3,2))) -> 230000 | S80: 44.58333333 | T80: =VLOOKUP($S80,P_All!$X$5:$AS$245,3*($C$8-1)+2) -> 1260.2 | U80: =VLOOKUP($S80,P_All!$X$5:$AS$245,3*($C$8-1)+3) -> 1376.7 | V80: =VLOOKUP($S80,P_All!$X$5:$AS$245,3*($C$8-1)+4) -> 1514.6 | W80: =IF(ISNA(VLOOKUP($B$6,$A$25:$E$52,IF($B$8=$A$22,3,2))),EXP(VLOOKUP($B$6,$A$25:$E$52,4)*LN(VLOOKUP($S80,#REF!,$C$8+1)/1000)+VLOOKUP($B$6,$A$25:$E$52,5)),VLOOKUP($B$6,$A$25:$E$52,IF($B$8=$A$22,3,2))) -> 230000
H81: 56 | I81: =VLOOKUP($H81,P_All!$A$5:$D$205,3*($C$8-1)+2) -> 1034.3 | J81: =VLOOKUP($H81,P_All!$A$5:$D$205,3*($C$8-1)+3) -> 1167.2 | K81: =VLOOKUP($H81,P_All!$A$5:$D$205,3*($C$8-1)+4) -> 1395 | L81: =IF(ISNA(VLOOKUP($B$6,$A$25:$E$51,IF($B$8=$A$22,3,2))),EXP(VLOOKUP($B$6,$A$25:$E$51,4)*LN(VLOOKUP($H81,#REF!,$C$8+1)/1000)+VLOOKUP($B$6,$A$25:$E$51,5)),VLOOKUP($B$6,$A$25:$E$51,IF($B$8=$A$22,3,2))) -> 230000 | M81: 56 | N81: =VLOOKUP($H81,P_All!$A$5:$D$205,3*($C$8-1)+2) -> 1034.3 | O81: =VLOOKUP($H81,P_All!$A$5:$D$205,3*($C$8-1)+3) -> 1167.2 | P81: =VLOOKUP($H81,P_All!$A$5:$D$205,3*($C$8-1)+4) -> 1395 | Q81: =IF(ISNA(VLOOKUP($B$6,$A$25:$E$51,IF($B$8=$A$22,3,2))),EXP(VLOOKUP($B$6,$A$25:$E$51,4)*LN(VLOOKUP($H81,#REF!,$C$8+1)/1000)+VLOOKUP($B$6,$A$25:$E$51,5)),VLOOKUP($B$6,$A$25:$E$51,IF($B$8=$A$22,3,2))) -> 230000 | S81: 44.66666667 | T81: =VLOOKUP($S81,P_All!$X$5:$AS$245,3*($C$8-1)+2) -> 1248.7 | U81: =VLOOKUP($S81,P_All!$X$5:$AS$245,3*($C$8-1)+3) -> 1368.7 | V81: =VLOOKUP($S81,P_All!$X$5:$AS$245,3*($C$8-1)+4) -> 1510.6 | W81: =IF(ISNA(VLOOKUP($B$6,$A$25:$E$52,IF($B$8=$A$22,3,2))),EXP(VLOOKUP($B$6,$A$25:$E$52,4)*LN(VLOOKUP($S81,#REF!,$C$8+1)/1000)+VLOOKUP($B$6,$A$25:$E$52,5)),VLOOKUP($B$6,$A$25:$E$52,IF($B$8=$A$22,3,2))) -> 230000
H82: 57 | I82: =VLOOKUP($H82,P_All!$A$5:$D$205,3*($C$8-1)+2) -> 1007 | J82: =VLOOKUP($H82,P_All!$A$5:$D$205,3*($C$8-1)+3) -> 1165.2 | K82: =VLOOKUP($H82,P_All!$A$5:$D$205,3*($C$8-1)+4) -> 1364.4 | L82: =IF(ISNA(VLOOKUP($B$6,$A$25:$E$51,IF($B$8=$A$22,3,2))),EXP(VLOOKUP($B$6,$A$25:$E$51,4)*LN(VLOOKUP($H82,#REF!,$C$8+1)/1000)+VLOOKUP($B$6,$A$25:$E$51,5)),VLOOKUP($B$6,$A$25:$E$51,IF($B$8=$A$22,3,2))) -> 230000 | M82: 57 | N82: =VLOOKUP($H82,P_All!$A$5:$D$205,3*($C$8-1)+2) -> 1007 | O82: =VLOOKUP($H82,P_All!$A$5:$D$205,3*($C$8-1)+3) -> 1165.2 | P82: =VLOOKUP($H82,P_All!$A$5:$D$205,3*($C$8-1)+4) -> 1364.4 | Q82: =IF(ISNA(VLOOKUP($B$6,$A$25:$E$51,IF($B$8=$A$22,3,2))),EXP(VLOOKUP($B$6,$A$25:$E$51,4)*LN(VLOOKUP($H82,#REF!,$C$8+1)/1000)+VLOOKUP($B$6,$A$25:$E$51,5)),VLOOKUP($B$6,$A$25:$E$51,IF($B$8=$A$22,3,2))) -> 230000 | S82: 44.75 | T82: =VLOOKUP($S82,P_All!$X$5:$AS$245,3*($C$8-1)+2) -> 1228.8 | U82: =VLOOKUP($S82,P_All!$X$5:$AS$245,3*($C$8-1)+3) -> 1352.8 | V82: =VLOOKUP($S82,P_All!$X$5:$AS$245,3*($C$8-1)+4) -> 1492.2 | W82: =IF(ISNA(VLOOKUP($B$6,$A$25:$E$52,IF($B$8=$A$22,3,2))),EXP(VLOOKUP($B$6,$A$25:$E$52,4)*LN(VLOOKUP($S82,#REF!,$C$8+1)/1000)+VLOOKUP($B$6,$A$25:$E$52,5)),VLOOKUP($B$6,$A$25:$E$52,IF($B$8=$A$22,3,2))) -> 230000
H83: 58 | I83: =VLOOKUP($H83,P_All!$A$5:$D$205,3*($C$8-1)+2) -> 1003.1 | J83: =VLOOKUP($H83,P_All!$A$5:$D$205,3*($C$8-1)+3) -> 1168.5 | K83: =VLOOKUP($H83,P_All!$A$5:$D$205,3*($C$8-1)+4) -> 1378.4 | L83: =IF(ISNA(VLOOKUP($B$6,$A$25:$E$51,IF($B$8=$A$22,3,2))),EXP(VLOOKUP($B$6,$A$25:$E$51,4)*LN(VLOOKUP($H83,#REF!,$C$8+1)/1000)+VLOOKUP($B$6,$A$25:$E$51,5)),VLOOKUP($B$6,$A$25:$E$51,IF($B$8=$A$22,3,2))) -> 230000 | M83: 58 | N83: =VLOOKUP($H83,P_All!$A$5:$D$205,3*($C$8-1)+2) -> 1003.1 | O83: =VLOOKUP($H83,P_All!$A$5:$D$205,3*($C$8-1)+3) -> 1168.5 | P83: =VLOOKUP($H83,P_All!$A$5:$D$205,3*($C$8-1)+4) -> 1378.4 | Q83: =IF(ISNA(VLOOKUP($B$6,$A$25:$E$51,IF($B$8=$A$22,3,2))),EXP(VLOOKUP($B$6,$A$25:$E$51,4)*LN(VLOOKUP($H83,#REF!,$C$8+1)/1000)+VLOOKUP($B$6,$A$25:$E$51,5)),VLOOKUP($B$6,$A$25:$E$51,IF($B$8=$A$22,3,2))) -> 230000 | S83: 44.83333333 | T83: =VLOOKUP($S83,P_All!$X$5:$AS$245,3*($C$8-1)+2) -> 1220.4 | U83: =VLOOKUP($S83,P_All!$X$5:$AS$245,3*($C$8-1)+3) -> 1346.3 | V83: =VLOOKUP($S83,P_All!$X$5:$AS$245,3*($C$8-1)+4) -> 1488.4 | W83: =IF(ISNA(VLOOKUP($B$6,$A$25:$E$52,IF($B$8=$A$22,3,2))),EXP(VLOOKUP($B$6,$A$25:$E$52,4)*LN(VLOOKUP($S83,#REF!,$C$8+1)/1000)+VLOOKUP($B$6,$A$25:$E$52,5)),VLOOKUP($B$6,$A$25:$E$52,IF($B$8=$A$22,3,2))) -> 230000
H84: 59 | I84: =VLOOKUP($H84,P_All!$A$5:$D$205,3*($C$8-1)+2) -> 992.81 | J84: =VLOOKUP($H84,P_All!$A$5:$D$205,3*($C$8-1)+3) -> 1151.5 | K84: =VLOOKUP($H84,P_All!$A$5:$D$205,3*($C$8-1)+4) -> 1397.3 | L84: =IF(ISNA(VLOOKUP($B$6,$A$25:$E$51,IF($B$8=$A$22,3,2))),EXP(VLOOKUP($B$6,$A$25:$E$51,4)*LN(VLOOKUP($H84,#REF!,$C$8+1)/1000)+VLOOKUP($B$6,$A$25:$E$51,5)),VLOOKUP($B$6,$A$25:$E$51,IF($B$8=$A$22,3,2))) -> 230000 | M84: 59 | N84: =VLOOKUP($H84,P_All!$A$5:$D$205,3*($C$8-1)+2) -> 992.81 | O84: =VLOOKUP($H84,P_All!$A$5:$D$205,3*($C$8-1)+3) -> 1151.5 | P84: =VLOOKUP($H84,P_All!$A$5:$D$205,3*($C$8-1)+4) -> 1397.3 | Q84: =IF(ISNA(VLOOKUP($B$6,$A$25:$E$51,IF($B$8=$A$22,3,2))),EXP(VLOOKUP($B$6,$A$25:$E$51,4)*LN(VLOOKUP($H84,#REF!,$C$8+1)/1000)+VLOOKUP($B$6,$A$25:$E$51,5)),VLOOKUP($B$6,$A$25:$E$51,IF($B$8=$A$22,3,2))) -> 230000 | S84: 44.91666667 | T84: =VLOOKUP($S84,P_All!$X$5:$AS$245,3*($C$8-1)+2) -> 1219.1 | U84: =VLOOKUP($S84,P_All!$X$5:$AS$245,3*($C$8-1)+3) -> 1343.6 | V84: =VLOOKUP($S84,P_All!$X$5:$AS$245,3*($C$8-1)+4) -> 1484.3 | W84: =IF(ISNA(VLOOKUP($B$6,$A$25:$E$52,IF($B$8=$A$22,3,2))),EXP(VLOOKUP($B$6,$A$25:$E$52,4)*LN(VLOOKUP($S84,#REF!,$C$8+1)/1000)+VLOOKUP($B$6,$A$25:$E$52,5)),VLOOKUP($B$6,$A$25:$E$52,IF($B$8=$A$22,3,2))) -> 230000
H85: 60 | I85: =VLOOKUP($H85,P_All!$A$5:$D$205,3*($C$8-1)+2) -> 986.46 | J85: =VLOOKUP($H85,P_All!$A$5:$D$205,3*($C$8-1)+3) -> 1151.7 | K85: =VLOOKUP($H85,P_All!$A$5:$D$205,3*($C$8-1)+4) -> 1389.8 | L85: =IF(ISNA(VLOOKUP($B$6,$A$25:$E$51,IF($B$8=$A$22,3,2))),EXP(VLOOKUP($B$6,$A$25:$E$51,4)*LN(VLOOKUP($H85,#REF!,$C$8+1)/1000)+VLOOKUP($B$6,$A$25:$E$51,5)),VLOOKUP($B$6,$A$25:$E$51,IF($B$8=$A$22,3,2))) -> 230000 | M85: 60 | N85: =VLOOKUP($H85,P_All!$A$5:$D$205,3*($C$8-1)+2) -> 986.46 | O85: =VLOOKUP($H85,P_All!$A$5:$D$205,3*($C$8-1)+3) -> 1151.7 | P85: =VLOOKUP($H85,P_All!$A$5:$D$205,3*($C$8-1)+4) -> 1389.8 | Q85: =IF(ISNA(VLOOKUP($B$6,$A$25:$E$51,IF($B$8=$A$22,3,2))),EXP(VLOOKUP($B$6,$A$25:$E$51,4)*LN(VLOOKUP($H85,#REF!,$C$8+1)/1000)+VLOOKUP($B$6,$A$25:$E$51,5)),VLOOKUP($B$6,$A$25:$E$51,IF($B$8=$A$22,3,2))) -> 230000 | S85: 45 | T85: =VLOOKUP($S85,P_All!$X$5:$AS$245,3*($C$8-1)+2) -> 1217.4 | U85: =VLOOKUP($S85,P_All!$X$5:$AS$245,3*($C$8-1)+3) -> 1337.5 | V85: =VLOOKUP($S85,P_All!$X$5:$AS$245,3*($C$8-1)+4) -> 1472.2 | W85: =IF(ISNA(VLOOKUP($B$6,$A$25:$E$52,IF($B$8=$A$22,3,2))),EXP(VLOOKUP($B$6,$A$25:$E$52,4)*LN(VLOOKUP($S85,#REF!,$C$8+1)/1000)+VLOOKUP($B$6,$A$25:$E$52,5)),VLOOKUP($B$6,$A$25:$E$52,IF($B$8=$A$22,3,2))) -> 230000
H86: 61 | I86: =VLOOKUP($H86,P_All!$A$5:$D$205,3*($C$8-1)+2) -> 973.32 | J86: =VLOOKUP($H86,P_All!$A$5:$D$205,3*($C$8-1)+3) -> 1137.6 | K86: =VLOOKUP($H86,P_All!$A$5:$D$205,3*($C$8-1)+4) -> 1371.5 | L86: =IF(ISNA(VLOOKUP($B$6,$A$25:$E$51,IF($B$8=$A$22,3,2))),EXP(VLOOKUP($B$6,$A$25:$E$51,4)*LN(VLOOKUP($H86,#REF!,$C$8+1)/1000)+VLOOKUP($B$6,$A$25:$E$51,5)),VLOOKUP($B$6,$A$25:$E$51,IF($B$8=$A$22,3,2))) -> 230000 | M86: 61 | N86: =VLOOKUP($H86,P_All!$A$5:$D$205,3*($C$8-1)+2) -> 973.32 | O86: =VLOOKUP($H86,P_All!$A$5:$D$205,3*($C$8-1)+3) -> 1137.6 | P86: =VLOOKUP($H86,P_All!$A$5:$D$205,3*($C$8-1)+4) -> 1371.5 | Q86: =IF(ISNA(VLOOKUP($B$6,$A$25:$E$51,IF($B$8=$A$22,3,2))),EXP(VLOOKUP($B$6,$A$25:$E$51,4)*LN(VLOOKUP($H86,#REF!,$C$8+1)/1000)+VLOOKUP($B$6,$A$25:$E$51,5)),VLOOKUP($B$6,$A$25:$E$51,IF($B$8=$A$22,3,2))) -> 230000 | S86: 45.08333333 | T86: =VLOOKUP($S86,P_All!$X$5:$AS$245,3*($C$8-1)+2) -> 1216 | U86: =VLOOKUP($S86,P_All!$X$5:$AS$245,3*($C$8-1)+3) -> 1330.7 | V86: =VLOOKUP($S86,P_All!$X$5:$AS$245,3*($C$8-1)+4) -> 1462.6 | W86: =IF(ISNA(VLOOKUP($B$6,$A$25:$E$52,IF($B$8=$A$22,3,2))),EXP(VLOOKUP($B$6,$A$25:$E$52,4)*LN(VLOOKUP($S86,#REF!,$C$8+1)/1000)+VLOOKUP($B$6,$A$25:$E$52,5)),VLOOKUP($B$6,$A$25:$E$52,IF($B$8=$A$22,3,2))) -> 230000
H87: 62 | I87: =VLOOKUP($H87,P_All!$A$5:$D$205,3*($C$8-1)+2) -> 970.73 | J87: =VLOOKUP($H87,P_All!$A$5:$D$205,3*($C$8-1)+3) -> 1130.1 | K87: =VLOOKUP($H87,P_All!$A$5:$D$205,3*($C$8-1)+4) -> 1383.4 | L87: =IF(ISNA(VLOOKUP($B$6,$A$25:$E$51,IF($B$8=$A$22,3,2))),EXP(VLOOKUP($B$6,$A$25:$E$51,4)*LN(VLOOKUP($H87,#REF!,$C$8+1)/1000)+VLOOKUP($B$6,$A$25:$E$51,5)),VLOOKUP($B$6,$A$25:$E$51,IF($B$8=$A$22,3,2))) -> 230000 | M87: 62 | N87: =VLOOKUP($H87,P_All!$A$5:$D$205,3*($C$8-1)+2) -> 970.73 | O87: =VLOOKUP($H87,P_All!$A$5:$D$205,3*($C$8-1)+3) -> 1130.1 | P87: =VLOOKUP($H87,P_All!$A$5:$D$205,3*($C$8-1)+4) -> 1383.4 | Q87: =IF(ISNA(VLOOKUP($B$6,$A$25:$E$51,IF($B$8=$A$22,3,2))),EXP(VLOOKUP($B$6,$A$25:$E$51,4)*LN(VLOOKUP($H87,#REF!,$C$8+1)/1000)+VLOOKUP($B$6,$A$25:$E$51,5)),VLOOKUP($B$6,$A$25:$E$51,IF($B$8=$A$22,3,2))) -> 230000 | S87: 45.16666667 | T87: =VLOOKUP($S87,P_All!$X$5:$AS$245,3*($C$8-1)+2) -> 1216.8 | U87: =VLOOKUP($S87,P_All!$X$5:$AS$245,3*($C$8-1)+3) -> 1327.5 | V87: =VLOOKUP($S87,P_All!$X$5:$AS$245,3*($C$8-1)+4) -> 1456 | W87: =IF(ISNA(VLOOKUP($B$6,$A$25:$E$52,IF($B$8=$A$22,3,2))),EXP(VLOOKUP($B$6,$A$25:$E$52,4)*LN(VLOOKUP($S87,#REF!,$C$8+1)/1000)+VLOOKUP($B$6,$A$25:$E$52,5)),VLOOKUP($B$6,$A$25:$E$52,IF($B$8=$A$22,3,2))) -> 230000
H88: 63 | I88: =VLOOKUP($H88,P_All!$A$5:$D$205,3*($C$8-1)+2) -> 962.87 | J88: =VLOOKUP($H88,P_All!$A$5:$D$205,3*($C$8-1)+3) -> 1133 | K88: =VLOOKUP($H88,P_All!$A$5:$D$205,3*($C$8-1)+4) -> 1388.6 | L88: =IF(ISNA(VLOOKUP($B$6,$A$25:$E$51,IF($B$8=$A$22,3,2))),EXP(VLOOKUP($B$6,$A$25:$E$51,4)*LN(VLOOKUP($H88,#REF!,$C$8+1)/1000)+VLOOKUP($B$6,$A$25:$E$51,5)),VLOOKUP($B$6,$A$25:$E$51,IF($B$8=$A$22,3,2))) -> 230000 | M88: 63 | N88: =VLOOKUP($H88,P_All!$A$5:$D$205,3*($C$8-1)+2) -> 962.87 | O88: =VLOOKUP($H88,P_All!$A$5:$D$205,3*($C$8-1)+3) -> 1133 | P88: =VLOOKUP($H88,P_All!$A$5:$D$205,3*($C$8-1)+4) -> 1388.6 | Q88: =IF(ISNA(VLOOKUP($B$6,$A$25:$E$51,IF($B$8=$A$22,3,2))),EXP(VLOOKUP($B$6,$A$25:$E$51,4)*LN(VLOOKUP($H88,#REF!,$C$8+1)/1000)+VLOOKUP($B$6,$A$25:$E$51,5)),VLOOKUP($B$6,$A$25:$E$51,IF($B$8=$A$22,3,2))) -> 230000 | S88: 45.25 | T88: =VLOOKUP($S88,P_All!$X$5:$AS$245,3*($C$8-1)+2) -> 1223.3 | U88: =VLOOKUP($S88,P_All!$X$5:$AS$245,3*($C$8-1)+3) -> 1329.6 | V88: =VLOOKUP($S88,P_All!$X$5:$AS$245,3*($C$8-1)+4) -> 1450.5 | W88: =IF(ISNA(VLOOKUP($B$6,$A$25:$E$52,IF($B$8=$A$22,3,2))),EXP(VLOOKUP($B$6,$A$25:$E$52,4)*LN(VLOOKUP($S88,#REF!,$C$8+1)/1000)+VLOOKUP($B$6,$A$25:$E$52,5)),VLOOKUP($B$6,$A$25:$E$52,IF($B$8=$A$22,3,2))) -> 230000
H89: 64 | I89: =VLOOKUP($H89,P_All!$A$5:$D$205,3*($C$8-1)+2) -> 960.86 | J89: =VLOOKUP($H89,P_All!$A$5:$D$205,3*($C$8-1)+3) -> 1137.2 | K89: =VLOOKUP($H89,P_All!$A$5:$D$205,3*($C$8-1)+4) -> 1366.9 | L89: =IF(ISNA(VLOOKUP($B$6,$A$25:$E$51,IF($B$8=$A$22,3,2))),EXP(VLOOKUP($B$6,$A$25:$E$51,4)*LN(VLOOKUP($H89,#REF!,$C$8+1)/1000)+VLOOKUP($B$6,$A$25:$E$51,5)),VLOOKUP($B$6,$A$25:$E$51,IF($B$8=$A$22,3,2))) -> 230000 | M89: 64 | N89: =VLOOKUP($H89,P_All!$A$5:$D$205,3*($C$8-1)+2) -> 960.86 | O89: =VLOOKUP($H89,P_All!$A$5:$D$205,3*($C$8-1)+3) -> 1137.2 | P89: =VLOOKUP($H89,P_All!$A$5:$D$205,3*($C$8-1)+4) -> 1366.9 | Q89: =IF(ISNA(VLOOKUP($B$6,$A$25:$E$51,IF($B$8=$A$22,3,2))),EXP(VLOOKUP($B$6,$A$25:$E$51,4)*LN(VLOOKUP($H89,#REF!,$C$8+1)/1000)+VLOOKUP($B$6,$A$25:$E$51,5)),VLOOKUP($B$6,$A$25:$E$51,IF($B$8=$A$22,3,2))) -> 230000 | S89: 45.33333333 | T89: =VLOOKUP($S89,P_All!$X$5:$AS$245,3*($C$8-1)+2) -> 1248.5 | U89: =VLOOKUP($S89,P_All!$X$5:$AS$245,3*($C$8-1)+3) -> 1347.4 | V89: =VLOOKUP($S89,P_All!$X$5:$AS$245,3*($C$8-1)+4) -> 1470.4 | W89: =IF(ISNA(VLOOKUP($B$6,$A$25:$E$52,IF($B$8=$A$22,3,2))),EXP(VLOOKUP($B$6,$A$25:$E$52,4)*LN(VLOOKUP($S89,#REF!,$C$8+1)/1000)+VLOOKUP($B$6,$A$25:$E$52,5)),VLOOKUP($B$6,$A$25:$E$52,IF($B$8=$A$22,3,2))) -> 230000
H90: 65 | I90: =VLOOKUP($H90,P_All!$A$5:$D$205,3*($C$8-1)+2) -> 952.37 | J90: =VLOOKUP($H90,P_All!$A$5:$D$205,3*($C$8-1)+3) -> 1121.9 | K90: =VLOOKUP($H90,P_All!$A$5:$D$205,3*($C$8-1)+4) -> 1358.2 | L90: =IF(ISNA(VLOOKUP($B$6,$A$25:$E$51,IF($B$8=$A$22,3,2))),EXP(VLOOKUP($B$6,$A$25:$E$51,4)*LN(VLOOKUP($H90,#REF!,$C$8+1)/1000)+VLOOKUP($B$6,$A$25:$E$51,5)),VLOOKUP($B$6,$A$25:$E$51,IF($B$8=$A$22,3,2))) -> 230000 | M90: 65 | N90: =VLOOKUP($H90,P_All!$A$5:$D$205,3*($C$8-1)+2) -> 952.37 | O90: =VLOOKUP($H90,P_All!$A$5:$D$205,3*($C$8-1)+3) -> 1121.9 | P90: =VLOOKUP($H90,P_All!$A$5:$D$205,3*($C$8-1)+4) -> 1358.2 | Q90: =IF(ISNA(VLOOKUP($B$6,$A$25:$E$51,IF($B$8=$A$22,3,2))),EXP(VLOOKUP($B$6,$A$25:$E$51,4)*LN(VLOOKUP($H90,#REF!,$C$8+1)/1000)+VLOOKUP($B$6,$A$25:$E$51,5)),VLOOKUP($B$6,$A$25:$E$51,IF($B$8=$A$22,3,2))) -> 230000 | S90: 45.41666667 | T90: =VLOOKUP($S90,P_All!$X$5:$AS$245,3*($C$8-1)+2) -> 1260.6 | U90: =VLOOKUP($S90,P_All!$X$5:$AS$245,3*($C$8-1)+3) -> 1357.2 | V90: =VLOOKUP($S90,P_All!$X$5:$AS$245,3*($C$8-1)+4) -> 1489.8 | W90: =IF(ISNA(VLOOKUP($B$6,$A$25:$E$52,IF($B$8=$A$22,3,2))),EXP(VLOOKUP($B$6,$A$25:$E$52,4)*LN(VLOOKUP($S90,#REF!,$C$8+1)/1000)+VLOOKUP($B$6,$A$25:$E$52,5)),VLOOKUP($B$6,$A$25:$E$52,IF($B$8=$A$22,3,2))) -> 230000
H91: 66 | I91: =VLOOKUP($H91,P_All!$A$5:$D$205,3*($C$8-1)+2) -> 950.4 | J91: =VLOOKUP($H91,P_All!$A$5:$D$205,3*($C$8-1)+3) -> 1127.1 | K91: =VLOOKUP($H91,P_All!$A$5:$D$205,3*($C$8-1)+4) -> 1354.4 | L91: =IF(ISNA(VLOOKUP($B$6,$A$25:$E$51,IF($B$8=$A$22,3,2))),EXP(VLOOKUP($B$6,$A$25:$E$51,4)*LN(VLOOKUP($H91,#REF!,$C$8+1)/1000)+VLOOKUP($B$6,$A$25:$E$51,5)),VLOOKUP($B$6,$A$25:$E$51,IF($B$8=$A$22,3,2))) -> 230000 | M91: 66 | N91: =VLOOKUP($H91,P_All!$A$5:$D$205,3*($C$8-1)+2) -> 950.4 | O91: =VLOOKUP($H91,P_All!$A$5:$D$205,3*($C$8-1)+3) -> 1127.1 | P91: =VLOOKUP($H91,P_All!$A$5:$D$205,3*($C$8-1)+4) -> 1354.4 | Q91: =IF(ISNA(VLOOKUP($B$6,$A$25:$E$51,IF($B$8=$A$22,3,2))),EXP(VLOOKUP($B$6,$A$25:$E$51,4)*LN(VLOOKUP($H91,#REF!,$C$8+1)/1000)+VLOOKUP($B$6,$A$25:$E$51,5)),VLOOKUP($B$6,$A$25:$E$51,IF($B$8=$A$22,3,2))) -> 230000 | S91: =S90+1/12 -> 45.5 | T91: =VLOOKUP($S91,P_All!$X$5:$AS$245,3*($C$8-1)+2) -> 1243.4 | U91: =VLOOKUP($S91,P_All!$X$5:$AS$245,3*($C$8-1)+3) -> 1348 | V91: =VLOOKUP($S91,P_All!$X$5:$AS$245,3*($C$8-1)+4) -> 1475.4 | W91: =IF(ISNA(VLOOKUP($B$6,$A$25:$E$52,IF($B$8=$A$22,3,2))),EXP(VLOOKUP($B$6,$A$25:$E$52,4)*LN(VLOOKUP($S91,#REF!,$C$8+1)/1000)+VLOOKUP($B$6,$A$25:$E$52,5)),VLOOKUP($B$6,$A$25:$E$52,IF($B$8=$A$22,3,2))) -> 230000
H92: 67 | I92: =VLOOKUP($H92,P_All!$A$5:$D$205,3*($C$8-1)+2) -> 946.77 | J92: =VLOOKUP($H92,P_All!$A$5:$D$205,3*($C$8-1)+3) -> 1124.1 | K92: =VLOOKUP($H92,P_All!$A$5:$D$205,3*($C$8-1)+4) -> 1348.3 | L92: =IF(ISNA(VLOOKUP($B$6,$A$25:$E$51,IF($B$8=$A$22,3,2))),EXP(VLOOKUP($B$6,$A$25:$E$51,4)*LN(VLOOKUP($H92,#REF!,$C$8+1)/1000)+VLOOKUP($B$6,$A$25:$E$51,5)),VLOOKUP($B$6,$A$25:$E$51,IF($B$8=$A$22,3,2))) -> 230000 | M92: 67 | N92: =VLOOKUP($H92,P_All!$A$5:$D$205,3*($C$8-1)+2) -> 946.77 | O92: =VLOOKUP($H92,P_All!$A$5:$D$205,3*($C$8-1)+3) -> 1124.1 | P92: =VLOOKUP($H92,P_All!$A$5:$D$205,3*($C$8-1)+4) -> 1348.3 | Q92: =IF(ISNA(VLOOKUP($B$6,$A$25:$E$51,IF($B$8=$A$22,3,2))),EXP(VLOOKUP($B$6,$A$25:$E$51,4)*LN(VLOOKUP($H92,#REF!,$C$8+1)/1000)+VLOOKUP($B$6,$A$25:$E$51,5)),VLOOKUP($B$6,$A$25:$E$51,IF($B$8=$A$22,3,2))) -> 230000 | S92: 45.58333333 | T92: =VLOOKUP($S92,P_All!$X$5:$AS$245,3*($C$8-1)+2) -> 1233.2 | U92: =VLOOKUP($S92,P_All!$X$5:$AS$245,3*($C$8-1)+3) -> 1342.3 | V92: =VLOOKUP($S92,P_All!$X$5:$AS$245,3*($C$8-1)+4) -> 1477.9 | W92: =IF(ISNA(VLOOKUP($B$6,$A$25:$E$52,IF($B$8=$A$22,3,2))),EXP(VLOOKUP($B$6,$A$25:$E$52,4)*LN(VLOOKUP($S92,#REF!,$C$8+1)/1000)+VLOOKUP($B$6,$A$25:$E$52,5)),VLOOKUP($B$6,$A$25:$E$52,IF($B$8=$A$22,3,2))) -> 230000
H93: 68 | I93: =VLOOKUP($H93,P_All!$A$5:$D$205,3*($C$8-1)+2) -> 946.94 | J93: =VLOOKUP($H93,P_All!$A$5:$D$205,3*($C$8-1)+3) -> 1131.4 | K93: =VLOOKUP($H93,P_All!$A$5:$D$205,3*($C$8-1)+4) -> 1349.8 | L93: =IF(ISNA(VLOOKUP($B$6,$A$25:$E$51,IF($B$8=$A$22,3,2))),EXP(VLOOKUP($B$6,$A$25:$E$51,4)*LN(VLOOKUP($H93,#REF!,$C$8+1)/1000)+VLOOKUP($B$6,$A$25:$E$51,5)),VLOOKUP($B$6,$A$25:$E$51,IF($B$8=$A$22,3,2))) -> 230000 | M93: 68 | N93: =VLOOKUP($H93,P_All!$A$5:$D$205,3*($C$8-1)+2) -> 946.94 | O93: =VLOOKUP($H93,P_All!$A$5:$D$205,3*($C$8-1)+3) -> 1131.4 | P93: =VLOOKUP($H93,P_All!$A$5:$D$205,3*($C$8-1)+4) -> 1349.8 | Q93: =IF(ISNA(VLOOKUP($B$6,$A$25:$E$51,IF($B$8=$A$22,3,2))),EXP(VLOOKUP($B$6,$A$25:$E$51,4)*LN(VLOOKUP($H93,#REF!,$C$8+1)/1000)+VLOOKUP($B$6,$A$25:$E$51,5)),VLOOKUP($B$6,$A$25:$E$51,IF($B$8=$A$22,3,2))) -> 230000 | S93: 45.66666667 | T93: =VLOOKUP($S93,P_All!$X$5:$AS$245,3*($C$8-1)+2) -> 1224.6 | U93: =VLOOKUP($S93,P_All!$X$5:$AS$245,3*($C$8-1)+3) -> 1331.9 | V93: =VLOOKUP($S93,P_All!$X$5:$AS$245,3*($C$8-1)+4) -> 1466.8 | W93: =IF(ISNA(VLOOKUP($B$6,$A$25:$E$52,IF($B$8=$A$22,3,2))),EXP(VLOOKUP($B$6,$A$25:$E$52,4)*LN(VLOOKUP($S93,#REF!,$C$8+1)/1000)+VLOOKUP($B$6,$A$25:$E$52,5)),VLOOKUP($B$6,$A$25:$E$52,IF($B$8=$A$22,3,2))) -> 230000
H94: 69 | I94: =VLOOKUP($H94,P_All!$A$5:$D$205,3*($C$8-1)+2) -> 938.06 | J94: =VLOOKUP($H94,P_All!$A$5:$D$205,3*($C$8-1)+3) -> 1139.8 | K94: =VLOOKUP($H94,P_All!$A$5:$D$205,3*($C$8-1)+4) -> 1362.4 | L94: =IF(ISNA(VLOOKUP($B$6,$A$25:$E$51,IF($B$8=$A$22,3,2))),EXP(VLOOKUP($B$6,$A$25:$E$51,4)*LN(VLOOKUP($H94,#REF!,$C$8+1)/1000)+VLOOKUP($B$6,$A$25:$E$51,5)),VLOOKUP($B$6,$A$25:$E$51,IF($B$8=$A$22,3,2))) -> 230000 | M94: 69 | N94: =VLOOKUP($H94,P_All!$A$5:$D$205,3*($C$8-1)+2) -> 938.06 | O94: =VLOOKUP($H94,P_All!$A$5:$D$205,3*($C$8-1)+3) -> 1139.8 | P94: =VLOOKUP($H94,P_All!$A$5:$D$205,3*($C$8-1)+4) -> 1362.4 | Q94: =IF(ISNA(VLOOKUP($B$6,$A$25:$E$51,IF($B$8=$A$22,3,2))),EXP(VLOOKUP($B$6,$A$25:$E$51,4)*LN(VLOOKUP($H94,#REF!,$C$8+1)/1000)+VLOOKUP($B$6,$A$25:$E$51,5)),VLOOKUP($B$6,$A$25:$E$51,IF($B$8=$A$22,3,2))) -> 230000 | S94: 45.75 | T94: =VLOOKUP($S94,P_All!$X$5:$AS$245,3*($C$8-1)+2) -> 1207.9 | U94: =VLOOKUP($S94,P_All!$X$5:$AS$245,3*($C$8-1)+3) -> 1317.4 | V94: =VLOOKUP($S94,P_All!$X$5:$AS$245,3*($C$8-1)+4) -> 1453.1 | W94: =IF(ISNA(VLOOKUP($B$6,$A$25:$E$52,IF($B$8=$A$22,3,2))),EXP(VLOOKUP($B$6,$A$25:$E$52,4)*LN(VLOOKUP($S94,#REF!,$C$8+1)/1000)+VLOOKUP($B$6,$A$25:$E$52,5)),VLOOKUP($B$6,$A$25:$E$52,IF($B$8=$A$22,3,2))) -> 230000
H95: 70 | I95: =VLOOKUP($H95,P_All!$A$5:$D$205,3*($C$8-1)+2) -> 948.17 | J95: =VLOOKUP($H95,P_All!$A$5:$D$205,3*($C$8-1)+3) -> 1126.1 | K95: =VLOOKUP($H95,P_All!$A$5:$D$205,3*($C$8-1)+4) -> 1369.6 | L95: =IF(ISNA(VLOOKUP($B$6,$A$25:$E$51,IF($B$8=$A$22,3,2))),EXP(VLOOKUP($B$6,$A$25:$E$51,4)*LN(VLOOKUP($H95,#REF!,$C$8+1)/1000)+VLOOKUP($B$6,$A$25:$E$51,5)),VLOOKUP($B$6,$A$25:$E$51,IF($B$8=$A$22,3,2))) -> 230000 | M95: 70 | N95: =VLOOKUP($H95,P_All!$A$5:$D$205,3*($C$8-1)+2) -> 948.17 | O95: =VLOOKUP($H95,P_All!$A$5:$D$205,3*($C$8-1)+3) -> 1126.1 | P95: =VLOOKUP($H95,P_All!$A$5:$D$205,3*($C$8-1)+4) -> 1369.6 | Q95: =IF(ISNA(VLOOKUP($B$6,$A$25:$E$51,IF($B$8=$A$22,3,2))),EXP(VLOOKUP($B$6,$A$25:$E$51,4)*LN(VLOOKUP($H95,#REF!,$C$8+1)/1000)+VLOOKUP($B$6,$A$25:$E$51,5)),VLOOKUP($B$6,$A$25:$E$51,IF($B$8=$A$22,3,2))) -> 230000 | S95: 45.83333333 | T95: =VLOOKUP($S95,P_All!$X$5:$AS$245,3*($C$8-1)+2) -> 1196 | U95: =VLOOKUP($S95,P_All!$X$5:$AS$245,3*($C$8-1)+3) -> 1310 | V95: =VLOOKUP($S95,P_All!$X$5:$AS$245,3*($C$8-1)+4) -> 1445.8 | W95: =IF(ISNA(VLOOKUP($B$6,$A$25:$E$52,IF($B$8=$A$22,3,2))),EXP(VLOOKUP($B$6,$A$25:$E$52,4)*LN(VLOOKUP($S95,#REF!,$C$8+1)/1000)+VLOOKUP($B$6,$A$25:$E$52,5)),VLOOKUP($B$6,$A$25:$E$52,IF($B$8=$A$22,3,2))) -> 230000
H96: 71 | I96: =VLOOKUP($H96,P_All!$A$5:$D$205,3*($C$8-1)+2) -> 956.22 | J96: =VLOOKUP($H96,P_All!$A$5:$D$205,3*($C$8-1)+3) -> 1116.9 | K96: =VLOOKUP($H96,P_All!$A$5:$D$205,3*($C$8-1)+4) -> 1375.3 | L96: =IF(ISNA(VLOOKUP($B$6,$A$25:$E$51,IF($B$8=$A$22,3,2))),EXP(VLOOKUP($B$6,$A$25:$E$51,4)*LN(VLOOKUP($H96,#REF!,$C$8+1)/1000)+VLOOKUP($B$6,$A$25:$E$51,5)),VLOOKUP($B$6,$A$25:$E$51,IF($B$8=$A$22,3,2))) -> 230000 | M96: 71 | N96: =VLOOKUP($H96,P_All!$A$5:$D$205,3*($C$8-1)+2) -> 956.22 | O96: =VLOOKUP($H96,P_All!$A$5:$D$205,3*($C$8-1)+3) -> 1116.9 | P96: =VLOOKUP($H96,P_All!$A$5:$D$205,3*($C$8-1)+4) -> 1375.3 | Q96: =IF(ISNA(VLOOKUP($B$6,$A$25:$E$51,IF($B$8=$A$22,3,2))),EXP(VLOOKUP($B$6,$A$25:$E$51,4)*LN(VLOOKUP($H96,#REF!,$C$8+1)/1000)+VLOOKUP($B$6,$A$25:$E$51,5)),VLOOKUP($B$6,$A$25:$E$51,IF($B$8=$A$22,3,2))) -> 230000 | S96: 45.91666667 | T96: =VLOOKUP($S96,P_All!$X$5:$AS$245,3*($C$8-1)+2) -> 1193.3 | U96: =VLOOKUP($S96,P_All!$X$5:$AS$245,3*($C$8-1)+3) -> 1308.3 | V96: =VLOOKUP($S96,P_All!$X$5:$AS$245,3*($C$8-1)+4) -> 1440.2 | W96: =IF(ISNA(VLOOKUP($B$6,$A$25:$E$52,IF($B$8=$A$22,3,2))),EXP(VLOOKUP($B$6,$A$25:$E$52,4)*LN(VLOOKUP($S96,#REF!,$C$8+1)/1000)+VLOOKUP($B$6,$A$25:$E$52,5)),VLOOKUP($B$6,$A$25:$E$52,IF($B$8=$A$22,3,2))) -> 230000
H97: 72 | I97: =VLOOKUP($H97,P_All!$A$5:$D$205,3*($C$8-1)+2) -> 938.84 | J97: =VLOOKUP($H97,P_All!$A$5:$D$205,3*($C$8-1)+3) -> 1123.8 | K97: =VLOOKUP($H97,P_All!$A$5:$D$205,3*($C$8-1)+4) -> 1363.1 | L97: =IF(ISNA(VLOOKUP($B$6,$A$25:$E$51,IF($B$8=$A$22,3,2))),EXP(VLOOKUP($B$6,$A$25:$E$51,4)*LN(VLOOKUP($H97,#REF!,$C$8+1)/1000)+VLOOKUP($B$6,$A$25:$E$51,5)),VLOOKUP($B$6,$A$25:$E$51,IF($B$8=$A$22,3,2))) -> 230000 | M97: 72 | N97: =VLOOKUP($H97,P_All!$A$5:$D$205,3*($C$8-1)+2) -> 938.84 | O97: =VLOOKUP($H97,P_All!$A$5:$D$205,3*($C$8-1)+3) -> 1123.8 | P97: =VLOOKUP($H97,P_All!$A$5:$D$205,3*($C$8-1)+4) -> 1363.1 | Q97: =IF(ISNA(VLOOKUP($B$6,$A$25:$E$51,IF($B$8=$A$22,3,2))),EXP(VLOOKUP($B$6,$A$25:$E$51,4)*LN(VLOOKUP($H97,#REF!,$C$8+1)/1000)+VLOOKUP($B$6,$A$25:$E$51,5)),VLOOKUP($B$6,$A$25:$E$51,IF($B$8=$A$22,3,2))) -> 230000 | S97: 46 | T97: =VLOOKUP($S97,P_All!$X$5:$AS$245,3*($C$8-1)+2) -> 1188.4 | U97: =VLOOKUP($S97,P_All!$X$5:$AS$245,3*($C$8-1)+3) -> 1301.7 | V97: =VLOOKUP($S97,P_All!$X$5:$AS$245,3*($C$8-1)+4) -> 1428.4 | W97: =IF(ISNA(VLOOKUP($B$6,$A$25:$E$52,IF($B$8=$A$22,3,2))),EXP(VLOOKUP($B$6,$A$25:$E$52,4)*LN(VLOOKUP($S97,#REF!,$C$8+1)/1000)+VLOOKUP($B$6,$A$25:$E$52,5)),VLOOKUP($B$6,$A$25:$E$52,IF($B$8=$A$22,3,2))) -> 230000
H98: 73 | I98: =VLOOKUP($H98,P_All!$A$5:$D$205,3*($C$8-1)+2) -> 922.77 | J98: =VLOOKUP($H98,P_All!$A$5:$D$205,3*($C$8-1)+3) -> 1125.2 | K98: =VLOOKUP($H98,P_All!$A$5:$D$205,3*($C$8-1)+4) -> 1356.7 | L98: =IF(ISNA(VLOOKUP($B$6,$A$25:$E$51,IF($B$8=$A$22,3,2))),EXP(VLOOKUP($B$6,$A$25:$E$51,4)*LN(VLOOKUP($H98,#REF!,$C$8+1)/1000)+VLOOKUP($B$6,$A$25:$E$51,5)),VLOOKUP($B$6,$A$25:$E$51,IF($B$8=$A$22,3,2))) -> 230000 | M98: 73 | N98: =VLOOKUP($H98,P_All!$A$5:$D$205,3*($C$8-1)+2) -> 922.77 | O98: =VLOOKUP($H98,P_All!$A$5:$D$205,3*($C$8-1)+3) -> 1125.2 | P98: =VLOOKUP($H98,P_All!$A$5:$D$205,3*($C$8-1)+4) -> 1356.7 | Q98: =IF(ISNA(VLOOKUP($B$6,$A$25:$E$51,IF($B$8=$A$22,3,2))),EXP(VLOOKUP($B$6,$A$25:$E$51,4)*LN(VLOOKUP($H98,#REF!,$C$8+1)/1000)+VLOOKUP($B$6,$A$25:$E$51,5)),VLOOKUP($B$6,$A$25:$E$51,IF($B$8=$A$22,3,2))) -> 230000 | S98: 46.08333333 | T98: =VLOOKUP($S98,P_All!$X$5:$AS$245,3*($C$8-1)+2) -> 1188.5 | U98: =VLOOKUP($S98,P_All!$X$5:$AS$245,3*($C$8-1)+3) -> 1296.7 | V98: =VLOOKUP($S98,P_All!$X$5:$AS$245,3*($C$8-1)+4) -> 1417.9 | W98: =IF(ISNA(VLOOKUP($B$6,$A$25:$E$52,IF($B$8=$A$22,3,2))),EXP(VLOOKUP($B$6,$A$25:$E$52,4)*LN(VLOOKUP($S98,#REF!,$C$8+1)/1000)+VLOOKUP($B$6,$A$25:$E$52,5)),VLOOKUP($B$6,$A$25:$E$52,IF($B$8=$A$22,3,2))) -> 230000
H99: 74 | I99: =VLOOKUP($H99,P_All!$A$5:$D$205,3*($C$8-1)+2) -> 927.39 | J99: =VLOOKUP($H99,P_All!$A$5:$D$205,3*($C$8-1)+3) -> 1125.7 | K99: =VLOOKUP($H99,P_All!$A$5:$D$205,3*($C$8-1)+4) -> 1358.4 | L99: =IF(ISNA(VLOOKUP($B$6,$A$25:$E$51,IF($B$8=$A$22,3,2))),EXP(VLOOKUP($B$6,$A$25:$E$51,4)*LN(VLOOKUP($H99,#REF!,$C$8+1)/1000)+VLOOKUP($B$6,$A$25:$E$51,5)),VLOOKUP($B$6,$A$25:$E$51,IF($B$8=$A$22,3,2))) -> 230000 | M99: 74 | N99: =VLOOKUP($H99,P_All!$A$5:$D$205,3*($C$8-1)+2) -> 927.39 | O99: =VLOOKUP($H99,P_All!$A$5:$D$205,3*($C$8-1)+3) -> 1125.7 | P99: =VLOOKUP($H99,P_All!$A$5:$D$205,3*($C$8-1)+4) -> 1358.4 | Q99: =IF(ISNA(VLOOKUP($B$6,$A$25:$E$51,IF($B$8=$A$22,3,2))),EXP(VLOOKUP($B$6,$A$25:$E$51,4)*LN(VLOOKUP($H99,#REF!,$C$8+1)/1000)+VLOOKUP($B$6,$A$25:$E$51,5)),VLOOKUP($B$6,$A$25:$E$51,IF($B$8=$A$22,3,2))) -> 230000 | S99: 46.16666667 | T99: =VLOOKUP($S99,P_All!$X$5:$AS$245,3*($C$8-1)+2) -> 1190.7 | U99: =VLOOKUP($S99,P_All!$X$5:$AS$245,3*($C$8-1)+3) -> 1294.8 | V99: =VLOOKUP($S99,P_All!$X$5:$AS$245,3*($C$8-1)+4) -> 1409.6 | W99: =IF(ISNA(VLOOKUP($B$6,$A$25:$E$52,IF($B$8=$A$22,3,2))),EXP(VLOOKUP($B$6,$A$25:$E$52,4)*LN(VLOOKUP($S99,#REF!,$C$8+1)/1000)+VLOOKUP($B$6,$A$25:$E$52,5)),VLOOKUP($B$6,$A$25:$E$52,IF($B$8=$A$22,3,2))) -> 230000
H100: 75 | I100: =VLOOKUP($H100,P_All!$A$5:$D$205,3*($C$8-1)+2) -> 916.93 | J100: =VLOOKUP($H100,P_All!$A$5:$D$205,3*($C$8-1)+3) -> 1117.6 | K100: =VLOOKUP($H100,P_All!$A$5:$D$205,3*($C$8-1)+4) -> 1368.6 | L100: =IF(ISNA(VLOOKUP($B$6,$A$25:$E$51,IF($B$8=$A$22,3,2))),EXP(VLOOKUP($B$6,$A$25:$E$51,4)*LN(VLOOKUP($H100,#REF!,$C$8+1)/1000)+VLOOKUP($B$6,$A$25:$E$51,5)),VLOOKUP($B$6,$A$25:$E$51,IF($B$8=$A$22,3,2))) -> 230000 | M100: 75 | N100: =VLOOKUP($H100,P_All!$A$5:$D$205,3*($C$8-1)+2) -> 916.93 | O100: =VLOOKUP($H100,P_All!$A$5:$D$205,3*($C$8-1)+3) -> 1117.6 | P100: =VLOOKUP($H100,P_All!$A$5:$D$205,3*($C$8-1)+4) -> 1368.6 | Q100: =IF(ISNA(VLOOKUP($B$6,$A$25:$E$51,IF($B$8=$A$22,3,2))),EXP(VLOOKUP($B$6,$A$25:$E$51,4)*LN(VLOOKUP($H100,#REF!,$C$8+1)/1000)+VLOOKUP($B$6,$A$25:$E$51,5)),VLOOKUP($B$6,$A$25:$E$51,IF($B$8=$A$22,3,2))) -> 230000 | S100: 46.25 | T100: =VLOOKUP($S100,P_All!$X$5:$AS$245,3*($C$8-1)+2) -> 1196.4 | U100: =VLOOKUP($S100,P_All!$X$5:$AS$245,3*($C$8-1)+3) -> 1297.8 | V100: =VLOOKUP($S100,P_All!$X$5:$AS$245,3*($C$8-1)+4) -> 1408.8 | W100: =IF(ISNA(VLOOKUP($B$6,$A$25:$E$52,IF($B$8=$A$22,3,2))),EXP(VLOOKUP($B$6,$A$25:$E$52,4)*LN(VLOOKUP($S100,#REF!,$C$8+1)/1000)+VLOOKUP($B$6,$A$25:$E$52,5)),VLOOKUP($B$6,$A$25:$E$52,IF($B$8=$A$22,3,2))) -> 230000
H101: 76 | I101: =VLOOKUP($H101,P_All!$A$5:$D$205,3*($C$8-1)+2) -> 914.4 | J101: =VLOOKUP($H101,P_All!$A$5:$D$205,3*($C$8-1)+3) -> 1118.1 | K101: =VLOOKUP($H101,P_All!$A$5:$D$205,3*($C$8-1)+4) -> 1358.9 | L101: =IF(ISNA(VLOOKUP($B$6,$A$25:$E$51,IF($B$8=$A$22,3,2))),EXP(VLOOKUP($B$6,$A$25:$E$51,4)*LN(VLOOKUP($H101,#REF!,$C$8+1)/1000)+VLOOKUP($B$6,$A$25:$E$51,5)),VLOOKUP($B$6,$A$25:$E$51,IF($B$8=$A$22,3,2))) -> 230000 | M101: 76 | N101: =VLOOKUP($H101,P_All!$A$5:$D$205,3*($C$8-1)+2) -> 914.4 | O101: =VLOOKUP($H101,P_All!$A$5:$D$205,3*($C$8-1)+3) -> 1118.1 | P101: =VLOOKUP($H101,P_All!$A$5:$D$205,3*($C$8-1)+4) -> 1358.9 | Q101: =IF(ISNA(VLOOKUP($B$6,$A$25:$E$51,IF($B$8=$A$22,3,2))),EXP(VLOOKUP($B$6,$A$25:$E$51,4)*LN(VLOOKUP($H101,#REF!,$C$8+1)/1000)+VLOOKUP($B$6,$A$25:$E$51,5)),VLOOKUP($B$6,$A$25:$E$51,IF($B$8=$A$22,3,2))) -> 230000 | S101: 46.33333333 | T101: =VLOOKUP($S101,P_All!$X$5:$AS$245,3*($C$8-1)+2) -> 1217.6 | U101: =VLOOKUP($S101,P_All!$X$5:$AS$245,3*($C$8-1)+3) -> 1320 | V101: =VLOOKUP($S101,P_All!$X$5:$AS$245,3*($C$8-1)+4) -> 1437.2 | W101: =IF(ISNA(VLOOKUP($B$6,$A$25:$E$52,IF($B$8=$A$22,3,2))),EXP(VLOOKUP($B$6,$A$25:$E$52,4)*LN(VLOOKUP($S101,#REF!,$C$8+1)/1000)+VLOOKUP($B$6,$A$25:$E$52,5)),VLOOKUP($B$6,$A$25:$E$52,IF($B$8=$A$22,3,2))) -> 230000
H102: 77 | I102: =VLOOKUP($H102,P_All!$A$5:$D$205,3*($C$8-1)+2) -> 918.92 | J102: =VLOOKUP($H102,P_All!$A$5:$D$205,3*($C$8-1)+3) -> 1111.4 | K102: =VLOOKUP($H102,P_All!$A$5:$D$205,3*($C$8-1)+4) -> 1375.2 | L102: =IF(ISNA(VLOOKUP($B$6,$A$25:$E$51,IF($B$8=$A$22,3,2))),EXP(VLOOKUP($B$6,$A$25:$E$51,4)*LN(VLOOKUP($H102,#REF!,$C$8+1)/1000)+VLOOKUP($B$6,$A$25:$E$51,5)),VLOOKUP($B$6,$A$25:$E$51,IF($B$8=$A$22,3,2))) -> 230000 | M102: 77 | N102: =VLOOKUP($H102,P_All!$A$5:$D$205,3*($C$8-1)+2) -> 918.92 | O102: =VLOOKUP($H102,P_All!$A$5:$D$205,3*($C$8-1)+3) -> 1111.4 | P102: =VLOOKUP($H102,P_All!$A$5:$D$205,3*($C$8-1)+4) -> 1375.2 | Q102: =IF(ISNA(VLOOKUP($B$6,$A$25:$E$51,IF($B$8=$A$22,3,2))),EXP(VLOOKUP($B$6,$A$25:$E$51,4)*LN(VLOOKUP($H102,#REF!,$C$8+1)/1000)+VLOOKUP($B$6,$A$25:$E$51,5)),VLOOKUP($B$6,$A$25:$E$51,IF($B$8=$A$22,3,2))) -> 230000 | S102: 46.41666667 | T102: =VLOOKUP($S102,P_All!$X$5:$AS$245,3*($C$8-1)+2) -> 1228 | U102: =VLOOKUP($S102,P_All!$X$5:$AS$245,3*($C$8-1)+3) -> 1332.4 | V102: =VLOOKUP($S102,P_All!$X$5:$AS$245,3*($C$8-1)+4) -> 1458.7 | W102: =IF(ISNA(VLOOKUP($B$6,$A$25:$E$52,IF($B$8=$A$22,3,2))),EXP(VLOOKUP($B$6,$A$25:$E$52,4)*LN(VLOOKUP($S102,#REF!,$C$8+1)/1000)+VLOOKUP($B$6,$A$25:$E$52,5)),VLOOKUP($B$6,$A$25:$E$52,IF($B$8=$A$22,3,2))) -> 230000
H103: 78 | I103: =VLOOKUP($H103,P_All!$A$5:$D$205,3*($C$8-1)+2) -> 921.39 | J103: =VLOOKUP($H103,P_All!$A$5:$D$205,3*($C$8-1)+3) -> 1111.2 | K103: =VLOOKUP($H103,P_All!$A$5:$D$205,3*($C$8-1)+4) -> 1372.5 | L103: =IF(ISNA(VLOOKUP($B$6,$A$25:$E$51,IF($B$8=$A$22,3,2))),EXP(VLOOKUP($B$6,$A$25:$E$51,4)*LN(VLOOKUP($H103,#REF!,$C$8+1)/1000)+VLOOKUP($B$6,$A$25:$E$51,5)),VLOOKUP($B$6,$A$25:$E$51,IF($B$8=$A$22,3,2))) -> 230000 | M103: 78 | N103: =VLOOKUP($H103,P_All!$A$5:$D$205,3*($C$8-1)+2) -> 921.39 | O103: =VLOOKUP($H103,P_All!$A$5:$D$205,3*($C$8-1)+3) -> 1111.2 | P103: =VLOOKUP($H103,P_All!$A$5:$D$205,3*($C$8-1)+4) -> 1372.5 | Q103: =IF(ISNA(VLOOKUP($B$6,$A$25:$E$51,IF($B$8=$A$22,3,2))),EXP(VLOOKUP($B$6,$A$25:$E$51,4)*LN(VLOOKUP($H103,#REF!,$C$8+1)/1000)+VLOOKUP($B$6,$A$25:$E$51,5)),VLOOKUP($B$6,$A$25:$E$51,IF($B$8=$A$22,3,2))) -> 230000 | S103: 46.5 | T103: =VLOOKUP($S103,P_All!$X$5:$AS$245,3*($C$8-1)+2) -> 1214.2 | U103: =VLOOKUP($S103,P_All!$X$5:$AS$245,3*($C$8-1)+3) -> 1323 | V103: =VLOOKUP($S103,P_All!$X$5:$AS$245,3*($C$8-1)+4) -> 1445.5 | W103: =IF(ISNA(VLOOKUP($B$6,$A$25:$E$52,IF($B$8=$A$22,3,2))),EXP(VLOOKUP($B$6,$A$25:$E$52,4)*LN(VLOOKUP($S103,#REF!,$C$8+1)/1000)+VLOOKUP($B$6,$A$25:$E$52,5)),VLOOKUP($B$6,$A$25:$E$52,IF($B$8=$A$22,3,2))) -> 230000
H104: 79 | I104: =VLOOKUP($H104,P_All!$A$5:$D$205,3*($C$8-1)+2) -> 917.51 | J104: =VLOOKUP($H104,P_All!$A$5:$D$205,3*($C$8-1)+3) -> 1116.1 | K104: =VLOOKUP($H104,P_All!$A$5:$D$205,3*($C$8-1)+4) -> 1380.5 | L104: =IF(ISNA(VLOOKUP($B$6,$A$25:$E$51,IF($B$8=$A$22,3,2))),EXP(VLOOKUP($B$6,$A$25:$E$51,4)*LN(VLOOKUP($H104,#REF!,$C$8+1)/1000)+VLOOKUP($B$6,$A$25:$E$51,5)),VLOOKUP($B$6,$A$25:$E$51,IF($B$8=$A$22,3,2))) -> 230000 | M104: 79 | N104: =VLOOKUP($H104,P_All!$A$5:$D$205,3*($C$8-1)+2) -> 917.51 | O104: =VLOOKUP($H104,P_All!$A$5:$D$205,3*($C$8-1)+3) -> 1116.1 | P104: =VLOOKUP($H104,P_All!$A$5:$D$205,3*($C$8-1)+4) -> 1380.5 | Q104: =IF(ISNA(VLOOKUP($B$6,$A$25:$E$51,IF($B$8=$A$22,3,2))),EXP(VLOOKUP($B$6,$A$25:$E$51,4)*LN(VLOOKUP($H104,#REF!,$C$8+1)/1000)+VLOOKUP($B$6,$A$25:$E$51,5)),VLOOKUP($B$6,$A$25:$E$51,IF($B$8=$A$22,3,2))) -> 230000 | S104: 46.58333333 | T104: =VLOOKUP($S104,P_All!$X$5:$AS$245,3*($C$8-1)+2) -> 1206.8 | U104: =VLOOKUP($S104,P_All!$X$5:$AS$245,3*($C$8-1)+3) -> 1318.4 | V104: =VLOOKUP($S104,P_All!$X$5:$AS$245,3*($C$8-1)+4) -> 1432.3 | W104: =IF(ISNA(VLOOKUP($B$6,$A$25:$E$52,IF($B$8=$A$22,3,2))),EXP(VLOOKUP($B$6,$A$25:$E$52,4)*LN(VLOOKUP($S104,#REF!,$C$8+1)/1000)+VLOOKUP($B$6,$A$25:$E$52,5)),VLOOKUP($B$6,$A$25:$E$52,IF($B$8=$A$22,3,2))) -> 230000
H105: 80 | I105: =VLOOKUP($H105,P_All!$A$5:$D$205,3*($C$8-1)+2) -> 920.04 | J105: =VLOOKUP($H105,P_All!$A$5:$D$205,3*($C$8-1)+3) -> 1121.2 | K105: =VLOOKUP($H105,P_All!$A$5:$D$205,3*($C$8-1)+4) -> 1366.8 | L105: =IF(ISNA(VLOOKUP($B$6,$A$25:$E$51,IF($B$8=$A$22,3,2))),EXP(VLOOKUP($B$6,$A$25:$E$51,4)*LN(VLOOKUP($H105,#REF!,$C$8+1)/1000)+VLOOKUP($B$6,$A$25:$E$51,5)),VLOOKUP($B$6,$A$25:$E$51,IF($B$8=$A$22,3,2))) -> 230000 | M105: 80 | N105: =VLOOKUP($H105,P_All!$A$5:$D$205,3*($C$8-1)+2) -> 920.04 | O105: =VLOOKUP($H105,P_All!$A$5:$D$205,3*($C$8-1)+3) -> 1121.2 | P105: =VLOOKUP($H105,P_All!$A$5:$D$205,3*($C$8-1)+4) -> 1366.8 | Q105: =IF(ISNA(VLOOKUP($B$6,$A$25:$E$51,IF($B$8=$A$22,3,2))),EXP(VLOOKUP($B$6,$A$25:$E$51,4)*LN(VLOOKUP($H105,#REF!,$C$8+1)/1000)+VLOOKUP($B$6,$A$25:$E$51,5)),VLOOKUP($B$6,$A$25:$E$51,IF($B$8=$A$22,3,2))) -> 230000 | S105: 46.66666667 | T105: =VLOOKUP($S105,P_All!$X$5:$AS$245,3*($C$8-1)+2) -> 1197.6 | U105: =VLOOKUP($S105,P_All!$X$5:$AS$245,3*($C$8-1)+3) -> 1310.8 | V105: =VLOOKUP($S105,P_All!$X$5:$AS$245,3*($C$8-1)+4) -> 1421.1 | W105: =IF(ISNA(VLOOKUP($B$6,$A$25:$E$52,IF($B$8=$A$22,3,2))),EXP(VLOOKUP($B$6,$A$25:$E$52,4)*LN(VLOOKUP($S105,#REF!,$C$8+1)/1000)+VLOOKUP($B$6,$A$25:$E$52,5)),VLOOKUP($B$6,$A$25:$E$52,IF($B$8=$A$22,3,2))) -> 230000
H106: 81 | I106: =VLOOKUP($H106,P_All!$A$5:$D$205,3*($C$8-1)+2) -> 915.68 | J106: =VLOOKUP($H106,P_All!$A$5:$D$205,3*($C$8-1)+3) -> 1113.4 | K106: =VLOOKUP($H106,P_All!$A$5:$D$205,3*($C$8-1)+4) -> 1361.5 | L106: =IF(ISNA(VLOOKUP($B$6,$A$25:$E$51,IF($B$8=$A$22,3,2))),EXP(VLOOKUP($B$6,$A$25:$E$51,4)*LN(VLOOKUP($H106,#REF!,$C$8+1)/1000)+VLOOKUP($B$6,$A$25:$E$51,5)),VLOOKUP($B$6,$A$25:$E$51,IF($B$8=$A$22,3,2))) -> 230000 | M106: 81 | N106: =VLOOKUP($H106,P_All!$A$5:$D$205,3*($C$8-1)+2) -> 915.68 | O106: =VLOOKUP($H106,P_All!$A$5:$D$205,3*($C$8-1)+3) -> 1113.4 | P106: =VLOOKUP($H106,P_All!$A$5:$D$205,3*($C$8-1)+4) -> 1361.5 | Q106: =IF(ISNA(VLOOKUP($B$6,$A$25:$E$51,IF($B$8=$A$22,3,2))),EXP(VLOOKUP($B$6,$A$25:$E$51,4)*LN(VLOOKUP($H106,#REF!,$C$8+1)/1000)+VLOOKUP($B$6,$A$25:$E$51,5)),VLOOKUP($B$6,$A$25:$E$51,IF($B$8=$A$22,3,2))) -> 230000 | S106: 46.75 | T106: =VLOOKUP($S106,P_All!$X$5:$AS$245,3*($C$8-1)+2) -> 1180.7 | U106: =VLOOKUP($S106,P_All!$X$5:$AS$245,3*($C$8-1)+3) -> 1296.7 | V106: =VLOOKUP($S106,P_All!$X$5:$AS$245,3*($C$8-1)+4) -> 1413.4 | W106: =IF(ISNA(VLOOKUP($B$6,$A$25:$E$52,IF($B$8=$A$22,3,2))),EXP(VLOOKUP($B$6,$A$25:$E$52,4)*LN(VLOOKUP($S106,#REF!,$C$8+1)/1000)+VLOOKUP($B$6,$A$25:$E$52,5)),VLOOKUP($B$6,$A$25:$E$52,IF($B$8=$A$22,3,2))) -> 230000
H107: 82 | I107: =VLOOKUP($H107,P_All!$A$5:$D$205,3*($C$8-1)+2) -> 918.93 | J107: =VLOOKUP($H107,P_All!$A$5:$D$205,3*($C$8-1)+3) -> 1112.1 | K107: =VLOOKUP($H107,P_All!$A$5:$D$205,3*($C$8-1)+4) -> 1348.3 | L107: =IF(ISNA(VLOOKUP($B$6,$A$25:$E$51,IF($B$8=$A$22,3,2))),EXP(VLOOKUP($B$6,$A$25:$E$51,4)*LN(VLOOKUP($H107,#REF!,$C$8+1)/1000)+VLOOKUP($B$6,$A$25:$E$51,5)),VLOOKUP($B$6,$A$25:$E$51,IF($B$8=$A$22,3,2))) -> 230000 | M107: 82 | N107: =VLOOKUP($H107,P_All!$A$5:$D$205,3*($C$8-1)+2) -> 918.93 | O107: =VLOOKUP($H107,P_All!$A$5:$D$205,3*($C$8-1)+3) -> 1112.1 | P107: =VLOOKUP($H107,P_All!$A$5:$D$205,3*($C$8-1)+4) -> 1348.3 | Q107: =IF(ISNA(VLOOKUP($B$6,$A$25:$E$51,IF($B$8=$A$22,3,2))),EXP(VLOOKUP($B$6,$A$25:$E$51,4)*LN(VLOOKUP($H107,#REF!,$C$8+1)/1000)+VLOOKUP($B$6,$A$25:$E$51,5)),VLOOKUP($B$6,$A$25:$E$51,IF($B$8=$A$22,3,2))) -> 230000 | S107: 46.83333333 | T107: =VLOOKUP($S107,P_All!$X$5:$AS$245,3*($C$8-1)+2) -> 1168.8 | U107: =VLOOKUP($S107,P_All!$X$5:$AS$245,3*($C$8-1)+3) -> 1291.2 | V107: =VLOOKUP($S107,P_All!$X$5:$AS$245,3*($C$8-1)+4) -> 1407.1 | W107: =IF(ISNA(VLOOKUP($B$6,$A$25:$E$52,IF($B$8=$A$22,3,2))),EXP(VLOOKUP($B$6,$A$25:$E$52,4)*LN(VLOOKUP($S107,#REF!,$C$8+1)/1000)+VLOOKUP($B$6,$A$25:$E$52,5)),VLOOKUP($B$6,$A$25:$E$52,IF($B$8=$A$22,3,2))) -> 230000
H108: 83 | I108: =VLOOKUP($H108,P_All!$A$5:$D$205,3*($C$8-1)+2) -> 923.71 | J108: =VLOOKUP($H108,P_All!$A$5:$D$205,3*($C$8-1)+3) -> 1115.4 | K108: =VLOOKUP($H108,P_All!$A$5:$D$205,3*($C$8-1)+4) -> 1362.4 | L108: =IF(ISNA(VLOOKUP($B$6,$A$25:$E$51,IF($B$8=$A$22,3,2))),EXP(VLOOKUP($B$6,$A$25:$E$51,4)*LN(VLOOKUP($H108,#REF!,$C$8+1)/1000)+VLOOKUP($B$6,$A$25:$E$51,5)),VLOOKUP($B$6,$A$25:$E$51,IF($B$8=$A$22,3,2))) -> 230000 | M108: 83 | N108: =VLOOKUP($H108,P_All!$A$5:$D$205,3*($C$8-1)+2) -> 923.71 | O108: =VLOOKUP($H108,P_All!$A$5:$D$205,3*($C$8-1)+3) -> 1115.4 | P108: =VLOOKUP($H108,P_All!$A$5:$D$205,3*($C$8-1)+4) -> 1362.4 | Q108: =IF(ISNA(VLOOKUP($B$6,$A$25:$E$51,IF($B$8=$A$22,3,2))),EXP(VLOOKUP($B$6,$A$25:$E$51,4)*LN(VLOOKUP($H108,#REF!,$C$8+1)/1000)+VLOOKUP($B$6,$A$25:$E$51,5)),VLOOKUP($B$6,$A$25:$E$51,IF($B$8=$A$22,3,2))) -> 230000 | S108: 46.91666667 | T108: =VLOOKUP($S108,P_All!$X$5:$AS$245,3*($C$8-1)+2) -> 1165 | U108: =VLOOKUP($S108,P_All!$X$5:$AS$245,3*($C$8-1)+3) -> 1287.8 | V108: =VLOOKUP($S108,P_All!$X$5:$AS$245,3*($C$8-1)+4) -> 1400.4 | W108: =IF(ISNA(VLOOKUP($B$6,$A$25:$E$52,IF($B$8=$A$22,3,2))),EXP(VLOOKUP($B$6,$A$25:$E$52,4)*LN(VLOOKUP($S108,#REF!,$C$8+1)/1000)+VLOOKUP($B$6,$A$25:$E$52,5)),VLOOKUP($B$6,$A$25:$E$52,IF($B$8=$A$22,3,2))) -> 230000
H109: 84 | I109: =VLOOKUP($H109,P_All!$A$5:$D$205,3*($C$8-1)+2) -> 925.84 | J109: =VLOOKUP($H109,P_All!$A$5:$D$205,3*($C$8-1)+3) -> 1118.4 | K109: =VLOOKUP($H109,P_All!$A$5:$D$205,3*($C$8-1)+4) -> 1368.7 | L109: =IF(ISNA(VLOOKUP($B$6,$A$25:$E$51,IF($B$8=$A$22,3,2))),EXP(VLOOKUP($B$6,$A$25:$E$51,4)*LN(VLOOKUP($H109,#REF!,$C$8+1)/1000)+VLOOKUP($B$6,$A$25:$E$51,5)),VLOOKUP($B$6,$A$25:$E$51,IF($B$8=$A$22,3,2))) -> 230000 | M109: 84 | N109: =VLOOKUP($H109,P_All!$A$5:$D$205,3*($C$8-1)+2) -> 925.84 | O109: =VLOOKUP($H109,P_All!$A$5:$D$205,3*($C$8-1)+3) -> 1118.4 | P109: =VLOOKUP($H109,P_All!$A$5:$D$205,3*($C$8-1)+4) -> 1368.7 | Q109: =IF(ISNA(VLOOKUP($B$6,$A$25:$E$51,IF($B$8=$A$22,3,2))),EXP(VLOOKUP($B$6,$A$25:$E$51,4)*LN(VLOOKUP($H109,#REF!,$C$8+1)/1000)+VLOOKUP($B$6,$A$25:$E$51,5)),VLOOKUP($B$6,$A$25:$E$51,IF($B$8=$A$22,3,2))) -> 230000 | S109: 47 | T109: =VLOOKUP($S109,P_All!$X$5:$AS$245,3*($C$8-1)+2) -> 1161 | U109: =VLOOKUP($S109,P_All!$X$5:$AS$245,3*($C$8-1)+3) -> 1280.6 | V109: =VLOOKUP($S109,P_All!$X$5:$AS$245,3*($C$8-1)+4) -> 1389.5 | W109: =IF(ISNA(VLOOKUP($B$6,$A$25:$E$52,IF($B$8=$A$22,3,2))),EXP(VLOOKUP($B$6,$A$25:$E$52,4)*LN(VLOOKUP($S109,#REF!,$C$8+1)/1000)+VLOOKUP($B$6,$A$25:$E$52,5)),VLOOKUP($B$6,$A$25:$E$52,IF($B$8=$A$22,3,2))) -> 230000
H110: 85 | I110: =VLOOKUP($H110,P_All!$A$5:$D$205,3*($C$8-1)+2) -> 922.03 | J110: =VLOOKUP($H110,P_All!$A$5:$D$205,3*($C$8-1)+3) -> 1116.2 | K110: =VLOOKUP($H110,P_All!$A$5:$D$205,3*($C$8-1)+4) -> 1375.6 | L110: =IF(ISNA(VLOOKUP($B$6,$A$25:$E$51,IF($B$8=$A$22,3,2))),EXP(VLOOKUP($B$6,$A$25:$E$51,4)*LN(VLOOKUP($H110,#REF!,$C$8+1)/1000)+VLOOKUP($B$6,$A$25:$E$51,5)),VLOOKUP($B$6,$A$25:$E$51,IF($B$8=$A$22,3,2))) -> 230000 | M110: 85 | N110: =VLOOKUP($H110,P_All!$A$5:$D$205,3*($C$8-1)+2) -> 922.03 | O110: =VLOOKUP($H110,P_All!$A$5:$D$205,3*($C$8-1)+3) -> 1116.2 | P110: =VLOOKUP($H110,P_All!$A$5:$D$205,3*($C$8-1)+4) -> 1375.6 | Q110: =IF(ISNA(VLOOKUP($B$6,$A$25:$E$51,IF($B$8=$A$22,3,2))),EXP(VLOOKUP($B$6,$A$25:$E$51,4)*LN(VLOOKUP($H110,#REF!,$C$8+1)/1000)+VLOOKUP($B$6,$A$25:$E$51,5)),VLOOKUP($B$6,$A$25:$E$51,IF($B$8=$A$22,3,2))) -> 230000 | S110: 47.08333333 | T110: =VLOOKUP($S110,P_All!$X$5:$AS$245,3*($C$8-1)+2) -> 1162.4 | U110: =VLOOKUP($S110,P_All!$X$5:$AS$245,3*($C$8-1)+3) -> 1277.5 | V110: =VLOOKUP($S110,P_All!$X$5:$AS$245,3*($C$8-1)+4) -> 1382.5 | W110: =IF(ISNA(VLOOKUP($B$6,$A$25:$E$52,IF($B$8=$A$22,3,2))),EXP(VLOOKUP($B$6,$A$25:$E$52,4)*LN(VLOOKUP($S110,#REF!,$C$8+1)/1000)+VLOOKUP($B$6,$A$25:$E$52,5)),VLOOKUP($B$6,$A$25:$E$52,IF($B$8=$A$22,3,2))) -> 230000
H111: 86 | I111: =VLOOKUP($H111,P_All!$A$5:$D$205,3*($C$8-1)+2) -> 919.81 | J111: =VLOOKUP($H111,P_All!$A$5:$D$205,3*($C$8-1)+3) -> 1124.4 | K111: =VLOOKUP($H111,P_All!$A$5:$D$205,3*($C$8-1)+4) -> 1337 | L111: =IF(ISNA(VLOOKUP($B$6,$A$25:$E$51,IF($B$8=$A$22,3,2))),EXP(VLOOKUP($B$6,$A$25:$E$51,4)*LN(VLOOKUP($H111,#REF!,$C$8+1)/1000)+VLOOKUP($B$6,$A$25:$E$51,5)),VLOOKUP($B$6,$A$25:$E$51,IF($B$8=$A$22,3,2))) -> 230000 | M111: 86 | N111: =VLOOKUP($H111,P_All!$A$5:$D$205,3*($C$8-1)+2) -> 919.81 | O111: =VLOOKUP($H111,P_All!$A$5:$D$205,3*($C$8-1)+3) -> 1124.4 | P111: =VLOOKUP($H111,P_All!$A$5:$D$205,3*($C$8-1)+4) -> 1337 | Q111: =IF(ISNA(VLOOKUP($B$6,$A$25:$E$51,IF($B$8=$A$22,3,2))),EXP(VLOOKUP($B$6,$A$25:$E$51,4)*LN(VLOOKUP($H111,#REF!,$C$8+1)/1000)+VLOOKUP($B$6,$A$25:$E$51,5)),VLOOKUP($B$6,$A$25:$E$51,IF($B$8=$A$22,3,2))) -> 230000 | S111: 47.16666667 | T111: =VLOOKUP($S111,P_All!$X$5:$AS$245,3*($C$8-1)+2) -> 1164.4 | U111: =VLOOKUP($S111,P_All!$X$5:$AS$245,3*($C$8-1)+3) -> 1276.6 | V111: =VLOOKUP($S111,P_All!$X$5:$AS$245,3*($C$8-1)+4) -> 1378.8 | W111: =IF(ISNA(VLOOKUP($B$6,$A$25:$E$52,IF($B$8=$A$22,3,2))),EXP(VLOOKUP($B$6,$A$25:$E$52,4)*LN(VLOOKUP($S111,#REF!,$C$8+1)/1000)+VLOOKUP($B$6,$A$25:$E$52,5)),VLOOKUP($B$6,$A$25:$E$52,IF($B$8=$A$22,3,2))) -> 230000
H112: 87 | I112: =VLOOKUP($H112,P_All!$A$5:$D$205,3*($C$8-1)+2) -> 910.25 | J112: =VLOOKUP($H112,P_All!$A$5:$D$205,3*($C$8-1)+3) -> 1115.4 | K112: =VLOOKUP($H112,P_All!$A$5:$D$205,3*($C$8-1)+4) -> 1367.2 | L112: =IF(ISNA(VLOOKUP($B$6,$A$25:$E$51,IF($B$8=$A$22,3,2))),EXP(VLOOKUP($B$6,$A$25:$E$51,4)*LN(VLOOKUP($H112,#REF!,$C$8+1)/1000)+VLOOKUP($B$6,$A$25:$E$51,5)),VLOOKUP($B$6,$A$25:$E$51,IF($B$8=$A$22,3,2))) -> 230000 | M112: 87 | N112: =VLOOKUP($H112,P_All!$A$5:$D$205,3*($C$8-1)+2) -> 910.25 | O112: =VLOOKUP($H112,P_All!$A$5:$D$205,3*($C$8-1)+3) -> 1115.4 | P112: =VLOOKUP($H112,P_All!$A$5:$D$205,3*($C$8-1)+4) -> 1367.2 | Q112: =IF(ISNA(VLOOKUP($B$6,$A$25:$E$51,IF($B$8=$A$22,3,2))),EXP(VLOOKUP($B$6,$A$25:$E$51,4)*LN(VLOOKUP($H112,#REF!,$C$8+1)/1000)+VLOOKUP($B$6,$A$25:$E$51,5)),VLOOKUP($B$6,$A$25:$E$51,IF($B$8=$A$22,3,2))) -> 230000 | S112: 47.25 | T112: =VLOOKUP($S112,P_All!$X$5:$AS$245,3*($C$8-1)+2) -> 1171 | U112: =VLOOKUP($S112,P_All!$X$5:$AS$245,3*($C$8-1)+3) -> 1279.6 | V112: =VLOOKUP($S112,P_All!$X$5:$AS$245,3*($C$8-1)+4) -> 1379.8 | W112: =IF(ISNA(VLOOKUP($B$6,$A$25:$E$52,IF($B$8=$A$22,3,2))),EXP(VLOOKUP($B$6,$A$25:$E$52,4)*LN(VLOOKUP($S112,#REF!,$C$8+1)/1000)+VLOOKUP($B$6,$A$25:$E$52,5)),VLOOKUP($B$6,$A$25:$E$52,IF($B$8=$A$22,3,2))) -> 230000
H113: 88 | I113: =VLOOKUP($H113,P_All!$A$5:$D$205,3*($C$8-1)+2) -> 927.18 | J113: =VLOOKUP($H113,P_All!$A$5:$D$205,3*($C$8-1)+3) -> 1107.6 | K113: =VLOOKUP($H113,P_All!$A$5:$D$205,3*($C$8-1)+4) -> 1368.2 | L113: =IF(ISNA(VLOOKUP($B$6,$A$25:$E$51,IF($B$8=$A$22,3,2))),EXP(VLOOKUP($B$6,$A$25:$E$51,4)*LN(VLOOKUP($H113,#REF!,$C$8+1)/1000)+VLOOKUP($B$6,$A$25:$E$51,5)),VLOOKUP($B$6,$A$25:$E$51,IF($B$8=$A$22,3,2))) -> 230000 | M113: 88 | N113: =VLOOKUP($H113,P_All!$A$5:$D$205,3*($C$8-1)+2) -> 927.18 | O113: =VLOOKUP($H113,P_All!$A$5:$D$205,3*($C$8-1)+3) -> 1107.6 | P113: =VLOOKUP($H113,P_All!$A$5:$D$205,3*($C$8-1)+4) -> 1368.2 | Q113: =IF(ISNA(VLOOKUP($B$6,$A$25:$E$51,IF($B$8=$A$22,3,2))),EXP(VLOOKUP($B$6,$A$25:$E$51,4)*LN(VLOOKUP($H113,#REF!,$C$8+1)/1000)+VLOOKUP($B$6,$A$25:$E$51,5)),VLOOKUP($B$6,$A$25:$E$51,IF($B$8=$A$22,3,2))) -> 230000 | S113: 47.33333333 | T113: =VLOOKUP($S113,P_All!$X$5:$AS$245,3*($C$8-1)+2) -> 1191.1 | U113: =VLOOKUP($S113,P_All!$X$5:$AS$245,3*($C$8-1)+3) -> 1304.3 | V113: =VLOOKUP($S113,P_All!$X$5:$AS$245,3*($C$8-1)+4) -> 1412.2 | W113: =IF(ISNA(VLOOKUP($B$6,$A$25:$E$52,IF($B$8=$A$22,3,2))),EXP(VLOOKUP($B$6,$A$25:$E$52,4)*LN(VLOOKUP($S113,#REF!,$C$8+1)/1000)+VLOOKUP($B$6,$A$25:$E$52,5)),VLOOKUP($B$6,$A$25:$E$52,IF($B$8=$A$22,3,2))) -> 230000
H114: 89 | I114: =VLOOKUP($H114,P_All!$A$5:$D$205,3*($C$8-1)+2) -> 936.5 | J114: =VLOOKUP($H114,P_All!$A$5:$D$205,3*($C$8-1)+3) -> 1107.5 | K114: =VLOOKUP($H114,P_All!$A$5:$D$205,3*($C$8-1)+4) -> 1362.9 | L114: =IF(ISNA(VLOOKUP($B$6,$A$25:$E$51,IF($B$8=$A$22,3,2))),EXP(VLOOKUP($B$6,$A$25:$E$51,4)*LN(VLOOKUP($H114,#REF!,$C$8+1)/1000)+VLOOKUP($B$6,$A$25:$E$51,5)),VLOOKUP($B$6,$A$25:$E$51,IF($B$8=$A$22,3,2))) -> 230000 | M114: 89 | N114: =VLOOKUP($H114,P_All!$A$5:$D$205,3*($C$8-1)+2) -> 936.5 | O114: =VLOOKUP($H114,P_All!$A$5:$D$205,3*($C$8-1)+3) -> 1107.5 | P114: =VLOOKUP($H114,P_All!$A$5:$D$205,3*($C$8-1)+4) -> 1362.9 | Q114: =IF(ISNA(VLOOKUP($B$6,$A$25:$E$51,IF($B$8=$A$22,3,2))),EXP(VLOOKUP($B$6,$A$25:$E$51,4)*LN(VLOOKUP($H114,#REF!,$C$8+1)/1000)+VLOOKUP($B$6,$A$25:$E$51,5)),VLOOKUP($B$6,$A$25:$E$51,IF($B$8=$A$22,3,2))) -> 230000 | S114: 47.41666667 | T114: =VLOOKUP($S114,P_All!$X$5:$AS$245,3*($C$8-1)+2) -> 1200.3 | U114: =VLOOKUP($S114,P_All!$X$5:$AS$245,3*($C$8-1)+3) -> 1315.7 | V114: =VLOOKUP($S114,P_All!$X$5:$AS$245,3*($C$8-1)+4) -> 1427.5 | W114: =IF(ISNA(VLOOKUP($B$6,$A$25:$E$52,IF($B$8=$A$22,3,2))),EXP(VLOOKUP($B$6,$A$25:$E$52,4)*LN(VLOOKUP($S114,#REF!,$C$8+1)/1000)+VLOOKUP($B$6,$A$25:$E$52,5)),VLOOKUP($B$6,$A$25:$E$52,IF($B$8=$A$22,3,2))) -> 230000
H115: 90 | I115: =VLOOKUP($H115,P_All!$A$5:$D$205,3*($C$8-1)+2) -> 924.39 | J115: =VLOOKUP($H115,P_All!$A$5:$D$205,3*($C$8-1)+3) -> 1102.6 | K115: =VLOOKUP($H115,P_All!$A$5:$D$205,3*($C$8-1)+4) -> 1352.5 | L115: =IF(ISNA(VLOOKUP($B$6,$A$25:$E$51,IF($B$8=$A$22,3,2))),EXP(VLOOKUP($B$6,$A$25:$E$51,4)*LN(VLOOKUP($H115,#REF!,$C$8+1)/1000)+VLOOKUP($B$6,$A$25:$E$51,5)),VLOOKUP($B$6,$A$25:$E$51,IF($B$8=$A$22,3,2))) -> 230000 | M115: 90 | N115: =VLOOKUP($H115,P_All!$A$5:$D$205,3*($C$8-1)+2) -> 924.39 | O115: =VLOOKUP($H115,P_All!$A$5:$D$205,3*($C$8-1)+3) -> 1102.6 | P115: =VLOOKUP($H115,P_All!$A$5:$D$205,3*($C$8-1)+4) -> 1352.5 | Q115: =IF(ISNA(VLOOKUP($B$6,$A$25:$E$51,IF($B$8=$A$22,3,2))),EXP(VLOOKUP($B$6,$A$25:$E$51,4)*LN(VLOOKUP($H115,#REF!,$C$8+1)/1000)+VLOOKUP($B$6,$A$25:$E$51,5)),VLOOKUP($B$6,$A$25:$E$51,IF($B$8=$A$22,3,2))) -> 230000 | S115: 47.5 | T115: =VLOOKUP($S115,P_All!$X$5:$AS$245,3*($C$8-1)+2) -> 1183.2 | U115: =VLOOKUP($S115,P_All!$X$5:$AS$245,3*($C$8-1)+3) -> 1306 | V115: =VLOOKUP($S115,P_All!$X$5:$AS$245,3*($C$8-1)+4) -> 1420 | W115: =IF(ISNA(VLOOKUP($B$6,$A$25:$E$52,IF($B$8=$A$22,3,2))),EXP(VLOOKUP($B$6,$A$25:$E$52,4)*LN(VLOOKUP($S115,#REF!,$C$8+1)/1000)+VLOOKUP($B$6,$A$25:$E$52,5)),VLOOKUP($B$6,$A$25:$E$52,IF($B$8=$A$22,3,2))) -> 230000
H116: 91 | I116: =VLOOKUP($H116,P_All!$A$5:$D$205,3*($C$8-1)+2) -> 928.92 | J116: =VLOOKUP($H116,P_All!$A$5:$D$205,3*($C$8-1)+3) -> 1111.9 | K116: =VLOOKUP($H116,P_All!$A$5:$D$205,3*($C$8-1)+4) -> 1363.2 | L116: =IF(ISNA(VLOOKUP($B$6,$A$25:$E$51,IF($B$8=$A$22,3,2))),EXP(VLOOKUP($B$6,$A$25:$E$51,4)*LN(VLOOKUP($H116,#REF!,$C$8+1)/1000)+VLOOKUP($B$6,$A$25:$E$51,5)),VLOOKUP($B$6,$A$25:$E$51,IF($B$8=$A$22,3,2))) -> 230000 | M116: 91 | N116: =VLOOKUP($H116,P_All!$A$5:$D$205,3*($C$8-1)+2) -> 928.92 | O116: =VLOOKUP($H116,P_All!$A$5:$D$205,3*($C$8-1)+3) -> 1111.9 | P116: =VLOOKUP($H116,P_All!$A$5:$D$205,3*($C$8-1)+4) -> 1363.2 | Q116: =IF(ISNA(VLOOKUP($B$6,$A$25:$E$51,IF($B$8=$A$22,3,2))),EXP(VLOOKUP($B$6,$A$25:$E$51,4)*LN(VLOOKUP($H116,#REF!,$C$8+1)/1000)+VLOOKUP($B$6,$A$25:$E$51,5)),VLOOKUP($B$6,$A$25:$E$51,IF($B$8=$A$22,3,2))) -> 230000 | S116: 47.58333333 | T116: =VLOOKUP($S116,P_All!$X$5:$AS$245,3*($C$8-1)+2) -> 1176 | U116: =VLOOKUP($S116,P_All!$X$5:$AS$245,3*($C$8-1)+3) -> 1298.4 | V116: =VLOOKUP($S116,P_All!$X$5:$AS$245,3*($C$8-1)+4) -> 1418 | W116: =IF(ISNA(VLOOKUP($B$6,$A$25:$E$52,IF($B$8=$A$22,3,2))),EXP(VLOOKUP($B$6,$A$25:$E$52,4)*LN(VLOOKUP($S116,#REF!,$C$8+1)/1000)+VLOOKUP($B$6,$A$25:$E$52,5)),VLOOKUP($B$6,$A$25:$E$52,IF($B$8=$A$22,3,2))) -> 230000
H117: 92 | I117: =VLOOKUP($H117,P_All!$A$5:$D$205,3*($C$8-1)+2) -> 930.05 | J117: =VLOOKUP($H117,P_All!$A$5:$D$205,3*($C$8-1)+3) -> 1119.8 | K117: =VLOOKUP($H117,P_All!$A$5:$D$205,3*($C$8-1)+4) -> 1361.7 | L117: =IF(ISNA(VLOOKUP($B$6,$A$25:$E$51,IF($B$8=$A$22,3,2))),EXP(VLOOKUP($B$6,$A$25:$E$51,4)*LN(VLOOKUP($H117,#REF!,$C$8+1)/1000)+VLOOKUP($B$6,$A$25:$E$51,5)),VLOOKUP($B$6,$A$25:$E$51,IF($B$8=$A$22,3,2))) -> 230000 | M117: 92 | N117: =VLOOKUP($H117,P_All!$A$5:$D$205,3*($C$8-1)+2) -> 930.05 | O117: =VLOOKUP($H117,P_All!$A$5:$D$205,3*($C$8-1)+3) -> 1119.8 | P117: =VLOOKUP($H117,P_All!$A$5:$D$205,3*($C$8-1)+4) -> 1361.7 | Q117: =IF(ISNA(VLOOKUP($B$6,$A$25:$E$51,IF($B$8=$A$22,3,2))),EXP(VLOOKUP($B$6,$A$25:$E$51,4)*LN(VLOOKUP($H117,#REF!,$C$8+1)/1000)+VLOOKUP($B$6,$A$25:$E$51,5)),VLOOKUP($B$6,$A$25:$E$51,IF($B$8=$A$22,3,2))) -> 230000 | S117: 47.66666667 | T117: =VLOOKUP($S117,P_All!$X$5:$AS$245,3*($C$8-1)+2) -> 1161.7 | U117: =VLOOKUP($S117,P_All!$X$5:$AS$245,3*($C$8-1)+3) -> 1291.1 | V117: =VLOOKUP($S117,P_All!$X$5:$AS$245,3*($C$8-1)+4) -> 1412.8 | W117: =IF(ISNA(VLOOKUP($B$6,$A$25:$E$52,IF($B$8=$A$22,3,2))),EXP(VLOOKUP($B$6,$A$25:$E$52,4)*LN(VLOOKUP($S117,#REF!,$C$8+1)/1000)+VLOOKUP($B$6,$A$25:$E$52,5)),VLOOKUP($B$6,$A$25:$E$52,IF($B$8=$A$22,3,2))) -> 230000
H118: 93 | I118: =VLOOKUP($H118,P_All!$A$5:$D$205,3*($C$8-1)+2) -> 920.46 | J118: =VLOOKUP($H118,P_All!$A$5:$D$205,3*($C$8-1)+3) -> 1117.3 | K118: =VLOOKUP($H118,P_All!$A$5:$D$205,3*($C$8-1)+4) -> 1369.1 | L118: =IF(ISNA(VLOOKUP($B$6,$A$25:$E$51,IF($B$8=$A$22,3,2))),EXP(VLOOKUP($B$6,$A$25:$E$51,4)*LN(VLOOKUP($H118,#REF!,$C$8+1)/1000)+VLOOKUP($B$6,$A$25:$E$51,5)),VLOOKUP($B$6,$A$25:$E$51,IF($B$8=$A$22,3,2))) -> 230000 | M118: 93 | N118: =VLOOKUP($H118,P_All!$A$5:$D$205,3*($C$8-1)+2) -> 920.46 | O118: =VLOOKUP($H118,P_All!$A$5:$D$205,3*($C$8-1)+3) -> 1117.3 | P118: =VLOOKUP($H118,P_All!$A$5:$D$205,3*($C$8-1)+4) -> 1369.1 | Q118: =IF(ISNA(VLOOKUP($B$6,$A$25:$E$51,IF($B$8=$A$22,3,2))),EXP(VLOOKUP($B$6,$A$25:$E$51,4)*LN(VLOOKUP($H118,#REF!,$C$8+1)/1000)+VLOOKUP($B$6,$A$25:$E$51,5)),VLOOKUP($B$6,$A$25:$E$51,IF($B$8=$A$22,3,2))) -> 230000 | S118: 47.75 | T118: =VLOOKUP($S118,P_All!$X$5:$AS$245,3*($C$8-1)+2) -> 1137.6 | U118: =VLOOKUP($S118,P_All!$X$5:$AS$245,3*($C$8-1)+3) -> 1277.4 | V118: =VLOOKUP($S118,P_All!$X$5:$AS$245,3*($C$8-1)+4) -> 1399.2 | W118: =IF(ISNA(VLOOKUP($B$6,$A$25:$E$52,IF($B$8=$A$22,3,2))),EXP(VLOOKUP($B$6,$A$25:$E$52,4)*LN(VLOOKUP($S118,#REF!,$C$8+1)/1000)+VLOOKUP($B$6,$A$25:$E$52,5)),VLOOKUP($B$6,$A$25:$E$52,IF($B$8=$A$22,3,2))) -> 230000
H119: 94 | I119: =VLOOKUP($H119,P_All!$A$5:$D$205,3*($C$8-1)+2) -> 930.98 | J119: =VLOOKUP($H119,P_All!$A$5:$D$205,3*($C$8-1)+3) -> 1122.3 | K119: =VLOOKUP($H119,P_All!$A$5:$D$205,3*($C$8-1)+4) -> 1362.1 | L119: =IF(ISNA(VLOOKUP($B$6,$A$25:$E$51,IF($B$8=$A$22,3,2))),EXP(VLOOKUP($B$6,$A$25:$E$51,4)*LN(VLOOKUP($H119,#REF!,$C$8+1)/1000)+VLOOKUP($B$6,$A$25:$E$51,5)),VLOOKUP($B$6,$A$25:$E$51,IF($B$8=$A$22,3,2))) -> 230000 | M119: 94 | N119: =VLOOKUP($H119,P_All!$A$5:$D$205,3*($C$8-1)+2) -> 930.98 | O119: =VLOOKUP($H119,P_All!$A$5:$D$205,3*($C$8-1)+3) -> 1122.3 | P119: =VLOOKUP($H119,P_All!$A$5:$D$205,3*($C$8-1)+4) -> 1362.1 | Q119: =IF(ISNA(VLOOKUP($B$6,$A$25:$E$51,IF($B$8=$A$22,3,2))),EXP(VLOOKUP($B$6,$A$25:$E$51,4)*LN(VLOOKUP($H119,#REF!,$C$8+1)/1000)+VLOOKUP($B$6,$A$25:$E$51,5)),VLOOKUP($B$6,$A$25:$E$51,IF($B$8=$A$22,3,2))) -> 230000 | S119: 47.83333333 | T119: =VLOOKUP($S119,P_All!$X$5:$AS$245,3*($C$8-1)+2) -> 1127.2 | U119: =VLOOKUP($S119,P_All!$X$5:$AS$245,3*($C$8-1)+3) -> 1266.9 | V119: =VLOOKUP($S119,P_All!$X$5:$AS$245,3*($C$8-1)+4) -> 1392.7 | W119: =IF(ISNA(VLOOKUP($B$6,$A$25:$E$52,IF($B$8=$A$22,3,2))),EXP(VLOOKUP($B$6,$A$25:$E$52,4)*LN(VLOOKUP($S119,#REF!,$C$8+1)/1000)+VLOOKUP($B$6,$A$25:$E$52,5)),VLOOKUP($B$6,$A$25:$E$52,IF($B$8=$A$22,3,2))) -> 230000
H120: 95 | I120: =VLOOKUP($H120,P_All!$A$5:$D$205,3*($C$8-1)+2) -> 927.27 | J120: =VLOOKUP($H120,P_All!$A$5:$D$205,3*($C$8-1)+3) -> 1129.4 | K120: =VLOOKUP($H120,P_All!$A$5:$D$205,3*($C$8-1)+4) -> 1365.5 | L120: =IF(ISNA(VLOOKUP($B$6,$A$25:$E$51,IF($B$8=$A$22,3,2))),EXP(VLOOKUP($B$6,$A$25:$E$51,4)*LN(VLOOKUP($H120,#REF!,$C$8+1)/1000)+VLOOKUP($B$6,$A$25:$E$51,5)),VLOOKUP($B$6,$A$25:$E$51,IF($B$8=$A$22,3,2))) -> 230000 | M120: 95 | N120: =VLOOKUP($H120,P_All!$A$5:$D$205,3*($C$8-1)+2) -> 927.27 | O120: =VLOOKUP($H120,P_All!$A$5:$D$205,3*($C$8-1)+3) -> 1129.4 | P120: =VLOOKUP($H120,P_All!$A$5:$D$205,3*($C$8-1)+4) -> 1365.5 | Q120: =IF(ISNA(VLOOKUP($B$6,$A$25:$E$51,IF($B$8=$A$22,3,2))),EXP(VLOOKUP($B$6,$A$25:$E$51,4)*LN(VLOOKUP($H120,#REF!,$C$8+1)/1000)+VLOOKUP($B$6,$A$25:$E$51,5)),VLOOKUP($B$6,$A$25:$E$51,IF($B$8=$A$22,3,2))) -> 230000 | S120: 47.91666667 | T120: =VLOOKUP($S120,P_All!$X$5:$AS$245,3*($C$8-1)+2) -> 1130.4 | U120: =VLOOKUP($S120,P_All!$X$5:$AS$245,3*($C$8-1)+3) -> 1263.1 | V120: =VLOOKUP($S120,P_All!$X$5:$AS$245,3*($C$8-1)+4) -> 1392.6 | W120: =IF(ISNA(VLOOKUP($B$6,$A$25:$E$52,IF($B$8=$A$22,3,2))),EXP(VLOOKUP($B$6,$A$25:$E$52,4)*LN(VLOOKUP($S120,#REF!,$C$8+1)/1000)+VLOOKUP($B$6,$A$25:$E$52,5)),VLOOKUP($B$6,$A$25:$E$52,IF($B$8=$A$22,3,2))) -> 230000
H121: 96 | I121: =VLOOKUP($H121,P_All!$A$5:$D$205,3*($C$8-1)+2) -> 930.53 | J121: =VLOOKUP($H121,P_All!$A$5:$D$205,3*($C$8-1)+3) -> 1132.3 | K121: =VLOOKUP($H121,P_All!$A$5:$D$205,3*($C$8-1)+4) -> 1360.8 | L121: =IF(ISNA(VLOOKUP($B$6,$A$25:$E$51,IF($B$8=$A$22,3,2))),EXP(VLOOKUP($B$6,$A$25:$E$51,4)*LN(VLOOKUP($H121,#REF!,$C$8+1)/1000)+VLOOKUP($B$6,$A$25:$E$51,5)),VLOOKUP($B$6,$A$25:$E$51,IF($B$8=$A$22,3,2))) -> 230000 | M121: 96 | N121: =VLOOKUP($H121,P_All!$A$5:$D$205,3*($C$8-1)+2) -> 930.53 | O121: =VLOOKUP($H121,P_All!$A$5:$D$205,3*($C$8-1)+3) -> 1132.3 | P121: =VLOOKUP($H121,P_All!$A$5:$D$205,3*($C$8-1)+4) -> 1360.8 | Q121: =IF(ISNA(VLOOKUP($B$6,$A$25:$E$51,IF($B$8=$A$22,3,2))),EXP(VLOOKUP($B$6,$A$25:$E$51,4)*LN(VLOOKUP($H121,#REF!,$C$8+1)/1000)+VLOOKUP($B$6,$A$25:$E$51,5)),VLOOKUP($B$6,$A$25:$E$51,IF($B$8=$A$22,3,2))) -> 230000 | S121: 48 | T121: =VLOOKUP($S121,P_All!$X$5:$AS$245,3*($C$8-1)+2) -> 1126.2 | U121: =VLOOKUP($S121,P_All!$X$5:$AS$245,3*($C$8-1)+3) -> 1256.2 | V121: =VLOOKUP($S121,P_All!$X$5:$AS$245,3*($C$8-1)+4) -> 1385 | W121: =IF(ISNA(VLOOKUP($B$6,$A$25:$E$52,IF($B$8=$A$22,3,2))),EXP(VLOOKUP($B$6,$A$25:$E$52,4)*LN(VLOOKUP($S121,#REF!,$C$8+1)/1000)+VLOOKUP($B$6,$A$25:$E$52,5)),VLOOKUP($B$6,$A$25:$E$52,IF($B$8=$A$22,3,2))) -> 230000
H122: 97 | I122: =VLOOKUP($H122,P_All!$A$5:$D$205,3*($C$8-1)+2) -> 939.02 | J122: =VLOOKUP($H122,P_All!$A$5:$D$205,3*($C$8-1)+3) -> 1132.1 | K122: =VLOOKUP($H122,P_All!$A$5:$D$205,3*($C$8-1)+4) -> 1354.9 | L122: =IF(ISNA(VLOOKUP($B$6,$A$25:$E$51,IF($B$8=$A$22,3,2))),EXP(VLOOKUP($B$6,$A$25:$E$51,4)*LN(VLOOKUP($H122,#REF!,$C$8+1)/1000)+VLOOKUP($B$6,$A$25:$E$51,5)),VLOOKUP($B$6,$A$25:$E$51,IF($B$8=$A$22,3,2))) -> 230000 | M122: 97 | N122: =VLOOKUP($H122,P_All!$A$5:$D$205,3*($C$8-1)+2) -> 939.02 | O122: =VLOOKUP($H122,P_All!$A$5:$D$205,3*($C$8-1)+3) -> 1132.1 | P122: =VLOOKUP($H122,P_All!$A$5:$D$205,3*($C$8-1)+4) -> 1354.9 | Q122: =IF(ISNA(VLOOKUP($B$6,$A$25:$E$51,IF($B$8=$A$22,3,2))),EXP(VLOOKUP($B$6,$A$25:$E$51,4)*LN(VLOOKUP($H122,#REF!,$C$8+1)/1000)+VLOOKUP($B$6,$A$25:$E$51,5)),VLOOKUP($B$6,$A$25:$E$51,IF($B$8=$A$22,3,2))) -> 230000 | S122: 48.08333333 | T122: =VLOOKUP($S122,P_All!$X$5:$AS$245,3*($C$8-1)+2) -> 1126.5 | U122: =VLOOKUP($S122,P_All!$X$5:$AS$245,3*($C$8-1)+3) -> 1254.7 | V122: =VLOOKUP($S122,P_All!$X$5:$AS$245,3*($C$8-1)+4) -> 1377.1 | W122: =IF(ISNA(VLOOKUP($B$6,$A$25:$E$52,IF($B$8=$A$22,3,2))),EXP(VLOOKUP($B$6,$A$25:$E$52,4)*LN(VLOOKUP($S122,#REF!,$C$8+1)/1000)+VLOOKUP($B$6,$A$25:$E$52,5)),VLOOKUP($B$6,$A$25:$E$52,IF($B$8=$A$22,3,2))) -> 230000
H123: 98 | I123: =VLOOKUP($H123,P_All!$A$5:$D$205,3*($C$8-1)+2) -> 949.28 | J123: =VLOOKUP($H123,P_All!$A$5:$D$205,3*($C$8-1)+3) -> 1128.7 | K123: =VLOOKUP($H123,P_All!$A$5:$D$205,3*($C$8-1)+4) -> 1369.9 | L123: =IF(ISNA(VLOOKUP($B$6,$A$25:$E$51,IF($B$8=$A$22,3,2))),EXP(VLOOKUP($B$6,$A$25:$E$51,4)*LN(VLOOKUP($H123,#REF!,$C$8+1)/1000)+VLOOKUP($B$6,$A$25:$E$51,5)),VLOOKUP($B$6,$A$25:$E$51,IF($B$8=$A$22,3,2))) -> 230000 | M123: 98 | N123: =VLOOKUP($H123,P_All!$A$5:$D$205,3*($C$8-1)+2) -> 949.28 | O123: =VLOOKUP($H123,P_All!$A$5:$D$205,3*($C$8-1)+3) -> 1128.7 | P123: =VLOOKUP($H123,P_All!$A$5:$D$205,3*($C$8-1)+4) -> 1369.9 | Q123: =IF(ISNA(VLOOKUP($B$6,$A$25:$E$51,IF($B$8=$A$22,3,2))),EXP(VLOOKUP($B$6,$A$25:$E$51,4)*LN(VLOOKUP($H123,#REF!,$C$8+1)/1000)+VLOOKUP($B$6,$A$25:$E$51,5)),VLOOKUP($B$6,$A$25:$E$51,IF($B$8=$A$22,3,2))) -> 230000 | S123: 48.16666667 | T123: =VLOOKUP($S123,P_All!$X$5:$AS$245,3*($C$8-1)+2) -> 1128.7 | U123: =VLOOKUP($S123,P_All!$X$5:$AS$245,3*($C$8-1)+3) -> 1253 | V123: =VLOOKUP($S123,P_All!$X$5:$AS$245,3*($C$8-1)+4) -> 1372.4 | W123: =IF(ISNA(VLOOKUP($B$6,$A$25:$E$52,IF($B$8=$A$22,3,2))),EXP(VLOOKUP($B$6,$A$25:$E$52,4)*LN(VLOOKUP($S123,#REF!,$C$8+1)/1000)+VLOOKUP($B$6,$A$25:$E$52,5)),VLOOKUP($B$6,$A$25:$E$52,IF($B$8=$A$22,3,2))) -> 230000
H124: 99 | I124: =VLOOKUP($H124,P_All!$A$5:$D$205,3*($C$8-1)+2) -> 945.63 | J124: =VLOOKUP($H124,P_All!$A$5:$D$205,3*($C$8-1)+3) -> 1127.2 | K124: =VLOOKUP($H124,P_All!$A$5:$D$205,3*($C$8-1)+4) -> 1376.4 | L124: =IF(ISNA(VLOOKUP($B$6,$A$25:$E$51,IF($B$8=$A$22,3,2))),EXP(VLOOKUP($B$6,$A$25:$E$51,4)*LN(VLOOKUP($H124,#REF!,$C$8+1)/1000)+VLOOKUP($B$6,$A$25:$E$51,5)),VLOOKUP($B$6,$A$25:$E$51,IF($B$8=$A$22,3,2))) -> 230000 | M124: 99 | N124: =VLOOKUP($H124,P_All!$A$5:$D$205,3*($C$8-1)+2) -> 945.63 | O124: =VLOOKUP($H124,P_All!$A$5:$D$205,3*($C$8-1)+3) -> 1127.2 | P124: =VLOOKUP($H124,P_All!$A$5:$D$205,3*($C$8-1)+4) -> 1376.4 | Q124: =IF(ISNA(VLOOKUP($B$6,$A$25:$E$51,IF($B$8=$A$22,3,2))),EXP(VLOOKUP($B$6,$A$25:$E$51,4)*LN(VLOOKUP($H124,#REF!,$C$8+1)/1000)+VLOOKUP($B$6,$A$25:$E$51,5)),VLOOKUP($B$6,$A$25:$E$51,IF($B$8=$A$22,3,2))) -> 230000 | S124: 48.25 | T124: =VLOOKUP($S124,P_All!$X$5:$AS$245,3*($C$8-1)+2) -> 1138.1 | U124: =VLOOKUP($S124,P_All!$X$5:$AS$245,3*($C$8-1)+3) -> 1256 | V124: =VLOOKUP($S124,P_All!$X$5:$AS$245,3*($C$8-1)+4) -> 1373.1 | W124: =IF(ISNA(VLOOKUP($B$6,$A$25:$E$52,IF($B$8=$A$22,3,2))),EXP(VLOOKUP($B$6,$A$25:$E$52,4)*LN(VLOOKUP($S124,#REF!,$C$8+1)/1000)+VLOOKUP($B$6,$A$25:$E$52,5)),VLOOKUP($B$6,$A$25:$E$52,IF($B$8=$A$22,3,2))) -> 230000
H125: 100 | I125: =VLOOKUP($H125,P_All!$A$5:$D$205,3*($C$8-1)+2) -> 940.26 | J125: =VLOOKUP($H125,P_All!$A$5:$D$205,3*($C$8-1)+3) -> 1118.2 | K125: =VLOOKUP($H125,P_All!$A$5:$D$205,3*($C$8-1)+4) -> 1361.4 | L125: =IF(ISNA(VLOOKUP($B$6,$A$25:$E$51,IF($B$8=$A$22,3,2))),EXP(VLOOKUP($B$6,$A$25:$E$51,4)*LN(VLOOKUP($H125,#REF!,$C$8+1)/1000)+VLOOKUP($B$6,$A$25:$E$51,5)),VLOOKUP($B$6,$A$25:$E$51,IF($B$8=$A$22,3,2))) -> 230000 | M125: 100 | N125: =VLOOKUP($H125,P_All!$A$5:$D$205,3*($C$8-1)+2) -> 940.26 | O125: =VLOOKUP($H125,P_All!$A$5:$D$205,3*($C$8-1)+3) -> 1118.2 | P125: =VLOOKUP($H125,P_All!$A$5:$D$205,3*($C$8-1)+4) -> 1361.4 | Q125: =IF(ISNA(VLOOKUP($B$6,$A$25:$E$51,IF($B$8=$A$22,3,2))),EXP(VLOOKUP($B$6,$A$25:$E$51,4)*LN(VLOOKUP($H125,#REF!,$C$8+1)/1000)+VLOOKUP($B$6,$A$25:$E$51,5)),VLOOKUP($B$6,$A$25:$E$51,IF($B$8=$A$22,3,2))) -> 230000 | S125: 48.33333333 | T125: =VLOOKUP($S125,P_All!$X$5:$AS$245,3*($C$8-1)+2) -> 1165.5 | U125: =VLOOKUP($S125,P_All!$X$5:$AS$245,3*($C$8-1)+3) -> 1284.7 | V125: =VLOOKUP($S125,P_All!$X$5:$AS$245,3*($C$8-1)+4) -> 1405.8 | W125: =IF(ISNA(VLOOKUP($B$6,$A$25:$E$52,IF($B$8=$A$22,3,2))),EXP(VLOOKUP($B$6,$A$25:$E$52,4)*LN(VLOOKUP($S125,#REF!,$C$8+1)/1000)+VLOOKUP($B$6,$A$25:$E$52,5)),VLOOKUP($B$6,$A$25:$E$52,IF($B$8=$A$22,3,2))) -> 230000
H126: 101 | I126: =VLOOKUP($H126,P_All!$A$5:$D$205,3*($C$8-1)+2) -> 937.53 | J126: =VLOOKUP($H126,P_All!$A$5:$D$205,3*($C$8-1)+3) -> 1111.8 | K126: =VLOOKUP($H126,P_All!$A$5:$D$205,3*($C$8-1)+4) -> 1378.9 | L126: =IF(ISNA(VLOOKUP($B$6,$A$25:$E$51,IF($B$8=$A$22,3,2))),EXP(VLOOKUP($B$6,$A$25:$E$51,4)*LN(VLOOKUP($H126,#REF!,$C$8+1)/1000)+VLOOKUP($B$6,$A$25:$E$51,5)),VLOOKUP($B$6,$A$25:$E$51,IF($B$8=$A$22,3,2))) -> 230000 | M126: 101 | N126: =VLOOKUP($H126,P_All!$A$5:$D$205,3*($C$8-1)+2) -> 937.53 | O126: =VLOOKUP($H126,P_All!$A$5:$D$205,3*($C$8-1)+3) -> 1111.8 | P126: =VLOOKUP($H126,P_All!$A$5:$D$205,3*($C$8-1)+4) -> 1378.9 | Q126: =IF(ISNA(VLOOKUP($B$6,$A$25:$E$51,IF($B$8=$A$22,3,2))),EXP(VLOOKUP($B$6,$A$25:$E$51,4)*LN(VLOOKUP($H126,#REF!,$C$8+1)/1000)+VLOOKUP($B$6,$A$25:$E$51,5)),VLOOKUP($B$6,$A$25:$E$51,IF($B$8=$A$22,3,2))) -> 230000 | S126: 48.41666667 | T126: =VLOOKUP($S126,P_All!$X$5:$AS$245,3*($C$8-1)+2) -> 1177.1 | U126: =VLOOKUP($S126,P_All!$X$5:$AS$245,3*($C$8-1)+3) -> 1296.1 | V126: =VLOOKUP($S126,P_All!$X$5:$AS$245,3*($C$8-1)+4) -> 1430.4 | W126: =IF(ISNA(VLOOKUP($B$6,$A$25:$E$52,IF($B$8=$A$22,3,2))),EXP(VLOOKUP($B$6,$A$25:$E$52,4)*LN(VLOOKUP($S126,#REF!,$C$8+1)/1000)+VLOOKUP($B$6,$A$25:$E$52,5)),VLOOKUP($B$6,$A$25:$E$52,IF($B$8=$A$22,3,2))) -> 230000
H127: 102 | I127: =VLOOKUP($H127,P_All!$A$5:$D$205,3*($C$8-1)+2) -> 927.05 | J127: =VLOOKUP($H127,P_All!$A$5:$D$205,3*($C$8-1)+3) -> 1108.2 | K127: =VLOOKUP($H127,P_All!$A$5:$D$205,3*($C$8-1)+4) -> 1377.6 | L127: =IF(ISNA(VLOOKUP($B$6,$A$25:$E$51,IF($B$8=$A$22,3,2))),EXP(VLOOKUP($B$6,$A$25:$E$51,4)*LN(VLOOKUP($H127,#REF!,$C$8+1)/1000)+VLOOKUP($B$6,$A$25:$E$51,5)),VLOOKUP($B$6,$A$25:$E$51,IF($B$8=$A$22,3,2))) -> 230000 | M127: 102 | N127: =VLOOKUP($H127,P_All!$A$5:$D$205,3*($C$8-1)+2) -> 927.05 | O127: =VLOOKUP($H127,P_All!$A$5:$D$205,3*($C$8-1)+3) -> 1108.2 | P127: =VLOOKUP($H127,P_All!$A$5:$D$205,3*($C$8-1)+4) -> 1377.6 | Q127: =IF(ISNA(VLOOKUP($B$6,$A$25:$E$51,IF($B$8=$A$22,3,2))),EXP(VLOOKUP($B$6,$A$25:$E$51,4)*LN(VLOOKUP($H127,#REF!,$C$8+1)/1000)+VLOOKUP($B$6,$A$25:$E$51,5)),VLOOKUP($B$6,$A$25:$E$51,IF($B$8=$A$22,3,2))) -> 230000 | S127: 48.5 | T127: =VLOOKUP($S127,P_All!$X$5:$AS$245,3*($C$8-1)+2) -> 1168.3 | U127: =VLOOKUP($S127,P_All!$X$5:$AS$245,3*($C$8-1)+3) -> 1287.4 | V127: =VLOOKUP($S127,P_All!$X$5:$AS$245,3*($C$8-1)+4) -> 1420.7 | W127: =IF(ISNA(VLOOKUP($B$6,$A$25:$E$52,IF($B$8=$A$22,3,2))),EXP(VLOOKUP($B$6,$A$25:$E$52,4)*LN(VLOOKUP($S127,#REF!,$C$8+1)/1000)+VLOOKUP($B$6,$A$25:$E$52,5)),VLOOKUP($B$6,$A$25:$E$52,IF($B$8=$A$22,3,2))) -> 230000
H128: 103 | I128: =VLOOKUP($H128,P_All!$A$5:$D$205,3*($C$8-1)+2) -> 930.65 | J128: =VLOOKUP($H128,P_All!$A$5:$D$205,3*($C$8-1)+3) -> 1102.2 | K128: =VLOOKUP($H128,P_All!$A$5:$D$205,3*($C$8-1)+4) -> 1374.8 | L128: =IF(ISNA(VLOOKUP($B$6,$A$25:$E$51,IF($B$8=$A$22,3,2))),EXP(VLOOKUP($B$6,$A$25:$E$51,4)*LN(VLOOKUP($H128,#REF!,$C$8+1)/1000)+VLOOKUP($B$6,$A$25:$E$51,5)),VLOOKUP($B$6,$A$25:$E$51,IF($B$8=$A$22,3,2))) -> 230000 | M128: 103 | N128: =VLOOKUP($H128,P_All!$A$5:$D$205,3*($C$8-1)+2) -> 930.65 | O128: =VLOOKUP($H128,P_All!$A$5:$D$205,3*($C$8-1)+3) -> 1102.2 | P128: =VLOOKUP($H128,P_All!$A$5:$D$205,3*($C$8-1)+4) -> 1374.8 | Q128: =IF(ISNA(VLOOKUP($B$6,$A$25:$E$51,IF($B$8=$A$22,3,2))),EXP(VLOOKUP($B$6,$A$25:$E$51,4)*LN(VLOOKUP($H128,#REF!,$C$8+1)/1000)+VLOOKUP($B$6,$A$25:$E$51,5)),VLOOKUP($B$6,$A$25:$E$51,IF($B$8=$A$22,3,2))) -> 230000 | S128: 48.58333333 | T128: =VLOOKUP($S128,P_All!$X$5:$AS$245,3*($C$8-1)+2) -> 1162.3 | U128: =VLOOKUP($S128,P_All!$X$5:$AS$245,3*($C$8-1)+3) -> 1281.6 | V128: =VLOOKUP($S128,P_All!$X$5:$AS$245,3*($C$8-1)+4) -> 1414.4 | W128: =IF(ISNA(VLOOKUP($B$6,$A$25:$E$52,IF($B$8=$A$22,3,2))),EXP(VLOOKUP($B$6,$A$25:$E$52,4)*LN(VLOOKUP($S128,#REF!,$C$8+1)/1000)+VLOOKUP($B$6,$A$25:$E$52,5)),VLOOKUP($B$6,$A$25:$E$52,IF($B$8=$A$22,3,2))) -> 230000
H129: 104 | I129: =VLOOKUP($H129,P_All!$A$5:$D$205,3*($C$8-1)+2) -> 923.01 | J129: =VLOOKUP($H129,P_All!$A$5:$D$205,3*($C$8-1)+3) -> 1100.1 | K129: =VLOOKUP($H129,P_All!$A$5:$D$205,3*($C$8-1)+4) -> 1372.2 | L129: =IF(ISNA(VLOOKUP($B$6,$A$25:$E$51,IF($B$8=$A$22,3,2))),EXP(VLOOKUP($B$6,$A$25:$E$51,4)*LN(VLOOKUP($H129,#REF!,$C$8+1)/1000)+VLOOKUP($B$6,$A$25:$E$51,5)),VLOOKUP($B$6,$A$25:$E$51,IF($B$8=$A$22,3,2))) -> 230000 | M129: 104 | N129: =VLOOKUP($H129,P_All!$A$5:$D$205,3*($C$8-1)+2) -> 923.01 | O129: =VLOOKUP($H129,P_All!$A$5:$D$205,3*($C$8-1)+3) -> 1100.1 | P129: =VLOOKUP($H129,P_All!$A$5:$D$205,3*($C$8-1)+4) -> 1372.2 | Q129: =IF(ISNA(VLOOKUP($B$6,$A$25:$E$51,IF($B$8=$A$22,3,2))),EXP(VLOOKUP($B$6,$A$25:$E$51,4)*LN(VLOOKUP($H129,#REF!,$C$8+1)/1000)+VLOOKUP($B$6,$A$25:$E$51,5)),VLOOKUP($B$6,$A$25:$E$51,IF($B$8=$A$22,3,2))) -> 230000 | S129: 48.66666667 | T129: =VLOOKUP($S129,P_All!$X$5:$AS$245,3*($C$8-1)+2) -> 1150.6 | U129: =VLOOKUP($S129,P_All!$X$5:$AS$245,3*($C$8-1)+3) -> 1277.8 | V129: =VLOOKUP($S129,P_All!$X$5:$AS$245,3*($C$8-1)+4) -> 1410.7 | W129: =IF(ISNA(VLOOKUP($B$6,$A$25:$E$52,IF($B$8=$A$22,3,2))),EXP(VLOOKUP($B$6,$A$25:$E$52,4)*LN(VLOOKUP($S129,#REF!,$C$8+1)/1000)+VLOOKUP($B$6,$A$25:$E$52,5)),VLOOKUP($B$6,$A$25:$E$52,IF($B$8=$A$22,3,2))) -> 230000
H130: 105 | I130: =VLOOKUP($H130,P_All!$A$5:$D$205,3*($C$8-1)+2) -> 919.49 | J130: =VLOOKUP($H130,P_All!$A$5:$D$205,3*($C$8-1)+3) -> 1104.5 | K130: =VLOOKUP($H130,P_All!$A$5:$D$205,3*($C$8-1)+4) -> 1374.5 | L130: =IF(ISNA(VLOOKUP($B$6,$A$25:$E$51,IF($B$8=$A$22,3,2))),EXP(VLOOKUP($B$6,$A$25:$E$51,4)*LN(VLOOKUP($H130,#REF!,$C$8+1)/1000)+VLOOKUP($B$6,$A$25:$E$51,5)),VLOOKUP($B$6,$A$25:$E$51,IF($B$8=$A$22,3,2))) -> 230000 | M130: 105 | N130: =VLOOKUP($H130,P_All!$A$5:$D$205,3*($C$8-1)+2) -> 919.49 | O130: =VLOOKUP($H130,P_All!$A$5:$D$205,3*($C$8-1)+3) -> 1104.5 | P130: =VLOOKUP($H130,P_All!$A$5:$D$205,3*($C$8-1)+4) -> 1374.5 | Q130: =IF(ISNA(VLOOKUP($B$6,$A$25:$E$51,IF($B$8=$A$22,3,2))),EXP(VLOOKUP($B$6,$A$25:$E$51,4)*LN(VLOOKUP($H130,#REF!,$C$8+1)/1000)+VLOOKUP($B$6,$A$25:$E$51,5)),VLOOKUP($B$6,$A$25:$E$51,IF($B$8=$A$22,3,2))) -> 230000 | S130: 48.75 | T130: =VLOOKUP($S130,P_All!$X$5:$AS$245,3*($C$8-1)+2) -> 1131.7 | U130: =VLOOKUP($S130,P_All!$X$5:$AS$245,3*($C$8-1)+3) -> 1262.6 | V130: =VLOOKUP($S130,P_All!$X$5:$AS$245,3*($C$8-1)+4) -> 1401.3 | W130: =IF(ISNA(VLOOKUP($B$6,$A$25:$E$52,IF($B$8=$A$22,3,2))),EXP(VLOOKUP($B$6,$A$25:$E$52,4)*LN(VLOOKUP($S130,#REF!,$C$8+1)/1000)+VLOOKUP($B$6,$A$25:$E$52,5)),VLOOKUP($B$6,$A$25:$E$52,IF($B$8=$A$22,3,2))) -> 230000
H131: 106 | I131: =VLOOKUP($H131,P_All!$A$5:$D$205,3*($C$8-1)+2) -> 915.81 | J131: =VLOOKUP($H131,P_All!$A$5:$D$205,3*($C$8-1)+3) -> 1110.5 | K131: =VLOOKUP($H131,P_All!$A$5:$D$205,3*($C$8-1)+4) -> 1361.3 | L131: =IF(ISNA(VLOOKUP($B$6,$A$25:$E$51,IF($B$8=$A$22,3,2))),EXP(VLOOKUP($B$6,$A$25:$E$51,4)*LN(VLOOKUP($H131,#REF!,$C$8+1)/1000)+VLOOKUP($B$6,$A$25:$E$51,5)),VLOOKUP($B$6,$A$25:$E$51,IF($B$8=$A$22,3,2))) -> 230000 | M131: 106 | N131: =VLOOKUP($H131,P_All!$A$5:$D$205,3*($C$8-1)+2) -> 915.81 | O131: =VLOOKUP($H131,P_All!$A$5:$D$205,3*($C$8-1)+3) -> 1110.5 | P131: =VLOOKUP($H131,P_All!$A$5:$D$205,3*($C$8-1)+4) -> 1361.3 | Q131: =IF(ISNA(VLOOKUP($B$6,$A$25:$E$51,IF($B$8=$A$22,3,2))),EXP(VLOOKUP($B$6,$A$25:$E$51,4)*LN(VLOOKUP($H131,#REF!,$C$8+1)/1000)+VLOOKUP($B$6,$A$25:$E$51,5)),VLOOKUP($B$6,$A$25:$E$51,IF($B$8=$A$22,3,2))) -> 230000 | S131: 48.83333333 | T131: =VLOOKUP($S131,P_All!$X$5:$AS$245,3*($C$8-1)+2) -> 1124.6 | U131: =VLOOKUP($S131,P_All!$X$5:$AS$245,3*($C$8-1)+3) -> 1252.9 | V131: =VLOOKUP($S131,P_All!$X$5:$AS$245,3*($C$8-1)+4) -> 1397.4 | W131: =IF(ISNA(VLOOKUP($B$6,$A$25:$E$52,IF($B$8=$A$22,3,2))),EXP(VLOOKUP($B$6,$A$25:$E$52,4)*LN(VLOOKUP($S131,#REF!,$C$8+1)/1000)+VLOOKUP($B$6,$A$25:$E$52,5)),VLOOKUP($B$6,$A$25:$E$52,IF($B$8=$A$22,3,2))) -> 230000
H132: 107 | I132: =VLOOKUP($H132,P_All!$A$5:$D$205,3*($C$8-1)+2) -> 932.07 | J132: =VLOOKUP($H132,P_All!$A$5:$D$205,3*($C$8-1)+3) -> 1115.2 | K132: =VLOOKUP($H132,P_All!$A$5:$D$205,3*($C$8-1)+4) -> 1369.1 | L132: =IF(ISNA(VLOOKUP($B$6,$A$25:$E$51,IF($B$8=$A$22,3,2))),EXP(VLOOKUP($B$6,$A$25:$E$51,4)*LN(VLOOKUP($H132,#REF!,$C$8+1)/1000)+VLOOKUP($B$6,$A$25:$E$51,5)),VLOOKUP($B$6,$A$25:$E$51,IF($B$8=$A$22,3,2))) -> 230000 | M132: 107 | N132: =VLOOKUP($H132,P_All!$A$5:$D$205,3*($C$8-1)+2) -> 932.07 | O132: =VLOOKUP($H132,P_All!$A$5:$D$205,3*($C$8-1)+3) -> 1115.2 | P132: =VLOOKUP($H132,P_All!$A$5:$D$205,3*($C$8-1)+4) -> 1369.1 | Q132: =IF(ISNA(VLOOKUP($B$6,$A$25:$E$51,IF($B$8=$A$22,3,2))),EXP(VLOOKUP($B$6,$A$25:$E$51,4)*LN(VLOOKUP($H132,#REF!,$C$8+1)/1000)+VLOOKUP($B$6,$A$25:$E$51,5)),VLOOKUP($B$6,$A$25:$E$51,IF($B$8=$A$22,3,2))) -> 230000 | S132: 48.91666667 | T132: =VLOOKUP($S132,P_All!$X$5:$AS$245,3*($C$8-1)+2) -> 1123.8 | U132: =VLOOKUP($S132,P_All!$X$5:$AS$245,3*($C$8-1)+3) -> 1250 | V132: =VLOOKUP($S132,P_All!$X$5:$AS$245,3*($C$8-1)+4) -> 1394.3 | W132: =IF(ISNA(VLOOKUP($B$6,$A$25:$E$52,IF($B$8=$A$22,3,2))),EXP(VLOOKUP($B$6,$A$25:$E$52,4)*LN(VLOOKUP($S132,#REF!,$C$8+1)/1000)+VLOOKUP($B$6,$A$25:$E$52,5)),VLOOKUP($B$6,$A$25:$E$52,IF($B$8=$A$22,3,2))) -> 230000
H133: 108 | I133: =VLOOKUP($H133,P_All!$A$5:$D$205,3*($C$8-1)+2) -> 929.41 | J133: =VLOOKUP($H133,P_All!$A$5:$D$205,3*($C$8-1)+3) -> 1115 | K133: =VLOOKUP($H133,P_All!$A$5:$D$205,3*($C$8-1)+4) -> 1380 | L133: =IF(ISNA(VLOOKUP($B$6,$A$25:$E$51,IF($B$8=$A$22,3,2))),EXP(VLOOKUP($B$6,$A$25:$E$51,4)*LN(VLOOKUP($H133,#REF!,$C$8+1)/1000)+VLOOKUP($B$6,$A$25:$E$51,5)),VLOOKUP($B$6,$A$25:$E$51,IF($B$8=$A$22,3,2))) -> 230000 | M133: 108 | N133: =VLOOKUP($H133,P_All!$A$5:$D$205,3*($C$8-1)+2) -> 929.41 | O133: =VLOOKUP($H133,P_All!$A$5:$D$205,3*($C$8-1)+3) -> 1115 | P133: =VLOOKUP($H133,P_All!$A$5:$D$205,3*($C$8-1)+4) -> 1380 | Q133: =IF(ISNA(VLOOKUP($B$6,$A$25:$E$51,IF($B$8=$A$22,3,2))),EXP(VLOOKUP($B$6,$A$25:$E$51,4)*LN(VLOOKUP($H133,#REF!,$C$8+1)/1000)+VLOOKUP($B$6,$A$25:$E$51,5)),VLOOKUP($B$6,$A$25:$E$51,IF($B$8=$A$22,3,2))) -> 230000 | S133: 49 | T133: =VLOOKUP($S133,P_All!$X$5:$AS$245,3*($C$8-1)+2) -> 1121.2 | U133: =VLOOKUP($S133,P_All!$X$5:$AS$245,3*($C$8-1)+3) -> 1243.6 | V133: =VLOOKUP($S133,P_All!$X$5:$AS$245,3*($C$8-1)+4) -> 1383 | W133: =IF(ISNA(VLOOKUP($B$6,$A$25:$E$52,IF($B$8=$A$22,3,2))),EXP(VLOOKUP($B$6,$A$25:$E$52,4)*LN(VLOOKUP($S133,#REF!,$C$8+1)/1000)+VLOOKUP($B$6,$A$25:$E$52,5)),VLOOKUP($B$6,$A$25:$E$52,IF($B$8=$A$22,3,2))) -> 230000
H134: 109 | I134: =VLOOKUP($H134,P_All!$A$5:$D$205,3*($C$8-1)+2) -> 928.24 | J134: =VLOOKUP($H134,P_All!$A$5:$D$205,3*($C$8-1)+3) -> 1112 | K134: =VLOOKUP($H134,P_All!$A$5:$D$205,3*($C$8-1)+4) -> 1392.9 | L134: =IF(ISNA(VLOOKUP($B$6,$A$25:$E$51,IF($B$8=$A$22,3,2))),EXP(VLOOKUP($B$6,$A$25:$E$51,4)*LN(VLOOKUP($H134,#REF!,$C$8+1)/1000)+VLOOKUP($B$6,$A$25:$E$51,5)),VLOOKUP($B$6,$A$25:$E$51,IF($B$8=$A$22,3,2))) -> 230000 | M134: 109 | N134: =VLOOKUP($H134,P_All!$A$5:$D$205,3*($C$8-1)+2) -> 928.24 | O134: =VLOOKUP($H134,P_All!$A$5:$D$205,3*($C$8-1)+3) -> 1112 | P134: =VLOOKUP($H134,P_All!$A$5:$D$205,3*($C$8-1)+4) -> 1392.9 | Q134: =IF(ISNA(VLOOKUP($B$6,$A$25:$E$51,IF($B$8=$A$22,3,2))),EXP(VLOOKUP($B$6,$A$25:$E$51,4)*LN(VLOOKUP($H134,#REF!,$C$8+1)/1000)+VLOOKUP($B$6,$A$25:$E$51,5)),VLOOKUP($B$6,$A$25:$E$51,IF($B$8=$A$22,3,2))) -> 230000 | S134: 49.08333333 | T134: =VLOOKUP($S134,P_All!$X$5:$AS$245,3*($C$8-1)+2) -> 1122 | U134: =VLOOKUP($S134,P_All!$X$5:$AS$245,3*($C$8-1)+3) -> 1238.7 | V134: =VLOOKUP($S134,P_All!$X$5:$AS$245,3*($C$8-1)+4) -> 1373.5 | W134: =IF(ISNA(VLOOKUP($B$6,$A$25:$E$52,IF($B$8=$A$22,3,2))),EXP(VLOOKUP($B$6,$A$25:$E$52,4)*LN(VLOOKUP($S134,#REF!,$C$8+1)/1000)+VLOOKUP($B$6,$A$25:$E$52,5)),VLOOKUP($B$6,$A$25:$E$52,IF($B$8=$A$22,3,2))) -> 230000
H135: 110 | I135: =VLOOKUP($H135,P_All!$A$5:$D$205,3*($C$8-1)+2) -> 940.53 | J135: =VLOOKUP($H135,P_All!$A$5:$D$205,3*($C$8-1)+3) -> 1113.5 | K135: =VLOOKUP($H135,P_All!$A$5:$D$205,3*($C$8-1)+4) -> 1389.7 | L135: =IF(ISNA(VLOOKUP($B$6,$A$25:$E$51,IF($B$8=$A$22,3,2))),EXP(VLOOKUP($B$6,$A$25:$E$51,4)*LN(VLOOKUP($H135,#REF!,$C$8+1)/1000)+VLOOKUP($B$6,$A$25:$E$51,5)),VLOOKUP($B$6,$A$25:$E$51,IF($B$8=$A$22,3,2))) -> 230000 | M135: 110 | N135: =VLOOKUP($H135,P_All!$A$5:$D$205,3*($C$8-1)+2) -> 940.53 | O135: =VLOOKUP($H135,P_All!$A$5:$D$205,3*($C$8-1)+3) -> 1113.5 | P135: =VLOOKUP($H135,P_All!$A$5:$D$205,3*($C$8-1)+4) -> 1389.7 | Q135: =IF(ISNA(VLOOKUP($B$6,$A$25:$E$51,IF($B$8=$A$22,3,2))),EXP(VLOOKUP($B$6,$A$25:$E$51,4)*LN(VLOOKUP($H135,#REF!,$C$8+1)/1000)+VLOOKUP($B$6,$A$25:$E$51,5)),VLOOKUP($B$6,$A$25:$E$51,IF($B$8=$A$22,3,2))) -> 230000 | S135: 49.16666667 | T135: =VLOOKUP($S135,P_All!$X$5:$AS$245,3*($C$8-1)+2) -> 1123.8 | U135: =VLOOKUP($S135,P_All!$X$5:$AS$245,3*($C$8-1)+3) -> 1236.9 | V135: =VLOOKUP($S135,P_All!$X$5:$AS$245,3*($C$8-1)+4) -> 1366.2 | W135: =IF(ISNA(VLOOKUP($B$6,$A$25:$E$52,IF($B$8=$A$22,3,2))),EXP(VLOOKUP($B$6,$A$25:$E$52,4)*LN(VLOOKUP($S135,#REF!,$C$8+1)/1000)+VLOOKUP($B$6,$A$25:$E$52,5)),VLOOKUP($B$6,$A$25:$E$52,IF($B$8=$A$22,3,2))) -> 230000
H136: 111 | I136: =VLOOKUP($H136,P_All!$A$5:$D$205,3*($C$8-1)+2) -> 926.31 | J136: =VLOOKUP($H136,P_All!$A$5:$D$205,3*($C$8-1)+3) -> 1120.5 | K136: =VLOOKUP($H136,P_All!$A$5:$D$205,3*($C$8-1)+4) -> 1396.3 | L136: =IF(ISNA(VLOOKUP($B$6,$A$25:$E$51,IF($B$8=$A$22,3,2))),EXP(VLOOKUP($B$6,$A$25:$E$51,4)*LN(VLOOKUP($H136,#REF!,$C$8+1)/1000)+VLOOKUP($B$6,$A$25:$E$51,5)),VLOOKUP($B$6,$A$25:$E$51,IF($B$8=$A$22,3,2))) -> 230000 | M136: 111 | N136: =VLOOKUP($H136,P_All!$A$5:$D$205,3*($C$8-1)+2) -> 926.31 | O136: =VLOOKUP($H136,P_All!$A$5:$D$205,3*($C$8-1)+3) -> 1120.5 | P136: =VLOOKUP($H136,P_All!$A$5:$D$205,3*($C$8-1)+4) -> 1396.3 | Q136: =IF(ISNA(VLOOKUP($B$6,$A$25:$E$51,IF($B$8=$A$22,3,2))),EXP(VLOOKUP($B$6,$A$25:$E$51,4)*LN(VLOOKUP($H136,#REF!,$C$8+1)/1000)+VLOOKUP($B$6,$A$25:$E$51,5)),VLOOKUP($B$6,$A$25:$E$51,IF($B$8=$A$22,3,2))) -> 230000 | S136: 49.25 | T136: =VLOOKUP($S136,P_All!$X$5:$AS$245,3*($C$8-1)+2) -> 1132.4 | U136: =VLOOKUP($S136,P_All!$X$5:$AS$245,3*($C$8-1)+3) -> 1240.7 | V136: =VLOOKUP($S136,P_All!$X$5:$AS$245,3*($C$8-1)+4) -> 1368.6 | W136: =IF(ISNA(VLOOKUP($B$6,$A$25:$E$52,IF($B$8=$A$22,3,2))),EXP(VLOOKUP($B$6,$A$25:$E$52,4)*LN(VLOOKUP($S136,#REF!,$C$8+1)/1000)+VLOOKUP($B$6,$A$25:$E$52,5)),VLOOKUP($B$6,$A$25:$E$52,IF($B$8=$A$22,3,2))) -> 230000
H137: 112 | I137: =VLOOKUP($H137,P_All!$A$5:$D$205,3*($C$8-1)+2) -> 933.39 | J137: =VLOOKUP($H137,P_All!$A$5:$D$205,3*($C$8-1)+3) -> 1122.2 | K137: =VLOOKUP($H137,P_All!$A$5:$D$205,3*($C$8-1)+4) -> 1371.8 | L137: =IF(ISNA(VLOOKUP($B$6,$A$25:$E$51,IF($B$8=$A$22,3,2))),EXP(VLOOKUP($B$6,$A$25:$E$51,4)*LN(VLOOKUP($H137,#REF!,$C$8+1)/1000)+VLOOKUP($B$6,$A$25:$E$51,5)),VLOOKUP($B$6,$A$25:$E$51,IF($B$8=$A$22,3,2))) -> 230000 | M137: 112 | N137: =VLOOKUP($H137,P_All!$A$5:$D$205,3*($C$8-1)+2) -> 933.39 | O137: =VLOOKUP($H137,P_All!$A$5:$D$205,3*($C$8-1)+3) -> 1122.2 | P137: =VLOOKUP($H137,P_All!$A$5:$D$205,3*($C$8-1)+4) -> 1371.8 | Q137: =IF(ISNA(VLOOKUP($B$6,$A$25:$E$51,IF($B$8=$A$22,3,2))),EXP(VLOOKUP($B$6,$A$25:$E$51,4)*LN(VLOOKUP($H137,#REF!,$C$8+1)/1000)+VLOOKUP($B$6,$A$25:$E$51,5)),VLOOKUP($B$6,$A$25:$E$51,IF($B$8=$A$22,3,2))) -> 230000 | S137: 49.33333333 | T137: =VLOOKUP($S137,P_All!$X$5:$AS$245,3*($C$8-1)+2) -> 1146 | U137: =VLOOKUP($S137,P_All!$X$5:$AS$245,3*($C$8-1)+3) -> 1264.5 | V137: =VLOOKUP($S137,P_All!$X$5:$AS$245,3*($C$8-1)+4) -> 1390.4 | W137: =IF(ISNA(VLOOKUP($B$6,$A$25:$E$52,IF($B$8=$A$22,3,2))),EXP(VLOOKUP($B$6,$A$25:$E$52,4)*LN(VLOOKUP($S137,#REF!,$C$8+1)/1000)+VLOOKUP($B$6,$A$25:$E$52,5)),VLOOKUP($B$6,$A$25:$E$52,IF($B$8=$A$22,3,2))) -> 230000
H138: 113 | I138: =VLOOKUP($H138,P_All!$A$5:$D$205,3*($C$8-1)+2) -> 932.35 | J138: =VLOOKUP($H138,P_All!$A$5:$D$205,3*($C$8-1)+3) -> 1133.7 | K138: =VLOOKUP($H138,P_All!$A$5:$D$205,3*($C$8-1)+4) -> 1374 | L138: =IF(ISNA(VLOOKUP($B$6,$A$25:$E$51,IF($B$8=$A$22,3,2))),EXP(VLOOKUP($B$6,$A$25:$E$51,4)*LN(VLOOKUP($H138,#REF!,$C$8+1)/1000)+VLOOKUP($B$6,$A$25:$E$51,5)),VLOOKUP($B$6,$A$25:$E$51,IF($B$8=$A$22,3,2))) -> 230000 | M138: 113 | N138: =VLOOKUP($H138,P_All!$A$5:$D$205,3*($C$8-1)+2) -> 932.35 | O138: =VLOOKUP($H138,P_All!$A$5:$D$205,3*($C$8-1)+3) -> 1133.7 | P138: =VLOOKUP($H138,P_All!$A$5:$D$205,3*($C$8-1)+4) -> 1374 | Q138: =IF(ISNA(VLOOKUP($B$6,$A$25:$E$51,IF($B$8=$A$22,3,2))),EXP(VLOOKUP($B$6,$A$25:$E$51,4)*LN(VLOOKUP($H138,#REF!,$C$8+1)/1000)+VLOOKUP($B$6,$A$25:$E$51,5)),VLOOKUP($B$6,$A$25:$E$51,IF($B$8=$A$22,3,2))) -> 230000 | S138: 49.41666667 | T138: =VLOOKUP($S138,P_All!$X$5:$AS$245,3*($C$8-1)+2) -> 1165 | U138: =VLOOKUP($S138,P_All!$X$5:$AS$245,3*($C$8-1)+3) -> 1275.7 | V138: =VLOOKUP($S138,P_All!$X$5:$AS$245,3*($C$8-1)+4) -> 1394.5 | W138: =IF(ISNA(VLOOKUP($B$6,$A$25:$E$52,IF($B$8=$A$22,3,2))),EXP(VLOOKUP($B$6,$A$25:$E$52,4)*LN(VLOOKUP($S138,#REF!,$C$8+1)/1000)+VLOOKUP($B$6,$A$25:$E$52,5)),VLOOKUP($B$6,$A$25:$E$52,IF($B$8=$A$22,3,2))) -> 230000
H139: 114 | I139: =VLOOKUP($H139,P_All!$A$5:$D$205,3*($C$8-1)+2) -> 926.86 | J139: =VLOOKUP($H139,P_All!$A$5:$D$205,3*($C$8-1)+3) -> 1134.6 | K139: =VLOOKUP($H139,P_All!$A$5:$D$205,3*($C$8-1)+4) -> 1386.3 | L139: =IF(ISNA(VLOOKUP($B$6,$A$25:$E$51,IF($B$8=$A$22,3,2))),EXP(VLOOKUP($B$6,$A$25:$E$51,4)*LN(VLOOKUP($H139,#REF!,$C$8+1)/1000)+VLOOKUP($B$6,$A$25:$E$51,5)),VLOOKUP($B$6,$A$25:$E$51,IF($B$8=$A$22,3,2))) -> 230000 | M139: 114 | N139: =VLOOKUP($H139,P_All!$A$5:$D$205,3*($C$8-1)+2) -> 926.86 | O139: =VLOOKUP($H139,P_All!$A$5:$D$205,3*($C$8-1)+3) -> 1134.6 | P139: =VLOOKUP($H139,P_All!$A$5:$D$205,3*($C$8-1)+4) -> 1386.3 | Q139: =IF(ISNA(VLOOKUP($B$6,$A$25:$E$51,IF($B$8=$A$22,3,2))),EXP(VLOOKUP($B$6,$A$25:$E$51,4)*LN(VLOOKUP($H139,#REF!,$C$8+1)/1000)+VLOOKUP($B$6,$A$25:$E$51,5)),VLOOKUP($B$6,$A$25:$E$51,IF($B$8=$A$22,3,2))) -> 230000 | S139: 49.5 | T139: =VLOOKUP($S139,P_All!$X$5:$AS$245,3*($C$8-1)+2) -> 1153.9 | U139: =VLOOKUP($S139,P_All!$X$5:$AS$245,3*($C$8-1)+3) -> 1265.8 | V139: =VLOOKUP($S139,P_All!$X$5:$AS$245,3*($C$8-1)+4) -> 1398.2 | W139: =IF(ISNA(VLOOKUP($B$6,$A$25:$E$52,IF($B$8=$A$22,3,2))),EXP(VLOOKUP($B$6,$A$25:$E$52,4)*LN(VLOOKUP($S139,#REF!,$C$8+1)/1000)+VLOOKUP($B$6,$A$25:$E$52,5)),VLOOKUP($B$6,$A$25:$E$52,IF($B$8=$A$22,3,2))) -> 230000
H140: 115 | I140: =VLOOKUP($H140,P_All!$A$5:$D$205,3*($C$8-1)+2) -> 938.38 | J140: =VLOOKUP($H140,P_All!$A$5:$D$205,3*($C$8-1)+3) -> 1130.9 | K140: =VLOOKUP($H140,P_All!$A$5:$D$205,3*($C$8-1)+4) -> 1376.4 | L140: =IF(ISNA(VLOOKUP($B$6,$A$25:$E$51,IF($B$8=$A$22,3,2))),EXP(VLOOKUP($B$6,$A$25:$E$51,4)*LN(VLOOKUP($H140,#REF!,$C$8+1)/1000)+VLOOKUP($B$6,$A$25:$E$51,5)),VLOOKUP($B$6,$A$25:$E$51,IF($B$8=$A$22,3,2))) -> 230000 | M140: 115 | N140: =VLOOKUP($H140,P_All!$A$5:$D$205,3*($C$8-1)+2) -> 938.38 | O140: =VLOOKUP($H140,P_All!$A$5:$D$205,3*($C$8-1)+3) -> 1130.9 | P140: =VLOOKUP($H140,P_All!$A$5:$D$205,3*($C$8-1)+4) -> 1376.4 | Q140: =IF(ISNA(VLOOKUP($B$6,$A$25:$E$51,IF($B$8=$A$22,3,2))),EXP(VLOOKUP($B$6,$A$25:$E$51,4)*LN(VLOOKUP($H140,#REF!,$C$8+1)/1000)+VLOOKUP($B$6,$A$25:$E$51,5)),VLOOKUP($B$6,$A$25:$E$51,IF($B$8=$A$22,3,2))) -> 230000 | S140: 49.58333333 | T140: =VLOOKUP($S140,P_All!$X$5:$AS$245,3*($C$8-1)+2) -> 1143.1 | U140: =VLOOKUP($S140,P_All!$X$5:$AS$245,3*($C$8-1)+3) -> 1260 | V140: =VLOOKUP($S140,P_All!$X$5:$AS$245,3*($C$8-1)+4) -> 1390.1 | W140: =IF(ISNA(VLOOKUP($B$6,$A$25:$E$52,IF($B$8=$A$22,3,2))),EXP(VLOOKUP($B$6,$A$25:$E$52,4)*LN(VLOOKUP($S140,#REF!,$C$8+1)/1000)+VLOOKUP($B$6,$A$25:$E$52,5)),VLOOKUP($B$6,$A$25:$E$52,IF($B$8=$A$22,3,2))) -> 230000
H141: 116 | I141: =VLOOKUP($H141,P_All!$A$5:$D$205,3*($C$8-1)+2) -> 949.42 | J141: =VLOOKUP($H141,P_All!$A$5:$D$205,3*($C$8-1)+3) -> 1126.6 | K141: =VLOOKUP($H141,P_All!$A$5:$D$205,3*($C$8-1)+4) -> 1358.5 | L141: =IF(ISNA(VLOOKUP($B$6,$A$25:$E$51,IF($B$8=$A$22,3,2))),EXP(VLOOKUP($B$6,$A$25:$E$51,4)*LN(VLOOKUP($H141,#REF!,$C$8+1)/1000)+VLOOKUP($B$6,$A$25:$E$51,5)),VLOOKUP($B$6,$A$25:$E$51,IF($B$8=$A$22,3,2))) -> 230000 | M141: 116 | N141: =VLOOKUP($H141,P_All!$A$5:$D$205,3*($C$8-1)+2) -> 949.42 | O141: =VLOOKUP($H141,P_All!$A$5:$D$205,3*($C$8-1)+3) -> 1126.6 | P141: =VLOOKUP($H141,P_All!$A$5:$D$205,3*($C$8-1)+4) -> 1358.5 | Q141: =IF(ISNA(VLOOKUP($B$6,$A$25:$E$51,IF($B$8=$A$22,3,2))),EXP(VLOOKUP($B$6,$A$25:$E$51,4)*LN(VLOOKUP($H141,#REF!,$C$8+1)/1000)+VLOOKUP($B$6,$A$25:$E$51,5)),VLOOKUP($B$6,$A$25:$E$51,IF($B$8=$A$22,3,2))) -> 230000 | S141: 49.66666667 | T141: =VLOOKUP($S141,P_All!$X$5:$AS$245,3*($C$8-1)+2) -> 1130.2 | U141: =VLOOKUP($S141,P_All!$X$5:$AS$245,3*($C$8-1)+3) -> 1251.2 | V141: =VLOOKUP($S141,P_All!$X$5:$AS$245,3*($C$8-1)+4) -> 1380.1 | W141: =IF(ISNA(VLOOKUP($B$6,$A$25:$E$52,IF($B$8=$A$22,3,2))),EXP(VLOOKUP($B$6,$A$25:$E$52,4)*LN(VLOOKUP($S141,#REF!,$C$8+1)/1000)+VLOOKUP($B$6,$A$25:$E$52,5)),VLOOKUP($B$6,$A$25:$E$52,IF($B$8=$A$22,3,2))) -> 230000
H142: 117 | I142: =VLOOKUP($H142,P_All!$A$5:$D$205,3*($C$8-1)+2) -> 940.49 | J142: =VLOOKUP($H142,P_All!$A$5:$D$205,3*($C$8-1)+3) -> 1129.5 | K142: =VLOOKUP($H142,P_All!$A$5:$D$205,3*($C$8-1)+4) -> 1352.1 | L142: =IF(ISNA(VLOOKUP($B$6,$A$25:$E$51,IF($B$8=$A$22,3,2))),EXP(VLOOKUP($B$6,$A$25:$E$51,4)*LN(VLOOKUP($H142,#REF!,$C$8+1)/1000)+VLOOKUP($B$6,$A$25:$E$51,5)),VLOOKUP($B$6,$A$25:$E$51,IF($B$8=$A$22,3,2))) -> 230000 | M142: 117 | N142: =VLOOKUP($H142,P_All!$A$5:$D$205,3*($C$8-1)+2) -> 940.49 | O142: =VLOOKUP($H142,P_All!$A$5:$D$205,3*($C$8-1)+3) -> 1129.5 | P142: =VLOOKUP($H142,P_All!$A$5:$D$205,3*($C$8-1)+4) -> 1352.1 | Q142: =IF(ISNA(VLOOKUP($B$6,$A$25:$E$51,IF($B$8=$A$22,3,2))),EXP(VLOOKUP($B$6,$A$25:$E$51,4)*LN(VLOOKUP($H142,#REF!,$C$8+1)/1000)+VLOOKUP($B$6,$A$25:$E$51,5)),VLOOKUP($B$6,$A$25:$E$51,IF($B$8=$A$22,3,2))) -> 230000 | S142: 49.75 | T142: =VLOOKUP($S142,P_All!$X$5:$AS$245,3*($C$8-1)+2) -> 1110.7 | U142: =VLOOKUP($S142,P_All!$X$5:$AS$245,3*($C$8-1)+3) -> 1235.3 | V142: =VLOOKUP($S142,P_All!$X$5:$AS$245,3*($C$8-1)+4) -> 1366.4 | W142: =IF(ISNA(VLOOKUP($B$6,$A$25:$E$52,IF($B$8=$A$22,3,2))),EXP(VLOOKUP($B$6,$A$25:$E$52,4)*LN(VLOOKUP($S142,#REF!,$C$8+1)/1000)+VLOOKUP($B$6,$A$25:$E$52,5)),VLOOKUP($B$6,$A$25:$E$52,IF($B$8=$A$22,3,2))) -> 230000
H143: 118 | I143: =VLOOKUP($H143,P_All!$A$5:$D$205,3*($C$8-1)+2) -> 927.08 | J143: =VLOOKUP($H143,P_All!$A$5:$D$205,3*($C$8-1)+3) -> 1113.6 | K143: =VLOOKUP($H143,P_All!$A$5:$D$205,3*($C$8-1)+4) -> 1342 | L143: =IF(ISNA(VLOOKUP($B$6,$A$25:$E$51,IF($B$8=$A$22,3,2))),EXP(VLOOKUP($B$6,$A$25:$E$51,4)*LN(VLOOKUP($H143,#REF!,$C$8+1)/1000)+VLOOKUP($B$6,$A$25:$E$51,5)),VLOOKUP($B$6,$A$25:$E$51,IF($B$8=$A$22,3,2))) -> 230000 | M143: 118 | N143: =VLOOKUP($H143,P_All!$A$5:$D$205,3*($C$8-1)+2) -> 927.08 | O143: =VLOOKUP($H143,P_All!$A$5:$D$205,3*($C$8-1)+3) -> 1113.6 | P143: =VLOOKUP($H143,P_All!$A$5:$D$205,3*($C$8-1)+4) -> 1342 | Q143: =IF(ISNA(VLOOKUP($B$6,$A$25:$E$51,IF($B$8=$A$22,3,2))),EXP(VLOOKUP($B$6,$A$25:$E$51,4)*LN(VLOOKUP($H143,#REF!,$C$8+1)/1000)+VLOOKUP($B$6,$A$25:$E$51,5)),VLOOKUP($B$6,$A$25:$E$51,IF($B$8=$A$22,3,2))) -> 230000 | S143: 49.83333333 | T143: =VLOOKUP($S143,P_All!$X$5:$AS$245,3*($C$8-1)+2) -> 1094.7 | U143: =VLOOKUP($S143,P_All!$X$5:$AS$245,3*($C$8-1)+3) -> 1226.7 | V143: =VLOOKUP($S143,P_All!$X$5:$AS$245,3*($C$8-1)+4) -> 1357.9 | W143: =IF(ISNA(VLOOKUP($B$6,$A$25:$E$52,IF($B$8=$A$22,3,2))),EXP(VLOOKUP($B$6,$A$25:$E$52,4)*LN(VLOOKUP($S143,#REF!,$C$8+1)/1000)+VLOOKUP($B$6,$A$25:$E$52,5)),VLOOKUP($B$6,$A$25:$E$52,IF($B$8=$A$22,3,2))) -> 230000
H144: 119 | I144: =VLOOKUP($H144,P_All!$A$5:$D$205,3*($C$8-1)+2) -> 930.62 | J144: =VLOOKUP($H144,P_All!$A$5:$D$205,3*($C$8-1)+3) -> 1109.6 | K144: =VLOOKUP($H144,P_All!$A$5:$D$205,3*($C$8-1)+4) -> 1341.4 | L144: =IF(ISNA(VLOOKUP($B$6,$A$25:$E$51,IF($B$8=$A$22,3,2))),EXP(VLOOKUP($B$6,$A$25:$E$51,4)*LN(VLOOKUP($H144,#REF!,$C$8+1)/1000)+VLOOKUP($B$6,$A$25:$E$51,5)),VLOOKUP($B$6,$A$25:$E$51,IF($B$8=$A$22,3,2))) -> 230000 | M144: 119 | N144: =VLOOKUP($H144,P_All!$A$5:$D$205,3*($C$8-1)+2) -> 930.62 | O144: =VLOOKUP($H144,P_All!$A$5:$D$205,3*($C$8-1)+3) -> 1109.6 | P144: =VLOOKUP($H144,P_All!$A$5:$D$205,3*($C$8-1)+4) -> 1341.4 | Q144: =IF(ISNA(VLOOKUP($B$6,$A$25:$E$51,IF($B$8=$A$22,3,2))),EXP(VLOOKUP($B$6,$A$25:$E$51,4)*LN(VLOOKUP($H144,#REF!,$C$8+1)/1000)+VLOOKUP($B$6,$A$25:$E$51,5)),VLOOKUP($B$6,$A$25:$E$51,IF($B$8=$A$22,3,2))) -> 230000 | S144: 49.91666667 | T144: =VLOOKUP($S144,P_All!$X$5:$AS$245,3*($C$8-1)+2) -> 1092.2 | U144: =VLOOKUP($S144,P_All!$X$5:$AS$245,3*($C$8-1)+3) -> 1224.3 | V144: =VLOOKUP($S144,P_All!$X$5:$AS$245,3*($C$8-1)+4) -> 1352 | W144: =IF(ISNA(VLOOKUP($B$6,$A$25:$E$52,IF($B$8=$A$22,3,2))),EXP(VLOOKUP($B$6,$A$25:$E$52,4)*LN(VLOOKUP($S144,#REF!,$C$8+1)/1000)+VLOOKUP($B$6,$A$25:$E$52,5)),VLOOKUP($B$6,$A$25:$E$52,IF($B$8=$A$22,3,2))) -> 230000
H145: 120 | I145: =VLOOKUP($H145,P_All!$A$5:$D$205,3*($C$8-1)+2) -> 925.8 | J145: =VLOOKUP($H145,P_All!$A$5:$D$205,3*($C$8-1)+3) -> 1115.9 | K145: =VLOOKUP($H145,P_All!$A$5:$D$205,3*($C$8-1)+4) -> 1341.2 | L145: =IF(ISNA(VLOOKUP($B$6,$A$25:$E$51,IF($B$8=$A$22,3,2))),EXP(VLOOKUP($B$6,$A$25:$E$51,4)*LN(VLOOKUP($H145,#REF!,$C$8+1)/1000)+VLOOKUP($B$6,$A$25:$E$51,5)),VLOOKUP($B$6,$A$25:$E$51,IF($B$8=$A$22,3,2))) -> 230000 | M145: 120 | N145: =VLOOKUP($H145,P_All!$A$5:$D$205,3*($C$8-1)+2) -> 925.8 | O145: =VLOOKUP($H145,P_All!$A$5:$D$205,3*($C$8-1)+3) -> 1115.9 | P145: =VLOOKUP($H145,P_All!$A$5:$D$205,3*($C$8-1)+4) -> 1341.2 | Q145: =IF(ISNA(VLOOKUP($B$6,$A$25:$E$51,IF($B$8=$A$22,3,2))),EXP(VLOOKUP($B$6,$A$25:$E$51,4)*LN(VLOOKUP($H145,#REF!,$C$8+1)/1000)+VLOOKUP($B$6,$A$25:$E$51,5)),VLOOKUP($B$6,$A$25:$E$51,IF($B$8=$A$22,3,2))) -> 230000 | S145: 50 | T145: =VLOOKUP($S145,P_All!$X$5:$AS$245,3*($C$8-1)+2) -> 1089.9 | U145: =VLOOKUP($S145,P_All!$X$5:$AS$245,3*($C$8-1)+3) -> 1218.6 | V145: =VLOOKUP($S145,P_All!$X$5:$AS$245,3*($C$8-1)+4) -> 1343.6 | W145: =IF(ISNA(VLOOKUP($B$6,$A$25:$E$52,IF($B$8=$A$22,3,2))),EXP(VLOOKUP($B$6,$A$25:$E$52,4)*LN(VLOOKUP($S145,#REF!,$C$8+1)/1000)+VLOOKUP($B$6,$A$25:$E$52,5)),VLOOKUP($B$6,$A$25:$E$52,IF($B$8=$A$22,3,2))) -> 230000
H146: 121 | I146: =VLOOKUP($H146,P_All!$A$5:$D$205,3*($C$8-1)+2) -> 926.68 | J146: =VLOOKUP($H146,P_All!$A$5:$D$205,3*($C$8-1)+3) -> 1112 | K146: =VLOOKUP($H146,P_All!$A$5:$D$205,3*($C$8-1)+4) -> 1334.9 | L146: =IF(ISNA(VLOOKUP($B$6,$A$25:$E$51,IF($B$8=$A$22,3,2))),EXP(VLOOKUP($B$6,$A$25:$E$51,4)*LN(VLOOKUP($H146,#REF!,$C$8+1)/1000)+VLOOKUP($B$6,$A$25:$E$51,5)),VLOOKUP($B$6,$A$25:$E$51,IF($B$8=$A$22,3,2))) -> 230000 | M146: 121 | N146: =VLOOKUP($H146,P_All!$A$5:$D$205,3*($C$8-1)+2) -> 926.68 | O146: =VLOOKUP($H146,P_All!$A$5:$D$205,3*($C$8-1)+3) -> 1112 | P146: =VLOOKUP($H146,P_All!$A$5:$D$205,3*($C$8-1)+4) -> 1334.9 | Q146: =IF(ISNA(VLOOKUP($B$6,$A$25:$E$51,IF($B$8=$A$22,3,2))),EXP(VLOOKUP($B$6,$A$25:$E$51,4)*LN(VLOOKUP($H146,#REF!,$C$8+1)/1000)+VLOOKUP($B$6,$A$25:$E$51,5)),VLOOKUP($B$6,$A$25:$E$51,IF($B$8=$A$22,3,2))) -> 230000 | S146: 50.08333333 | T146: =VLOOKUP($S146,P_All!$X$5:$AS$245,3*($C$8-1)+2) -> 1091.3 | U146: =VLOOKUP($S146,P_All!$X$5:$AS$245,3*($C$8-1)+3) -> 1215.4 | V146: =VLOOKUP($S146,P_All!$X$5:$AS$245,3*($C$8-1)+4) -> 1335.6 | W146: =IF(ISNA(VLOOKUP($B$6,$A$25:$E$52,IF($B$8=$A$22,3,2))),EXP(VLOOKUP($B$6,$A$25:$E$52,4)*LN(VLOOKUP($S146,#REF!,$C$8+1)/1000)+VLOOKUP($B$6,$A$25:$E$52,5)),VLOOKUP($B$6,$A$25:$E$52,IF($B$8=$A$22,3,2))) -> 230000
H147: 122 | I147: =VLOOKUP($H147,P_All!$A$5:$D$205,3*($C$8-1)+2) -> 908.45 | J147: =VLOOKUP($H147,P_All!$A$5:$D$205,3*($C$8-1)+3) -> 1116.7 | K147: =VLOOKUP($H147,P_All!$A$5:$D$205,3*($C$8-1)+4) -> 1332.1 | L147: =IF(ISNA(VLOOKUP($B$6,$A$25:$E$51,IF($B$8=$A$22,3,2))),EXP(VLOOKUP($B$6,$A$25:$E$51,4)*LN(VLOOKUP($H147,#REF!,$C$8+1)/1000)+VLOOKUP($B$6,$A$25:$E$51,5)),VLOOKUP($B$6,$A$25:$E$51,IF($B$8=$A$22,3,2))) -> 230000 | M147: 122 | N147: =VLOOKUP($H147,P_All!$A$5:$D$205,3*($C$8-1)+2) -> 908.45 | O147: =VLOOKUP($H147,P_All!$A$5:$D$205,3*($C$8-1)+3) -> 1116.7 | P147: =VLOOKUP($H147,P_All!$A$5:$D$205,3*($C$8-1)+4) -> 1332.1 | Q147: =IF(ISNA(VLOOKUP($B$6,$A$25:$E$51,IF($B$8=$A$22,3,2))),EXP(VLOOKUP($B$6,$A$25:$E$51,4)*LN(VLOOKUP($H147,#REF!,$C$8+1)/1000)+VLOOKUP($B$6,$A$25:$E$51,5)),VLOOKUP($B$6,$A$25:$E$51,IF($B$8=$A$22,3,2))) -> 230000 | S147: 50.16666667 | T147: =VLOOKUP($S147,P_All!$X$5:$AS$245,3*($C$8-1)+2) -> 1094.9 | U147: =VLOOKUP($S147,P_All!$X$5:$AS$245,3*($C$8-1)+3) -> 1213.6 | V147: =VLOOKUP($S147,P_All!$X$5:$AS$245,3*($C$8-1)+4) -> 1330.8 | W147: =IF(ISNA(VLOOKUP($B$6,$A$25:$E$52,IF($B$8=$A$22,3,2))),EXP(VLOOKUP($B$6,$A$25:$E$52,4)*LN(VLOOKUP($S147,#REF!,$C$8+1)/1000)+VLOOKUP($B$6,$A$25:$E$52,5)),VLOOKUP($B$6,$A$25:$E$52,IF($B$8=$A$22,3,2))) -> 230000
H148: 123 | I148: =VLOOKUP($H148,P_All!$A$5:$D$205,3*($C$8-1)+2) -> 916.48 | J148: =VLOOKUP($H148,P_All!$A$5:$D$205,3*($C$8-1)+3) -> 1097.6 | K148: =VLOOKUP($H148,P_All!$A$5:$D$205,3*($C$8-1)+4) -> 1336.5 | L148: =IF(ISNA(VLOOKUP($B$6,$A$25:$E$51,IF($B$8=$A$22,3,2))),EXP(VLOOKUP($B$6,$A$25:$E$51,4)*LN(VLOOKUP($H148,#REF!,$C$8+1)/1000)+VLOOKUP($B$6,$A$25:$E$51,5)),VLOOKUP($B$6,$A$25:$E$51,IF($B$8=$A$22,3,2))) -> 230000 | M148: 123 | N148: =VLOOKUP($H148,P_All!$A$5:$D$205,3*($C$8-1)+2) -> 916.48 | O148: =VLOOKUP($H148,P_All!$A$5:$D$205,3*($C$8-1)+3) -> 1097.6 | P148: =VLOOKUP($H148,P_All!$A$5:$D$205,3*($C$8-1)+4) -> 1336.5 | Q148: =IF(ISNA(VLOOKUP($B$6,$A$25:$E$51,IF($B$8=$A$22,3,2))),EXP(VLOOKUP($B$6,$A$25:$E$51,4)*LN(VLOOKUP($H148,#REF!,$C$8+1)/1000)+VLOOKUP($B$6,$A$25:$E$51,5)),VLOOKUP($B$6,$A$25:$E$51,IF($B$8=$A$22,3,2))) -> 230000 | S148: 50.25 | T148: =VLOOKUP($S148,P_All!$X$5:$AS$245,3*($C$8-1)+2) -> 1101.5 | U148: =VLOOKUP($S148,P_All!$X$5:$AS$245,3*($C$8-1)+3) -> 1217.7 | V148: =VLOOKUP($S148,P_All!$X$5:$AS$245,3*($C$8-1)+4) -> 1331.5 | W148: =IF(ISNA(VLOOKUP($B$6,$A$25:$E$52,IF($B$8=$A$22,3,2))),EXP(VLOOKUP($B$6,$A$25:$E$52,4)*LN(VLOOKUP($S148,#REF!,$C$8+1)/1000)+VLOOKUP($B$6,$A$25:$E$52,5)),VLOOKUP($B$6,$A$25:$E$52,IF($B$8=$A$22,3,2))) -> 230000
H149: 124 | I149: =VLOOKUP($H149,P_All!$A$5:$D$205,3*($C$8-1)+2) -> 930.46 | J149: =VLOOKUP($H149,P_All!$A$5:$D$205,3*($C$8-1)+3) -> 1120.8 | K149: =VLOOKUP($H149,P_All!$A$5:$D$205,3*($C$8-1)+4) -> 1374.1 | L149: =IF(ISNA(VLOOKUP($B$6,$A$25:$E$51,IF($B$8=$A$22,3,2))),EXP(VLOOKUP($B$6,$A$25:$E$51,4)*LN(VLOOKUP($H149,#REF!,$C$8+1)/1000)+VLOOKUP($B$6,$A$25:$E$51,5)),VLOOKUP($B$6,$A$25:$E$51,IF($B$8=$A$22,3,2))) -> 230000 | M149: 124 | N149: =VLOOKUP($H149,P_All!$A$5:$D$205,3*($C$8-1)+2) -> 930.46 | O149: =VLOOKUP($H149,P_All!$A$5:$D$205,3*($C$8-1)+3) -> 1120.8 | P149: =VLOOKUP($H149,P_All!$A$5:$D$205,3*($C$8-1)+4) -> 1374.1 | Q149: =IF(ISNA(VLOOKUP($B$6,$A$25:$E$51,IF($B$8=$A$22,3,2))),EXP(VLOOKUP($B$6,$A$25:$E$51,4)*LN(VLOOKUP($H149,#REF!,$C$8+1)/1000)+VLOOKUP($B$6,$A$25:$E$51,5)),VLOOKUP($B$6,$A$25:$E$51,IF($B$8=$A$22,3,2))) -> 230000 | S149: 50.33333333 | T149: =VLOOKUP($S149,P_All!$X$5:$AS$245,3*($C$8-1)+2) -> 1124.7 | U149: =VLOOKUP($S149,P_All!$X$5:$AS$245,3*($C$8-1)+3) -> 1240.3 | V149: =VLOOKUP($S149,P_All!$X$5:$AS$245,3*($C$8-1)+4) -> 1373.6 | W149: =IF(ISNA(VLOOKUP($B$6,$A$25:$E$52,IF($B$8=$A$22,3,2))),EXP(VLOOKUP($B$6,$A$25:$E$52,4)*LN(VLOOKUP($S149,#REF!,$C$8+1)/1000)+VLOOKUP($B$6,$A$25:$E$52,5)),VLOOKUP($B$6,$A$25:$E$52,IF($B$8=$A$22,3,2))) -> 230000
H150: 125 | I150: =VLOOKUP($H150,P_All!$A$5:$D$205,3*($C$8-1)+2) -> 924.26 | J150: =VLOOKUP($H150,P_All!$A$5:$D$205,3*($C$8-1)+3) -> 1113.3 | K150: =VLOOKUP($H150,P_All!$A$5:$D$205,3*($C$8-1)+4) -> 1386.2 | L150: =IF(ISNA(VLOOKUP($B$6,$A$25:$E$51,IF($B$8=$A$22,3,2))),EXP(VLOOKUP($B$6,$A$25:$E$51,4)*LN(VLOOKUP($H150,#REF!,$C$8+1)/1000)+VLOOKUP($B$6,$A$25:$E$51,5)),VLOOKUP($B$6,$A$25:$E$51,IF($B$8=$A$22,3,2))) -> 230000 | M150: 125 | N150: =VLOOKUP($H150,P_All!$A$5:$D$205,3*($C$8-1)+2) -> 924.26 | O150: =VLOOKUP($H150,P_All!$A$5:$D$205,3*($C$8-1)+3) -> 1113.3 | P150: =VLOOKUP($H150,P_All!$A$5:$D$205,3*($C$8-1)+4) -> 1386.2 | Q150: =IF(ISNA(VLOOKUP($B$6,$A$25:$E$51,IF($B$8=$A$22,3,2))),EXP(VLOOKUP($B$6,$A$25:$E$51,4)*LN(VLOOKUP($H150,#REF!,$C$8+1)/1000)+VLOOKUP($B$6,$A$25:$E$51,5)),VLOOKUP($B$6,$A$25:$E$51,IF($B$8=$A$22,3,2))) -> 230000 | S150: 50.41666667 | T150: =VLOOKUP($S150,P_All!$X$5:$AS$245,3*($C$8-1)+2) -> 1135.3 | U150: =VLOOKUP($S150,P_All!$X$5:$AS$245,3*($C$8-1)+3) -> 1252.1 | V150: =VLOOKUP($S150,P_All!$X$5:$AS$245,3*($C$8-1)+4) -> 1395.5 | W150: =IF(ISNA(VLOOKUP($B$6,$A$25:$E$52,IF($B$8=$A$22,3,2))),EXP(VLOOKUP($B$6,$A$25:$E$52,4)*LN(VLOOKUP($S150,#REF!,$C$8+1)/1000)+VLOOKUP($B$6,$A$25:$E$52,5)),VLOOKUP($B$6,$A$25:$E$52,IF($B$8=$A$22,3,2))) -> 230000
H151: 126 | I151: =VLOOKUP($H151,P_All!$A$5:$D$205,3*($C$8-1)+2) -> 920.32 | J151: =VLOOKUP($H151,P_All!$A$5:$D$205,3*($C$8-1)+3) -> 1101.7 | K151: =VLOOKUP($H151,P_All!$A$5:$D$205,3*($C$8-1)+4) -> 1380.7 | L151: =IF(ISNA(VLOOKUP($B$6,$A$25:$E$51,IF($B$8=$A$22,3,2))),EXP(VLOOKUP($B$6,$A$25:$E$51,4)*LN(VLOOKUP($H151,#REF!,$C$8+1)/1000)+VLOOKUP($B$6,$A$25:$E$51,5)),VLOOKUP($B$6,$A$25:$E$51,IF($B$8=$A$22,3,2))) -> 230000 | M151: 126 | N151: =VLOOKUP($H151,P_All!$A$5:$D$205,3*($C$8-1)+2) -> 920.32 | O151: =VLOOKUP($H151,P_All!$A$5:$D$205,3*($C$8-1)+3) -> 1101.7 | P151: =VLOOKUP($H151,P_All!$A$5:$D$205,3*($C$8-1)+4) -> 1380.7 | Q151: =IF(ISNA(VLOOKUP($B$6,$A$25:$E$51,IF($B$8=$A$22,3,2))),EXP(VLOOKUP($B$6,$A$25:$E$51,4)*LN(VLOOKUP($H151,#REF!,$C$8+1)/1000)+VLOOKUP($B$6,$A$25:$E$51,5)),VLOOKUP($B$6,$A$25:$E$51,IF($B$8=$A$22,3,2))) -> 230000 | S151: 50.5 | T151: =VLOOKUP($S151,P_All!$X$5:$AS$245,3*($C$8-1)+2) -> 1129.9 | U151: =VLOOKUP($S151,P_All!$X$5:$AS$245,3*($C$8-1)+3) -> 1240.3 | V151: =VLOOKUP($S151,P_All!$X$5:$AS$245,3*($C$8-1)+4) -> 1391.7 | W151: =IF(ISNA(VLOOKUP($B$6,$A$25:$E$52,IF($B$8=$A$22,3,2))),EXP(VLOOKUP($B$6,$A$25:$E$52,4)*LN(VLOOKUP($S151,#REF!,$C$8+1)/1000)+VLOOKUP($B$6,$A$25:$E$52,5)),VLOOKUP($B$6,$A$25:$E$52,IF($B$8=$A$22,3,2))) -> 230000
H152: 127 | I152: =VLOOKUP($H152,P_All!$A$5:$D$205,3*($C$8-1)+2) -> 932.29 | J152: =VLOOKUP($H152,P_All!$A$5:$D$205,3*($C$8-1)+3) -> 1113.5 | K152: =VLOOKUP($H152,P_All!$A$5:$D$205,3*($C$8-1)+4) -> 1373.1 | L152: =IF(ISNA(VLOOKUP($B$6,$A$25:$E$51,IF($B$8=$A$22,3,2))),EXP(VLOOKUP($B$6,$A$25:$E$51,4)*LN(VLOOKUP($H152,#REF!,$C$8+1)/1000)+VLOOKUP($B$6,$A$25:$E$51,5)),VLOOKUP($B$6,$A$25:$E$51,IF($B$8=$A$22,3,2))) -> 230000 | M152: 127 | N152: =VLOOKUP($H152,P_All!$A$5:$D$205,3*($C$8-1)+2) -> 932.29 | O152: =VLOOKUP($H152,P_All!$A$5:$D$205,3*($C$8-1)+3) -> 1113.5 | P152: =VLOOKUP($H152,P_All!$A$5:$D$205,3*($C$8-1)+4) -> 1373.1 | Q152: =IF(ISNA(VLOOKUP($B$6,$A$25:$E$51,IF($B$8=$A$22,3,2))),EXP(VLOOKUP($B$6,$A$25:$E$51,4)*LN(VLOOKUP($H152,#REF!,$C$8+1)/1000)+VLOOKUP($B$6,$A$25:$E$51,5)),VLOOKUP($B$6,$A$25:$E$51,IF($B$8=$A$22,3,2))) -> 230000 | S152: 50.58333333 | T152: =VLOOKUP($S152,P_All!$X$5:$AS$245,3*($C$8-1)+2) -> 1124.7 | U152: =VLOOKUP($S152,P_All!$X$5:$AS$245,3*($C$8-1)+3) -> 1233.8 | V152: =VLOOKUP($S152,P_All!$X$5:$AS$245,3*($C$8-1)+4) -> 1383.6 | W152: =IF(ISNA(VLOOKUP($B$6,$A$25:$E$52,IF($B$8=$A$22,3,2))),EXP(VLOOKUP($B$6,$A$25:$E$52,4)*LN(VLOOKUP($S152,#REF!,$C$8+1)/1000)+VLOOKUP($B$6,$A$25:$E$52,5)),VLOOKUP($B$6,$A$25:$E$52,IF($B$8=$A$22,3,2))) -> 230000
H153: 128 | I153: =VLOOKUP($H153,P_All!$A$5:$D$205,3*($C$8-1)+2) -> 928.58 | J153: =VLOOKUP($H153,P_All!$A$5:$D$205,3*($C$8-1)+3) -> 1113.1 | K153: =VLOOKUP($H153,P_All!$A$5:$D$205,3*($C$8-1)+4) -> 1389.7 | L153: =IF(ISNA(VLOOKUP($B$6,$A$25:$E$51,IF($B$8=$A$22,3,2))),EXP(VLOOKUP($B$6,$A$25:$E$51,4)*LN(VLOOKUP($H153,#REF!,$C$8+1)/1000)+VLOOKUP($B$6,$A$25:$E$51,5)),VLOOKUP($B$6,$A$25:$E$51,IF($B$8=$A$22,3,2))) -> 230000 | M153: 128 | N153: =VLOOKUP($H153,P_All!$A$5:$D$205,3*($C$8-1)+2) -> 928.58 | O153: =VLOOKUP($H153,P_All!$A$5:$D$205,3*($C$8-1)+3) -> 1113.1 | P153: =VLOOKUP($H153,P_All!$A$5:$D$205,3*($C$8-1)+4) -> 1389.7 | Q153: =IF(ISNA(VLOOKUP($B$6,$A$25:$E$51,IF($B$8=$A$22,3,2))),EXP(VLOOKUP($B$6,$A$25:$E$51,4)*LN(VLOOKUP($H153,#REF!,$C$8+1)/1000)+VLOOKUP($B$6,$A$25:$E$51,5)),VLOOKUP($B$6,$A$25:$E$51,IF($B$8=$A$22,3,2))) -> 230000 | S153: 50.66666667 | T153: =VLOOKUP($S153,P_All!$X$5:$AS$245,3*($C$8-1)+2) -> 1114.1 | U153: =VLOOKUP($S153,P_All!$X$5:$AS$245,3*($C$8-1)+3) -> 1223 | V153: =VLOOKUP($S153,P_All!$X$5:$AS$245,3*($C$8-1)+4) -> 1379.7 | W153: =IF(ISNA(VLOOKUP($B$6,$A$25:$E$52,IF($B$8=$A$22,3,2))),EXP(VLOOKUP($B$6,$A$25:$E$52,4)*LN(VLOOKUP($S153,#REF!,$C$8+1)/1000)+VLOOKUP($B$6,$A$25:$E$52,5)),VLOOKUP($B$6,$A$25:$E$52,IF($B$8=$A$22,3,2))) -> 230000
H154: 129 | I154: =VLOOKUP($H154,P_All!$A$5:$D$205,3*($C$8-1)+2) -> 948.45 | J154: =VLOOKUP($H154,P_All!$A$5:$D$205,3*($C$8-1)+3) -> 1117.8 | K154: =VLOOKUP($H154,P_All!$A$5:$D$205,3*($C$8-1)+4) -> 1382.5 | L154: =IF(ISNA(VLOOKUP($B$6,$A$25:$E$51,IF($B$8=$A$22,3,2))),EXP(VLOOKUP($B$6,$A$25:$E$51,4)*LN(VLOOKUP($H154,#REF!,$C$8+1)/1000)+VLOOKUP($B$6,$A$25:$E$51,5)),VLOOKUP($B$6,$A$25:$E$51,IF($B$8=$A$22,3,2))) -> 230000 | M154: 129 | N154: =VLOOKUP($H154,P_All!$A$5:$D$205,3*($C$8-1)+2) -> 948.45 | O154: =VLOOKUP($H154,P_All!$A$5:$D$205,3*($C$8-1)+3) -> 1117.8 | P154: =VLOOKUP($H154,P_All!$A$5:$D$205,3*($C$8-1)+4) -> 1382.5 | Q154: =IF(ISNA(VLOOKUP($B$6,$A$25:$E$51,IF($B$8=$A$22,3,2))),EXP(VLOOKUP($B$6,$A$25:$E$51,4)*LN(VLOOKUP($H154,#REF!,$C$8+1)/1000)+VLOOKUP($B$6,$A$25:$E$51,5)),VLOOKUP($B$6,$A$25:$E$51,IF($B$8=$A$22,3,2))) -> 230000 | S154: 50.75 | T154: =VLOOKUP($S154,P_All!$X$5:$AS$245,3*($C$8-1)+2) -> 1097.9 | U154: =VLOOKUP($S154,P_All!$X$5:$AS$245,3*($C$8-1)+3) -> 1206.7 | V154: =VLOOKUP($S154,P_All!$X$5:$AS$245,3*($C$8-1)+4) -> 1367.2 | W154: =IF(ISNA(VLOOKUP($B$6,$A$25:$E$52,IF($B$8=$A$22,3,2))),EXP(VLOOKUP($B$6,$A$25:$E$52,4)*LN(VLOOKUP($S154,#REF!,$C$8+1)/1000)+VLOOKUP($B$6,$A$25:$E$52,5)),VLOOKUP($B$6,$A$25:$E$52,IF($B$8=$A$22,3,2))) -> 230000
H155: 130 | I155: =VLOOKUP($H155,P_All!$A$5:$D$205,3*($C$8-1)+2) -> 949.84 | J155: =VLOOKUP($H155,P_All!$A$5:$D$205,3*($C$8-1)+3) -> 1124.4 | K155: =VLOOKUP($H155,P_All!$A$5:$D$205,3*($C$8-1)+4) -> 1366.6 | L155: =IF(ISNA(VLOOKUP($B$6,$A$25:$E$51,IF($B$8=$A$22,3,2))),EXP(VLOOKUP($B$6,$A$25:$E$51,4)*LN(VLOOKUP($H155,#REF!,$C$8+1)/1000)+VLOOKUP($B$6,$A$25:$E$51,5)),VLOOKUP($B$6,$A$25:$E$51,IF($B$8=$A$22,3,2))) -> 230000 | M155: 130 | N155: =VLOOKUP($H155,P_All!$A$5:$D$205,3*($C$8-1)+2) -> 949.84 | O155: =VLOOKUP($H155,P_All!$A$5:$D$205,3*($C$8-1)+3) -> 1124.4 | P155: =VLOOKUP($H155,P_All!$A$5:$D$205,3*($C$8-1)+4) -> 1366.6 | Q155: =IF(ISNA(VLOOKUP($B$6,$A$25:$E$51,IF($B$8=$A$22,3,2))),EXP(VLOOKUP($B$6,$A$25:$E$51,4)*LN(VLOOKUP($H155,#REF!,$C$8+1)/1000)+VLOOKUP($B$6,$A$25:$E$51,5)),VLOOKUP($B$6,$A$25:$E$51,IF($B$8=$A$22,3,2))) -> 230000 | S155: =S154+1/12 -> 50.83333333 | T155: =VLOOKUP($S155,P_All!$X$5:$AS$245,3*($C$8-1)+2) -> 1088.9 | U155: =VLOOKUP($S155,P_All!$X$5:$AS$245,3*($C$8-1)+3) -> 1200 | V155: =VLOOKUP($S155,P_All!$X$5:$AS$245,3*($C$8-1)+4) -> 1364.6 | W155: =IF(ISNA(VLOOKUP($B$6,$A$25:$E$52,IF($B$8=$A$22,3,2))),EXP(VLOOKUP($B$6,$A$25:$E$52,4)*LN(VLOOKUP($S155,#REF!,$C$8+1)/1000)+VLOOKUP($B$6,$A$25:$E$52,5)),VLOOKUP($B$6,$A$25:$E$52,IF($B$8=$A$22,3,2))) -> 230000
H156: 131 | I156: =VLOOKUP($H156,P_All!$A$5:$D$205,3*($C$8-1)+2) -> 935.63 | J156: =VLOOKUP($H156,P_All!$A$5:$D$205,3*($C$8-1)+3) -> 1129.7 | K156: =VLOOKUP($H156,P_All!$A$5:$D$205,3*($C$8-1)+4) -> 1346.7 | L156: =IF(ISNA(VLOOKUP($B$6,$A$25:$E$51,IF($B$8=$A$22,3,2))),EXP(VLOOKUP($B$6,$A$25:$E$51,4)*LN(VLOOKUP($H156,#REF!,$C$8+1)/1000)+VLOOKUP($B$6,$A$25:$E$51,5)),VLOOKUP($B$6,$A$25:$E$51,IF($B$8=$A$22,3,2))) -> 230000 | M156: 131 | N156: =VLOOKUP($H156,P_All!$A$5:$D$205,3*($C$8-1)+2) -> 935.63 | O156: =VLOOKUP($H156,P_All!$A$5:$D$205,3*($C$8-1)+3) -> 1129.7 | P156: =VLOOKUP($H156,P_All!$A$5:$D$205,3*($C$8-1)+4) -> 1346.7 | Q156: =IF(ISNA(VLOOKUP($B$6,$A$25:$E$51,IF($B$8=$A$22,3,2))),EXP(VLOOKUP($B$6,$A$25:$E$51,4)*LN(VLOOKUP($H156,#REF!,$C$8+1)/1000)+VLOOKUP($B$6,$A$25:$E$51,5)),VLOOKUP($B$6,$A$25:$E$51,IF($B$8=$A$22,3,2))) -> 230000 | S156: 50.91666667 | T156: =VLOOKUP($S156,P_All!$X$5:$AS$245,3*($C$8-1)+2) -> 1085.8 | U156: =VLOOKUP($S156,P_All!$X$5:$AS$245,3*($C$8-1)+3) -> 1198.3 | V156: =VLOOKUP($S156,P_All!$X$5:$AS$245,3*($C$8-1)+4) -> 1359.5 | W156: =IF(ISNA(VLOOKUP($B$6,$A$25:$E$52,IF($B$8=$A$22,3,2))),EXP(VLOOKUP($B$6,$A$25:$E$52,4)*LN(VLOOKUP($S156,#REF!,$C$8+1)/1000)+VLOOKUP($B$6,$A$25:$E$52,5)),VLOOKUP($B$6,$A$25:$E$52,IF($B$8=$A$22,3,2))) -> 230000
H157: 132 | I157: =VLOOKUP($H157,P_All!$A$5:$D$205,3*($C$8-1)+2) -> 933 | J157: =VLOOKUP($H157,P_All!$A$5:$D$205,3*($C$8-1)+3) -> 1118.3 | K157: =VLOOKUP($H157,P_All!$A$5:$D$205,3*($C$8-1)+4) -> 1354.1 | L157: =IF(ISNA(VLOOKUP($B$6,$A$25:$E$51,IF($B$8=$A$22,3,2))),EXP(VLOOKUP($B$6,$A$25:$E$51,4)*LN(VLOOKUP($H157,#REF!,$C$8+1)/1000)+VLOOKUP($B$6,$A$25:$E$51,5)),VLOOKUP($B$6,$A$25:$E$51,IF($B$8=$A$22,3,2))) -> 230000 | M157: 132 | N157: =VLOOKUP($H157,P_All!$A$5:$D$205,3*($C$8-1)+2) -> 933 | O157: =VLOOKUP($H157,P_All!$A$5:$D$205,3*($C$8-1)+3) -> 1118.3 | P157: =VLOOKUP($H157,P_All!$A$5:$D$205,3*($C$8-1)+4) -> 1354.1 | Q157: =IF(ISNA(VLOOKUP($B$6,$A$25:$E$51,IF($B$8=$A$22,3,2))),EXP(VLOOKUP($B$6,$A$25:$E$51,4)*LN(VLOOKUP($H157,#REF!,$C$8+1)/1000)+VLOOKUP($B$6,$A$25:$E$51,5)),VLOOKUP($B$6,$A$25:$E$51,IF($B$8=$A$22,3,2))) -> 230000 | S157: 51 | T157: =VLOOKUP($S157,P_All!$X$5:$AS$245,3*($C$8-1)+2) -> 1083 | U157: =VLOOKUP($S157,P_All!$X$5:$AS$245,3*($C$8-1)+3) -> 1193 | V157: =VLOOKUP($S157,P_All!$X$5:$AS$245,3*($C$8-1)+4) -> 1350 | W157: =IF(ISNA(VLOOKUP($B$6,$A$25:$E$52,IF($B$8=$A$22,3,2))),EXP(VLOOKUP($B$6,$A$25:$E$52,4)*LN(VLOOKUP($S157,#REF!,$C$8+1)/1000)+VLOOKUP($B$6,$A$25:$E$52,5)),VLOOKUP($B$6,$A$25:$E$52,IF($B$8=$A$22,3,2))) -> 230000
H158: 133 | I158: =VLOOKUP($H158,P_All!$A$5:$D$205,3*($C$8-1)+2) -> 943.92 | J158: =VLOOKUP($H158,P_All!$A$5:$D$205,3*($C$8-1)+3) -> 1123.8 | K158: =VLOOKUP($H158,P_All!$A$5:$D$205,3*($C$8-1)+4) -> 1359.3 | L158: =IF(ISNA(VLOOKUP($B$6,$A$25:$E$51,IF($B$8=$A$22,3,2))),EXP(VLOOKUP($B$6,$A$25:$E$51,4)*LN(VLOOKUP($H158,#REF!,$C$8+1)/1000)+VLOOKUP($B$6,$A$25:$E$51,5)),VLOOKUP($B$6,$A$25:$E$51,IF($B$8=$A$22,3,2))) -> 230000 | M158: 133 | N158: =VLOOKUP($H158,P_All!$A$5:$D$205,3*($C$8-1)+2) -> 943.92 | O158: =VLOOKUP($H158,P_All!$A$5:$D$205,3*($C$8-1)+3) -> 1123.8 | P158: =VLOOKUP($H158,P_All!$A$5:$D$205,3*($C$8-1)+4) -> 1359.3 | Q158: =IF(ISNA(VLOOKUP($B$6,$A$25:$E$51,IF($B$8=$A$22,3,2))),EXP(VLOOKUP($B$6,$A$25:$E$51,4)*LN(VLOOKUP($H158,#REF!,$C$8+1)/1000)+VLOOKUP($B$6,$A$25:$E$51,5)),VLOOKUP($B$6,$A$25:$E$51,IF($B$8=$A$22,3,2))) -> 230000 | S158: 51.08333333 | T158: =VLOOKUP($S158,P_All!$X$5:$AS$245,3*($C$8-1)+2) -> 1083.4 | U158: =VLOOKUP($S158,P_All!$X$5:$AS$245,3*($C$8-1)+3) -> 1189.3 | V158: =VLOOKUP($S158,P_All!$X$5:$AS$245,3*($C$8-1)+4) -> 1342.1 | W158: =IF(ISNA(VLOOKUP($B$6,$A$25:$E$52,IF($B$8=$A$22,3,2))),EXP(VLOOKUP($B$6,$A$25:$E$52,4)*LN(VLOOKUP($S158,#REF!,$C$8+1)/1000)+VLOOKUP($B$6,$A$25:$E$52,5)),VLOOKUP($B$6,$A$25:$E$52,IF($B$8=$A$22,3,2))) -> 230000
H159: 134 | I159: =VLOOKUP($H159,P_All!$A$5:$D$205,3*($C$8-1)+2) -> 953.34 | J159: =VLOOKUP($H159,P_All!$A$5:$D$205,3*($C$8-1)+3) -> 1131 | K159: =VLOOKUP($H159,P_All!$A$5:$D$205,3*($C$8-1)+4) -> 1358.9 | L159: =IF(ISNA(VLOOKUP($B$6,$A$25:$E$51,IF($B$8=$A$22,3,2))),EXP(VLOOKUP($B$6,$A$25:$E$51,4)*LN(VLOOKUP($H159,#REF!,$C$8+1)/1000)+VLOOKUP($B$6,$A$25:$E$51,5)),VLOOKUP($B$6,$A$25:$E$51,IF($B$8=$A$22,3,2))) -> 230000 | M159: 134 | N159: =VLOOKUP($H159,P_All!$A$5:$D$205,3*($C$8-1)+2) -> 953.34 | O159: =VLOOKUP($H159,P_All!$A$5:$D$205,3*($C$8-1)+3) -> 1131 | P159: =VLOOKUP($H159,P_All!$A$5:$D$205,3*($C$8-1)+4) -> 1358.9 | Q159: =IF(ISNA(VLOOKUP($B$6,$A$25:$E$51,IF($B$8=$A$22,3,2))),EXP(VLOOKUP($B$6,$A$25:$E$51,4)*LN(VLOOKUP($H159,#REF!,$C$8+1)/1000)+VLOOKUP($B$6,$A$25:$E$51,5)),VLOOKUP($B$6,$A$25:$E$51,IF($B$8=$A$22,3,2))) -> 230000 | S159: 51.16666667 | T159: =VLOOKUP($S159,P_All!$X$5:$AS$245,3*($C$8-1)+2) -> 1085.9 | U159: =VLOOKUP($S159,P_All!$X$5:$AS$245,3*($C$8-1)+3) -> 1188.7 | V159: =VLOOKUP($S159,P_All!$X$5:$AS$245,3*($C$8-1)+4) -> 1339.5 | W159: =IF(ISNA(VLOOKUP($B$6,$A$25:$E$52,IF($B$8=$A$22,3,2))),EXP(VLOOKUP($B$6,$A$25:$E$52,4)*LN(VLOOKUP($S159,#REF!,$C$8+1)/1000)+VLOOKUP($B$6,$A$25:$E$52,5)),VLOOKUP($B$6,$A$25:$E$52,IF($B$8=$A$22,3,2))) -> 230000
H160: 135 | I160: =VLOOKUP($H160,P_All!$A$5:$D$205,3*($C$8-1)+2) -> 944.9 | J160: =VLOOKUP($H160,P_All!$A$5:$D$205,3*($C$8-1)+3) -> 1130 | K160: =VLOOKUP($H160,P_All!$A$5:$D$205,3*($C$8-1)+4) -> 1367.5 | L160: =IF(ISNA(VLOOKUP($B$6,$A$25:$E$51,IF($B$8=$A$22,3,2))),EXP(VLOOKUP($B$6,$A$25:$E$51,4)*LN(VLOOKUP($H160,#REF!,$C$8+1)/1000)+VLOOKUP($B$6,$A$25:$E$51,5)),VLOOKUP($B$6,$A$25:$E$51,IF($B$8=$A$22,3,2))) -> 230000 | M160: 135 | N160: =VLOOKUP($H160,P_All!$A$5:$D$205,3*($C$8-1)+2) -> 944.9 | O160: =VLOOKUP($H160,P_All!$A$5:$D$205,3*($C$8-1)+3) -> 1130 | P160: =VLOOKUP($H160,P_All!$A$5:$D$205,3*($C$8-1)+4) -> 1367.5 | Q160: =IF(ISNA(VLOOKUP($B$6,$A$25:$E$51,IF($B$8=$A$22,3,2))),EXP(VLOOKUP($B$6,$A$25:$E$51,4)*LN(VLOOKUP($H160,#REF!,$C$8+1)/1000)+VLOOKUP($B$6,$A$25:$E$51,5)),VLOOKUP($B$6,$A$25:$E$51,IF($B$8=$A$22,3,2))) -> 230000 | S160: 51.25 | T160: =VLOOKUP($S160,P_All!$X$5:$AS$245,3*($C$8-1)+2) -> 1090.6 | U160: =VLOOKUP($S160,P_All!$X$5:$AS$245,3*($C$8-1)+3) -> 1190.2 | V160: =VLOOKUP($S160,P_All!$X$5:$AS$245,3*($C$8-1)+4) -> 1340.1 | W160: =IF(ISNA(VLOOKUP($B$6,$A$25:$E$52,IF($B$8=$A$22,3,2))),EXP(VLOOKUP($B$6,$A$25:$E$52,4)*LN(VLOOKUP($S160,#REF!,$C$8+1)/1000)+VLOOKUP($B$6,$A$25:$E$52,5)),VLOOKUP($B$6,$A$25:$E$52,IF($B$8=$A$22,3,2))) -> 230000
H161: 136 | I161: =VLOOKUP($H161,P_All!$A$5:$D$205,3*($C$8-1)+2) -> 946.17 | J161: =VLOOKUP($H161,P_All!$A$5:$D$205,3*($C$8-1)+3) -> 1131.7 | K161: =VLOOKUP($H161,P_All!$A$5:$D$205,3*($C$8-1)+4) -> 1381.2 | L161: =IF(ISNA(VLOOKUP($B$6,$A$25:$E$51,IF($B$8=$A$22,3,2))),EXP(VLOOKUP($B$6,$A$25:$E$51,4)*LN(VLOOKUP($H161,#REF!,$C$8+1)/1000)+VLOOKUP($B$6,$A$25:$E$51,5)),VLOOKUP($B$6,$A$25:$E$51,IF($B$8=$A$22,3,2))) -> 230000 | M161: 136 | N161: =VLOOKUP($H161,P_All!$A$5:$D$205,3*($C$8-1)+2) -> 946.17 | O161: =VLOOKUP($H161,P_All!$A$5:$D$205,3*($C$8-1)+3) -> 1131.7 | P161: =VLOOKUP($H161,P_All!$A$5:$D$205,3*($C$8-1)+4) -> 1381.2 | Q161: =IF(ISNA(VLOOKUP($B$6,$A$25:$E$51,IF($B$8=$A$22,3,2))),EXP(VLOOKUP($B$6,$A$25:$E$51,4)*LN(VLOOKUP($H161,#REF!,$C$8+1)/1000)+VLOOKUP($B$6,$A$25:$E$51,5)),VLOOKUP($B$6,$A$25:$E$51,IF($B$8=$A$22,3,2))) -> 230000 | S161: 51.33333333 | T161: =VLOOKUP($S161,P_All!$X$5:$AS$245,3*($C$8-1)+2) -> 1111.4 | U161: =VLOOKUP($S161,P_All!$X$5:$AS$245,3*($C$8-1)+3) -> 1217.9 | V161: =VLOOKUP($S161,P_All!$X$5:$AS$245,3*($C$8-1)+4) -> 1363.9 | W161: =IF(ISNA(VLOOKUP($B$6,$A$25:$E$52,IF($B$8=$A$22,3,2))),EXP(VLOOKUP($B$6,$A$25:$E$52,4)*LN(VLOOKUP($S161,#REF!,$C$8+1)/1000)+VLOOKUP($B$6,$A$25:$E$52,5)),VLOOKUP($B$6,$A$25:$E$52,IF($B$8=$A$22,3,2))) -> 230000
H162: 137 | I162: =VLOOKUP($H162,P_All!$A$5:$D$205,3*($C$8-1)+2) -> 939.02 | J162: =VLOOKUP($H162,P_All!$A$5:$D$205,3*($C$8-1)+3) -> 1138.4 | K162: =VLOOKUP($H162,P_All!$A$5:$D$205,3*($C$8-1)+4) -> 1369.6 | L162: =IF(ISNA(VLOOKUP($B$6,$A$25:$E$51,IF($B$8=$A$22,3,2))),EXP(VLOOKUP($B$6,$A$25:$E$51,4)*LN(VLOOKUP($H162,#REF!,$C$8+1)/1000)+VLOOKUP($B$6,$A$25:$E$51,5)),VLOOKUP($B$6,$A$25:$E$51,IF($B$8=$A$22,3,2))) -> 230000 | M162: 137 | N162: =VLOOKUP($H162,P_All!$A$5:$D$205,3*($C$8-1)+2) -> 939.02 | O162: =VLOOKUP($H162,P_All!$A$5:$D$205,3*($C$8-1)+3) -> 1138.4 | P162: =VLOOKUP($H162,P_All!$A$5:$D$205,3*($C$8-1)+4) -> 1369.6 | Q162: =IF(ISNA(VLOOKUP($B$6,$A$25:$E$51,IF($B$8=$A$22,3,2))),EXP(VLOOKUP($B$6,$A$25:$E$51,4)*LN(VLOOKUP($H162,#REF!,$C$8+1)/1000)+VLOOKUP($B$6,$A$25:$E$51,5)),VLOOKUP($B$6,$A$25:$E$51,IF($B$8=$A$22,3,2))) -> 230000 | S162: 51.41666667 | T162: =VLOOKUP($S162,P_All!$X$5:$AS$245,3*($C$8-1)+2) -> 1121.3 | U162: =VLOOKUP($S162,P_All!$X$5:$AS$245,3*($C$8-1)+3) -> 1229.5 | V162: =VLOOKUP($S162,P_All!$X$5:$AS$245,3*($C$8-1)+4) -> 1378.6 | W162: =IF(ISNA(VLOOKUP($B$6,$A$25:$E$52,IF($B$8=$A$22,3,2))),EXP(VLOOKUP($B$6,$A$25:$E$52,4)*LN(VLOOKUP($S162,#REF!,$C$8+1)/1000)+VLOOKUP($B$6,$A$25:$E$52,5)),VLOOKUP($B$6,$A$25:$E$52,IF($B$8=$A$22,3,2))) -> 230000
H163: 138 | I163: =VLOOKUP($H163,P_All!$A$5:$D$205,3*($C$8-1)+2) -> 934.5 | J163: =VLOOKUP($H163,P_All!$A$5:$D$205,3*($C$8-1)+3) -> 1122 | K163: =VLOOKUP($H163,P_All!$A$5:$D$205,3*($C$8-1)+4) -> 1352.9 | L163: =IF(ISNA(VLOOKUP($B$6,$A$25:$E$51,IF($B$8=$A$22,3,2))),EXP(VLOOKUP($B$6,$A$25:$E$51,4)*LN(VLOOKUP($H163,#REF!,$C$8+1)/1000)+VLOOKUP($B$6,$A$25:$E$51,5)),VLOOKUP($B$6,$A$25:$E$51,IF($B$8=$A$22,3,2))) -> 230000 | M163: 138 | N163: =VLOOKUP($H163,P_All!$A$5:$D$205,3*($C$8-1)+2) -> 934.5 | O163: =VLOOKUP($H163,P_All!$A$5:$D$205,3*($C$8-1)+3) -> 1122 | P163: =VLOOKUP($H163,P_All!$A$5:$D$205,3*($C$8-1)+4) -> 1352.9 | Q163: =IF(ISNA(VLOOKUP($B$6,$A$25:$E$51,IF($B$8=$A$22,3,2))),EXP(VLOOKUP($B$6,$A$25:$E$51,4)*LN(VLOOKUP($H163,#REF!,$C$8+1)/1000)+VLOOKUP($B$6,$A$25:$E$51,5)),VLOOKUP($B$6,$A$25:$E$51,IF($B$8=$A$22,3,2))) -> 230000 | S163: 51.5 | T163: =VLOOKUP($S163,P_All!$X$5:$AS$245,3*($C$8-1)+2) -> 1113.9 | U163: =VLOOKUP($S163,P_All!$X$5:$AS$245,3*($C$8-1)+3) -> 1225.7 | V163: =VLOOKUP($S163,P_All!$X$5:$AS$245,3*($C$8-1)+4) -> 1366.3 | W163: =IF(ISNA(VLOOKUP($B$6,$A$25:$E$52,IF($B$8=$A$22,3,2))),EXP(VLOOKUP($B$6,$A$25:$E$52,4)*LN(VLOOKUP($S163,#REF!,$C$8+1)/1000)+VLOOKUP($B$6,$A$25:$E$52,5)),VLOOKUP($B$6,$A$25:$E$52,IF($B$8=$A$22,3,2))) -> 230000
H164: 139 | I164: =VLOOKUP($H164,P_All!$A$5:$D$205,3*($C$8-1)+2) -> 933.41 | J164: =VLOOKUP($H164,P_All!$A$5:$D$205,3*($C$8-1)+3) -> 1134.6 | K164: =VLOOKUP($H164,P_All!$A$5:$D$205,3*($C$8-1)+4) -> 1354.3 | L164: =IF(ISNA(VLOOKUP($B$6,$A$25:$E$51,IF($B$8=$A$22,3,2))),EXP(VLOOKUP($B$6,$A$25:$E$51,4)*LN(VLOOKUP($H164,#REF!,$C$8+1)/1000)+VLOOKUP($B$6,$A$25:$E$51,5)),VLOOKUP($B$6,$A$25:$E$51,IF($B$8=$A$22,3,2))) -> 230000 | M164: 139 | N164: =VLOOKUP($H164,P_All!$A$5:$D$205,3*($C$8-1)+2) -> 933.41 | O164: =VLOOKUP($H164,P_All!$A$5:$D$205,3*($C$8-1)+3) -> 1134.6 | P164: =VLOOKUP($H164,P_All!$A$5:$D$205,3*($C$8-1)+4) -> 1354.3 | Q164: =IF(ISNA(VLOOKUP($B$6,$A$25:$E$51,IF($B$8=$A$22,3,2))),EXP(VLOOKUP($B$6,$A$25:$E$51,4)*LN(VLOOKUP($H164,#REF!,$C$8+1)/1000)+VLOOKUP($B$6,$A$25:$E$51,5)),VLOOKUP($B$6,$A$25:$E$51,IF($B$8=$A$22,3,2))) -> 230000 | S164: 51.58333333 | T164: =VLOOKUP($S164,P_All!$X$5:$AS$245,3*($C$8-1)+2) -> 1103 | U164: =VLOOKUP($S164,P_All!$X$5:$AS$245,3*($C$8-1)+3) -> 1219.5 | V164: =VLOOKUP($S164,P_All!$X$5:$AS$245,3*($C$8-1)+4) -> 1370.4 | W164: =IF(ISNA(VLOOKUP($B$6,$A$25:$E$52,IF($B$8=$A$22,3,2))),EXP(VLOOKUP($B$6,$A$25:$E$52,4)*LN(VLOOKUP($S164,#REF!,$C$8+1)/1000)+VLOOKUP($B$6,$A$25:$E$52,5)),VLOOKUP($B$6,$A$25:$E$52,IF($B$8=$A$22,3,2))) -> 230000
H165: 140 | I165: =VLOOKUP($H165,P_All!$A$5:$D$205,3*($C$8-1)+2) -> 928.49 | J165: =VLOOKUP($H165,P_All!$A$5:$D$205,3*($C$8-1)+3) -> 1126.3 | K165: =VLOOKUP($H165,P_All!$A$5:$D$205,3*($C$8-1)+4) -> 1356.8 | L165: =IF(ISNA(VLOOKUP($B$6,$A$25:$E$51,IF($B$8=$A$22,3,2))),EXP(VLOOKUP($B$6,$A$25:$E$51,4)*LN(VLOOKUP($H165,#REF!,$C$8+1)/1000)+VLOOKUP($B$6,$A$25:$E$51,5)),VLOOKUP($B$6,$A$25:$E$51,IF($B$8=$A$22,3,2))) -> 230000 | M165: 140 | N165: =VLOOKUP($H165,P_All!$A$5:$D$205,3*($C$8-1)+2) -> 928.49 | O165: =VLOOKUP($H165,P_All!$A$5:$D$205,3*($C$8-1)+3) -> 1126.3 | P165: =VLOOKUP($H165,P_All!$A$5:$D$205,3*($C$8-1)+4) -> 1356.8 | Q165: =IF(ISNA(VLOOKUP($B$6,$A$25:$E$51,IF($B$8=$A$22,3,2))),EXP(VLOOKUP($B$6,$A$25:$E$51,4)*LN(VLOOKUP($H165,#REF!,$C$8+1)/1000)+VLOOKUP($B$6,$A$25:$E$51,5)),VLOOKUP($B$6,$A$25:$E$51,IF($B$8=$A$22,3,2))) -> 230000 | S165: 51.66666667 | T165: =VLOOKUP($S165,P_All!$X$5:$AS$245,3*($C$8-1)+2) -> 1094.6 | U165: =VLOOKUP($S165,P_All!$X$5:$AS$245,3*($C$8-1)+3) -> 1211.1 | V165: =VLOOKUP($S165,P_All!$X$5:$AS$245,3*($C$8-1)+4) -> 1372.4 | W165: =IF(ISNA(VLOOKUP($B$6,$A$25:$E$52,IF($B$8=$A$22,3,2))),EXP(VLOOKUP($B$6,$A$25:$E$52,4)*LN(VLOOKUP($S165,#REF!,$C$8+1)/1000)+VLOOKUP($B$6,$A$25:$E$52,5)),VLOOKUP($B$6,$A$25:$E$52,IF($B$8=$A$22,3,2))) -> 230000
H166: 141 | I166: =VLOOKUP($H166,P_All!$A$5:$D$205,3*($C$8-1)+2) -> 936.29 | J166: =VLOOKUP($H166,P_All!$A$5:$D$205,3*($C$8-1)+3) -> 1121 | K166: =VLOOKUP($H166,P_All!$A$5:$D$205,3*($C$8-1)+4) -> 1362.2 | L166: =IF(ISNA(VLOOKUP($B$6,$A$25:$E$51,IF($B$8=$A$22,3,2))),EXP(VLOOKUP($B$6,$A$25:$E$51,4)*LN(VLOOKUP($H166,#REF!,$C$8+1)/1000)+VLOOKUP($B$6,$A$25:$E$51,5)),VLOOKUP($B$6,$A$25:$E$51,IF($B$8=$A$22,3,2))) -> 230000 | M166: 141 | N166: =VLOOKUP($H166,P_All!$A$5:$D$205,3*($C$8-1)+2) -> 936.29 | O166: =VLOOKUP($H166,P_All!$A$5:$D$205,3*($C$8-1)+3) -> 1121 | P166: =VLOOKUP($H166,P_All!$A$5:$D$205,3*($C$8-1)+4) -> 1362.2 | Q166: =IF(ISNA(VLOOKUP($B$6,$A$25:$E$51,IF($B$8=$A$22,3,2))),EXP(VLOOKUP($B$6,$A$25:$E$51,4)*LN(VLOOKUP($H166,#REF!,$C$8+1)/1000)+VLOOKUP($B$6,$A$25:$E$51,5)),VLOOKUP($B$6,$A$25:$E$51,IF($B$8=$A$22,3,2))) -> 230000 | S166: 51.75 | T166: =VLOOKUP($S166,P_All!$X$5:$AS$245,3*($C$8-1)+2) -> 1083 | U166: =VLOOKUP($S166,P_All!$X$5:$AS$245,3*($C$8-1)+3) -> 1199.2 | V166: =VLOOKUP($S166,P_All!$X$5:$AS$245,3*($C$8-1)+4) -> 1360.7 | W166: =IF(ISNA(VLOOKUP($B$6,$A$25:$E$52,IF($B$8=$A$22,3,2))),EXP(VLOOKUP($B$6,$A$25:$E$52,4)*LN(VLOOKUP($S166,#REF!,$C$8+1)/1000)+VLOOKUP($B$6,$A$25:$E$52,5)),VLOOKUP($B$6,$A$25:$E$52,IF($B$8=$A$22,3,2))) -> 230000
H167: 142 | I167: =VLOOKUP($H167,P_All!$A$5:$D$205,3*($C$8-1)+2) -> 937.84 | J167: =VLOOKUP($H167,P_All!$A$5:$D$205,3*($C$8-1)+3) -> 1119.2 | K167: =VLOOKUP($H167,P_All!$A$5:$D$205,3*($C$8-1)+4) -> 1380.2 | L167: =IF(ISNA(VLOOKUP($B$6,$A$25:$E$51,IF($B$8=$A$22,3,2))),EXP(VLOOKUP($B$6,$A$25:$E$51,4)*LN(VLOOKUP($H167,#REF!,$C$8+1)/1000)+VLOOKUP($B$6,$A$25:$E$51,5)),VLOOKUP($B$6,$A$25:$E$51,IF($B$8=$A$22,3,2))) -> 230000 | M167: 142 | N167: =VLOOKUP($H167,P_All!$A$5:$D$205,3*($C$8-1)+2) -> 937.84 | O167: =VLOOKUP($H167,P_All!$A$5:$D$205,3*($C$8-1)+3) -> 1119.2 | P167: =VLOOKUP($H167,P_All!$A$5:$D$205,3*($C$8-1)+4) -> 1380.2 | Q167: =IF(ISNA(VLOOKUP($B$6,$A$25:$E$51,IF($B$8=$A$22,3,2))),EXP(VLOOKUP($B$6,$A$25:$E$51,4)*LN(VLOOKUP($H167,#REF!,$C$8+1)/1000)+VLOOKUP($B$6,$A$25:$E$51,5)),VLOOKUP($B$6,$A$25:$E$51,IF($B$8=$A$22,3,2))) -> 230000 | S167: 51.83333333 | T167: =VLOOKUP($S167,P_All!$X$5:$AS$245,3*($C$8-1)+2) -> 1078 | U167: =VLOOKUP($S167,P_All!$X$5:$AS$245,3*($C$8-1)+3) -> 1194.9 | V167: =VLOOKUP($S167,P_All!$X$5:$AS$245,3*($C$8-1)+4) -> 1357.2 | W167: =IF(ISNA(VLOOKUP($B$6,$A$25:$E$52,IF($B$8=$A$22,3,2))),EXP(VLOOKUP($B$6,$A$25:$E$52,4)*LN(VLOOKUP($S167,#REF!,$C$8+1)/1000)+VLOOKUP($B$6,$A$25:$E$52,5)),VLOOKUP($B$6,$A$25:$E$52,IF($B$8=$A$22,3,2))) -> 230000
H168: 143 | I168: =VLOOKUP($H168,P_All!$A$5:$D$205,3*($C$8-1)+2) -> 937.48 | J168: =VLOOKUP($H168,P_All!$A$5:$D$205,3*($C$8-1)+3) -> 1113.2 | K168: =VLOOKUP($H168,P_All!$A$5:$D$205,3*($C$8-1)+4) -> 1376 | L168: =IF(ISNA(VLOOKUP($B$6,$A$25:$E$51,IF($B$8=$A$22,3,2))),EXP(VLOOKUP($B$6,$A$25:$E$51,4)*LN(VLOOKUP($H168,#REF!,$C$8+1)/1000)+VLOOKUP($B$6,$A$25:$E$51,5)),VLOOKUP($B$6,$A$25:$E$51,IF($B$8=$A$22,3,2))) -> 230000 | M168: 143 | N168: =VLOOKUP($H168,P_All!$A$5:$D$205,3*($C$8-1)+2) -> 937.48 | O168: =VLOOKUP($H168,P_All!$A$5:$D$205,3*($C$8-1)+3) -> 1113.2 | P168: =VLOOKUP($H168,P_All!$A$5:$D$205,3*($C$8-1)+4) -> 1376 | Q168: =IF(ISNA(VLOOKUP($B$6,$A$25:$E$51,IF($B$8=$A$22,3,2))),EXP(VLOOKUP($B$6,$A$25:$E$51,4)*LN(VLOOKUP($H168,#REF!,$C$8+1)/1000)+VLOOKUP($B$6,$A$25:$E$51,5)),VLOOKUP($B$6,$A$25:$E$51,IF($B$8=$A$22,3,2))) -> 230000 | S168: 51.91666667 | T168: =VLOOKUP($S168,P_All!$X$5:$AS$245,3*($C$8-1)+2) -> 1076.5 | U168: =VLOOKUP($S168,P_All!$X$5:$AS$245,3*($C$8-1)+3) -> 1193 | V168: =VLOOKUP($S168,P_All!$X$5:$AS$245,3*($C$8-1)+4) -> 1354 | W168: =IF(ISNA(VLOOKUP($B$6,$A$25:$E$52,IF($B$8=$A$22,3,2))),EXP(VLOOKUP($B$6,$A$25:$E$52,4)*LN(VLOOKUP($S168,#REF!,$C$8+1)/1000)+VLOOKUP($B$6,$A$25:$E$52,5)),VLOOKUP($B$6,$A$25:$E$52,IF($B$8=$A$22,3,2))) -> 230000
H169: 144 | I169: =VLOOKUP($H169,P_All!$A$5:$D$205,3*($C$8-1)+2) -> 937.8 | J169: =VLOOKUP($H169,P_All!$A$5:$D$205,3*($C$8-1)+3) -> 1118.1 | K169: =VLOOKUP($H169,P_All!$A$5:$D$205,3*($C$8-1)+4) -> 1372.5 | L169: =IF(ISNA(VLOOKUP($B$6,$A$25:$E$51,IF($B$8=$A$22,3,2))),EXP(VLOOKUP($B$6,$A$25:$E$51,4)*LN(VLOOKUP($H169,#REF!,$C$8+1)/1000)+VLOOKUP($B$6,$A$25:$E$51,5)),VLOOKUP($B$6,$A$25:$E$51,IF($B$8=$A$22,3,2))) -> 230000 | M169: 144 | N169: =VLOOKUP($H169,P_All!$A$5:$D$205,3*($C$8-1)+2) -> 937.8 | O169: =VLOOKUP($H169,P_All!$A$5:$D$205,3*($C$8-1)+3) -> 1118.1 | P169: =VLOOKUP($H169,P_All!$A$5:$D$205,3*($C$8-1)+4) -> 1372.5 | Q169: =IF(ISNA(VLOOKUP($B$6,$A$25:$E$51,IF($B$8=$A$22,3,2))),EXP(VLOOKUP($B$6,$A$25:$E$51,4)*LN(VLOOKUP($H169,#REF!,$C$8+1)/1000)+VLOOKUP($B$6,$A$25:$E$51,5)),VLOOKUP($B$6,$A$25:$E$51,IF($B$8=$A$22,3,2))) -> 230000 | S169: 52 | T169: =VLOOKUP($S169,P_All!$X$5:$AS$245,3*($C$8-1)+2) -> 1072.3 | U169: =VLOOKUP($S169,P_All!$X$5:$AS$245,3*($C$8-1)+3) -> 1187 | V169: =VLOOKUP($S169,P_All!$X$5:$AS$245,3*($C$8-1)+4) -> 1345.5 | W169: =IF(ISNA(VLOOKUP($B$6,$A$25:$E$52,IF($B$8=$A$22,3,2))),EXP(VLOOKUP($B$6,$A$25:$E$52,4)*LN(VLOOKUP($S169,#REF!,$C$8+1)/1000)+VLOOKUP($B$6,$A$25:$E$52,5)),VLOOKUP($B$6,$A$25:$E$52,IF($B$8=$A$22,3,2))) -> 230000
H170: 145 | I170: =VLOOKUP($H170,P_All!$A$5:$D$205,3*($C$8-1)+2) -> 937.44 | J170: =VLOOKUP($H170,P_All!$A$5:$D$205,3*($C$8-1)+3) -> 1122.8 | K170: =VLOOKUP($H170,P_All!$A$5:$D$205,3*($C$8-1)+4) -> 1380.2 | L170: =IF(ISNA(VLOOKUP($B$6,$A$25:$E$51,IF($B$8=$A$22,3,2))),EXP(VLOOKUP($B$6,$A$25:$E$51,4)*LN(VLOOKUP($H170,#REF!,$C$8+1)/1000)+VLOOKUP($B$6,$A$25:$E$51,5)),VLOOKUP($B$6,$A$25:$E$51,IF($B$8=$A$22,3,2))) -> 230000 | M170: 145 | N170: =VLOOKUP($H170,P_All!$A$5:$D$205,3*($C$8-1)+2) -> 937.44 | O170: =VLOOKUP($H170,P_All!$A$5:$D$205,3*($C$8-1)+3) -> 1122.8 | P170: =VLOOKUP($H170,P_All!$A$5:$D$205,3*($C$8-1)+4) -> 1380.2 | Q170: =IF(ISNA(VLOOKUP($B$6,$A$25:$E$51,IF($B$8=$A$22,3,2))),EXP(VLOOKUP($B$6,$A$25:$E$51,4)*LN(VLOOKUP($H170,#REF!,$C$8+1)/1000)+VLOOKUP($B$6,$A$25:$E$51,5)),VLOOKUP($B$6,$A$25:$E$51,IF($B$8=$A$22,3,2))) -> 230000 | S170: 52.08333333 | T170: =VLOOKUP($S170,P_All!$X$5:$AS$245,3*($C$8-1)+2) -> 1071 | U170: =VLOOKUP($S170,P_All!$X$5:$AS$245,3*($C$8-1)+3) -> 1183.3 | V170: =VLOOKUP($S170,P_All!$X$5:$AS$245,3*($C$8-1)+4) -> 1338.5 | W170: =IF(ISNA(VLOOKUP($B$6,$A$25:$E$52,IF($B$8=$A$22,3,2))),EXP(VLOOKUP($B$6,$A$25:$E$52,4)*LN(VLOOKUP($S170,#REF!,$C$8+1)/1000)+VLOOKUP($B$6,$A$25:$E$52,5)),VLOOKUP($B$6,$A$25:$E$52,IF($B$8=$A$22,3,2))) -> 230000
H171: 146 | I171: =VLOOKUP($H171,P_All!$A$5:$D$205,3*($C$8-1)+2) -> 934.95 | J171: =VLOOKUP($H171,P_All!$A$5:$D$205,3*($C$8-1)+3) -> 1130 | K171: =VLOOKUP($H171,P_All!$A$5:$D$205,3*($C$8-1)+4) -> 1368.2 | L171: =IF(ISNA(VLOOKUP($B$6,$A$25:$E$51,IF($B$8=$A$22,3,2))),EXP(VLOOKUP($B$6,$A$25:$E$51,4)*LN(VLOOKUP($H171,#REF!,$C$8+1)/1000)+VLOOKUP($B$6,$A$25:$E$51,5)),VLOOKUP($B$6,$A$25:$E$51,IF($B$8=$A$22,3,2))) -> 230000 | M171: 146 | N171: =VLOOKUP($H171,P_All!$A$5:$D$205,3*($C$8-1)+2) -> 934.95 | O171: =VLOOKUP($H171,P_All!$A$5:$D$205,3*($C$8-1)+3) -> 1130 | P171: =VLOOKUP($H171,P_All!$A$5:$D$205,3*($C$8-1)+4) -> 1368.2 | Q171: =IF(ISNA(VLOOKUP($B$6,$A$25:$E$51,IF($B$8=$A$22,3,2))),EXP(VLOOKUP($B$6,$A$25:$E$51,4)*LN(VLOOKUP($H171,#REF!,$C$8+1)/1000)+VLOOKUP($B$6,$A$25:$E$51,5)),VLOOKUP($B$6,$A$25:$E$51,IF($B$8=$A$22,3,2))) -> 230000 | S171: 52.16666667 | T171: =VLOOKUP($S171,P_All!$X$5:$AS$245,3*($C$8-1)+2) -> 1071.9 | U171: =VLOOKUP($S171,P_All!$X$5:$AS$245,3*($C$8-1)+3) -> 1182.1 | V171: =VLOOKUP($S171,P_All!$X$5:$AS$245,3*($C$8-1)+4) -> 1332.6 | W171: =IF(ISNA(VLOOKUP($B$6,$A$25:$E$52,IF($B$8=$A$22,3,2))),EXP(VLOOKUP($B$6,$A$25:$E$52,4)*LN(VLOOKUP($S171,#REF!,$C$8+1)/1000)+VLOOKUP($B$6,$A$25:$E$52,5)),VLOOKUP($B$6,$A$25:$E$52,IF($B$8=$A$22,3,2))) -> 230000
H172: 147 | I172: =VLOOKUP($H172,P_All!$A$5:$D$205,3*($C$8-1)+2) -> 947.56 | J172: =VLOOKUP($H172,P_All!$A$5:$D$205,3*($C$8-1)+3) -> 1124.1 | K172: =VLOOKUP($H172,P_All!$A$5:$D$205,3*($C$8-1)+4) -> 1349.6 | L172: =IF(ISNA(VLOOKUP($B$6,$A$25:$E$51,IF($B$8=$A$22,3,2))),EXP(VLOOKUP($B$6,$A$25:$E$51,4)*LN(VLOOKUP($H172,#REF!,$C$8+1)/1000)+VLOOKUP($B$6,$A$25:$E$51,5)),VLOOKUP($B$6,$A$25:$E$51,IF($B$8=$A$22,3,2))) -> 230000 | M172: 147 | N172: =VLOOKUP($H172,P_All!$A$5:$D$205,3*($C$8-1)+2) -> 947.56 | O172: =VLOOKUP($H172,P_All!$A$5:$D$205,3*($C$8-1)+3) -> 1124.1 | P172: =VLOOKUP($H172,P_All!$A$5:$D$205,3*($C$8-1)+4) -> 1349.6 | Q172: =IF(ISNA(VLOOKUP($B$6,$A$25:$E$51,IF($B$8=$A$22,3,2))),EXP(VLOOKUP($B$6,$A$25:$E$51,4)*LN(VLOOKUP($H172,#REF!,$C$8+1)/1000)+VLOOKUP($B$6,$A$25:$E$51,5)),VLOOKUP($B$6,$A$25:$E$51,IF($B$8=$A$22,3,2))) -> 230000 | S172: 52.25 | T172: =VLOOKUP($S172,P_All!$X$5:$AS$245,3*($C$8-1)+2) -> 1078.5 | U172: =VLOOKUP($S172,P_All!$X$5:$AS$245,3*($C$8-1)+3) -> 1187 | V172: =VLOOKUP($S172,P_All!$X$5:$AS$245,3*($C$8-1)+4) -> 1339.1 | W172: =IF(ISNA(VLOOKUP($B$6,$A$25:$E$52,IF($B$8=$A$22,3,2))),EXP(VLOOKUP($B$6,$A$25:$E$52,4)*LN(VLOOKUP($S172,#REF!,$C$8+1)/1000)+VLOOKUP($B$6,$A$25:$E$52,5)),VLOOKUP($B$6,$A$25:$E$52,IF($B$8=$A$22,3,2))) -> 230000
H173: 148 | I173: =VLOOKUP($H173,P_All!$A$5:$D$205,3*($C$8-1)+2) -> 936.83 | J173: =VLOOKUP($H173,P_All!$A$5:$D$205,3*($C$8-1)+3) -> 1118.5 | K173: =VLOOKUP($H173,P_All!$A$5:$D$205,3*($C$8-1)+4) -> 1371 | L173: =IF(ISNA(VLOOKUP($B$6,$A$25:$E$51,IF($B$8=$A$22,3,2))),EXP(VLOOKUP($B$6,$A$25:$E$51,4)*LN(VLOOKUP($H173,#REF!,$C$8+1)/1000)+VLOOKUP($B$6,$A$25:$E$51,5)),VLOOKUP($B$6,$A$25:$E$51,IF($B$8=$A$22,3,2))) -> 230000 | M173: 148 | N173: =VLOOKUP($H173,P_All!$A$5:$D$205,3*($C$8-1)+2) -> 936.83 | O173: =VLOOKUP($H173,P_All!$A$5:$D$205,3*($C$8-1)+3) -> 1118.5 | P173: =VLOOKUP($H173,P_All!$A$5:$D$205,3*($C$8-1)+4) -> 1371 | Q173: =IF(ISNA(VLOOKUP($B$6,$A$25:$E$51,IF($B$8=$A$22,3,2))),EXP(VLOOKUP($B$6,$A$25:$E$51,4)*LN(VLOOKUP($H173,#REF!,$C$8+1)/1000)+VLOOKUP($B$6,$A$25:$E$51,5)),VLOOKUP($B$6,$A$25:$E$51,IF($B$8=$A$22,3,2))) -> 230000 | S173: 52.33333333 | T173: =VLOOKUP($S173,P_All!$X$5:$AS$245,3*($C$8-1)+2) -> 1093.3 | U173: =VLOOKUP($S173,P_All!$X$5:$AS$245,3*($C$8-1)+3) -> 1212.6 | V173: =VLOOKUP($S173,P_All!$X$5:$AS$245,3*($C$8-1)+4) -> 1361.1 | W173: =IF(ISNA(VLOOKUP($B$6,$A$25:$E$52,IF($B$8=$A$22,3,2))),EXP(VLOOKUP($B$6,$A$25:$E$52,4)*LN(VLOOKUP($S173,#REF!,$C$8+1)/1000)+VLOOKUP($B$6,$A$25:$E$52,5)),VLOOKUP($B$6,$A$25:$E$52,IF($B$8=$A$22,3,2))) -> 230000
H174: 149 | I174: =VLOOKUP($H174,P_All!$A$5:$D$205,3*($C$8-1)+2) -> 935.84 | J174: =VLOOKUP($H174,P_All!$A$5:$D$205,3*($C$8-1)+3) -> 1114.6 | K174: =VLOOKUP($H174,P_All!$A$5:$D$205,3*($C$8-1)+4) -> 1369.3 | L174: =IF(ISNA(VLOOKUP($B$6,$A$25:$E$51,IF($B$8=$A$22,3,2))),EXP(VLOOKUP($B$6,$A$25:$E$51,4)*LN(VLOOKUP($H174,#REF!,$C$8+1)/1000)+VLOOKUP($B$6,$A$25:$E$51,5)),VLOOKUP($B$6,$A$25:$E$51,IF($B$8=$A$22,3,2))) -> 230000 | M174: 149 | N174: =VLOOKUP($H174,P_All!$A$5:$D$205,3*($C$8-1)+2) -> 935.84 | O174: =VLOOKUP($H174,P_All!$A$5:$D$205,3*($C$8-1)+3) -> 1114.6 | P174: =VLOOKUP($H174,P_All!$A$5:$D$205,3*($C$8-1)+4) -> 1369.3 | Q174: =IF(ISNA(VLOOKUP($B$6,$A$25:$E$51,IF($B$8=$A$22,3,2))),EXP(VLOOKUP($B$6,$A$25:$E$51,4)*LN(VLOOKUP($H174,#REF!,$C$8+1)/1000)+VLOOKUP($B$6,$A$25:$E$51,5)),VLOOKUP($B$6,$A$25:$E$51,IF($B$8=$A$22,3,2))) -> 230000 | S174: 52.41666667 | T174: =VLOOKUP($S174,P_All!$X$5:$AS$245,3*($C$8-1)+2) -> 1102.8 | U174: =VLOOKUP($S174,P_All!$X$5:$AS$245,3*($C$8-1)+3) -> 1220.2 | V174: =VLOOKUP($S174,P_All!$X$5:$AS$245,3*($C$8-1)+4) -> 1395.5 | W174: =IF(ISNA(VLOOKUP($B$6,$A$25:$E$52,IF($B$8=$A$22,3,2))),EXP(VLOOKUP($B$6,$A$25:$E$52,4)*LN(VLOOKUP($S174,#REF!,$C$8+1)/1000)+VLOOKUP($B$6,$A$25:$E$52,5)),VLOOKUP($B$6,$A$25:$E$52,IF($B$8=$A$22,3,2))) -> 230000
H175: 150 | I175: =VLOOKUP($H175,P_All!$A$5:$D$205,3*($C$8-1)+2) -> 942.14 | J175: =VLOOKUP($H175,P_All!$A$5:$D$205,3*($C$8-1)+3) -> 1119.8 | K175: =VLOOKUP($H175,P_All!$A$5:$D$205,3*($C$8-1)+4) -> 1360.7 | L175: =IF(ISNA(VLOOKUP($B$6,$A$25:$E$51,IF($B$8=$A$22,3,2))),EXP(VLOOKUP($B$6,$A$25:$E$51,4)*LN(VLOOKUP($H175,#REF!,$C$8+1)/1000)+VLOOKUP($B$6,$A$25:$E$51,5)),VLOOKUP($B$6,$A$25:$E$51,IF($B$8=$A$22,3,2))) -> 230000 | M175: 150 | N175: =VLOOKUP($H175,P_All!$A$5:$D$205,3*($C$8-1)+2) -> 942.14 | O175: =VLOOKUP($H175,P_All!$A$5:$D$205,3*($C$8-1)+3) -> 1119.8 | P175: =VLOOKUP($H175,P_All!$A$5:$D$205,3*($C$8-1)+4) -> 1360.7 | Q175: =IF(ISNA(VLOOKUP($B$6,$A$25:$E$51,IF($B$8=$A$22,3,2))),EXP(VLOOKUP($B$6,$A$25:$E$51,4)*LN(VLOOKUP($H175,#REF!,$C$8+1)/1000)+VLOOKUP($B$6,$A$25:$E$51,5)),VLOOKUP($B$6,$A$25:$E$51,IF($B$8=$A$22,3,2))) -> 230000 | S175: 52.5 | T175: =VLOOKUP($S175,P_All!$X$5:$AS$245,3*($C$8-1)+2) -> 1093.3 | U175: =VLOOKUP($S175,P_All!$X$5:$AS$245,3*($C$8-1)+3) -> 1211.1 | V175: =VLOOKUP($S175,P_All!$X$5:$AS$245,3*($C$8-1)+4) -> 1390.1 | W175: =IF(ISNA(VLOOKUP($B$6,$A$25:$E$52,IF($B$8=$A$22,3,2))),EXP(VLOOKUP($B$6,$A$25:$E$52,4)*LN(VLOOKUP($S175,#REF!,$C$8+1)/1000)+VLOOKUP($B$6,$A$25:$E$52,5)),VLOOKUP($B$6,$A$25:$E$52,IF($B$8=$A$22,3,2))) -> 230000
H176: 151 | I176: =VLOOKUP($H176,P_All!$A$5:$D$205,3*($C$8-1)+2) -> 953.28 | J176: =VLOOKUP($H176,P_All!$A$5:$D$205,3*($C$8-1)+3) -> 1114 | K176: =VLOOKUP($H176,P_All!$A$5:$D$205,3*($C$8-1)+4) -> 1356.8 | L176: =IF(ISNA(VLOOKUP($B$6,$A$25:$E$51,IF($B$8=$A$22,3,2))),EXP(VLOOKUP($B$6,$A$25:$E$51,4)*LN(VLOOKUP($H176,#REF!,$C$8+1)/1000)+VLOOKUP($B$6,$A$25:$E$51,5)),VLOOKUP($B$6,$A$25:$E$51,IF($B$8=$A$22,3,2))) -> 230000 | M176: 151 | N176: =VLOOKUP($H176,P_All!$A$5:$D$205,3*($C$8-1)+2) -> 953.28 | O176: =VLOOKUP($H176,P_All!$A$5:$D$205,3*($C$8-1)+3) -> 1114 | P176: =VLOOKUP($H176,P_All!$A$5:$D$205,3*($C$8-1)+4) -> 1356.8 | Q176: =IF(ISNA(VLOOKUP($B$6,$A$25:$E$51,IF($B$8=$A$22,3,2))),EXP(VLOOKUP($B$6,$A$25:$E$51,4)*LN(VLOOKUP($H176,#REF!,$C$8+1)/1000)+VLOOKUP($B$6,$A$25:$E$51,5)),VLOOKUP($B$6,$A$25:$E$51,IF($B$8=$A$22,3,2))) -> 230000 | S176: 52.58333333 | T176: =VLOOKUP($S176,P_All!$X$5:$AS$245,3*($C$8-1)+2) -> 1089.4 | U176: =VLOOKUP($S176,P_All!$X$5:$AS$245,3*($C$8-1)+3) -> 1205.2 | V176: =VLOOKUP($S176,P_All!$X$5:$AS$245,3*($C$8-1)+4) -> 1386.2 | W176: =IF(ISNA(VLOOKUP($B$6,$A$25:$E$52,IF($B$8=$A$22,3,2))),EXP(VLOOKUP($B$6,$A$25:$E$52,4)*LN(VLOOKUP($S176,#REF!,$C$8+1)/1000)+VLOOKUP($B$6,$A$25:$E$52,5)),VLOOKUP($B$6,$A$25:$E$52,IF($B$8=$A$22,3,2))) -> 230000
H177: 152 | I177: =VLOOKUP($H177,P_All!$A$5:$D$205,3*($C$8-1)+2) -> 946.49 | J177: =VLOOKUP($H177,P_All!$A$5:$D$205,3*($C$8-1)+3) -> 1117.5 | K177: =VLOOKUP($H177,P_All!$A$5:$D$205,3*($C$8-1)+4) -> 1359.2 | L177: =IF(ISNA(VLOOKUP($B$6,$A$25:$E$51,IF($B$8=$A$22,3,2))),EXP(VLOOKUP($B$6,$A$25:$E$51,4)*LN(VLOOKUP($H177,#REF!,$C$8+1)/1000)+VLOOKUP($B$6,$A$25:$E$51,5)),VLOOKUP($B$6,$A$25:$E$51,IF($B$8=$A$22,3,2))) -> 230000 | M177: 152 | N177: =VLOOKUP($H177,P_All!$A$5:$D$205,3*($C$8-1)+2) -> 946.49 | O177: =VLOOKUP($H177,P_All!$A$5:$D$205,3*($C$8-1)+3) -> 1117.5 | P177: =VLOOKUP($H177,P_All!$A$5:$D$205,3*($C$8-1)+4) -> 1359.2 | Q177: =IF(ISNA(VLOOKUP($B$6,$A$25:$E$51,IF($B$8=$A$22,3,2))),EXP(VLOOKUP($B$6,$A$25:$E$51,4)*LN(VLOOKUP($H177,#REF!,$C$8+1)/1000)+VLOOKUP($B$6,$A$25:$E$51,5)),VLOOKUP($B$6,$A$25:$E$51,IF($B$8=$A$22,3,2))) -> 230000 | S177: 52.66666667 | T177: =VLOOKUP($S177,P_All!$X$5:$AS$245,3*($C$8-1)+2) -> 1078.9 | U177: =VLOOKUP($S177,P_All!$X$5:$AS$245,3*($C$8-1)+3) -> 1199.3 | V177: =VLOOKUP($S177,P_All!$X$5:$AS$245,3*($C$8-1)+4) -> 1387.5 | W177: =IF(ISNA(VLOOKUP($B$6,$A$25:$E$52,IF($B$8=$A$22,3,2))),EXP(VLOOKUP($B$6,$A$25:$E$52,4)*LN(VLOOKUP($S177,#REF!,$C$8+1)/1000)+VLOOKUP($B$6,$A$25:$E$52,5)),VLOOKUP($B$6,$A$25:$E$52,IF($B$8=$A$22,3,2))) -> 230000
H178: 153 | I178: =VLOOKUP($H178,P_All!$A$5:$D$205,3*($C$8-1)+2) -> 945.05 | J178: =VLOOKUP($H178,P_All!$A$5:$D$205,3*($C$8-1)+3) -> 1109.6 | K178: =VLOOKUP($H178,P_All!$A$5:$D$205,3*($C$8-1)+4) -> 1367.8 | L178: =IF(ISNA(VLOOKUP($B$6,$A$25:$E$51,IF($B$8=$A$22,3,2))),EXP(VLOOKUP($B$6,$A$25:$E$51,4)*LN(VLOOKUP($H178,#REF!,$C$8+1)/1000)+VLOOKUP($B$6,$A$25:$E$51,5)),VLOOKUP($B$6,$A$25:$E$51,IF($B$8=$A$22,3,2))) -> 230000 | M178: 153 | N178: =VLOOKUP($H178,P_All!$A$5:$D$205,3*($C$8-1)+2) -> 945.05 | O178: =VLOOKUP($H178,P_All!$A$5:$D$205,3*($C$8-1)+3) -> 1109.6 | P178: =VLOOKUP($H178,P_All!$A$5:$D$205,3*($C$8-1)+4) -> 1367.8 | Q178: =IF(ISNA(VLOOKUP($B$6,$A$25:$E$51,IF($B$8=$A$22,3,2))),EXP(VLOOKUP($B$6,$A$25:$E$51,4)*LN(VLOOKUP($H178,#REF!,$C$8+1)/1000)+VLOOKUP($B$6,$A$25:$E$51,5)),VLOOKUP($B$6,$A$25:$E$51,IF($B$8=$A$22,3,2))) -> 230000 | S178: 52.75 | T178: =VLOOKUP($S178,P_All!$X$5:$AS$245,3*($C$8-1)+2) -> 1058.2 | U178: =VLOOKUP($S178,P_All!$X$5:$AS$245,3*($C$8-1)+3) -> 1183.5 | V178: =VLOOKUP($S178,P_All!$X$5:$AS$245,3*($C$8-1)+4) -> 1381.6 | W178: =IF(ISNA(VLOOKUP($B$6,$A$25:$E$52,IF($B$8=$A$22,3,2))),EXP(VLOOKUP($B$6,$A$25:$E$52,4)*LN(VLOOKUP($S178,#REF!,$C$8+1)/1000)+VLOOKUP($B$6,$A$25:$E$52,5)),VLOOKUP($B$6,$A$25:$E$52,IF($B$8=$A$22,3,2))) -> 230000
H179: 154 | I179: =VLOOKUP($H179,P_All!$A$5:$D$205,3*($C$8-1)+2) -> 947.89 | J179: =VLOOKUP($H179,P_All!$A$5:$D$205,3*($C$8-1)+3) -> 1121.5 | K179: =VLOOKUP($H179,P_All!$A$5:$D$205,3*($C$8-1)+4) -> 1351.2 | L179: =IF(ISNA(VLOOKUP($B$6,$A$25:$E$51,IF($B$8=$A$22,3,2))),EXP(VLOOKUP($B$6,$A$25:$E$51,4)*LN(VLOOKUP($H179,#REF!,$C$8+1)/1000)+VLOOKUP($B$6,$A$25:$E$51,5)),VLOOKUP($B$6,$A$25:$E$51,IF($B$8=$A$22,3,2))) -> 230000 | M179: 154 | N179: =VLOOKUP($H179,P_All!$A$5:$D$205,3*($C$8-1)+2) -> 947.89 | O179: =VLOOKUP($H179,P_All!$A$5:$D$205,3*($C$8-1)+3) -> 1121.5 | P179: =VLOOKUP($H179,P_All!$A$5:$D$205,3*($C$8-1)+4) -> 1351.2 | Q179: =IF(ISNA(VLOOKUP($B$6,$A$25:$E$51,IF($B$8=$A$22,3,2))),EXP(VLOOKUP($B$6,$A$25:$E$51,4)*LN(VLOOKUP($H179,#REF!,$C$8+1)/1000)+VLOOKUP($B$6,$A$25:$E$51,5)),VLOOKUP($B$6,$A$25:$E$51,IF($B$8=$A$22,3,2))) -> 230000 | S179: 52.83333333 | T179: =VLOOKUP($S179,P_All!$X$5:$AS$245,3*($C$8-1)+2) -> 1050.5 | U179: =VLOOKUP($S179,P_All!$X$5:$AS$245,3*($C$8-1)+3) -> 1175.8 | V179: =VLOOKUP($S179,P_All!$X$5:$AS$245,3*($C$8-1)+4) -> 1379.3 | W179: =IF(ISNA(VLOOKUP($B$6,$A$25:$E$52,IF($B$8=$A$22,3,2))),EXP(VLOOKUP($B$6,$A$25:$E$52,4)*LN(VLOOKUP($S179,#REF!,$C$8+1)/1000)+VLOOKUP($B$6,$A$25:$E$52,5)),VLOOKUP($B$6,$A$25:$E$52,IF($B$8=$A$22,3,2))) -> 230000
H180: 155 | I180: =VLOOKUP($H180,P_All!$A$5:$D$205,3*($C$8-1)+2) -> 940.94 | J180: =VLOOKUP($H180,P_All!$A$5:$D$205,3*($C$8-1)+3) -> 1129 | K180: =VLOOKUP($H180,P_All!$A$5:$D$205,3*($C$8-1)+4) -> 1352 | L180: =IF(ISNA(VLOOKUP($B$6,$A$25:$E$51,IF($B$8=$A$22,3,2))),EXP(VLOOKUP($B$6,$A$25:$E$51,4)*LN(VLOOKUP($H180,#REF!,$C$8+1)/1000)+VLOOKUP($B$6,$A$25:$E$51,5)),VLOOKUP($B$6,$A$25:$E$51,IF($B$8=$A$22,3,2))) -> 230000 | M180: 155 | N180: =VLOOKUP($H180,P_All!$A$5:$D$205,3*($C$8-1)+2) -> 940.94 | O180: =VLOOKUP($H180,P_All!$A$5:$D$205,3*($C$8-1)+3) -> 1129 | P180: =VLOOKUP($H180,P_All!$A$5:$D$205,3*($C$8-1)+4) -> 1352 | Q180: =IF(ISNA(VLOOKUP($B$6,$A$25:$E$51,IF($B$8=$A$22,3,2))),EXP(VLOOKUP($B$6,$A$25:$E$51,4)*LN(VLOOKUP($H180,#REF!,$C$8+1)/1000)+VLOOKUP($B$6,$A$25:$E$51,5)),VLOOKUP($B$6,$A$25:$E$51,IF($B$8=$A$22,3,2))) -> 230000 | S180: 52.91666667 | T180: =VLOOKUP($S180,P_All!$X$5:$AS$245,3*($C$8-1)+2) -> 1048.5 | U180: =VLOOKUP($S180,P_All!$X$5:$AS$245,3*($C$8-1)+3) -> 1171.9 | V180: =VLOOKUP($S180,P_All!$X$5:$AS$245,3*($C$8-1)+4) -> 1370 | W180: =IF(ISNA(VLOOKUP($B$6,$A$25:$E$52,IF($B$8=$A$22,3,2))),EXP(VLOOKUP($B$6,$A$25:$E$52,4)*LN(VLOOKUP($S180,#REF!,$C$8+1)/1000)+VLOOKUP($B$6,$A$25:$E$52,5)),VLOOKUP($B$6,$A$25:$E$52,IF($B$8=$A$22,3,2))) -> 230000
H181: 156 | I181: =VLOOKUP($H181,P_All!$A$5:$D$205,3*($C$8-1)+2) -> 943.39 | J181: =VLOOKUP($H181,P_All!$A$5:$D$205,3*($C$8-1)+3) -> 1134.3 | K181: =VLOOKUP($H181,P_All!$A$5:$D$205,3*($C$8-1)+4) -> 1373.1 | L181: =IF(ISNA(VLOOKUP($B$6,$A$25:$E$51,IF($B$8=$A$22,3,2))),EXP(VLOOKUP($B$6,$A$25:$E$51,4)*LN(VLOOKUP($H181,#REF!,$C$8+1)/1000)+VLOOKUP($B$6,$A$25:$E$51,5)),VLOOKUP($B$6,$A$25:$E$51,IF($B$8=$A$22,3,2))) -> 230000 | M181: 156 | N181: =VLOOKUP($H181,P_All!$A$5:$D$205,3*($C$8-1)+2) -> 943.39 | O181: =VLOOKUP($H181,P_All!$A$5:$D$205,3*($C$8-1)+3) -> 1134.3 | P181: =VLOOKUP($H181,P_All!$A$5:$D$205,3*($C$8-1)+4) -> 1373.1 | Q181: =IF(ISNA(VLOOKUP($B$6,$A$25:$E$51,IF($B$8=$A$22,3,2))),EXP(VLOOKUP($B$6,$A$25:$E$51,4)*LN(VLOOKUP($H181,#REF!,$C$8+1)/1000)+VLOOKUP($B$6,$A$25:$E$51,5)),VLOOKUP($B$6,$A$25:$E$51,IF($B$8=$A$22,3,2))) -> 230000 | S181: 53 | T181: =VLOOKUP($S181,P_All!$X$5:$AS$245,3*($C$8-1)+2) -> 1044.8 | U181: =VLOOKUP($S181,P_All!$X$5:$AS$245,3*($C$8-1)+3) -> 1167.1 | V181: =VLOOKUP($S181,P_All!$X$5:$AS$245,3*($C$8-1)+4) -> 1358.1 | W181: =IF(ISNA(VLOOKUP($B$6,$A$25:$E$52,IF($B$8=$A$22,3,2))),EXP(VLOOKUP($B$6,$A$25:$E$52,4)*LN(VLOOKUP($S181,#REF!,$C$8+1)/1000)+VLOOKUP($B$6,$A$25:$E$52,5)),VLOOKUP($B$6,$A$25:$E$52,IF($B$8=$A$22,3,2))) -> 230000
H182: 157 | I182: =VLOOKUP($H182,P_All!$A$5:$D$205,3*($C$8-1)+2) -> 945.61 | J182: =VLOOKUP($H182,P_All!$A$5:$D$205,3*($C$8-1)+3) -> 1133.3 | K182: =VLOOKUP($H182,P_All!$A$5:$D$205,3*($C$8-1)+4) -> 1364.7 | L182: =IF(ISNA(VLOOKUP($B$6,$A$25:$E$51,IF($B$8=$A$22,3,2))),EXP(VLOOKUP($B$6,$A$25:$E$51,4)*LN(VLOOKUP($H182,#REF!,$C$8+1)/1000)+VLOOKUP($B$6,$A$25:$E$51,5)),VLOOKUP($B$6,$A$25:$E$51,IF($B$8=$A$22,3,2))) -> 230000 | M182: 157 | N182: =VLOOKUP($H182,P_All!$A$5:$D$205,3*($C$8-1)+2) -> 945.61 | O182: =VLOOKUP($H182,P_All!$A$5:$D$205,3*($C$8-1)+3) -> 1133.3 | P182: =VLOOKUP($H182,P_All!$A$5:$D$205,3*($C$8-1)+4) -> 1364.7 | Q182: =IF(ISNA(VLOOKUP($B$6,$A$25:$E$51,IF($B$8=$A$22,3,2))),EXP(VLOOKUP($B$6,$A$25:$E$51,4)*LN(VLOOKUP($H182,#REF!,$C$8+1)/1000)+VLOOKUP($B$6,$A$25:$E$51,5)),VLOOKUP($B$6,$A$25:$E$51,IF($B$8=$A$22,3,2))) -> 230000 | S182: 53.08333333 | T182: =VLOOKUP($S182,P_All!$X$5:$AS$245,3*($C$8-1)+2) -> 1044.8 | U182: =VLOOKUP($S182,P_All!$X$5:$AS$245,3*($C$8-1)+3) -> 1164.1 | V182: =VLOOKUP($S182,P_All!$X$5:$AS$245,3*($C$8-1)+4) -> 1349.7 | W182: =IF(ISNA(VLOOKUP($B$6,$A$25:$E$52,IF($B$8=$A$22,3,2))),EXP(VLOOKUP($B$6,$A$25:$E$52,4)*LN(VLOOKUP($S182,#REF!,$C$8+1)/1000)+VLOOKUP($B$6,$A$25:$E$52,5)),VLOOKUP($B$6,$A$25:$E$52,IF($B$8=$A$22,3,2))) -> 230000
H183: 158 | I183: =VLOOKUP($H183,P_All!$A$5:$D$205,3*($C$8-1)+2) -> 942.9 | J183: =VLOOKUP($H183,P_All!$A$5:$D$205,3*($C$8-1)+3) -> 1117.3 | K183: =VLOOKUP($H183,P_All!$A$5:$D$205,3*($C$8-1)+4) -> 1373.2 | L183: =IF(ISNA(VLOOKUP($B$6,$A$25:$E$51,IF($B$8=$A$22,3,2))),EXP(VLOOKUP($B$6,$A$25:$E$51,4)*LN(VLOOKUP($H183,#REF!,$C$8+1)/1000)+VLOOKUP($B$6,$A$25:$E$51,5)),VLOOKUP($B$6,$A$25:$E$51,IF($B$8=$A$22,3,2))) -> 230000 | M183: 158 | N183: =VLOOKUP($H183,P_All!$A$5:$D$205,3*($C$8-1)+2) -> 942.9 | O183: =VLOOKUP($H183,P_All!$A$5:$D$205,3*($C$8-1)+3) -> 1117.3 | P183: =VLOOKUP($H183,P_All!$A$5:$D$205,3*($C$8-1)+4) -> 1373.2 | Q183: =IF(ISNA(VLOOKUP($B$6,$A$25:$E$51,IF($B$8=$A$22,3,2))),EXP(VLOOKUP($B$6,$A$25:$E$51,4)*LN(VLOOKUP($H183,#REF!,$C$8+1)/1000)+VLOOKUP($B$6,$A$25:$E$51,5)),VLOOKUP($B$6,$A$25:$E$51,IF($B$8=$A$22,3,2))) -> 230000 | S183: 53.16666667 | T183: =VLOOKUP($S183,P_All!$X$5:$AS$245,3*($C$8-1)+2) -> 1047.1 | U183: =VLOOKUP($S183,P_All!$X$5:$AS$245,3*($C$8-1)+3) -> 1161.7 | V183: =VLOOKUP($S183,P_All!$X$5:$AS$245,3*($C$8-1)+4) -> 1344.4 | W183: =IF(ISNA(VLOOKUP($B$6,$A$25:$E$52,IF($B$8=$A$22,3,2))),EXP(VLOOKUP($B$6,$A$25:$E$52,4)*LN(VLOOKUP($S183,#REF!,$C$8+1)/1000)+VLOOKUP($B$6,$A$25:$E$52,5)),VLOOKUP($B$6,$A$25:$E$52,IF($B$8=$A$22,3,2))) -> 230000
H184: 159 | I184: =VLOOKUP($H184,P_All!$A$5:$D$205,3*($C$8-1)+2) -> 929.97 | J184: =VLOOKUP($H184,P_All!$A$5:$D$205,3*($C$8-1)+3) -> 1123.4 | K184: =VLOOKUP($H184,P_All!$A$5:$D$205,3*($C$8-1)+4) -> 1377.2 | L184: =IF(ISNA(VLOOKUP($B$6,$A$25:$E$51,IF($B$8=$A$22,3,2))),EXP(VLOOKUP($B$6,$A$25:$E$51,4)*LN(VLOOKUP($H184,#REF!,$C$8+1)/1000)+VLOOKUP($B$6,$A$25:$E$51,5)),VLOOKUP($B$6,$A$25:$E$51,IF($B$8=$A$22,3,2))) -> 230000 | M184: 159 | N184: =VLOOKUP($H184,P_All!$A$5:$D$205,3*($C$8-1)+2) -> 929.97 | O184: =VLOOKUP($H184,P_All!$A$5:$D$205,3*($C$8-1)+3) -> 1123.4 | P184: =VLOOKUP($H184,P_All!$A$5:$D$205,3*($C$8-1)+4) -> 1377.2 | Q184: =IF(ISNA(VLOOKUP($B$6,$A$25:$E$51,IF($B$8=$A$22,3,2))),EXP(VLOOKUP($B$6,$A$25:$E$51,4)*LN(VLOOKUP($H184,#REF!,$C$8+1)/1000)+VLOOKUP($B$6,$A$25:$E$51,5)),VLOOKUP($B$6,$A$25:$E$51,IF($B$8=$A$22,3,2))) -> 230000 | S184: 53.25 | T184: =VLOOKUP($S184,P_All!$X$5:$AS$245,3*($C$8-1)+2) -> 1052.3 | U184: =VLOOKUP($S184,P_All!$X$5:$AS$245,3*($C$8-1)+3) -> 1166.9 | V184: =VLOOKUP($S184,P_All!$X$5:$AS$245,3*($C$8-1)+4) -> 1360.6 | W184: =IF(ISNA(VLOOKUP($B$6,$A$25:$E$52,IF($B$8=$A$22,3,2))),EXP(VLOOKUP($B$6,$A$25:$E$52,4)*LN(VLOOKUP($S184,#REF!,$C$8+1)/1000)+VLOOKUP($B$6,$A$25:$E$52,5)),VLOOKUP($B$6,$A$25:$E$52,IF($B$8=$A$22,3,2))) -> 230000
H185: 160 | I185: =VLOOKUP($H185,P_All!$A$5:$D$205,3*($C$8-1)+2) -> 933.03 | J185: =VLOOKUP($H185,P_All!$A$5:$D$205,3*($C$8-1)+3) -> 1114 | K185: =VLOOKUP($H185,P_All!$A$5:$D$205,3*($C$8-1)+4) -> 1373.4 | L185: =IF(ISNA(VLOOKUP($B$6,$A$25:$E$51,IF($B$8=$A$22,3,2))),EXP(VLOOKUP($B$6,$A$25:$E$51,4)*LN(VLOOKUP($H185,#REF!,$C$8+1)/1000)+VLOOKUP($B$6,$A$25:$E$51,5)),VLOOKUP($B$6,$A$25:$E$51,IF($B$8=$A$22,3,2))) -> 230000 | M185: 160 | N185: =VLOOKUP($H185,P_All!$A$5:$D$205,3*($C$8-1)+2) -> 933.03 | O185: =VLOOKUP($H185,P_All!$A$5:$D$205,3*($C$8-1)+3) -> 1114 | P185: =VLOOKUP($H185,P_All!$A$5:$D$205,3*($C$8-1)+4) -> 1373.4 | Q185: =IF(ISNA(VLOOKUP($B$6,$A$25:$E$51,IF($B$8=$A$22,3,2))),EXP(VLOOKUP($B$6,$A$25:$E$51,4)*LN(VLOOKUP($H185,#REF!,$C$8+1)/1000)+VLOOKUP($B$6,$A$25:$E$51,5)),VLOOKUP($B$6,$A$25:$E$51,IF($B$8=$A$22,3,2))) -> 230000 | S185: 53.33333333 | T185: =VLOOKUP($S185,P_All!$X$5:$AS$245,3*($C$8-1)+2) -> 1080.9 | U185: =VLOOKUP($S185,P_All!$X$5:$AS$245,3*($C$8-1)+3) -> 1190.1 | V185: =VLOOKUP($S185,P_All!$X$5:$AS$245,3*($C$8-1)+4) -> 1388.3 | W185: =IF(ISNA(VLOOKUP($B$6,$A$25:$E$52,IF($B$8=$A$22,3,2))),EXP(VLOOKUP($B$6,$A$25:$E$52,4)*LN(VLOOKUP($S185,#REF!,$C$8+1)/1000)+VLOOKUP($B$6,$A$25:$E$52,5)),VLOOKUP($B$6,$A$25:$E$52,IF($B$8=$A$22,3,2))) -> 230000
H186: 161 | I186: =VLOOKUP($H186,P_All!$A$5:$D$205,3*($C$8-1)+2) -> 935.19 | J186: =VLOOKUP($H186,P_All!$A$5:$D$205,3*($C$8-1)+3) -> 1106 | K186: =VLOOKUP($H186,P_All!$A$5:$D$205,3*($C$8-1)+4) -> 1370.9 | L186: =IF(ISNA(VLOOKUP($B$6,$A$25:$E$51,IF($B$8=$A$22,3,2))),EXP(VLOOKUP($B$6,$A$25:$E$51,4)*LN(VLOOKUP($H186,#REF!,$C$8+1)/1000)+VLOOKUP($B$6,$A$25:$E$51,5)),VLOOKUP($B$6,$A$25:$E$51,IF($B$8=$A$22,3,2))) -> 230000 | M186: 161 | N186: =VLOOKUP($H186,P_All!$A$5:$D$205,3*($C$8-1)+2) -> 935.19 | O186: =VLOOKUP($H186,P_All!$A$5:$D$205,3*($C$8-1)+3) -> 1106 | P186: =VLOOKUP($H186,P_All!$A$5:$D$205,3*($C$8-1)+4) -> 1370.9 | Q186: =IF(ISNA(VLOOKUP($B$6,$A$25:$E$51,IF($B$8=$A$22,3,2))),EXP(VLOOKUP($B$6,$A$25:$E$51,4)*LN(VLOOKUP($H186,#REF!,$C$8+1)/1000)+VLOOKUP($B$6,$A$25:$E$51,5)),VLOOKUP($B$6,$A$25:$E$51,IF($B$8=$A$22,3,2))) -> 230000 | S186: 53.41666667 | T186: =VLOOKUP($S186,P_All!$X$5:$AS$245,3*($C$8-1)+2) -> 1091.6 | U186: =VLOOKUP($S186,P_All!$X$5:$AS$245,3*($C$8-1)+3) -> 1203.5 | V186: =VLOOKUP($S186,P_All!$X$5:$AS$245,3*($C$8-1)+4) -> 1398.9 | W186: =IF(ISNA(VLOOKUP($B$6,$A$25:$E$52,IF($B$8=$A$22,3,2))),EXP(VLOOKUP($B$6,$A$25:$E$52,4)*LN(VLOOKUP($S186,#REF!,$C$8+1)/1000)+VLOOKUP($B$6,$A$25:$E$52,5)),VLOOKUP($B$6,$A$25:$E$52,IF($B$8=$A$22,3,2))) -> 230000
H187: 162 | I187: =VLOOKUP($H187,P_All!$A$5:$D$205,3*($C$8-1)+2) -> 928.77 | J187: =VLOOKUP($H187,P_All!$A$5:$D$205,3*($C$8-1)+3) -> 1113.9 | K187: =VLOOKUP($H187,P_All!$A$5:$D$205,3*($C$8-1)+4) -> 1353.2 | L187: =IF(ISNA(VLOOKUP($B$6,$A$25:$E$51,IF($B$8=$A$22,3,2))),EXP(VLOOKUP($B$6,$A$25:$E$51,4)*LN(VLOOKUP($H187,#REF!,$C$8+1)/1000)+VLOOKUP($B$6,$A$25:$E$51,5)),VLOOKUP($B$6,$A$25:$E$51,IF($B$8=$A$22,3,2))) -> 230000 | M187: 162 | N187: =VLOOKUP($H187,P_All!$A$5:$D$205,3*($C$8-1)+2) -> 928.77 | O187: =VLOOKUP($H187,P_All!$A$5:$D$205,3*($C$8-1)+3) -> 1113.9 | P187: =VLOOKUP($H187,P_All!$A$5:$D$205,3*($C$8-1)+4) -> 1353.2 | Q187: =IF(ISNA(VLOOKUP($B$6,$A$25:$E$51,IF($B$8=$A$22,3,2))),EXP(VLOOKUP($B$6,$A$25:$E$51,4)*LN(VLOOKUP($H187,#REF!,$C$8+1)/1000)+VLOOKUP($B$6,$A$25:$E$51,5)),VLOOKUP($B$6,$A$25:$E$51,IF($B$8=$A$22,3,2))) -> 230000 | S187: 53.5 | T187: =VLOOKUP($S187,P_All!$X$5:$AS$245,3*($C$8-1)+2) -> 1079.2 | U187: =VLOOKUP($S187,P_All!$X$5:$AS$245,3*($C$8-1)+3) -> 1194.4 | V187: =VLOOKUP($S187,P_All!$X$5:$AS$245,3*($C$8-1)+4) -> 1400.2 | W187: =IF(ISNA(VLOOKUP($B$6,$A$25:$E$52,IF($B$8=$A$22,3,2))),EXP(VLOOKUP($B$6,$A$25:$E$52,4)*LN(VLOOKUP($S187,#REF!,$C$8+1)/1000)+VLOOKUP($B$6,$A$25:$E$52,5)),VLOOKUP($B$6,$A$25:$E$52,IF($B$8=$A$22,3,2))) -> 230000
H188: 163 | I188: =VLOOKUP($H188,P_All!$A$5:$D$205,3*($C$8-1)+2) -> 942.24 | J188: =VLOOKUP($H188,P_All!$A$5:$D$205,3*($C$8-1)+3) -> 1119.5 | K188: =VLOOKUP($H188,P_All!$A$5:$D$205,3*($C$8-1)+4) -> 1357.9 | L188: =IF(ISNA(VLOOKUP($B$6,$A$25:$E$51,IF($B$8=$A$22,3,2))),EXP(VLOOKUP($B$6,$A$25:$E$51,4)*LN(VLOOKUP($H188,#REF!,$C$8+1)/1000)+VLOOKUP($B$6,$A$25:$E$51,5)),VLOOKUP($B$6,$A$25:$E$51,IF($B$8=$A$22,3,2))) -> 230000 | M188: 163 | N188: =VLOOKUP($H188,P_All!$A$5:$D$205,3*($C$8-1)+2) -> 942.24 | O188: =VLOOKUP($H188,P_All!$A$5:$D$205,3*($C$8-1)+3) -> 1119.5 | P188: =VLOOKUP($H188,P_All!$A$5:$D$205,3*($C$8-1)+4) -> 1357.9 | Q188: =IF(ISNA(VLOOKUP($B$6,$A$25:$E$51,IF($B$8=$A$22,3,2))),EXP(VLOOKUP($B$6,$A$25:$E$51,4)*LN(VLOOKUP($H188,#REF!,$C$8+1)/1000)+VLOOKUP($B$6,$A$25:$E$51,5)),VLOOKUP($B$6,$A$25:$E$51,IF($B$8=$A$22,3,2))) -> 230000 | S188: 53.58333333 | T188: =VLOOKUP($S188,P_All!$X$5:$AS$245,3*($C$8-1)+2) -> 1069.1 | U188: =VLOOKUP($S188,P_All!$X$5:$AS$245,3*($C$8-1)+3) -> 1196.4 | V188: =VLOOKUP($S188,P_All!$X$5:$AS$245,3*($C$8-1)+4) -> 1418.3 | W188: =IF(ISNA(VLOOKUP($B$6,$A$25:$E$52,IF($B$8=$A$22,3,2))),EXP(VLOOKUP($B$6,$A$25:$E$52,4)*LN(VLOOKUP($S188,#REF!,$C$8+1)/1000)+VLOOKUP($B$6,$A$25:$E$52,5)),VLOOKUP($B$6,$A$25:$E$52,IF($B$8=$A$22,3,2))) -> 230000
H189: 164 | I189: =VLOOKUP($H189,P_All!$A$5:$D$205,3*($C$8-1)+2) -> 938.54 | J189: =VLOOKUP($H189,P_All!$A$5:$D$205,3*($C$8-1)+3) -> 1116.1 | K189: =VLOOKUP($H189,P_All!$A$5:$D$205,3*($C$8-1)+4) -> 1368.4 | L189: =IF(ISNA(VLOOKUP($B$6,$A$25:$E$51,IF($B$8=$A$22,3,2))),EXP(VLOOKUP($B$6,$A$25:$E$51,4)*LN(VLOOKUP($H189,#REF!,$C$8+1)/1000)+VLOOKUP($B$6,$A$25:$E$51,5)),VLOOKUP($B$6,$A$25:$E$51,IF($B$8=$A$22,3,2))) -> 230000 | M189: 164 | N189: =VLOOKUP($H189,P_All!$A$5:$D$205,3*($C$8-1)+2) -> 938.54 | O189: =VLOOKUP($H189,P_All!$A$5:$D$205,3*($C$8-1)+3) -> 1116.1 | P189: =VLOOKUP($H189,P_All!$A$5:$D$205,3*($C$8-1)+4) -> 1368.4 | Q189: =IF(ISNA(VLOOKUP($B$6,$A$25:$E$51,IF($B$8=$A$22,3,2))),EXP(VLOOKUP($B$6,$A$25:$E$51,4)*LN(VLOOKUP($H189,#REF!,$C$8+1)/1000)+VLOOKUP($B$6,$A$25:$E$51,5)),VLOOKUP($B$6,$A$25:$E$51,IF($B$8=$A$22,3,2))) -> 230000 | S189: 53.66666667 | T189: =VLOOKUP($S189,P_All!$X$5:$AS$245,3*($C$8-1)+2) -> 1051.6 | U189: =VLOOKUP($S189,P_All!$X$5:$AS$245,3*($C$8-1)+3) -> 1190.3 | V189: =VLOOKUP($S189,P_All!$X$5:$AS$245,3*($C$8-1)+4) -> 1406.2 | W189: =IF(ISNA(VLOOKUP($B$6,$A$25:$E$52,IF($B$8=$A$22,3,2))),EXP(VLOOKUP($B$6,$A$25:$E$52,4)*LN(VLOOKUP($S189,#REF!,$C$8+1)/1000)+VLOOKUP($B$6,$A$25:$E$52,5)),VLOOKUP($B$6,$A$25:$E$52,IF($B$8=$A$22,3,2))) -> 230000
H190: 165 | I190: =VLOOKUP($H190,P_All!$A$5:$D$205,3*($C$8-1)+2) -> 934.27 | J190: =VLOOKUP($H190,P_All!$A$5:$D$205,3*($C$8-1)+3) -> 1118.4 | K190: =VLOOKUP($H190,P_All!$A$5:$D$205,3*($C$8-1)+4) -> 1358.9 | L190: =IF(ISNA(VLOOKUP($B$6,$A$25:$E$51,IF($B$8=$A$22,3,2))),EXP(VLOOKUP($B$6,$A$25:$E$51,4)*LN(VLOOKUP($H190,#REF!,$C$8+1)/1000)+VLOOKUP($B$6,$A$25:$E$51,5)),VLOOKUP($B$6,$A$25:$E$51,IF($B$8=$A$22,3,2))) -> 230000 | M190: 165 | N190: =VLOOKUP($H190,P_All!$A$5:$D$205,3*($C$8-1)+2) -> 934.27 | O190: =VLOOKUP($H190,P_All!$A$5:$D$205,3*($C$8-1)+3) -> 1118.4 | P190: =VLOOKUP($H190,P_All!$A$5:$D$205,3*($C$8-1)+4) -> 1358.9 | Q190: =IF(ISNA(VLOOKUP($B$6,$A$25:$E$51,IF($B$8=$A$22,3,2))),EXP(VLOOKUP($B$6,$A$25:$E$51,4)*LN(VLOOKUP($H190,#REF!,$C$8+1)/1000)+VLOOKUP($B$6,$A$25:$E$51,5)),VLOOKUP($B$6,$A$25:$E$51,IF($B$8=$A$22,3,2))) -> 230000 | S190: 53.75 | T190: =VLOOKUP($S190,P_All!$X$5:$AS$245,3*($C$8-1)+2) -> 1035.6 | U190: =VLOOKUP($S190,P_All!$X$5:$AS$245,3*($C$8-1)+3) -> 1175.1 | V190: =VLOOKUP($S190,P_All!$X$5:$AS$245,3*($C$8-1)+4) -> 1396.8 | W190: =IF(ISNA(VLOOKUP($B$6,$A$25:$E$52,IF($B$8=$A$22,3,2))),EXP(VLOOKUP($B$6,$A$25:$E$52,4)*LN(VLOOKUP($S190,#REF!,$C$8+1)/1000)+VLOOKUP($B$6,$A$25:$E$52,5)),VLOOKUP($B$6,$A$25:$E$52,IF($B$8=$A$22,3,2))) -> 230000
H191: 166 | I191: =VLOOKUP($H191,P_All!$A$5:$D$205,3*($C$8-1)+2) -> 940.25 | J191: =VLOOKUP($H191,P_All!$A$5:$D$205,3*($C$8-1)+3) -> 1122.5 | K191: =VLOOKUP($H191,P_All!$A$5:$D$205,3*($C$8-1)+4) -> 1371.9 | L191: =IF(ISNA(VLOOKUP($B$6,$A$25:$E$51,IF($B$8=$A$22,3,2))),EXP(VLOOKUP($B$6,$A$25:$E$51,4)*LN(VLOOKUP($H191,#REF!,$C$8+1)/1000)+VLOOKUP($B$6,$A$25:$E$51,5)),VLOOKUP($B$6,$A$25:$E$51,IF($B$8=$A$22,3,2))) -> 230000 | M191: 166 | N191: =VLOOKUP($H191,P_All!$A$5:$D$205,3*($C$8-1)+2) -> 940.25 | O191: =VLOOKUP($H191,P_All!$A$5:$D$205,3*($C$8-1)+3) -> 1122.5 | P191: =VLOOKUP($H191,P_All!$A$5:$D$205,3*($C$8-1)+4) -> 1371.9 | Q191: =IF(ISNA(VLOOKUP($B$6,$A$25:$E$51,IF($B$8=$A$22,3,2))),EXP(VLOOKUP($B$6,$A$25:$E$51,4)*LN(VLOOKUP($H191,#REF!,$C$8+1)/1000)+VLOOKUP($B$6,$A$25:$E$51,5)),VLOOKUP($B$6,$A$25:$E$51,IF($B$8=$A$22,3,2))) -> 230000 | S191: 53.83333333 | T191: =VLOOKUP($S191,P_All!$X$5:$AS$245,3*($C$8-1)+2) -> 1029 | U191: =VLOOKUP($S191,P_All!$X$5:$AS$245,3*($C$8-1)+3) -> 1169 | V191: =VLOOKUP($S191,P_All!$X$5:$AS$245,3*($C$8-1)+4) -> 1389.6 | W191: =IF(ISNA(VLOOKUP($B$6,$A$25:$E$52,IF($B$8=$A$22,3,2))),EXP(VLOOKUP($B$6,$A$25:$E$52,4)*LN(VLOOKUP($S191,#REF!,$C$8+1)/1000)+VLOOKUP($B$6,$A$25:$E$52,5)),VLOOKUP($B$6,$A$25:$E$52,IF($B$8=$A$22,3,2))) -> 230000
H192: 167 | I192: =VLOOKUP($H192,P_All!$A$5:$D$205,3*($C$8-1)+2) -> 943.48 | J192: =VLOOKUP($H192,P_All!$A$5:$D$205,3*($C$8-1)+3) -> 1125.7 | K192: =VLOOKUP($H192,P_All!$A$5:$D$205,3*($C$8-1)+4) -> 1359.2 | L192: =IF(ISNA(VLOOKUP($B$6,$A$25:$E$51,IF($B$8=$A$22,3,2))),EXP(VLOOKUP($B$6,$A$25:$E$51,4)*LN(VLOOKUP($H192,#REF!,$C$8+1)/1000)+VLOOKUP($B$6,$A$25:$E$51,5)),VLOOKUP($B$6,$A$25:$E$51,IF($B$8=$A$22,3,2))) -> 230000 | M192: 167 | N192: =VLOOKUP($H192,P_All!$A$5:$D$205,3*($C$8-1)+2) -> 943.48 | O192: =VLOOKUP($H192,P_All!$A$5:$D$205,3*($C$8-1)+3) -> 1125.7 | P192: =VLOOKUP($H192,P_All!$A$5:$D$205,3*($C$8-1)+4) -> 1359.2 | Q192: =IF(ISNA(VLOOKUP($B$6,$A$25:$E$51,IF($B$8=$A$22,3,2))),EXP(VLOOKUP($B$6,$A$25:$E$51,4)*LN(VLOOKUP($H192,#REF!,$C$8+1)/1000)+VLOOKUP($B$6,$A$25:$E$51,5)),VLOOKUP($B$6,$A$25:$E$51,IF($B$8=$A$22,3,2))) -> 230000 | S192: 53.91666667 | T192: =VLOOKUP($S192,P_All!$X$5:$AS$245,3*($C$8-1)+2) -> 1026.9 | U192: =VLOOKUP($S192,P_All!$X$5:$AS$245,3*($C$8-1)+3) -> 1168.4 | V192: =VLOOKUP($S192,P_All!$X$5:$AS$245,3*($C$8-1)+4) -> 1384.2 | W192: =IF(ISNA(VLOOKUP($B$6,$A$25:$E$52,IF($B$8=$A$22,3,2))),EXP(VLOOKUP($B$6,$A$25:$E$52,4)*LN(VLOOKUP($S192,#REF!,$C$8+1)/1000)+VLOOKUP($B$6,$A$25:$E$52,5)),VLOOKUP($B$6,$A$25:$E$52,IF($B$8=$A$22,3,2))) -> 230000
H193: 168 | I193: =VLOOKUP($H193,P_All!$A$5:$D$205,3*($C$8-1)+2) -> 946.57 | J193: =VLOOKUP($H193,P_All!$A$5:$D$205,3*($C$8-1)+3) -> 1114.9 | K193: =VLOOKUP($H193,P_All!$A$5:$D$205,3*($C$8-1)+4) -> 1367.9 | L193: =IF(ISNA(VLOOKUP($B$6,$A$25:$E$51,IF($B$8=$A$22,3,2))),EXP(VLOOKUP($B$6,$A$25:$E$51,4)*LN(VLOOKUP($H193,#REF!,$C$8+1)/1000)+VLOOKUP($B$6,$A$25:$E$51,5)),VLOOKUP($B$6,$A$25:$E$51,IF($B$8=$A$22,3,2))) -> 230000 | M193: 168 | N193: =VLOOKUP($H193,P_All!$A$5:$D$205,3*($C$8-1)+2) -> 946.57 | O193: =VLOOKUP($H193,P_All!$A$5:$D$205,3*($C$8-1)+3) -> 1114.9 | P193: =VLOOKUP($H193,P_All!$A$5:$D$205,3*($C$8-1)+4) -> 1367.9 | Q193: =IF(ISNA(VLOOKUP($B$6,$A$25:$E$51,IF($B$8=$A$22,3,2))),EXP(VLOOKUP($B$6,$A$25:$E$51,4)*LN(VLOOKUP($H193,#REF!,$C$8+1)/1000)+VLOOKUP($B$6,$A$25:$E$51,5)),VLOOKUP($B$6,$A$25:$E$51,IF($B$8=$A$22,3,2))) -> 230000 | S193: 54 | T193: =VLOOKUP($S193,P_All!$X$5:$AS$245,3*($C$8-1)+2) -> 1023.1 | U193: =VLOOKUP($S193,P_All!$X$5:$AS$245,3*($C$8-1)+3) -> 1163 | V193: =VLOOKUP($S193,P_All!$X$5:$AS$245,3*($C$8-1)+4) -> 1377.2 | W193: =IF(ISNA(VLOOKUP($B$6,$A$25:$E$52,IF($B$8=$A$22,3,2))),EXP(VLOOKUP($B$6,$A$25:$E$52,4)*LN(VLOOKUP($S193,#REF!,$C$8+1)/1000)+VLOOKUP($B$6,$A$25:$E$52,5)),VLOOKUP($B$6,$A$25:$E$52,IF($B$8=$A$22,3,2))) -> 230000
H194: 169 | I194: =VLOOKUP($H194,P_All!$A$5:$D$205,3*($C$8-1)+2) -> 948.37 | J194: =VLOOKUP($H194,P_All!$A$5:$D$205,3*($C$8-1)+3) -> 1119.2 | K194: =VLOOKUP($H194,P_All!$A$5:$D$205,3*($C$8-1)+4) -> 1383.6 | L194: =IF(ISNA(VLOOKUP($B$6,$A$25:$E$51,IF($B$8=$A$22,3,2))),EXP(VLOOKUP($B$6,$A$25:$E$51,4)*LN(VLOOKUP($H194,#REF!,$C$8+1)/1000)+VLOOKUP($B$6,$A$25:$E$51,5)),VLOOKUP($B$6,$A$25:$E$51,IF($B$8=$A$22,3,2))) -> 230000 | M194: 169 | N194: =VLOOKUP($H194,P_All!$A$5:$D$205,3*($C$8-1)+2) -> 948.37 | O194: =VLOOKUP($H194,P_All!$A$5:$D$205,3*($C$8-1)+3) -> 1119.2 | P194: =VLOOKUP($H194,P_All!$A$5:$D$205,3*($C$8-1)+4) -> 1383.6 | Q194: =IF(ISNA(VLOOKUP($B$6,$A$25:$E$51,IF($B$8=$A$22,3,2))),EXP(VLOOKUP($B$6,$A$25:$E$51,4)*LN(VLOOKUP($H194,#REF!,$C$8+1)/1000)+VLOOKUP($B$6,$A$25:$E$51,5)),VLOOKUP($B$6,$A$25:$E$51,IF($B$8=$A$22,3,2))) -> 230000 | S194: 54.08333333 | T194: =VLOOKUP($S194,P_All!$X$5:$AS$245,3*($C$8-1)+2) -> 1023 | U194: =VLOOKUP($S194,P_All!$X$5:$AS$245,3*($C$8-1)+3) -> 1159.3 | V194: =VLOOKUP($S194,P_All!$X$5:$AS$245,3*($C$8-1)+4) -> 1371.8 | W194: =IF(ISNA(VLOOKUP($B$6,$A$25:$E$52,IF($B$8=$A$22,3,2))),EXP(VLOOKUP($B$6,$A$25:$E$52,4)*LN(VLOOKUP($S194,#REF!,$C$8+1)/1000)+VLOOKUP($B$6,$A$25:$E$52,5)),VLOOKUP($B$6,$A$25:$E$52,IF($B$8=$A$22,3,2))) -> 230000
H195: 170 | I195: =VLOOKUP($H195,P_All!$A$5:$D$205,3*($C$8-1)+2) -> 933.12 | J195: =VLOOKUP($H195,P_All!$A$5:$D$205,3*($C$8-1)+3) -> 1116.4 | K195: =VLOOKUP($H195,P_All!$A$5:$D$205,3*($C$8-1)+4) -> 1367.2 | L195: =IF(ISNA(VLOOKUP($B$6,$A$25:$E$51,IF($B$8=$A$22,3,2))),EXP(VLOOKUP($B$6,$A$25:$E$51,4)*LN(VLOOKUP($H195,#REF!,$C$8+1)/1000)+VLOOKUP($B$6,$A$25:$E$51,5)),VLOOKUP($B$6,$A$25:$E$51,IF($B$8=$A$22,3,2))) -> 230000 | M195: 170 | N195: =VLOOKUP($H195,P_All!$A$5:$D$205,3*($C$8-1)+2) -> 933.12 | O195: =VLOOKUP($H195,P_All!$A$5:$D$205,3*($C$8-1)+3) -> 1116.4 | P195: =VLOOKUP($H195,P_All!$A$5:$D$205,3*($C$8-1)+4) -> 1367.2 | Q195: =IF(ISNA(VLOOKUP($B$6,$A$25:$E$51,IF($B$8=$A$22,3,2))),EXP(VLOOKUP($B$6,$A$25:$E$51,4)*LN(VLOOKUP($H195,#REF!,$C$8+1)/1000)+VLOOKUP($B$6,$A$25:$E$51,5)),VLOOKUP($B$6,$A$25:$E$51,IF($B$8=$A$22,3,2))) -> 230000 | S195: 54.16666667 | T195: =VLOOKUP($S195,P_All!$X$5:$AS$245,3*($C$8-1)+2) -> 1023.6 | U195: =VLOOKUP($S195,P_All!$X$5:$AS$245,3*($C$8-1)+3) -> 1158.1 | V195: =VLOOKUP($S195,P_All!$X$5:$AS$245,3*($C$8-1)+4) -> 1366.6 | W195: =IF(ISNA(VLOOKUP($B$6,$A$25:$E$52,IF($B$8=$A$22,3,2))),EXP(VLOOKUP($B$6,$A$25:$E$52,4)*LN(VLOOKUP($S195,#REF!,$C$8+1)/1000)+VLOOKUP($B$6,$A$25:$E$52,5)),VLOOKUP($B$6,$A$25:$E$52,IF($B$8=$A$22,3,2))) -> 230000
H196: 171 | I196: =VLOOKUP($H196,P_All!$A$5:$D$205,3*($C$8-1)+2) -> 937.66 | J196: =VLOOKUP($H196,P_All!$A$5:$D$205,3*($C$8-1)+3) -> 1122.3 | K196: =VLOOKUP($H196,P_All!$A$5:$D$205,3*($C$8-1)+4) -> 1363.9 | L196: =IF(ISNA(VLOOKUP($B$6,$A$25:$E$51,IF($B$8=$A$22,3,2))),EXP(VLOOKUP($B$6,$A$25:$E$51,4)*LN(VLOOKUP($H196,#REF!,$C$8+1)/1000)+VLOOKUP($B$6,$A$25:$E$51,5)),VLOOKUP($B$6,$A$25:$E$51,IF($B$8=$A$22,3,2))) -> 230000 | M196: 171 | N196: =VLOOKUP($H196,P_All!$A$5:$D$205,3*($C$8-1)+2) -> 937.66 | O196: =VLOOKUP($H196,P_All!$A$5:$D$205,3*($C$8-1)+3) -> 1122.3 | P196: =VLOOKUP($H196,P_All!$A$5:$D$205,3*($C$8-1)+4) -> 1363.9 | Q196: =IF(ISNA(VLOOKUP($B$6,$A$25:$E$51,IF($B$8=$A$22,3,2))),EXP(VLOOKUP($B$6,$A$25:$E$51,4)*LN(VLOOKUP($H196,#REF!,$C$8+1)/1000)+VLOOKUP($B$6,$A$25:$E$51,5)),VLOOKUP($B$6,$A$25:$E$51,IF($B$8=$A$22,3,2))) -> 230000 | S196: 54.25 | T196: =VLOOKUP($S196,P_All!$X$5:$AS$245,3*($C$8-1)+2) -> 1030.2 | U196: =VLOOKUP($S196,P_All!$X$5:$AS$245,3*($C$8-1)+3) -> 1160.8 | V196: =VLOOKUP($S196,P_All!$X$5:$AS$245,3*($C$8-1)+4) -> 1371.8 | W196: =IF(ISNA(VLOOKUP($B$6,$A$25:$E$52,IF($B$8=$A$22,3,2))),EXP(VLOOKUP($B$6,$A$25:$E$52,4)*LN(VLOOKUP($S196,#REF!,$C$8+1)/1000)+VLOOKUP($B$6,$A$25:$E$52,5)),VLOOKUP($B$6,$A$25:$E$52,IF($B$8=$A$22,3,2))) -> 230000
H197: 172 | I197: =VLOOKUP($H197,P_All!$A$5:$D$205,3*($C$8-1)+2) -> 937.15 | J197: =VLOOKUP($H197,P_All!$A$5:$D$205,3*($C$8-1)+3) -> 1113.5 | K197: =VLOOKUP($H197,P_All!$A$5:$D$205,3*($C$8-1)+4) -> 1367.6 | L197: =IF(ISNA(VLOOKUP($B$6,$A$25:$E$51,IF($B$8=$A$22,3,2))),EXP(VLOOKUP($B$6,$A$25:$E$51,4)*LN(VLOOKUP($H197,#REF!,$C$8+1)/1000)+VLOOKUP($B$6,$A$25:$E$51,5)),VLOOKUP($B$6,$A$25:$E$51,IF($B$8=$A$22,3,2))) -> 230000 | M197: 172 | N197: =VLOOKUP($H197,P_All!$A$5:$D$205,3*($C$8-1)+2) -> 937.15 | O197: =VLOOKUP($H197,P_All!$A$5:$D$205,3*($C$8-1)+3) -> 1113.5 | P197: =VLOOKUP($H197,P_All!$A$5:$D$205,3*($C$8-1)+4) -> 1367.6 | Q197: =IF(ISNA(VLOOKUP($B$6,$A$25:$E$51,IF($B$8=$A$22,3,2))),EXP(VLOOKUP($B$6,$A$25:$E$51,4)*LN(VLOOKUP($H197,#REF!,$C$8+1)/1000)+VLOOKUP($B$6,$A$25:$E$51,5)),VLOOKUP($B$6,$A$25:$E$51,IF($B$8=$A$22,3,2))) -> 230000 | S197: 54.33333333 | T197: =VLOOKUP($S197,P_All!$X$5:$AS$245,3*($C$8-1)+2) -> 1055.3 | U197: =VLOOKUP($S197,P_All!$X$5:$AS$245,3*($C$8-1)+3) -> 1180 | V197: =VLOOKUP($S197,P_All!$X$5:$AS$245,3*($C$8-1)+4) -> 1395.1 | W197: =IF(ISNA(VLOOKUP($B$6,$A$25:$E$52,IF($B$8=$A$22,3,2))),EXP(VLOOKUP($B$6,$A$25:$E$52,4)*LN(VLOOKUP($S197,#REF!,$C$8+1)/1000)+VLOOKUP($B$6,$A$25:$E$52,5)),VLOOKUP($B$6,$A$25:$E$52,IF($B$8=$A$22,3,2))) -> 230000
H198: 173 | I198: =VLOOKUP($H198,P_All!$A$5:$D$205,3*($C$8-1)+2) -> 938.04 | J198: =VLOOKUP($H198,P_All!$A$5:$D$205,3*($C$8-1)+3) -> 1114.1 | K198: =VLOOKUP($H198,P_All!$A$5:$D$205,3*($C$8-1)+4) -> 1365.9 | L198: =IF(ISNA(VLOOKUP($B$6,$A$25:$E$51,IF($B$8=$A$22,3,2))),EXP(VLOOKUP($B$6,$A$25:$E$51,4)*LN(VLOOKUP($H198,#REF!,$C$8+1)/1000)+VLOOKUP($B$6,$A$25:$E$51,5)),VLOOKUP($B$6,$A$25:$E$51,IF($B$8=$A$22,3,2))) -> 230000 | M198: 173 | N198: =VLOOKUP($H198,P_All!$A$5:$D$205,3*($C$8-1)+2) -> 938.04 | O198: =VLOOKUP($H198,P_All!$A$5:$D$205,3*($C$8-1)+3) -> 1114.1 | P198: =VLOOKUP($H198,P_All!$A$5:$D$205,3*($C$8-1)+4) -> 1365.9 | Q198: =IF(ISNA(VLOOKUP($B$6,$A$25:$E$51,IF($B$8=$A$22,3,2))),EXP(VLOOKUP($B$6,$A$25:$E$51,4)*LN(VLOOKUP($H198,#REF!,$C$8+1)/1000)+VLOOKUP($B$6,$A$25:$E$51,5)),VLOOKUP($B$6,$A$25:$E$51,IF($B$8=$A$22,3,2))) -> 230000 | S198: 54.41666667 | T198: =VLOOKUP($S198,P_All!$X$5:$AS$245,3*($C$8-1)+2) -> 1066.1 | U198: =VLOOKUP($S198,P_All!$X$5:$AS$245,3*($C$8-1)+3) -> 1193.6 | V198: =VLOOKUP($S198,P_All!$X$5:$AS$245,3*($C$8-1)+4) -> 1403.2 | W198: =IF(ISNA(VLOOKUP($B$6,$A$25:$E$52,IF($B$8=$A$22,3,2))),EXP(VLOOKUP($B$6,$A$25:$E$52,4)*LN(VLOOKUP($S198,#REF!,$C$8+1)/1000)+VLOOKUP($B$6,$A$25:$E$52,5)),VLOOKUP($B$6,$A$25:$E$52,IF($B$8=$A$22,3,2))) -> 230000
H199: 174 | I199: =VLOOKUP($H199,P_All!$A$5:$D$205,3*($C$8-1)+2) -> 934.39 | J199: =VLOOKUP($H199,P_All!$A$5:$D$205,3*($C$8-1)+3) -> 1121.8 | K199: =VLOOKUP($H199,P_All!$A$5:$D$205,3*($C$8-1)+4) -> 1373.6 | L199: =IF(ISNA(VLOOKUP($B$6,$A$25:$E$51,IF($B$8=$A$22,3,2))),EXP(VLOOKUP($B$6,$A$25:$E$51,4)*LN(VLOOKUP($H199,#REF!,$C$8+1)/1000)+VLOOKUP($B$6,$A$25:$E$51,5)),VLOOKUP($B$6,$A$25:$E$51,IF($B$8=$A$22,3,2))) -> 230000 | M199: 174 | N199: =VLOOKUP($H199,P_All!$A$5:$D$205,3*($C$8-1)+2) -> 934.39 | O199: =VLOOKUP($H199,P_All!$A$5:$D$205,3*($C$8-1)+3) -> 1121.8 | P199: =VLOOKUP($H199,P_All!$A$5:$D$205,3*($C$8-1)+4) -> 1373.6 | Q199: =IF(ISNA(VLOOKUP($B$6,$A$25:$E$51,IF($B$8=$A$22,3,2))),EXP(VLOOKUP($B$6,$A$25:$E$51,4)*LN(VLOOKUP($H199,#REF!,$C$8+1)/1000)+VLOOKUP($B$6,$A$25:$E$51,5)),VLOOKUP($B$6,$A$25:$E$51,IF($B$8=$A$22,3,2))) -> 230000 | S199: 54.5 | T199: =VLOOKUP($S199,P_All!$X$5:$AS$245,3*($C$8-1)+2) -> 1049.2 | U199: =VLOOKUP($S199,P_All!$X$5:$AS$245,3*($C$8-1)+3) -> 1185.1 | V199: =VLOOKUP($S199,P_All!$X$5:$AS$245,3*($C$8-1)+4) -> 1402.6 | W199: =IF(ISNA(VLOOKUP($B$6,$A$25:$E$52,IF($B$8=$A$22,3,2))),EXP(VLOOKUP($B$6,$A$25:$E$52,4)*LN(VLOOKUP($S199,#REF!,$C$8+1)/1000)+VLOOKUP($B$6,$A$25:$E$52,5)),VLOOKUP($B$6,$A$25:$E$52,IF($B$8=$A$22,3,2))) -> 230000
H200: 175 | I200: =VLOOKUP($H200,P_All!$A$5:$D$205,3*($C$8-1)+2) -> 921.36 | J200: =VLOOKUP($H200,P_All!$A$5:$D$205,3*($C$8-1)+3) -> 1137.9 | K200: =VLOOKUP($H200,P_All!$A$5:$D$205,3*($C$8-1)+4) -> 1363 | L200: =IF(ISNA(VLOOKUP($B$6,$A$25:$E$51,IF($B$8=$A$22,3,2))),EXP(VLOOKUP($B$6,$A$25:$E$51,4)*LN(VLOOKUP($H200,#REF!,$C$8+1)/1000)+VLOOKUP($B$6,$A$25:$E$51,5)),VLOOKUP($B$6,$A$25:$E$51,IF($B$8=$A$22,3,2))) -> 230000 | M200: 175 | N200: =VLOOKUP($H200,P_All!$A$5:$D$205,3*($C$8-1)+2) -> 921.36 | O200: =VLOOKUP($H200,P_All!$A$5:$D$205,3*($C$8-1)+3) -> 1137.9 | P200: =VLOOKUP($H200,P_All!$A$5:$D$205,3*($C$8-1)+4) -> 1363 | Q200: =IF(ISNA(VLOOKUP($B$6,$A$25:$E$51,IF($B$8=$A$22,3,2))),EXP(VLOOKUP($B$6,$A$25:$E$51,4)*LN(VLOOKUP($H200,#REF!,$C$8+1)/1000)+VLOOKUP($B$6,$A$25:$E$51,5)),VLOOKUP($B$6,$A$25:$E$51,IF($B$8=$A$22,3,2))) -> 230000 | S200: 54.58333333 | T200: =VLOOKUP($S200,P_All!$X$5:$AS$245,3*($C$8-1)+2) -> 1046.4 | U200: =VLOOKUP($S200,P_All!$X$5:$AS$245,3*($C$8-1)+3) -> 1179.3 | V200: =VLOOKUP($S200,P_All!$X$5:$AS$245,3*($C$8-1)+4) -> 1398.3 | W200: =IF(ISNA(VLOOKUP($B$6,$A$25:$E$52,IF($B$8=$A$22,3,2))),EXP(VLOOKUP($B$6,$A$25:$E$52,4)*LN(VLOOKUP($S200,#REF!,$C$8+1)/1000)+VLOOKUP($B$6,$A$25:$E$52,5)),VLOOKUP($B$6,$A$25:$E$52,IF($B$8=$A$22,3,2))) -> 230000
H201: 176 | I201: =VLOOKUP($H201,P_All!$A$5:$D$205,3*($C$8-1)+2) -> 923.46 | J201: =VLOOKUP($H201,P_All!$A$5:$D$205,3*($C$8-1)+3) -> 1135.7 | K201: =VLOOKUP($H201,P_All!$A$5:$D$205,3*($C$8-1)+4) -> 1376.1 | L201: =IF(ISNA(VLOOKUP($B$6,$A$25:$E$51,IF($B$8=$A$22,3,2))),EXP(VLOOKUP($B$6,$A$25:$E$51,4)*LN(VLOOKUP($H201,#REF!,$C$8+1)/1000)+VLOOKUP($B$6,$A$25:$E$51,5)),VLOOKUP($B$6,$A$25:$E$51,IF($B$8=$A$22,3,2))) -> 230000 | M201: 176 | N201: =VLOOKUP($H201,P_All!$A$5:$D$205,3*($C$8-1)+2) -> 923.46 | O201: =VLOOKUP($H201,P_All!$A$5:$D$205,3*($C$8-1)+3) -> 1135.7 | P201: =VLOOKUP($H201,P_All!$A$5:$D$205,3*($C$8-1)+4) -> 1376.1 | Q201: =IF(ISNA(VLOOKUP($B$6,$A$25:$E$51,IF($B$8=$A$22,3,2))),EXP(VLOOKUP($B$6,$A$25:$E$51,4)*LN(VLOOKUP($H201,#REF!,$C$8+1)/1000)+VLOOKUP($B$6,$A$25:$E$51,5)),VLOOKUP($B$6,$A$25:$E$51,IF($B$8=$A$22,3,2))) -> 230000 | S201: 54.66666667 | T201: =VLOOKUP($S201,P_All!$X$5:$AS$245,3*($C$8-1)+2) -> 1034.3 | U201: =VLOOKUP($S201,P_All!$X$5:$AS$245,3*($C$8-1)+3) -> 1168.6 | V201: =VLOOKUP($S201,P_All!$X$5:$AS$245,3*($C$8-1)+4) -> 1395 | W201: =IF(ISNA(VLOOKUP($B$6,$A$25:$E$52,IF($B$8=$A$22,3,2))),EXP(VLOOKUP($B$6,$A$25:$E$52,4)*LN(VLOOKUP($S201,#REF!,$C$8+1)/1000)+VLOOKUP($B$6,$A$25:$E$52,5)),VLOOKUP($B$6,$A$25:$E$52,IF($B$8=$A$22,3,2))) -> 230000
H202: 177 | I202: =VLOOKUP($H202,P_All!$A$5:$D$205,3*($C$8-1)+2) -> 921.7 | J202: =VLOOKUP($H202,P_All!$A$5:$D$205,3*($C$8-1)+3) -> 1139 | K202: =VLOOKUP($H202,P_All!$A$5:$D$205,3*($C$8-1)+4) -> 1380.4 | L202: =IF(ISNA(VLOOKUP($B$6,$A$25:$E$51,IF($B$8=$A$22,3,2))),EXP(VLOOKUP($B$6,$A$25:$E$51,4)*LN(VLOOKUP($H202,#REF!,$C$8+1)/1000)+VLOOKUP($B$6,$A$25:$E$51,5)),VLOOKUP($B$6,$A$25:$E$51,IF($B$8=$A$22,3,2))) -> 230000 | M202: 177 | N202: =VLOOKUP($H202,P_All!$A$5:$D$205,3*($C$8-1)+2) -> 921.7 | O202: =VLOOKUP($H202,P_All!$A$5:$D$205,3*($C$8-1)+3) -> 1139 | P202: =VLOOKUP($H202,P_All!$A$5:$D$205,3*($C$8-1)+4) -> 1380.4 | Q202: =IF(ISNA(VLOOKUP($B$6,$A$25:$E$51,IF($B$8=$A$22,3,2))),EXP(VLOOKUP($B$6,$A$25:$E$51,4)*LN(VLOOKUP($H202,#REF!,$C$8+1)/1000)+VLOOKUP($B$6,$A$25:$E$51,5)),VLOOKUP($B$6,$A$25:$E$51,IF($B$8=$A$22,3,2))) -> 230000 | S202: 54.75 | T202: =VLOOKUP($S202,P_All!$X$5:$AS$245,3*($C$8-1)+2) -> 1021.6 | U202: =VLOOKUP($S202,P_All!$X$5:$AS$245,3*($C$8-1)+3) -> 1153.6 | V202: =VLOOKUP($S202,P_All!$X$5:$AS$245,3*($C$8-1)+4) -> 1380.3 | W202: =IF(ISNA(VLOOKUP($B$6,$A$25:$E$52,IF($B$8=$A$22,3,2))),EXP(VLOOKUP($B$6,$A$25:$E$52,4)*LN(VLOOKUP($S202,#REF!,$C$8+1)/1000)+VLOOKUP($B$6,$A$25:$E$52,5)),VLOOKUP($B$6,$A$25:$E$52,IF($B$8=$A$22,3,2))) -> 230000
H203: 178 | I203: =VLOOKUP($H203,P_All!$A$5:$D$205,3*($C$8-1)+2) -> 924.37 | J203: =VLOOKUP($H203,P_All!$A$5:$D$205,3*($C$8-1)+3) -> 1129.3 | K203: =VLOOKUP($H203,P_All!$A$5:$D$205,3*($C$8-1)+4) -> 1380.1 | L203: =IF(ISNA(VLOOKUP($B$6,$A$25:$E$51,IF($B$8=$A$22,3,2))),EXP(VLOOKUP($B$6,$A$25:$E$51,4)*LN(VLOOKUP($H203,#REF!,$C$8+1)/1000)+VLOOKUP($B$6,$A$25:$E$51,5)),VLOOKUP($B$6,$A$25:$E$51,IF($B$8=$A$22,3,2))) -> 230000 | M203: 178 | N203: =VLOOKUP($H203,P_All!$A$5:$D$205,3*($C$8-1)+2) -> 924.37 | O203: =VLOOKUP($H203,P_All!$A$5:$D$205,3*($C$8-1)+3) -> 1129.3 | P203: =VLOOKUP($H203,P_All!$A$5:$D$205,3*($C$8-1)+4) -> 1380.1 | Q203: =IF(ISNA(VLOOKUP($B$6,$A$25:$E$51,IF($B$8=$A$22,3,2))),EXP(VLOOKUP($B$6,$A$25:$E$51,4)*LN(VLOOKUP($H203,#REF!,$C$8+1)/1000)+VLOOKUP($B$6,$A$25:$E$51,5)),VLOOKUP($B$6,$A$25:$E$51,IF($B$8=$A$22,3,2))) -> 230000 | S203: 54.83333333 | T203: =VLOOKUP($S203,P_All!$X$5:$AS$245,3*($C$8-1)+2) -> 1017.1 | U203: =VLOOKUP($S203,P_All!$X$5:$AS$245,3*($C$8-1)+3) -> 1146.2 | V203: =VLOOKUP($S203,P_All!$X$5:$AS$245,3*($C$8-1)+4) -> 1373.2 | W203: =IF(ISNA(VLOOKUP($B$6,$A$25:$E$52,IF($B$8=$A$22,3,2))),EXP(VLOOKUP($B$6,$A$25:$E$52,4)*LN(VLOOKUP($S203,#REF!,$C$8+1)/1000)+VLOOKUP($B$6,$A$25:$E$52,5)),VLOOKUP($B$6,$A$25:$E$52,IF($B$8=$A$22,3,2))) -> 230000
H204: 179 | I204: =VLOOKUP($H204,P_All!$A$5:$D$205,3*($C$8-1)+2) -> 927.08 | J204: =VLOOKUP($H204,P_All!$A$5:$D$205,3*($C$8-1)+3) -> 1126.9 | K204: =VLOOKUP($H204,P_All!$A$5:$D$205,3*($C$8-1)+4) -> 1391.4 | L204: =IF(ISNA(VLOOKUP($B$6,$A$25:$E$51,IF($B$8=$A$22,3,2))),EXP(VLOOKUP($B$6,$A$25:$E$51,4)*LN(VLOOKUP($H204,#REF!,$C$8+1)/1000)+VLOOKUP($B$6,$A$25:$E$51,5)),VLOOKUP($B$6,$A$25:$E$51,IF($B$8=$A$22,3,2))) -> 230000 | M204: 179 | N204: =VLOOKUP($H204,P_All!$A$5:$D$205,3*($C$8-1)+2) -> 927.08 | O204: =VLOOKUP($H204,P_All!$A$5:$D$205,3*($C$8-1)+3) -> 1126.9 | P204: =VLOOKUP($H204,P_All!$A$5:$D$205,3*($C$8-1)+4) -> 1391.4 | Q204: =IF(ISNA(VLOOKUP($B$6,$A$25:$E$51,IF($B$8=$A$22,3,2))),EXP(VLOOKUP($B$6,$A$25:$E$51,4)*LN(VLOOKUP($H204,#REF!,$C$8+1)/1000)+VLOOKUP($B$6,$A$25:$E$51,5)),VLOOKUP($B$6,$A$25:$E$51,IF($B$8=$A$22,3,2))) -> 230000 | S204: 54.91666667 | T204: =VLOOKUP($S204,P_All!$X$5:$AS$245,3*($C$8-1)+2) -> 1013.3 | U204: =VLOOKUP($S204,P_All!$X$5:$AS$245,3*($C$8-1)+3) -> 1145.2 | V204: =VLOOKUP($S204,P_All!$X$5:$AS$245,3*($C$8-1)+4) -> 1367.9 | W204: =IF(ISNA(VLOOKUP($B$6,$A$25:$E$52,IF($B$8=$A$22,3,2))),EXP(VLOOKUP($B$6,$A$25:$E$52,4)*LN(VLOOKUP($S204,#REF!,$C$8+1)/1000)+VLOOKUP($B$6,$A$25:$E$52,5)),VLOOKUP($B$6,$A$25:$E$52,IF($B$8=$A$22,3,2))) -> 230000
H205: 180 | I205: =VLOOKUP($H205,P_All!$A$5:$D$205,3*($C$8-1)+2) -> 919.78 | J205: =VLOOKUP($H205,P_All!$A$5:$D$205,3*($C$8-1)+3) -> 1128.9 | K205: =VLOOKUP($H205,P_All!$A$5:$D$205,3*($C$8-1)+4) -> 1377.9 | L205: =IF(ISNA(VLOOKUP($B$6,$A$25:$E$51,IF($B$8=$A$22,3,2))),EXP(VLOOKUP($B$6,$A$25:$E$51,4)*LN(VLOOKUP($H205,#REF!,$C$8+1)/1000)+VLOOKUP($B$6,$A$25:$E$51,5)),VLOOKUP($B$6,$A$25:$E$51,IF($B$8=$A$22,3,2))) -> 230000 | M205: 180 | N205: =VLOOKUP($H205,P_All!$A$5:$D$205,3*($C$8-1)+2) -> 919.78 | O205: =VLOOKUP($H205,P_All!$A$5:$D$205,3*($C$8-1)+3) -> 1128.9 | P205: =VLOOKUP($H205,P_All!$A$5:$D$205,3*($C$8-1)+4) -> 1377.9 | Q205: =IF(ISNA(VLOOKUP($B$6,$A$25:$E$51,IF($B$8=$A$22,3,2))),EXP(VLOOKUP($B$6,$A$25:$E$51,4)*LN(VLOOKUP($H205,#REF!,$C$8+1)/1000)+VLOOKUP($B$6,$A$25:$E$51,5)),VLOOKUP($B$6,$A$25:$E$51,IF($B$8=$A$22,3,2))) -> 230000 | S205: 55 | T205: =VLOOKUP($S205,P_All!$X$5:$AS$245,3*($C$8-1)+2) -> 1009.3 | U205: =VLOOKUP($S205,P_All!$X$5:$AS$245,3*($C$8-1)+3) -> 1139.7 | V205: =VLOOKUP($S205,P_All!$X$5:$AS$245,3*($C$8-1)+4) -> 1356.7 | W205: =IF(ISNA(VLOOKUP($B$6,$A$25:$E$52,IF($B$8=$A$22,3,2))),EXP(VLOOKUP($B$6,$A$25:$E$52,4)*LN(VLOOKUP($S205,#REF!,$C$8+1)/1000)+VLOOKUP($B$6,$A$25:$E$52,5)),VLOOKUP($B$6,$A$25:$E$52,IF($B$8=$A$22,3,2))) -> 230000
H206: 181 | I206: =VLOOKUP($H206,P_All!$A$5:$D$205,3*($C$8-1)+2) -> 929.41 | J206: =VLOOKUP($H206,P_All!$A$5:$D$205,3*($C$8-1)+3) -> 1124.4 | K206: =VLOOKUP($H206,P_All!$A$5:$D$205,3*($C$8-1)+4) -> 1380 | L206: =IF(ISNA(VLOOKUP($B$6,$A$25:$E$51,IF($B$8=$A$22,3,2))),EXP(VLOOKUP($B$6,$A$25:$E$51,4)*LN(VLOOKUP($H206,#REF!,$C$8+1)/1000)+VLOOKUP($B$6,$A$25:$E$51,5)),VLOOKUP($B$6,$A$25:$E$51,IF($B$8=$A$22,3,2))) -> 230000 | M206: 181 | N206: =VLOOKUP($H206,P_All!$A$5:$D$205,3*($C$8-1)+2) -> 929.41 | O206: =VLOOKUP($H206,P_All!$A$5:$D$205,3*($C$8-1)+3) -> 1124.4 | P206: =VLOOKUP($H206,P_All!$A$5:$D$205,3*($C$8-1)+4) -> 1380 | Q206: =IF(ISNA(VLOOKUP($B$6,$A$25:$E$51,IF($B$8=$A$22,3,2))),EXP(VLOOKUP($B$6,$A$25:$E$51,4)*LN(VLOOKUP($H206,#REF!,$C$8+1)/1000)+VLOOKUP($B$6,$A$25:$E$51,5)),VLOOKUP($B$6,$A$25:$E$51,IF($B$8=$A$22,3,2))) -> 230000 | S206: 55.08333333 | T206: =VLOOKUP($S206,P_All!$X$5:$AS$245,3*($C$8-1)+2) -> 1008.9 | U206: =VLOOKUP($S206,P_All!$X$5:$AS$245,3*($C$8-1)+3) -> 1135 | V206: =VLOOKUP($S206,P_All!$X$5:$AS$245,3*($C$8-1)+4) -> 1348.2 | W206: =IF(ISNA(VLOOKUP($B$6,$A$25:$E$52,IF($B$8=$A$22,3,2))),EXP(VLOOKUP($B$6,$A$25:$E$52,4)*LN(VLOOKUP($S206,#REF!,$C$8+1)/1000)+VLOOKUP($B$6,$A$25:$E$52,5)),VLOOKUP($B$6,$A$25:$E$52,IF($B$8=$A$22,3,2))) -> 230000
H207: 182 | I207: =VLOOKUP($H207,P_All!$A$5:$D$205,3*($C$8-1)+2) -> 929.95 | J207: =VLOOKUP($H207,P_All!$A$5:$D$205,3*($C$8-1)+3) -> 1127.7 | K207: =VLOOKUP($H207,P_All!$A$5:$D$205,3*($C$8-1)+4) -> 1373.1 | L207: =IF(ISNA(VLOOKUP($B$6,$A$25:$E$51,IF($B$8=$A$22,3,2))),EXP(VLOOKUP($B$6,$A$25:$E$51,4)*LN(VLOOKUP($H207,#REF!,$C$8+1)/1000)+VLOOKUP($B$6,$A$25:$E$51,5)),VLOOKUP($B$6,$A$25:$E$51,IF($B$8=$A$22,3,2))) -> 230000 | M207: 182 | N207: =VLOOKUP($H207,P_All!$A$5:$D$205,3*($C$8-1)+2) -> 929.95 | O207: =VLOOKUP($H207,P_All!$A$5:$D$205,3*($C$8-1)+3) -> 1127.7 | P207: =VLOOKUP($H207,P_All!$A$5:$D$205,3*($C$8-1)+4) -> 1373.1 | Q207: =IF(ISNA(VLOOKUP($B$6,$A$25:$E$51,IF($B$8=$A$22,3,2))),EXP(VLOOKUP($B$6,$A$25:$E$51,4)*LN(VLOOKUP($H207,#REF!,$C$8+1)/1000)+VLOOKUP($B$6,$A$25:$E$51,5)),VLOOKUP($B$6,$A$25:$E$51,IF($B$8=$A$22,3,2))) -> 230000 | S207: 55.16666667 | T207: =VLOOKUP($S207,P_All!$X$5:$AS$245,3*($C$8-1)+2) -> 1009.6 | U207: =VLOOKUP($S207,P_All!$X$5:$AS$245,3*($C$8-1)+3) -> 1133.4 | V207: =VLOOKUP($S207,P_All!$X$5:$AS$245,3*($C$8-1)+4) -> 1342.3 | W207: =IF(ISNA(VLOOKUP($B$6,$A$25:$E$52,IF($B$8=$A$22,3,2))),EXP(VLOOKUP($B$6,$A$25:$E$52,4)*LN(VLOOKUP($S207,#REF!,$C$8+1)/1000)+VLOOKUP($B$6,$A$25:$E$52,5)),VLOOKUP($B$6,$A$25:$E$52,IF($B$8=$A$22,3,2))) -> 230000
H208: 183 | I208: =VLOOKUP($H208,P_All!$A$5:$D$205,3*($C$8-1)+2) -> 930.44 | J208: =VLOOKUP($H208,P_All!$A$5:$D$205,3*($C$8-1)+3) -> 1134.6 | K208: =VLOOKUP($H208,P_All!$A$5:$D$205,3*($C$8-1)+4) -> 1361.3 | L208: =IF(ISNA(VLOOKUP($B$6,$A$25:$E$51,IF($B$8=$A$22,3,2))),EXP(VLOOKUP($B$6,$A$25:$E$51,4)*LN(VLOOKUP($H208,#REF!,$C$8+1)/1000)+VLOOKUP($B$6,$A$25:$E$51,5)),VLOOKUP($B$6,$A$25:$E$51,IF($B$8=$A$22,3,2))) -> 230000 | M208: 183 | N208: =VLOOKUP($H208,P_All!$A$5:$D$205,3*($C$8-1)+2) -> 930.44 | O208: =VLOOKUP($H208,P_All!$A$5:$D$205,3*($C$8-1)+3) -> 1134.6 | P208: =VLOOKUP($H208,P_All!$A$5:$D$205,3*($C$8-1)+4) -> 1361.3 | Q208: =IF(ISNA(VLOOKUP($B$6,$A$25:$E$51,IF($B$8=$A$22,3,2))),EXP(VLOOKUP($B$6,$A$25:$E$51,4)*LN(VLOOKUP($H208,#REF!,$C$8+1)/1000)+VLOOKUP($B$6,$A$25:$E$51,5)),VLOOKUP($B$6,$A$25:$E$51,IF($B$8=$A$22,3,2))) -> 230000 | S208: 55.25 | T208: =VLOOKUP($S208,P_All!$X$5:$AS$245,3*($C$8-1)+2) -> 1017.4 | U208: =VLOOKUP($S208,P_All!$X$5:$AS$245,3*($C$8-1)+3) -> 1136.7 | V208: =VLOOKUP($S208,P_All!$X$5:$AS$245,3*($C$8-1)+4) -> 1341.1 | W208: =IF(ISNA(VLOOKUP($B$6,$A$25:$E$52,IF($B$8=$A$22,3,2))),EXP(VLOOKUP($B$6,$A$25:$E$52,4)*LN(VLOOKUP($S208,#REF!,$C$8+1)/1000)+VLOOKUP($B$6,$A$25:$E$52,5)),VLOOKUP($B$6,$A$25:$E$52,IF($B$8=$A$22,3,2))) -> 230000
... 57 more rows

Sheet P_All
B1: Values shown for constituent selected on PlotControl tab | Y1: Values shown for constituent selected on PlotControl tab
B2: Pond | E2: =PlotControl!$A$16 -> 0 | H2: =PlotControl!$A$17 -> Plot | K2: =PlotControl!$A$18 -> Annual Max | N2: =PlotControl!$A$19 -> Annual Average | Q2: =PlotControl!$A$20 -> 0 | T2: =PlotControl!$A$21 -> 0 | Y2: =PlotControl!$A$15 -> Pond | AB2: =PlotControl!$A$16 -> 0 | AE2: =PlotControl!$A$17 -> Plot | AH2: =PlotControl!$A$18 -> Annual Max | AK2: =PlotControl!$A$19 -> Annual Average | AN2: =PlotControl!$A$20 -> 0 | AQ2: =PlotControl!$A$21 -> 0
B3: Annual Project Results | E3: Annual Project Results | H3: Annual Project Results | K3: Annual Project Results | N3: Annual Project Results | Q3: Annual Project Results | T3: Annual Project Results | Y3: Monthly Project Results | AB3: Monthly Project Results | AE3: Monthly Project Results | AH3: Monthly Project Results | AK3: Monthly Project Results | AN3: Monthly Project Results | AQ3: Monthly Project Results
A4: Time | B4: P10 | C4: P50 | D4: P90 | E4: P10 | F4: P50 | G4: P90 | H4: P10 | I4: P50 | J4: P90 | K4: P10 | L4: P50 | M4: P90 | N4: P10 | O4: P50 | P4: P90 | Q4: P10 | R4: P50 | S4: P90 | T4: P10 | U4: P50 | V4: P90 | X4: Time | Y4: P10 | Z4: P50 | AA4: P90 | AB4: P10 | AC4: P50 | AD4: P90 | AE4: P10 | AF4: P50 | AG4: P90 | AH4: P10 | AI4: P50 | AJ4: P90 | AK4: P10 | AL4: P50 | AM4: P90 | AN4: P10 | AO4: P50 | AP4: P90 | AQ4: P10 | AR4: P50 | AS4: P90
A5: 0 | B5: =IF(PlotControl!$B$4 = "Annual Max",MAX(OFFSET('2EPond'!$C$10,12*$A5,4*(PlotControl!$C$6-1),12,1)),AVERAGE(OFFSET('2EPond'!$C$10,12*$A5,4*(PlotControl!$C$6-1),12,1))) -> 23000 | C5: =IF(PlotControl!$B$4 = "Annual Max",MAX(OFFSET('2EPond'!$D$10,12*$A5,4*(PlotControl!$C$6-1),12,1)),AVERAGE(OFFSET('2EPond'!$D$10,12*$A5,4*(PlotControl!$C$6-1),12,1))) -> 23000 | D5: =IF(PlotControl!$B$4 = "Annual Max",MAX(OFFSET('2EPond'!$E$10,12*$A5,4*(PlotControl!$C$6-1),12,1)),AVERAGE(OFFSET('2EPond'!$E$10,12*$A5,4*(PlotControl!$C$6-1),12,1))) -> 24402 | X5: =PlotControl!$B$10 -> 40 | Y5: =IF($X5<=7,OFFSET('2EPond'!$C$10,12*$X5,4*(PlotControl!$C$6-1),1,1),OFFSET('1EPond'!$C$10,12*$X5,4*(PlotControl!$C$6-1),1,1)) -> 1492.1 | Z5: =IF(X5<=7,OFFSET('2EPond'!$D$10,12*$X5,4*(PlotControl!$C$6-1),1,1),OFFSET('1EPond'!$D$10,12*$X5,4*(PlotControl!$C$6-1),1,1)) -> 1622.9 | AA5: =IF(X5<=7,OFFSET('2EPond'!$E$10,12*$X5,4*(PlotControl!$C$6-1),1,1),OFFSET('1EPond'!$E$10,12*$X5,4*(PlotControl!$C$6-1),1,1)) -> 1768.2
A6: 1 | B6: =IF(PlotControl!$B$4 = "Annual Max",MAX(OFFSET('2EPond'!$C$10,12*$A6,4*(PlotControl!$C$6-1),12,1)),AVERAGE(OFFSET('2EPond'!$C$10,12*$A6,4*(PlotControl!$C$6-1),12,1))) -> 21370 | C6: =IF(PlotControl!$B$4 = "Annual Max",MAX(OFFSET('2EPond'!$D$10,12*$A6,4*(PlotControl!$C$6-1),12,1)),AVERAGE(OFFSET('2EPond'!$D$10,12*$A6,4*(PlotControl!$C$6-1),12,1))) -> 23759 | D6: =IF(PlotControl!$B$4 = "Annual Max",MAX(OFFSET('2EPond'!$E$10,12*$A6,4*(PlotControl!$C$6-1),12,1)),AVERAGE(OFFSET('2EPond'!$E$10,12*$A6,4*(PlotControl!$C$6-1),12,1))) -> 27240 | X6: =X5+1/12 -> 40.08333333 | Y6: =IF($X6<=7,OFFSET('2EPond'!$C$10,12*$X6,4*(PlotControl!$C$6-1),1,1),OFFSET('1EPond'!$C$10,12*$X6,4*(PlotControl!$C$6-1),1,1)) -> 1489.4 | Z6: =IF(X6<=7,OFFSET('2EPond'!$D$10,12*$X6,4*(PlotControl!$C$6-1),1,1),OFFSET('1EPond'!$D$10,12*$X6,4*(PlotControl!$C$6-1),1,1)) -> 1613.8 | AA6: =IF(X6<=7,OFFSET('2EPond'!$E$10,12*$X6,4*(PlotControl!$C$6-1),1,1),OFFSET('1EPond'!$E$10,12*$X6,4*(PlotControl!$C$6-1),1,1)) -> 1754.6
A7: 2 | B7: =IF(PlotControl!$B$4 = "Annual Max",MAX(OFFSET('2EPond'!$C$10,12*$A7,4*(PlotControl!$C$6-1),12,1)),AVERAGE(OFFSET('2EPond'!$C$10,12*$A7,4*(PlotControl!$C$6-1),12,1))) -> 22519 | C7: =IF(PlotControl!$B$4 = "Annual Max",MAX(OFFSET('2EPond'!$D$10,12*$A7,4*(PlotControl!$C$6-1),12,1)),AVERAGE(OFFSET('2EPond'!$D$10,12*$A7,4*(PlotControl!$C$6-1),12,1))) -> 25048 | D7: =IF(PlotControl!$B$4 = "Annual Max",MAX(OFFSET('2EPond'!$E$10,12*$A7,4*(PlotControl!$C$6-1),12,1)),AVERAGE(OFFSET('2EPond'!$E$10,12*$A7,4*(PlotControl!$C$6-1),12,1))) -> 29073 | X7: =X6+1/12 -> 40.16666667 | Y7: =IF($X7<=7,OFFSET('2EPond'!$C$10,12*$X7,4*(PlotControl!$C$6-1),1,1),OFFSET('1EPond'!$C$10,12*$X7,4*(PlotControl!$C$6-1),1,1)) -> 1482.6 | Z7: =IF(X7<=7,OFFSET('2EPond'!$D$10,12*$X7,4*(PlotControl!$C$6-1),1,1),OFFSET('1EPond'!$D$10,12*$X7,4*(PlotControl!$C$6-1),1,1)) -> 1603.2 | AA7: =IF(X7<=7,OFFSET('2EPond'!$E$10,12*$X7,4*(PlotControl!$C$6-1),1,1),OFFSET('1EPond'!$E$10,12*$X7,4*(PlotControl!$C$6-1),1,1)) -> 1738.5
A8: 3 | B8: =IF(PlotControl!$B$4 = "Annual Max",MAX(OFFSET('2EPond'!$C$10,12*$A8,4*(PlotControl!$C$6-1),12,1)),AVERAGE(OFFSET('2EPond'!$C$10,12*$A8,4*(PlotControl!$C$6-1),12,1))) -> 22597 | C8: =IF(PlotControl!$B$4 = "Annual Max",MAX(OFFSET('2EPond'!$D$10,12*$A8,4*(PlotControl!$C$6-1),12,1)),AVERAGE(OFFSET('2EPond'!$D$10,12*$A8,4*(PlotControl!$C$6-1),12,1))) -> 25360 | D8: =IF(PlotControl!$B$4 = "Annual Max",MAX(OFFSET('2EPond'!$E$10,12*$A8,4*(PlotControl!$C$6-1),12,1)),AVERAGE(OFFSET('2EPond'!$E$10,12*$A8,4*(PlotControl!$C$6-1),12,1))) -> 29866 | X8: 40.25 | Y8: =IF($X8<=7,OFFSET('2EPond'!$C$10,12*$X8,4*(PlotControl!$C$6-1),1,1),OFFSET('1EPond'!$C$10,12*$X8,4*(PlotControl!$C$6-1),1,1)) -> 1481.3 | Z8: =IF(X8<=7,OFFSET('2EPond'!$D$10,12*$X8,4*(PlotControl!$C$6-1),1,1),OFFSET('1EPond'!$D$10,12*$X8,4*(PlotControl!$C$6-1),1,1)) -> 1600 | AA8: =IF(X8<=7,OFFSET('2EPond'!$E$10,12*$X8,4*(PlotControl!$C$6-1),1,1),OFFSET('1EPond'!$E$10,12*$X8,4*(PlotControl!$C$6-1),1,1)) -> 1730.7
A9: 4 | B9: =IF(PlotControl!$B$4 = "Annual Max",MAX(OFFSET('2EPond'!$C$10,12*$A9,4*(PlotControl!$C$6-1),12,1)),AVERAGE(OFFSET('2EPond'!$C$10,12*$A9,4*(PlotControl!$C$6-1),12,1))) -> 22590 | C9: =IF(PlotControl!$B$4 = "Annual Max",MAX(OFFSET('2EPond'!$D$10,12*$A9,4*(PlotControl!$C$6-1),12,1)),AVERAGE(OFFSET('2EPond'!$D$10,12*$A9,4*(PlotControl!$C$6-1),12,1))) -> 24994 | D9: =IF(PlotControl!$B$4 = "Annual Max",MAX(OFFSET('2EPond'!$E$10,12*$A9,4*(PlotControl!$C$6-1),12,1)),AVERAGE(OFFSET('2EPond'!$E$10,12*$A9,4*(PlotControl!$C$6-1),12,1))) -> 29184 | X9: 40.33333333 | Y9: =IF($X9<=7,OFFSET('2EPond'!$C$10,12*$X9,4*(PlotControl!$C$6-1),1,1),OFFSET('1EPond'!$C$10,12*$X9,4*(PlotControl!$C$6-1),1,1)) -> 1494.3 | Z9: =IF(X9<=7,OFFSET('2EPond'!$D$10,12*$X9,4*(PlotControl!$C$6-1),1,1),OFFSET('1EPond'!$D$10,12*$X9,4*(PlotControl!$C$6-1),1,1)) -> 1611.8 | AA9: =IF(X9<=7,OFFSET('2EPond'!$E$10,12*$X9,4*(PlotControl!$C$6-1),1,1),OFFSET('1EPond'!$E$10,12*$X9,4*(PlotControl!$C$6-1),1,1)) -> 1751.4
A10: 5 | B10: =IF(PlotControl!$B$4 = "Annual Max",MAX(OFFSET('2EPond'!$C$10,12*$A10,4*(PlotControl!$C$6-1),12,1)),AVERAGE(OFFSET('2EPond'!$C$10,12*$A10,4*(PlotControl!$C$6-1),12,1))) -> 21752 | C10: =IF(PlotControl!$B$4 = "Annual Max",MAX(OFFSET('2EPond'!$D$10,12*$A10,4*(PlotControl!$C$6-1),12,1)),AVERAGE(OFFSET('2EPond'!$D$10,12*$A10,4*(PlotControl!$C$6-1),12,1))) -> 24382 | D10: =IF(PlotControl!$B$4 = "Annual Max",MAX(OFFSET('2EPond'!$E$10,12*$A10,4*(PlotControl!$C$6-1),12,1)),AVERAGE(OFFSET('2EPond'!$E$10,12*$A10,4*(PlotControl!$C$6-1),12,1))) -> 28303 | X10: 40.41666667 | Y10: =IF($X10<=7,OFFSET('2EPond'!$C$10,12*$X10,4*(PlotControl!$C$6-1),1,1),OFFSET('1EPond'!$C$10,12*$X10,4*(PlotControl!$C$6-1),1,1)) -> 1497.5 | Z10: =IF(X10<=7,OFFSET('2EPond'!$D$10,12*$X10,4*(PlotControl!$C$6-1),1,1),OFFSET('1EPond'!$D$10,12*$X10,4*(PlotControl!$C$6-1),1,1)) -> 1617.3 | AA10: =IF(X10<=7,OFFSET('2EPond'!$E$10,12*$X10,4*(PlotControl!$C$6-1),1,1),OFFSET('1EPond'!$E$10,12*$X10,4*(PlotControl!$C$6-1),1,1)) -> 1757.7
A11: 6 | B11: =IF(PlotControl!$B$4 = "Annual Max",MAX(OFFSET('2EPond'!$C$10,12*$A11,4*(PlotControl!$C$6-1),12,1)),AVERAGE(OFFSET('2EPond'!$C$10,12*$A11,4*(PlotControl!$C$6-1),12,1))) -> 21181 | C11: =IF(PlotControl!$B$4 = "Annual Max",MAX(OFFSET('2EPond'!$D$10,12*$A11,4*(PlotControl!$C$6-1),12,1)),AVERAGE(OFFSET('2EPond'!$D$10,12*$A11,4*(PlotControl!$C$6-1),12,1))) -> 23591 | D11: =IF(PlotControl!$B$4 = "Annual Max",MAX(OFFSET('2EPond'!$E$10,12*$A11,4*(PlotControl!$C$6-1),12,1)),AVERAGE(OFFSET('2EPond'!$E$10,12*$A11,4*(PlotControl!$C$6-1),12,1))) -> 27675 | X11: 40.5 | Y11: =IF($X11<=7,OFFSET('2EPond'!$C$10,12*$X11,4*(PlotControl!$C$6-1),1,1),OFFSET('1EPond'!$C$10,12*$X11,4*(PlotControl!$C$6-1),1,1)) -> 1476.5 | Z11: =IF(X11<=7,OFFSET('2EPond'!$D$10,12*$X11,4*(PlotControl!$C$6-1),1,1),OFFSET('1EPond'!$D$10,12*$X11,4*(PlotControl!$C$6-1),1,1)) -> 1603.1 | AA11: =IF(X11<=7,OFFSET('2EPond'!$E$10,12*$X11,4*(PlotControl!$C$6-1),1,1),OFFSET('1EPond'!$E$10,12*$X11,4*(PlotControl!$C$6-1),1,1)) -> 1743.6
A12: 7 | B12: =IF(PlotControl!$B$4 = "Annual Max",MAX(OFFSET('1EPond'!$C$10,12*$A12,4*(PlotControl!$C$6-1),12,1)),AVERAGE(OFFSET('1EPond'!$C$10,12*$A12,4*(PlotControl!$C$6-1),12,1))) -> 20406 | C12: =IF(PlotControl!$B$4 = "Annual Max",MAX(OFFSET('1EPond'!$D$10,12*$A12,4*(PlotControl!$C$6-1),12,1)),AVERAGE(OFFSET('1EPond'!$D$10,12*$A12,4*(PlotControl!$C$6-1),12,1))) -> 22721 | D12: =IF(PlotControl!$B$4 = "Annual Max",MAX(OFFSET('1EPond'!$E$10,12*$A12,4*(PlotControl!$C$6-1),12,1)),AVERAGE(OFFSET('1EPond'!$E$10,12*$A12,4*(PlotControl!$C$6-1),12,1))) -> 26631 | X12: 40.58333333 | Y12: =IF($X12<=7,OFFSET('2EPond'!$C$10,12*$X12,4*(PlotControl!$C$6-1),1,1),OFFSET('1EPond'!$C$10,12*$X12,4*(PlotControl!$C$6-1),1,1)) -> 1463.5 | Z12: =IF(X12<=7,OFFSET('2EPond'!$D$10,12*$X12,4*(PlotControl!$C$6-1),1,1),OFFSET('1EPond'!$D$10,12*$X12,4*(PlotControl!$C$6-1),1,1)) -> 1592.4 | AA12: =IF(X12<=7,OFFSET('2EPond'!$E$10,12*$X12,4*(PlotControl!$C$6-1),1,1),OFFSET('1EPond'!$E$10,12*$X12,4*(PlotControl!$C$6-1),1,1)) -> 1729.9
A13: 8 | B13: =IF(PlotControl!$B$4 = "Annual Max",MAX(OFFSET('1EPond'!$C$10,12*$A13,4*(PlotControl!$C$6-1),12,1)),AVERAGE(OFFSET('1EPond'!$C$10,12*$A13,4*(PlotControl!$C$6-1),12,1))) -> 23730 | C13: =IF(PlotControl!$B$4 = "Annual Max",MAX(OFFSET('1EPond'!$D$10,12*$A13,4*(PlotControl!$C$6-1),12,1)),AVERAGE(OFFSET('1EPond'!$D$10,12*$A13,4*(PlotControl!$C$6-1),12,1))) -> 26536 | D13: =IF(PlotControl!$B$4 = "Annual Max",MAX(OFFSET('1EPond'!$E$10,12*$A13,4*(PlotControl!$C$6-1),12,1)),AVERAGE(OFFSET('1EPond'!$E$10,12*$A13,4*(PlotControl!$C$6-1),12,1))) -> 30832 | X13: 40.66666667 | Y13: =IF($X13<=7,OFFSET('2EPond'!$C$10,12*$X13,4*(PlotControl!$C$6-1),1,1),OFFSET('1EPond'!$C$10,12*$X13,4*(PlotControl!$C$6-1),1,1)) -> 1453.5 | Z13: =IF(X13<=7,OFFSET('2EPond'!$D$10,12*$X13,4*(PlotControl!$C$6-1),1,1),OFFSET('1EPond'!$D$10,12*$X13,4*(PlotControl!$C$6-1),1,1)) -> 1578.1 | AA13: =IF(X13<=7,OFFSET('2EPond'!$E$10,12*$X13,4*(PlotControl!$C$6-1),1,1),OFFSET('1EPond'!$E$10,12*$X13,4*(PlotControl!$C$6-1),1,1)) -> 1717.5
A14: 9 | B14: =IF(PlotControl!$B$4 = "Annual Max",MAX(OFFSET('1EPond'!$C$10,12*$A14,4*(PlotControl!$C$6-1),12,1)),AVERAGE(OFFSET('1EPond'!$C$10,12*$A14,4*(PlotControl!$C$6-1),12,1))) -> 26236 | C14: =IF(PlotControl!$B$4 = "Annual Max",MAX(OFFSET('1EPond'!$D$10,12*$A14,4*(PlotControl!$C$6-1),12,1)),AVERAGE(OFFSET('1EPond'!$D$10,12*$A14,4*(PlotControl!$C$6-1),12,1))) -> 29294 | D14: =IF(PlotControl!$B$4 = "Annual Max",MAX(OFFSET('1EPond'!$E$10,12*$A14,4*(PlotControl!$C$6-1),12,1)),AVERAGE(OFFSET('1EPond'!$E$10,12*$A14,4*(PlotControl!$C$6-1),12,1))) -> 33765 | X14: 40.75 | Y14: =IF($X14<=7,OFFSET('2EPond'!$C$10,12*$X14,4*(PlotControl!$C$6-1),1,1),OFFSET('1EPond'!$C$10,12*$X14,4*(PlotControl!$C$6-1),1,1)) -> 1425.4 | Z14: =IF(X14<=7,OFFSET('2EPond'!$D$10,12*$X14,4*(PlotControl!$C$6-1),1,1),OFFSET('1EPond'!$D$10,12*$X14,4*(PlotControl!$C$6-1),1,1)) -> 1560.3 | AA14: =IF(X14<=7,OFFSET('2EPond'!$E$10,12*$X14,4*(PlotControl!$C$6-1),1,1),OFFSET('1EPond'!$E$10,12*$X14,4*(PlotControl!$C$6-1),1,1)) -> 1699.5
A15: 10 | B15: =IF(PlotControl!$B$4 = "Annual Max",MAX(OFFSET('1EPond'!$C$10,12*$A15,4*(PlotControl!$C$6-1),12,1)),AVERAGE(OFFSET('1EPond'!$C$10,12*$A15,4*(PlotControl!$C$6-1),12,1))) -> 27710 | C15: =IF(PlotControl!$B$4 = "Annual Max",MAX(OFFSET('1EPond'!$D$10,12*$A15,4*(PlotControl!$C$6-1),12,1)),AVERAGE(OFFSET('1EPond'!$D$10,12*$A15,4*(PlotControl!$C$6-1),12,1))) -> 30688 | D15: =IF(PlotControl!$B$4 = "Annual Max",MAX(OFFSET('1EPond'!$E$10,12*$A15,4*(PlotControl!$C$6-1),12,1)),AVERAGE(OFFSET('1EPond'!$E$10,12*$A15,4*(PlotControl!$C$6-1),12,1))) -> 35554 | X15: 40.83333333 | Y15: =IF($X15<=7,OFFSET('2EPond'!$C$10,12*$X15,4*(PlotControl!$C$6-1),1,1),OFFSET('1EPond'!$C$10,12*$X15,4*(PlotControl!$C$6-1),1,1)) -> 1409 | Z15: =IF(X15<=7,OFFSET('2EPond'!$D$10,12*$X15,4*(PlotControl!$C$6-1),1,1),OFFSET('1EPond'!$D$10,12*$X15,4*(PlotControl!$C$6-1),1,1)) -> 1547.2 | AA15: =IF(X15<=7,OFFSET('2EPond'!$E$10,12*$X15,4*(PlotControl!$C$6-1),1,1),OFFSET('1EPond'!$E$10,12*$X15,4*(PlotControl!$C$6-1),1,1)) -> 1685.4
A16: 11 | B16: =IF(PlotControl!$B$4 = "Annual Max",MAX(OFFSET('1EPond'!$C$10,12*$A16,4*(PlotControl!$C$6-1),12,1)),AVERAGE(OFFSET('1EPond'!$C$10,12*$A16,4*(PlotControl!$C$6-1),12,1))) -> 30556 | C16: =IF(PlotControl!$B$4 = "Annual Max",MAX(OFFSET('1EPond'!$D$10,12*$A16,4*(PlotControl!$C$6-1),12,1)),AVERAGE(OFFSET('1EPond'!$D$10,12*$A16,4*(PlotControl!$C$6-1),12,1))) -> 33759 | D16: =IF(PlotControl!$B$4 = "Annual Max",MAX(OFFSET('1EPond'!$E$10,12*$A16,4*(PlotControl!$C$6-1),12,1)),AVERAGE(OFFSET('1EPond'!$E$10,12*$A16,4*(PlotControl!$C$6-1),12,1))) -> 38877 | X16: 40.91666667 | Y16: =IF($X16<=7,OFFSET('2EPond'!$C$10,12*$X16,4*(PlotControl!$C$6-1),1,1),OFFSET('1EPond'!$C$10,12*$X16,4*(PlotControl!$C$6-1),1,1)) -> 1403.3 | Z16: =IF(X16<=7,OFFSET('2EPond'!$D$10,12*$X16,4*(PlotControl!$C$6-1),1,1),OFFSET('1EPond'!$D$10,12*$X16,4*(PlotControl!$C$6-1),1,1)) -> 1536.1 | AA16: =IF(X16<=7,OFFSET('2EPond'!$E$10,12*$X16,4*(PlotControl!$C$6-1),1,1),OFFSET('1EPond'!$E$10,12*$X16,4*(PlotControl!$C$6-1),1,1)) -> 1675.6
A17: 12 | B17: =IF(PlotControl!$B$4 = "Annual Max",MAX(OFFSET('1EPond'!$C$10,12*$A17,4*(PlotControl!$C$6-1),12,1)),AVERAGE(OFFSET('1EPond'!$C$10,12*$A17,4*(PlotControl!$C$6-1),12,1))) -> 33055 | C17: =IF(PlotControl!$B$4 = "Annual Max",MAX(OFFSET('1EPond'!$D$10,12*$A17,4*(PlotControl!$C$6-1),12,1)),AVERAGE(OFFSET('1EPond'!$D$10,12*$A17,4*(PlotControl!$C$6-1),12,1))) -> 36675 | D17: =IF(PlotControl!$B$4 = "Annual Max",MAX(OFFSET('1EPond'!$E$10,12*$A17,4*(PlotControl!$C$6-1),12,1)),AVERAGE(OFFSET('1EPond'!$E$10,12*$A17,4*(PlotControl!$C$6-1),12,1))) -> 41541 | X17: 41 | Y17: =IF($X17<=7,OFFSET('2EPond'!$C$10,12*$X17,4*(PlotControl!$C$6-1),1,1),OFFSET('1EPond'!$C$10,12*$X17,4*(PlotControl!$C$6-1),1,1)) -> 1396.3 | Z17: =IF(X17<=7,OFFSET('2EPond'!$D$10,12*$X17,4*(PlotControl!$C$6-1),1,1),OFFSET('1EPond'!$D$10,12*$X17,4*(PlotControl!$C$6-1),1,1)) -> 1523.4 | AA17: =IF(X17<=7,OFFSET('2EPond'!$E$10,12*$X17,4*(PlotControl!$C$6-1),1,1),OFFSET('1EPond'!$E$10,12*$X17,4*(PlotControl!$C$6-1),1,1)) -> 1660.7
A18: 13 | B18: =IF(PlotControl!$B$4 = "Annual Max",MAX(OFFSET('1EPond'!$C$10,12*$A18,4*(PlotControl!$C$6-1),12,1)),AVERAGE(OFFSET('1EPond'!$C$10,12*$A18,4*(PlotControl!$C$6-1),12,1))) -> 32634 | C18: =IF(PlotControl!$B$4 = "Annual Max",MAX(OFFSET('1EPond'!$D$10,12*$A18,4*(PlotControl!$C$6-1),12,1)),AVERAGE(OFFSET('1EPond'!$D$10,12*$A18,4*(PlotControl!$C$6-1),12,1))) -> 36214 | D18: =IF(PlotControl!$B$4 = "Annual Max",MAX(OFFSET('1EPond'!$E$10,12*$A18,4*(PlotControl!$C$6-1),12,1)),AVERAGE(OFFSET('1EPond'!$E$10,12*$A18,4*(PlotControl!$C$6-1),12,1))) -> 40984 | X18: 41.08333333 | Y18: =IF($X18<=7,OFFSET('2EPond'!$C$10,12*$X18,4*(PlotControl!$C$6-1),1,1),OFFSET('1EPond'!$C$10,12*$X18,4*(PlotControl!$C$6-1),1,1)) -> 1389.7 | Z18: =IF(X18<=7,OFFSET('2EPond'!$D$10,12*$X18,4*(PlotControl!$C$6-1),1,1),OFFSET('1EPond'!$D$10,12*$X18,4*(PlotControl!$C$6-1),1,1)) -> 1514.3 | AA18: =IF(X18<=7,OFFSET('2EPond'!$E$10,12*$X18,4*(PlotControl!$C$6-1),1,1),OFFSET('1EPond'!$E$10,12*$X18,4*(PlotControl!$C$6-1),1,1)) -> 1646.2
A19: 14 | B19: =IF(PlotControl!$B$4 = "Annual Max",MAX(OFFSET('1EPond'!$C$10,12*$A19,4*(PlotControl!$C$6-1),12,1)),AVERAGE(OFFSET('1EPond'!$C$10,12*$A19,4*(PlotControl!$C$6-1),12,1))) -> 30496 | C19: =IF(PlotControl!$B$4 = "Annual Max",MAX(OFFSET('1EPond'!$D$10,12*$A19,4*(PlotControl!$C$6-1),12,1)),AVERAGE(OFFSET('1EPond'!$D$10,12*$A19,4*(PlotControl!$C$6-1),12,1))) -> 33730 | D19: =IF(PlotControl!$B$4 = "Annual Max",MAX(OFFSET('1EPond'!$E$10,12*$A19,4*(PlotControl!$C$6-1),12,1)),AVERAGE(OFFSET('1EPond'!$E$10,12*$A19,4*(PlotControl!$C$6-1),12,1))) -> 38633 | X19: 41.16666667 | Y19: =IF($X19<=7,OFFSET('2EPond'!$C$10,12*$X19,4*(PlotControl!$C$6-1),1,1),OFFSET('1EPond'!$C$10,12*$X19,4*(PlotControl!$C$6-1),1,1)) -> 1387 | Z19: =IF(X19<=7,OFFSET('2EPond'!$D$10,12*$X19,4*(PlotControl!$C$6-1),1,1),OFFSET('1EPond'!$D$10,12*$X19,4*(PlotControl!$C$6-1),1,1)) -> 1508.1 | AA19: =IF(X19<=7,OFFSET('2EPond'!$E$10,12*$X19,4*(PlotControl!$C$6-1),1,1),OFFSET('1EPond'!$E$10,12*$X19,4*(PlotControl!$C$6-1),1,1)) -> 1633.5
A20: 15 | B20: =IF(PlotControl!$B$4 = "Annual Max",MAX(OFFSET('1EPond'!$C$10,12*$A20,4*(PlotControl!$C$6-1),12,1)),AVERAGE(OFFSET('1EPond'!$C$10,12*$A20,4*(PlotControl!$C$6-1),12,1))) -> 28998 | C20: =IF(PlotControl!$B$4 = "Annual Max",MAX(OFFSET('1EPond'!$D$10,12*$A20,4*(PlotControl!$C$6-1),12,1)),AVERAGE(OFFSET('1EPond'!$D$10,12*$A20,4*(PlotControl!$C$6-1),12,1))) -> 31897 | D20: =IF(PlotControl!$B$4 = "Annual Max",MAX(OFFSET('1EPond'!$E$10,12*$A20,4*(PlotControl!$C$6-1),12,1)),AVERAGE(OFFSET('1EPond'!$E$10,12*$A20,4*(PlotControl!$C$6-1),12,1))) -> 36479 | X20: 41.25 | Y20: =IF($X20<=7,OFFSET('2EPond'!$C$10,12*$X20,4*(PlotControl!$C$6-1),1,1),OFFSET('1EPond'!$C$10,12*$X20,4*(PlotControl!$C$6-1),1,1)) -> 1387.4 | Z20: =IF(X20<=7,OFFSET('2EPond'!$D$10,12*$X20,4*(PlotControl!$C$6-1),1,1),OFFSET('1EPond'!$D$10,12*$X20,4*(PlotControl!$C$6-1),1,1)) -> 1506.6 | AA20: =IF(X20<=7,OFFSET('2EPond'!$E$10,12*$X20,4*(PlotControl!$C$6-1),1,1),OFFSET('1EPond'!$E$10,12*$X20,4*(PlotControl!$C$6-1),1,1)) -> 1629.3
A21: 16 | B21: =IF(PlotControl!$B$4 = "Annual Max",MAX(OFFSET('1EPond'!$C$10,12*$A21,4*(PlotControl!$C$6-1),12,1)),AVERAGE(OFFSET('1EPond'!$C$10,12*$A21,4*(PlotControl!$C$6-1),12,1))) -> 22951 | C21: =IF(PlotControl!$B$4 = "Annual Max",MAX(OFFSET('1EPond'!$D$10,12*$A21,4*(PlotControl!$C$6-1),12,1)),AVERAGE(OFFSET('1EPond'!$D$10,12*$A21,4*(PlotControl!$C$6-1),12,1))) -> 25703 | D21: =IF(PlotControl!$B$4 = "Annual Max",MAX(OFFSET('1EPond'!$E$10,12*$A21,4*(PlotControl!$C$6-1),12,1)),AVERAGE(OFFSET('1EPond'!$E$10,12*$A21,4*(PlotControl!$C$6-1),12,1))) -> 30330 | X21: 41.33333333 | Y21: =IF($X21<=7,OFFSET('2EPond'!$C$10,12*$X21,4*(PlotControl!$C$6-1),1,1),OFFSET('1EPond'!$C$10,12*$X21,4*(PlotControl!$C$6-1),1,1)) -> 1405.5 | Z21: =IF(X21<=7,OFFSET('2EPond'!$D$10,12*$X21,4*(PlotControl!$C$6-1),1,1),OFFSET('1EPond'!$D$10,12*$X21,4*(PlotControl!$C$6-1),1,1)) -> 1526.9 | AA21: =IF(X21<=7,OFFSET('2EPond'!$E$10,12*$X21,4*(PlotControl!$C$6-1),1,1),OFFSET('1EPond'!$E$10,12*$X21,4*(PlotControl!$C$6-1),1,1)) -> 1653.5
A22: 17 | B22: =IF(PlotControl!$B$4 = "Annual Max",MAX(OFFSET('1EPond'!$C$10,12*$A22,4*(PlotControl!$C$6-1),12,1)),AVERAGE(OFFSET('1EPond'!$C$10,12*$A22,4*(PlotControl!$C$6-1),12,1))) -> 18943 | C22: =IF(PlotControl!$B$4 = "Annual Max",MAX(OFFSET('1EPond'!$D$10,12*$A22,4*(PlotControl!$C$6-1),12,1)),AVERAGE(OFFSET('1EPond'!$D$10,12*$A22,4*(PlotControl!$C$6-1),12,1))) -> 22041 | D22: =IF(PlotControl!$B$4 = "Annual Max",MAX(OFFSET('1EPond'!$E$10,12*$A22,4*(PlotControl!$C$6-1),12,1)),AVERAGE(OFFSET('1EPond'!$E$10,12*$A22,4*(PlotControl!$C$6-1),12,1))) -> 27052 | X22: 41.41666667 | Y22: =IF($X22<=7,OFFSET('2EPond'!$C$10,12*$X22,4*(PlotControl!$C$6-1),1,1),OFFSET('1EPond'!$C$10,12*$X22,4*(PlotControl!$C$6-1),1,1)) -> 1416.6 | Z22: =IF(X22<=7,OFFSET('2EPond'!$D$10,12*$X22,4*(PlotControl!$C$6-1),1,1),OFFSET('1EPond'!$D$10,12*$X22,4*(PlotControl!$C$6-1),1,1)) -> 1533.7 | AA22: =IF(X22<=7,OFFSET('2EPond'!$E$10,12*$X22,4*(PlotControl!$C$6-1),1,1),OFFSET('1EPond'!$E$10,12*$X22,4*(PlotControl!$C$6-1),1,1)) -> 1669
A23: 18 | B23: =IF(PlotControl!$B$4 = "Annual Max",MAX(OFFSET('1EPond'!$C$10,12*$A23,4*(PlotControl!$C$6-1),12,1)),AVERAGE(OFFSET('1EPond'!$C$10,12*$A23,4*(PlotControl!$C$6-1),12,1))) -> 21405 | C23: =IF(PlotControl!$B$4 = "Annual Max",MAX(OFFSET('1EPond'!$D$10,12*$A23,4*(PlotControl!$C$6-1),12,1)),AVERAGE(OFFSET('1EPond'!$D$10,12*$A23,4*(PlotControl!$C$6-1),12,1))) -> 25826 | D23: =IF(PlotControl!$B$4 = "Annual Max",MAX(OFFSET('1EPond'!$E$10,12*$A23,4*(PlotControl!$C$6-1),12,1)),AVERAGE(OFFSET('1EPond'!$E$10,12*$A23,4*(PlotControl!$C$6-1),12,1))) -> 32241 | X23: 41.5 | Y23: =IF($X23<=7,OFFSET('2EPond'!$C$10,12*$X23,4*(PlotControl!$C$6-1),1,1),OFFSET('1EPond'!$C$10,12*$X23,4*(PlotControl!$C$6-1),1,1)) -> 1404.1 | Z23: =IF(X23<=7,OFFSET('2EPond'!$D$10,12*$X23,4*(PlotControl!$C$6-1),1,1),OFFSET('1EPond'!$D$10,12*$X23,4*(PlotControl!$C$6-1),1,1)) -> 1519.4 | AA23: =IF(X23<=7,OFFSET('2EPond'!$E$10,12*$X23,4*(PlotControl!$C$6-1),1,1),OFFSET('1EPond'!$E$10,12*$X23,4*(PlotControl!$C$6-1),1,1)) -> 1660.7
A24: 19 | B24: =IF(PlotControl!$B$4 = "Annual Max",MAX(OFFSET('1EPond'!$C$10,12*$A24,4*(PlotControl!$C$6-1),12,1)),AVERAGE(OFFSET('1EPond'!$C$10,12*$A24,4*(PlotControl!$C$6-1),12,1))) -> 21924 | C24: =IF(PlotControl!$B$4 = "Annual Max",MAX(OFFSET('1EPond'!$D$10,12*$A24,4*(PlotControl!$C$6-1),12,1)),AVERAGE(OFFSET('1EPond'!$D$10,12*$A24,4*(PlotControl!$C$6-1),12,1))) -> 26320 | D24: =IF(PlotControl!$B$4 = "Annual Max",MAX(OFFSET('1EPond'!$E$10,12*$A24,4*(PlotControl!$C$6-1),12,1)),AVERAGE(OFFSET('1EPond'!$E$10,12*$A24,4*(PlotControl!$C$6-1),12,1))) -> 32454 | X24: 41.58333333 | Y24: =IF($X24<=7,OFFSET('2EPond'!$C$10,12*$X24,4*(PlotControl!$C$6-1),1,1),OFFSET('1EPond'!$C$10,12*$X24,4*(PlotControl!$C$6-1),1,1)) -> 1391 | Z24: =IF(X24<=7,OFFSET('2EPond'!$D$10,12*$X24,4*(PlotControl!$C$6-1),1,1),OFFSET('1EPond'!$D$10,12*$X24,4*(PlotControl!$C$6-1),1,1)) -> 1511 | AA24: =IF(X24<=7,OFFSET('2EPond'!$E$10,12*$X24,4*(PlotControl!$C$6-1),1,1),OFFSET('1EPond'!$E$10,12*$X24,4*(PlotControl!$C$6-1),1,1)) -> 1656.3
A25: 20 | B25: =IF(PlotControl!$B$4 = "Annual Max",MAX(OFFSET('1EPond'!$C$10,12*$A25,4*(PlotControl!$C$6-1),12,1)),AVERAGE(OFFSET('1EPond'!$C$10,12*$A25,4*(PlotControl!$C$6-1),12,1))) -> 27064 | C25: =IF(PlotControl!$B$4 = "Annual Max",MAX(OFFSET('1EPond'!$D$10,12*$A25,4*(PlotControl!$C$6-1),12,1)),AVERAGE(OFFSET('1EPond'!$D$10,12*$A25,4*(PlotControl!$C$6-1),12,1))) -> 32354 | D25: =IF(PlotControl!$B$4 = "Annual Max",MAX(OFFSET('1EPond'!$E$10,12*$A25,4*(PlotControl!$C$6-1),12,1)),AVERAGE(OFFSET('1EPond'!$E$10,12*$A25,4*(PlotControl!$C$6-1),12,1))) -> 39971 | X25: 41.66666667 | Y25: =IF($X25<=7,OFFSET('2EPond'!$C$10,12*$X25,4*(PlotControl!$C$6-1),1,1),OFFSET('1EPond'!$C$10,12*$X25,4*(PlotControl!$C$6-1),1,1)) -> 1380.8 | Z25: =IF(X25<=7,OFFSET('2EPond'!$D$10,12*$X25,4*(PlotControl!$C$6-1),1,1),OFFSET('1EPond'!$D$10,12*$X25,4*(PlotControl!$C$6-1),1,1)) -> 1502 | AA25: =IF(X25<=7,OFFSET('2EPond'!$E$10,12*$X25,4*(PlotControl!$C$6-1),1,1),OFFSET('1EPond'!$E$10,12*$X25,4*(PlotControl!$C$6-1),1,1)) -> 1642.1
A26: 21 | B26: =IF(PlotControl!$B$4 = "Annual Max",MAX(OFFSET('1EPond'!$C$10,12*$A26,4*(PlotControl!$C$6-1),12,1)),AVERAGE(OFFSET('1EPond'!$C$10,12*$A26,4*(PlotControl!$C$6-1),12,1))) -> 22410 | C26: =IF(PlotControl!$B$4 = "Annual Max",MAX(OFFSET('1EPond'!$D$10,12*$A26,4*(PlotControl!$C$6-1),12,1)),AVERAGE(OFFSET('1EPond'!$D$10,12*$A26,4*(PlotControl!$C$6-1),12,1))) -> 26751 | D26: =IF(PlotControl!$B$4 = "Annual Max",MAX(OFFSET('1EPond'!$E$10,12*$A26,4*(PlotControl!$C$6-1),12,1)),AVERAGE(OFFSET('1EPond'!$E$10,12*$A26,4*(PlotControl!$C$6-1),12,1))) -> 33227 | X26: 41.75 | Y26: =IF($X26<=7,OFFSET('2EPond'!$C$10,12*$X26,4*(PlotControl!$C$6-1),1,1),OFFSET('1EPond'!$C$10,12*$X26,4*(PlotControl!$C$6-1),1,1)) -> 1359.2 | Z26: =IF(X26<=7,OFFSET('2EPond'!$D$10,12*$X26,4*(PlotControl!$C$6-1),1,1),OFFSET('1EPond'!$D$10,12*$X26,4*(PlotControl!$C$6-1),1,1)) -> 1482.8 | AA26: =IF(X26<=7,OFFSET('2EPond'!$E$10,12*$X26,4*(PlotControl!$C$6-1),1,1),OFFSET('1EPond'!$E$10,12*$X26,4*(PlotControl!$C$6-1),1,1)) -> 1622.4
A27: 22 | B27: =IF(PlotControl!$B$4 = "Annual Max",MAX(OFFSET('1EPond'!$C$10,12*$A27,4*(PlotControl!$C$6-1),12,1)),AVERAGE(OFFSET('1EPond'!$C$10,12*$A27,4*(PlotControl!$C$6-1),12,1))) -> 18251 | C27: =IF(PlotControl!$B$4 = "Annual Max",MAX(OFFSET('1EPond'!$D$10,12*$A27,4*(PlotControl!$C$6-1),12,1)),AVERAGE(OFFSET('1EPond'!$D$10,12*$A27,4*(PlotControl!$C$6-1),12,1))) -> 22173 | D27: =IF(PlotControl!$B$4 = "Annual Max",MAX(OFFSET('1EPond'!$E$10,12*$A27,4*(PlotControl!$C$6-1),12,1)),AVERAGE(OFFSET('1EPond'!$E$10,12*$A27,4*(PlotControl!$C$6-1),12,1))) -> 27154 | X27: 41.83333333 | Y27: =IF($X27<=7,OFFSET('2EPond'!$C$10,12*$X27,4*(PlotControl!$C$6-1),1,1),OFFSET('1EPond'!$C$10,12*$X27,4*(PlotControl!$C$6-1),1,1)) -> 1350.6 | Z27: =IF(X27<=7,OFFSET('2EPond'!$D$10,12*$X27,4*(PlotControl!$C$6-1),1,1),OFFSET('1EPond'!$D$10,12*$X27,4*(PlotControl!$C$6-1),1,1)) -> 1473.5 | AA27: =IF(X27<=7,OFFSET('2EPond'!$E$10,12*$X27,4*(PlotControl!$C$6-1),1,1),OFFSET('1EPond'!$E$10,12*$X27,4*(PlotControl!$C$6-1),1,1)) -> 1612.7
A28: 23 | B28: =IF(PlotControl!$B$4 = "Annual Max",MAX(OFFSET('1EPond'!$C$10,12*$A28,4*(PlotControl!$C$6-1),12,1)),AVERAGE(OFFSET('1EPond'!$C$10,12*$A28,4*(PlotControl!$C$6-1),12,1))) -> 14934 | C28: =IF(PlotControl!$B$4 = "Annual Max",MAX(OFFSET('1EPond'!$D$10,12*$A28,4*(PlotControl!$C$6-1),12,1)),AVERAGE(OFFSET('1EPond'!$D$10,12*$A28,4*(PlotControl!$C$6-1),12,1))) -> 18241 | D28: =IF(PlotControl!$B$4 = "Annual Max",MAX(OFFSET('1EPond'!$E$10,12*$A28,4*(PlotControl!$C$6-1),12,1)),AVERAGE(OFFSET('1EPond'!$E$10,12*$A28,4*(PlotControl!$C$6-1),12,1))) -> 22581 | X28: 41.91666667 | Y28: =IF($X28<=7,OFFSET('2EPond'!$C$10,12*$X28,4*(PlotControl!$C$6-1),1,1),OFFSET('1EPond'!$C$10,12*$X28,4*(PlotControl!$C$6-1),1,1)) -> 1343.9 | Z28: =IF(X28<=7,OFFSET('2EPond'!$D$10,12*$X28,4*(PlotControl!$C$6-1),1,1),OFFSET('1EPond'!$D$10,12*$X28,4*(PlotControl!$C$6-1),1,1)) -> 1469.1 | AA28: =IF(X28<=7,OFFSET('2EPond'!$E$10,12*$X28,4*(PlotControl!$C$6-1),1,1),OFFSET('1EPond'!$E$10,12*$X28,4*(PlotControl!$C$6-1),1,1)) -> 1601.6
A29: 24 | B29: =IF(PlotControl!$B$4 = "Annual Max",MAX(OFFSET('1EPond'!$C$10,12*$A29,4*(PlotControl!$C$6-1),12,1)),AVERAGE(OFFSET('1EPond'!$C$10,12*$A29,4*(PlotControl!$C$6-1),12,1))) -> 12683 | C29: =IF(PlotControl!$B$4 = "Annual Max",MAX(OFFSET('1EPond'!$D$10,12*$A29,4*(PlotControl!$C$6-1),12,1)),AVERAGE(OFFSET('1EPond'!$D$10,12*$A29,4*(PlotControl!$C$6-1),12,1))) -> 15224 | D29: =IF(PlotControl!$B$4 = "Annual Max",MAX(OFFSET('1EPond'!$E$10,12*$A29,4*(PlotControl!$C$6-1),12,1)),AVERAGE(OFFSET('1EPond'!$E$10,12*$A29,4*(PlotControl!$C$6-1),12,1))) -> 18790 | X29: 42 | Y29: =IF($X29<=7,OFFSET('2EPond'!$C$10,12*$X29,4*(PlotControl!$C$6-1),1,1),OFFSET('1EPond'!$C$10,12*$X29,4*(PlotControl!$C$6-1),1,1)) -> 1336.8 | Z29: =IF(X29<=7,OFFSET('2EPond'!$D$10,12*$X29,4*(PlotControl!$C$6-1),1,1),OFFSET('1EPond'!$D$10,12*$X29,4*(PlotControl!$C$6-1),1,1)) -> 1460.8 | AA29: =IF(X29<=7,OFFSET('2EPond'!$E$10,12*$X29,4*(PlotControl!$C$6-1),1,1),OFFSET('1EPond'!$E$10,12*$X29,4*(PlotControl!$C$6-1),1,1)) -> 1587.6
A30: 25 | B30: =IF(PlotControl!$B$4 = "Annual Max",MAX(OFFSET('1EPond'!$C$10,12*$A30,4*(PlotControl!$C$6-1),12,1)),AVERAGE(OFFSET('1EPond'!$C$10,12*$A30,4*(PlotControl!$C$6-1),12,1))) -> 10727 | C30: =IF(PlotControl!$B$4 = "Annual Max",MAX(OFFSET('1EPond'!$D$10,12*$A30,4*(PlotControl!$C$6-1),12,1)),AVERAGE(OFFSET('1EPond'!$D$10,12*$A30,4*(PlotControl!$C$6-1),12,1))) -> 13041 | D30: =IF(PlotControl!$B$4 = "Annual Max",MAX(OFFSET('1EPond'!$E$10,12*$A30,4*(PlotControl!$C$6-1),12,1)),AVERAGE(OFFSET('1EPond'!$E$10,12*$A30,4*(PlotControl!$C$6-1),12,1))) -> 15819 | X30: 42.08333333 | Y30: =IF($X30<=7,OFFSET('2EPond'!$C$10,12*$X30,4*(PlotControl!$C$6-1),1,1),OFFSET('1EPond'!$C$10,12*$X30,4*(PlotControl!$C$6-1),1,1)) -> 1333.6 | Z30: =IF(X30<=7,OFFSET('2EPond'!$D$10,12*$X30,4*(PlotControl!$C$6-1),1,1),OFFSET('1EPond'!$D$10,12*$X30,4*(PlotControl!$C$6-1),1,1)) -> 1452.9 | AA30: =IF(X30<=7,OFFSET('2EPond'!$E$10,12*$X30,4*(PlotControl!$C$6-1),1,1),OFFSET('1EPond'!$E$10,12*$X30,4*(PlotControl!$C$6-1),1,1)) -> 1574.8
A31: 26 | B31: =IF(PlotControl!$B$4 = "Annual Max",MAX(OFFSET('1EPond'!$C$10,12*$A31,4*(PlotControl!$C$6-1),12,1)),AVERAGE(OFFSET('1EPond'!$C$10,12*$A31,4*(PlotControl!$C$6-1),12,1))) -> 9248 | C31: =IF(PlotControl!$B$4 = "Annual Max",MAX(OFFSET('1EPond'!$D$10,12*$A31,4*(PlotControl!$C$6-1),12,1)),AVERAGE(OFFSET('1EPond'!$D$10,12*$A31,4*(PlotControl!$C$6-1),12,1))) -> 11270 | D31: =IF(PlotControl!$B$4 = "Annual Max",MAX(OFFSET('1EPond'!$E$10,12*$A31,4*(PlotControl!$C$6-1),12,1)),AVERAGE(OFFSET('1EPond'!$E$10,12*$A31,4*(PlotControl!$C$6-1),12,1))) -> 13754 | X31: 42.16666667 | Y31: =IF($X31<=7,OFFSET('2EPond'!$C$10,12*$X31,4*(PlotControl!$C$6-1),1,1),OFFSET('1EPond'!$C$10,12*$X31,4*(PlotControl!$C$6-1),1,1)) -> 1332.4 | Z31: =IF(X31<=7,OFFSET('2EPond'!$D$10,12*$X31,4*(PlotControl!$C$6-1),1,1),OFFSET('1EPond'!$D$10,12*$X31,4*(PlotControl!$C$6-1),1,1)) -> 1447 | AA31: =IF(X31<=7,OFFSET('2EPond'!$E$10,12*$X31,4*(PlotControl!$C$6-1),1,1),OFFSET('1EPond'!$E$10,12*$X31,4*(PlotControl!$C$6-1),1,1)) -> 1566.2
A32: 27 | B32: =IF(PlotControl!$B$4 = "Annual Max",MAX(OFFSET('1EPond'!$C$10,12*$A32,4*(PlotControl!$C$6-1),12,1)),AVERAGE(OFFSET('1EPond'!$C$10,12*$A32,4*(PlotControl!$C$6-1),12,1))) -> 7978.6 | C32: =IF(PlotControl!$B$4 = "Annual Max",MAX(OFFSET('1EPond'!$D$10,12*$A32,4*(PlotControl!$C$6-1),12,1)),AVERAGE(OFFSET('1EPond'!$D$10,12*$A32,4*(PlotControl!$C$6-1),12,1))) -> 9641 | D32: =IF(PlotControl!$B$4 = "Annual Max",MAX(OFFSET('1EPond'!$E$10,12*$A32,4*(PlotControl!$C$6-1),12,1)),AVERAGE(OFFSET('1EPond'!$E$10,12*$A32,4*(PlotControl!$C$6-1),12,1))) -> 11720 | X32: 42.25 | Y32: =IF($X32<=7,OFFSET('2EPond'!$C$10,12*$X32,4*(PlotControl!$C$6-1),1,1),OFFSET('1EPond'!$C$10,12*$X32,4*(PlotControl!$C$6-1),1,1)) -> 1334.8 | Z32: =IF(X32<=7,OFFSET('2EPond'!$D$10,12*$X32,4*(PlotControl!$C$6-1),1,1),OFFSET('1EPond'!$D$10,12*$X32,4*(PlotControl!$C$6-1),1,1)) -> 1446.8 | AA32: =IF(X32<=7,OFFSET('2EPond'!$E$10,12*$X32,4*(PlotControl!$C$6-1),1,1),OFFSET('1EPond'!$E$10,12*$X32,4*(PlotControl!$C$6-1),1,1)) -> 1567
A33: 28 | B33: =IF(PlotControl!$B$4 = "Annual Max",MAX(OFFSET('1EPond'!$C$10,12*$A33,4*(PlotControl!$C$6-1),12,1)),AVERAGE(OFFSET('1EPond'!$C$10,12*$A33,4*(PlotControl!$C$6-1),12,1))) -> 6576.8 | C33: =IF(PlotControl!$B$4 = "Annual Max",MAX(OFFSET('1EPond'!$D$10,12*$A33,4*(PlotControl!$C$6-1),12,1)),AVERAGE(OFFSET('1EPond'!$D$10,12*$A33,4*(PlotControl!$C$6-1),12,1))) -> 7903.5 | D33: =IF(PlotControl!$B$4 = "Annual Max",MAX(OFFSET('1EPond'!$E$10,12*$A33,4*(PlotControl!$C$6-1),12,1)),AVERAGE(OFFSET('1EPond'!$E$10,12*$A33,4*(PlotControl!$C$6-1),12,1))) -> 9718 | X33: 42.33333333 | Y33: =IF($X33<=7,OFFSET('2EPond'!$C$10,12*$X33,4*(PlotControl!$C$6-1),1,1),OFFSET('1EPond'!$C$10,12*$X33,4*(PlotControl!$C$6-1),1,1)) -> 1358.1 | Z33: =IF(X33<=7,OFFSET('2EPond'!$D$10,12*$X33,4*(PlotControl!$C$6-1),1,1),OFFSET('1EPond'!$D$10,12*$X33,4*(PlotControl!$C$6-1),1,1)) -> 1466 | AA33: =IF(X33<=7,OFFSET('2EPond'!$E$10,12*$X33,4*(PlotControl!$C$6-1),1,1),OFFSET('1EPond'!$E$10,12*$X33,4*(PlotControl!$C$6-1),1,1)) -> 1590.3
A34: 29 | B34: =IF(PlotControl!$B$4 = "Annual Max",MAX(OFFSET('1EPond'!$C$10,12*$A34,4*(PlotControl!$C$6-1),12,1)),AVERAGE(OFFSET('1EPond'!$C$10,12*$A34,4*(PlotControl!$C$6-1),12,1))) -> 5249.6 | C34: =IF(PlotControl!$B$4 = "Annual Max",MAX(OFFSET('1EPond'!$D$10,12*$A34,4*(PlotControl!$C$6-1),12,1)),AVERAGE(OFFSET('1EPond'!$D$10,12*$A34,4*(PlotControl!$C$6-1),12,1))) -> 6252.8 | D34: =IF(PlotControl!$B$4 = "Annual Max",MAX(OFFSET('1EPond'!$E$10,12*$A34,4*(PlotControl!$C$6-1),12,1)),AVERAGE(OFFSET('1EPond'!$E$10,12*$A34,4*(PlotControl!$C$6-1),12,1))) -> 7579.9 | X34: 42.41666667 | Y34: =IF($X34<=7,OFFSET('2EPond'!$C$10,12*$X34,4*(PlotControl!$C$6-1),1,1),OFFSET('1EPond'!$C$10,12*$X34,4*(PlotControl!$C$6-1),1,1)) -> 1370.1 | Z34: =IF(X34<=7,OFFSET('2EPond'!$D$10,12*$X34,4*(PlotControl!$C$6-1),1,1),OFFSET('1EPond'!$D$10,12*$X34,4*(PlotControl!$C$6-1),1,1)) -> 1474.3 | AA34: =IF(X34<=7,OFFSET('2EPond'!$E$10,12*$X34,4*(PlotControl!$C$6-1),1,1),OFFSET('1EPond'!$E$10,12*$X34,4*(PlotControl!$C$6-1),1,1)) -> 1600.8
A35: 30 | B35: =IF(PlotControl!$B$4 = "Annual Max",MAX(OFFSET('1EPond'!$C$10,12*$A35,4*(PlotControl!$C$6-1),12,1)),AVERAGE(OFFSET('1EPond'!$C$10,12*$A35,4*(PlotControl!$C$6-1),12,1))) -> 4246.5 | C35: =IF(PlotControl!$B$4 = "Annual Max",MAX(OFFSET('1EPond'!$D$10,12*$A35,4*(PlotControl!$C$6-1),12,1)),AVERAGE(OFFSET('1EPond'!$D$10,12*$A35,4*(PlotControl!$C$6-1),12,1))) -> 4901.7 | D35: =IF(PlotControl!$B$4 = "Annual Max",MAX(OFFSET('1EPond'!$E$10,12*$A35,4*(PlotControl!$C$6-1),12,1)),AVERAGE(OFFSET('1EPond'!$E$10,12*$A35,4*(PlotControl!$C$6-1),12,1))) -> 5896.8 | X35: 42.5 | Y35: =IF($X35<=7,OFFSET('2EPond'!$C$10,12*$X35,4*(PlotControl!$C$6-1),1,1),OFFSET('1EPond'!$C$10,12*$X35,4*(PlotControl!$C$6-1),1,1)) -> 1356 | Z35: =IF(X35<=7,OFFSET('2EPond'!$D$10,12*$X35,4*(PlotControl!$C$6-1),1,1),OFFSET('1EPond'!$D$10,12*$X35,4*(PlotControl!$C$6-1),1,1)) -> 1462.1 | AA35: =IF(X35<=7,OFFSET('2EPond'!$E$10,12*$X35,4*(PlotControl!$C$6-1),1,1),OFFSET('1EPond'!$E$10,12*$X35,4*(PlotControl!$C$6-1),1,1)) -> 1588.9
A36: 31 | B36: =IF(PlotControl!$B$4 = "Annual Max",MAX(OFFSET('1EPond'!$C$10,12*$A36,4*(PlotControl!$C$6-1),12,1)),AVERAGE(OFFSET('1EPond'!$C$10,12*$A36,4*(PlotControl!$C$6-1),12,1))) -> 3493.3 | C36: =IF(PlotControl!$B$4 = "Annual Max",MAX(OFFSET('1EPond'!$D$10,12*$A36,4*(PlotControl!$C$6-1),12,1)),AVERAGE(OFFSET('1EPond'!$D$10,12*$A36,4*(PlotControl!$C$6-1),12,1))) -> 4004.9 | D36: =IF(PlotControl!$B$4 = "Annual Max",MAX(OFFSET('1EPond'!$E$10,12*$A36,4*(PlotControl!$C$6-1),12,1)),AVERAGE(OFFSET('1EPond'!$E$10,12*$A36,4*(PlotControl!$C$6-1),12,1))) -> 4723.1 | X36: 42.58333333 | Y36: =IF($X36<=7,OFFSET('2EPond'!$C$10,12*$X36,4*(PlotControl!$C$6-1),1,1),OFFSET('1EPond'!$C$10,12*$X36,4*(PlotControl!$C$6-1),1,1)) -> 1353.1 | Z36: =IF(X36<=7,OFFSET('2EPond'!$D$10,12*$X36,4*(PlotControl!$C$6-1),1,1),OFFSET('1EPond'!$D$10,12*$X36,4*(PlotControl!$C$6-1),1,1)) -> 1459.9 | AA36: =IF(X36<=7,OFFSET('2EPond'!$E$10,12*$X36,4*(PlotControl!$C$6-1),1,1),OFFSET('1EPond'!$E$10,12*$X36,4*(PlotControl!$C$6-1),1,1)) -> 1577.8
A37: 32 | B37: =IF(PlotControl!$B$4 = "Annual Max",MAX(OFFSET('1EPond'!$C$10,12*$A37,4*(PlotControl!$C$6-1),12,1)),AVERAGE(OFFSET('1EPond'!$C$10,12*$A37,4*(PlotControl!$C$6-1),12,1))) -> 3012.4 | C37: =IF(PlotControl!$B$4 = "Annual Max",MAX(OFFSET('1EPond'!$D$10,12*$A37,4*(PlotControl!$C$6-1),12,1)),AVERAGE(OFFSET('1EPond'!$D$10,12*$A37,4*(PlotControl!$C$6-1),12,1))) -> 3386.9 | D37: =IF(PlotControl!$B$4 = "Annual Max",MAX(OFFSET('1EPond'!$E$10,12*$A37,4*(PlotControl!$C$6-1),12,1)),AVERAGE(OFFSET('1EPond'!$E$10,12*$A37,4*(PlotControl!$C$6-1),12,1))) -> 3972.8 | X37: 42.66666667 | Y37: =IF($X37<=7,OFFSET('2EPond'!$C$10,12*$X37,4*(PlotControl!$C$6-1),1,1),OFFSET('1EPond'!$C$10,12*$X37,4*(PlotControl!$C$6-1),1,1)) -> 1337.5 | Z37: =IF(X37<=7,OFFSET('2EPond'!$D$10,12*$X37,4*(PlotControl!$C$6-1),1,1),OFFSET('1EPond'!$D$10,12*$X37,4*(PlotControl!$C$6-1),1,1)) -> 1450 | AA37: =IF(X37<=7,OFFSET('2EPond'!$E$10,12*$X37,4*(PlotControl!$C$6-1),1,1),OFFSET('1EPond'!$E$10,12*$X37,4*(PlotControl!$C$6-1),1,1)) -> 1570
A38: 33 | B38: =IF(PlotControl!$B$4 = "Annual Max",MAX(OFFSET('1EPond'!$C$10,12*$A38,4*(PlotControl!$C$6-1),12,1)),AVERAGE(OFFSET('1EPond'!$C$10,12*$A38,4*(PlotControl!$C$6-1),12,1))) -> 2690.9 | C38: =IF(PlotControl!$B$4 = "Annual Max",MAX(OFFSET('1EPond'!$D$10,12*$A38,4*(PlotControl!$C$6-1),12,1)),AVERAGE(OFFSET('1EPond'!$D$10,12*$A38,4*(PlotControl!$C$6-1),12,1))) -> 2982.2 | D38: =IF(PlotControl!$B$4 = "Annual Max",MAX(OFFSET('1EPond'!$E$10,12*$A38,4*(PlotControl!$C$6-1),12,1)),AVERAGE(OFFSET('1EPond'!$E$10,12*$A38,4*(PlotControl!$C$6-1),12,1))) -> 3446.6 | X38: 42.75 | Y38: =IF($X38<=7,OFFSET('2EPond'!$C$10,12*$X38,4*(PlotControl!$C$6-1),1,1),OFFSET('1EPond'!$C$10,12*$X38,4*(PlotControl!$C$6-1),1,1)) -> 1313.2 | Z38: =IF(X38<=7,OFFSET('2EPond'!$D$10,12*$X38,4*(PlotControl!$C$6-1),1,1),OFFSET('1EPond'!$D$10,12*$X38,4*(PlotControl!$C$6-1),1,1)) -> 1434.4 | AA38: =IF(X38<=7,OFFSET('2EPond'!$E$10,12*$X38,4*(PlotControl!$C$6-1),1,1),OFFSET('1EPond'!$E$10,12*$X38,4*(PlotControl!$C$6-1),1,1)) -> 1554.9
A39: 34 | B39: =IF(PlotControl!$B$4 = "Annual Max",MAX(OFFSET('1EPond'!$C$10,12*$A39,4*(PlotControl!$C$6-1),12,1)),AVERAGE(OFFSET('1EPond'!$C$10,12*$A39,4*(PlotControl!$C$6-1),12,1))) -> 2465.4 | C39: =IF(PlotControl!$B$4 = "Annual Max",MAX(OFFSET('1EPond'!$D$10,12*$A39,4*(PlotControl!$C$6-1),12,1)),AVERAGE(OFFSET('1EPond'!$D$10,12*$A39,4*(PlotControl!$C$6-1),12,1))) -> 2684.8 | D39: =IF(PlotControl!$B$4 = "Annual Max",MAX(OFFSET('1EPond'!$E$10,12*$A39,4*(PlotControl!$C$6-1),12,1)),AVERAGE(OFFSET('1EPond'!$E$10,12*$A39,4*(PlotControl!$C$6-1),12,1))) -> 3047.3 | X39: 42.83333333 | Y39: =IF($X39<=7,OFFSET('2EPond'!$C$10,12*$X39,4*(PlotControl!$C$6-1),1,1),OFFSET('1EPond'!$C$10,12*$X39,4*(PlotControl!$C$6-1),1,1)) -> 1301.8 | Z39: =IF(X39<=7,OFFSET('2EPond'!$D$10,12*$X39,4*(PlotControl!$C$6-1),1,1),OFFSET('1EPond'!$D$10,12*$X39,4*(PlotControl!$C$6-1),1,1)) -> 1425.9 | AA39: =IF(X39<=7,OFFSET('2EPond'!$E$10,12*$X39,4*(PlotControl!$C$6-1),1,1),OFFSET('1EPond'!$E$10,12*$X39,4*(PlotControl!$C$6-1),1,1)) -> 1546.9
A40: 35 | B40: =IF(PlotControl!$B$4 = "Annual Max",MAX(OFFSET('1EPond'!$C$10,12*$A40,4*(PlotControl!$C$6-1),12,1)),AVERAGE(OFFSET('1EPond'!$C$10,12*$A40,4*(PlotControl!$C$6-1),12,1))) -> 2237 | C40: =IF(PlotControl!$B$4 = "Annual Max",MAX(OFFSET('1EPond'!$D$10,12*$A40,4*(PlotControl!$C$6-1),12,1)),AVERAGE(OFFSET('1EPond'!$D$10,12*$A40,4*(PlotControl!$C$6-1),12,1))) -> 2441.5 | D40: =IF(PlotControl!$B$4 = "Annual Max",MAX(OFFSET('1EPond'!$E$10,12*$A40,4*(PlotControl!$C$6-1),12,1)),AVERAGE(OFFSET('1EPond'!$E$10,12*$A40,4*(PlotControl!$C$6-1),12,1))) -> 2731.6 | X40: 42.91666667 | Y40: =IF($X40<=7,OFFSET('2EPond'!$C$10,12*$X40,4*(PlotControl!$C$6-1),1,1),OFFSET('1EPond'!$C$10,12*$X40,4*(PlotControl!$C$6-1),1,1)) -> 1296.7 | Z40: =IF(X40<=7,OFFSET('2EPond'!$D$10,12*$X40,4*(PlotControl!$C$6-1),1,1),OFFSET('1EPond'!$D$10,12*$X40,4*(PlotControl!$C$6-1),1,1)) -> 1420.5 | AA40: =IF(X40<=7,OFFSET('2EPond'!$E$10,12*$X40,4*(PlotControl!$C$6-1),1,1),OFFSET('1EPond'!$E$10,12*$X40,4*(PlotControl!$C$6-1),1,1)) -> 1539.8
A41: 36 | B41: =IF(PlotControl!$B$4 = "Annual Max",MAX(OFFSET('1EPond'!$C$10,12*$A41,4*(PlotControl!$C$6-1),12,1)),AVERAGE(OFFSET('1EPond'!$C$10,12*$A41,4*(PlotControl!$C$6-1),12,1))) -> 2010.7 | C41: =IF(PlotControl!$B$4 = "Annual Max",MAX(OFFSET('1EPond'!$D$10,12*$A41,4*(PlotControl!$C$6-1),12,1)),AVERAGE(OFFSET('1EPond'!$D$10,12*$A41,4*(PlotControl!$C$6-1),12,1))) -> 2181.3 | D41: =IF(PlotControl!$B$4 = "Annual Max",MAX(OFFSET('1EPond'!$E$10,12*$A41,4*(PlotControl!$C$6-1),12,1)),AVERAGE(OFFSET('1EPond'!$E$10,12*$A41,4*(PlotControl!$C$6-1),12,1))) -> 2418 | X41: 43 | Y41: =IF($X41<=7,OFFSET('2EPond'!$C$10,12*$X41,4*(PlotControl!$C$6-1),1,1),OFFSET('1EPond'!$C$10,12*$X41,4*(PlotControl!$C$6-1),1,1)) -> 1291.8 | Z41: =IF(X41<=7,OFFSET('2EPond'!$D$10,12*$X41,4*(PlotControl!$C$6-1),1,1),OFFSET('1EPond'!$D$10,12*$X41,4*(PlotControl!$C$6-1),1,1)) -> 1411.9 | AA41: =IF(X41<=7,OFFSET('2EPond'!$E$10,12*$X41,4*(PlotControl!$C$6-1),1,1),OFFSET('1EPond'!$E$10,12*$X41,4*(PlotControl!$C$6-1),1,1)) -> 1527.4
A42: 37 | B42: =IF(PlotControl!$B$4 = "Annual Max",MAX(OFFSET('1EPond'!$C$10,12*$A42,4*(PlotControl!$C$6-1),12,1)),AVERAGE(OFFSET('1EPond'!$C$10,12*$A42,4*(PlotControl!$C$6-1),12,1))) -> 1812.8 | C42: =IF(PlotControl!$B$4 = "Annual Max",MAX(OFFSET('1EPond'!$D$10,12*$A42,4*(PlotControl!$C$6-1),12,1)),AVERAGE(OFFSET('1EPond'!$D$10,12*$A42,4*(PlotControl!$C$6-1),12,1))) -> 1970.8 | D42: =IF(PlotControl!$B$4 = "Annual Max",MAX(OFFSET('1EPond'!$E$10,12*$A42,4*(PlotControl!$C$6-1),12,1)),AVERAGE(OFFSET('1EPond'!$E$10,12*$A42,4*(PlotControl!$C$6-1),12,1))) -> 2157.4 | X42: 43.08333333 | Y42: =IF($X42<=7,OFFSET('2EPond'!$C$10,12*$X42,4*(PlotControl!$C$6-1),1,1),OFFSET('1EPond'!$C$10,12*$X42,4*(PlotControl!$C$6-1),1,1)) -> 1290.1 | Z42: =IF(X42<=7,OFFSET('2EPond'!$D$10,12*$X42,4*(PlotControl!$C$6-1),1,1),OFFSET('1EPond'!$D$10,12*$X42,4*(PlotControl!$C$6-1),1,1)) -> 1405.4 | AA42: =IF(X42<=7,OFFSET('2EPond'!$E$10,12*$X42,4*(PlotControl!$C$6-1),1,1),OFFSET('1EPond'!$E$10,12*$X42,4*(PlotControl!$C$6-1),1,1)) -> 1515.6
A43: 38 | B43: =IF(PlotControl!$B$4 = "Annual Max",MAX(OFFSET('1EPond'!$C$10,12*$A43,4*(PlotControl!$C$6-1),12,1)),AVERAGE(OFFSET('1EPond'!$C$10,12*$A43,4*(PlotControl!$C$6-1),12,1))) -> 1659.9 | C43: =IF(PlotControl!$B$4 = "Annual Max",MAX(OFFSET('1EPond'!$D$10,12*$A43,4*(PlotControl!$C$6-1),12,1)),AVERAGE(OFFSET('1EPond'!$D$10,12*$A43,4*(PlotControl!$C$6-1),12,1))) -> 1811.7 | D43: =IF(PlotControl!$B$4 = "Annual Max",MAX(OFFSET('1EPond'!$E$10,12*$A43,4*(PlotControl!$C$6-1),12,1)),AVERAGE(OFFSET('1EPond'!$E$10,12*$A43,4*(PlotControl!$C$6-1),12,1))) -> 1977.5 | X43: 43.16666667 | Y43: =IF($X43<=7,OFFSET('2EPond'!$C$10,12*$X43,4*(PlotControl!$C$6-1),1,1),OFFSET('1EPond'!$C$10,12*$X43,4*(PlotControl!$C$6-1),1,1)) -> 1291 | Z43: =IF(X43<=7,OFFSET('2EPond'!$D$10,12*$X43,4*(PlotControl!$C$6-1),1,1),OFFSET('1EPond'!$D$10,12*$X43,4*(PlotControl!$C$6-1),1,1)) -> 1400.2 | AA43: =IF(X43<=7,OFFSET('2EPond'!$E$10,12*$X43,4*(PlotControl!$C$6-1),1,1),OFFSET('1EPond'!$E$10,12*$X43,4*(PlotControl!$C$6-1),1,1)) -> 1506.6
A44: 39 | B44: =IF(PlotControl!$B$4 = "Annual Max",MAX(OFFSET('1EPond'!$C$10,12*$A44,4*(PlotControl!$C$6-1),12,1)),AVERAGE(OFFSET('1EPond'!$C$10,12*$A44,4*(PlotControl!$C$6-1),12,1))) -> 1580.7 | C44: =IF(PlotControl!$B$4 = "Annual Max",MAX(OFFSET('1EPond'!$D$10,12*$A44,4*(PlotControl!$C$6-1),12,1)),AVERAGE(OFFSET('1EPond'!$D$10,12*$A44,4*(PlotControl!$C$6-1),12,1))) -> 1693.5 | D44: =IF(PlotControl!$B$4 = "Annual Max",MAX(OFFSET('1EPond'!$E$10,12*$A44,4*(PlotControl!$C$6-1),12,1)),AVERAGE(OFFSET('1EPond'!$E$10,12*$A44,4*(PlotControl!$C$6-1),12,1))) -> 1847.5 | X44: 43.25 | Y44: =IF($X44<=7,OFFSET('2EPond'!$C$10,12*$X44,4*(PlotControl!$C$6-1),1,1),OFFSET('1EPond'!$C$10,12*$X44,4*(PlotControl!$C$6-1),1,1)) -> 1294.9 | Z44: =IF(X44<=7,OFFSET('2EPond'!$D$10,12*$X44,4*(PlotControl!$C$6-1),1,1),OFFSET('1EPond'!$D$10,12*$X44,4*(PlotControl!$C$6-1),1,1)) -> 1404 | AA44: =IF(X44<=7,OFFSET('2EPond'!$E$10,12*$X44,4*(PlotControl!$C$6-1),1,1),OFFSET('1EPond'!$E$10,12*$X44,4*(PlotControl!$C$6-1),1,1)) -> 1508.4
A45: 40 | B45: =IF(PlotControl!$B$4 = "Annual Max",MAX(OFFSET('1EPond'!$C$10,12*$A45,4*(PlotControl!$C$6-1),12,1)),AVERAGE(OFFSET('1EPond'!$C$10,12*$A45,4*(PlotControl!$C$6-1),12,1))) -> 1497.5 | C45: =IF(PlotControl!$B$4 = "Annual Max",MAX(OFFSET('1EPond'!$D$10,12*$A45,4*(PlotControl!$C$6-1),12,1)),AVERAGE(OFFSET('1EPond'!$D$10,12*$A45,4*(PlotControl!$C$6-1),12,1))) -> 1622.9 | D45: =IF(PlotControl!$B$4 = "Annual Max",MAX(OFFSET('1EPond'!$E$10,12*$A45,4*(PlotControl!$C$6-1),12,1)),AVERAGE(OFFSET('1EPond'!$E$10,12*$A45,4*(PlotControl!$C$6-1),12,1))) -> 1768.2 | X45: 43.33333333 | Y45: =IF($X45<=7,OFFSET('2EPond'!$C$10,12*$X45,4*(PlotControl!$C$6-1),1,1),OFFSET('1EPond'!$C$10,12*$X45,4*(PlotControl!$C$6-1),1,1)) -> 1314.8 | Z45: =IF(X45<=7,OFFSET('2EPond'!$D$10,12*$X45,4*(PlotControl!$C$6-1),1,1),OFFSET('1EPond'!$D$10,12*$X45,4*(PlotControl!$C$6-1),1,1)) -> 1419.4 | AA45: =IF(X45<=7,OFFSET('2EPond'!$E$10,12*$X45,4*(PlotControl!$C$6-1),1,1),OFFSET('1EPond'!$E$10,12*$X45,4*(PlotControl!$C$6-1),1,1)) -> 1531.7
A46: 41 | B46: =IF(PlotControl!$B$4 = "Annual Max",MAX(OFFSET('1EPond'!$C$10,12*$A46,4*(PlotControl!$C$6-1),12,1)),AVERAGE(OFFSET('1EPond'!$C$10,12*$A46,4*(PlotControl!$C$6-1),12,1))) -> 1416.6 | C46: =IF(PlotControl!$B$4 = "Annual Max",MAX(OFFSET('1EPond'!$D$10,12*$A46,4*(PlotControl!$C$6-1),12,1)),AVERAGE(OFFSET('1EPond'!$D$10,12*$A46,4*(PlotControl!$C$6-1),12,1))) -> 1533.7 | D46: =IF(PlotControl!$B$4 = "Annual Max",MAX(OFFSET('1EPond'!$E$10,12*$A46,4*(PlotControl!$C$6-1),12,1)),AVERAGE(OFFSET('1EPond'!$E$10,12*$A46,4*(PlotControl!$C$6-1),12,1))) -> 1669 | X46: 43.41666667 | Y46: =IF($X46<=7,OFFSET('2EPond'!$C$10,12*$X46,4*(PlotControl!$C$6-1),1,1),OFFSET('1EPond'!$C$10,12*$X46,4*(PlotControl!$C$6-1),1,1)) -> 1328.6 | Z46: =IF(X46<=7,OFFSET('2EPond'!$D$10,12*$X46,4*(PlotControl!$C$6-1),1,1),OFFSET('1EPond'!$D$10,12*$X46,4*(PlotControl!$C$6-1),1,1)) -> 1425.4 | AA46: =IF(X46<=7,OFFSET('2EPond'!$E$10,12*$X46,4*(PlotControl!$C$6-1),1,1),OFFSET('1EPond'!$E$10,12*$X46,4*(PlotControl!$C$6-1),1,1)) -> 1551.6
A47: 42 | B47: =IF(PlotControl!$B$4 = "Annual Max",MAX(OFFSET('1EPond'!$C$10,12*$A47,4*(PlotControl!$C$6-1),12,1)),AVERAGE(OFFSET('1EPond'!$C$10,12*$A47,4*(PlotControl!$C$6-1),12,1))) -> 1370.1 | C47: =IF(PlotControl!$B$4 = "Annual Max",MAX(OFFSET('1EPond'!$D$10,12*$A47,4*(PlotControl!$C$6-1),12,1)),AVERAGE(OFFSET('1EPond'!$D$10,12*$A47,4*(PlotControl!$C$6-1),12,1))) -> 1474.3 | D47: =IF(PlotControl!$B$4 = "Annual Max",MAX(OFFSET('1EPond'!$E$10,12*$A47,4*(PlotControl!$C$6-1),12,1)),AVERAGE(OFFSET('1EPond'!$E$10,12*$A47,4*(PlotControl!$C$6-1),12,1))) -> 1600.8 | X47: 43.5 | Y47: =IF($X47<=7,OFFSET('2EPond'!$C$10,12*$X47,4*(PlotControl!$C$6-1),1,1),OFFSET('1EPond'!$C$10,12*$X47,4*(PlotControl!$C$6-1),1,1)) -> 1313.6 | Z47: =IF(X47<=7,OFFSET('2EPond'!$D$10,12*$X47,4*(PlotControl!$C$6-1),1,1),OFFSET('1EPond'!$D$10,12*$X47,4*(PlotControl!$C$6-1),1,1)) -> 1417.7 | AA47: =IF(X47<=7,OFFSET('2EPond'!$E$10,12*$X47,4*(PlotControl!$C$6-1),1,1),OFFSET('1EPond'!$E$10,12*$X47,4*(PlotControl!$C$6-1),1,1)) -> 1534.9
A48: 43 | B48: =IF(PlotControl!$B$4 = "Annual Max",MAX(OFFSET('1EPond'!$C$10,12*$A48,4*(PlotControl!$C$6-1),12,1)),AVERAGE(OFFSET('1EPond'!$C$10,12*$A48,4*(PlotControl!$C$6-1),12,1))) -> 1328.6 | C48: =IF(PlotControl!$B$4 = "Annual Max",MAX(OFFSET('1EPond'!$D$10,12*$A48,4*(PlotControl!$C$6-1),12,1)),AVERAGE(OFFSET('1EPond'!$D$10,12*$A48,4*(PlotControl!$C$6-1),12,1))) -> 1425.4 | D48: =IF(PlotControl!$B$4 = "Annual Max",MAX(OFFSET('1EPond'!$E$10,12*$A48,4*(PlotControl!$C$6-1),12,1)),AVERAGE(OFFSET('1EPond'!$E$10,12*$A48,4*(PlotControl!$C$6-1),12,1))) -> 1551.6 | X48: 43.58333333 | Y48: =IF($X48<=7,OFFSET('2EPond'!$C$10,12*$X48,4*(PlotControl!$C$6-1),1,1),OFFSET('1EPond'!$C$10,12*$X48,4*(PlotControl!$C$6-1),1,1)) -> 1310.8 | Z48: =IF(X48<=7,OFFSET('2EPond'!$D$10,12*$X48,4*(PlotControl!$C$6-1),1,1),OFFSET('1EPond'!$D$10,12*$X48,4*(PlotControl!$C$6-1),1,1)) -> 1413.8 | AA48: =IF(X48<=7,OFFSET('2EPond'!$E$10,12*$X48,4*(PlotControl!$C$6-1),1,1),OFFSET('1EPond'!$E$10,12*$X48,4*(PlotControl!$C$6-1),1,1)) -> 1530.3
A49: 44 | B49: =IF(PlotControl!$B$4 = "Annual Max",MAX(OFFSET('1EPond'!$C$10,12*$A49,4*(PlotControl!$C$6-1),12,1)),AVERAGE(OFFSET('1EPond'!$C$10,12*$A49,4*(PlotControl!$C$6-1),12,1))) -> 1282.8 | C49: =IF(PlotControl!$B$4 = "Annual Max",MAX(OFFSET('1EPond'!$D$10,12*$A49,4*(PlotControl!$C$6-1),12,1)),AVERAGE(OFFSET('1EPond'!$D$10,12*$A49,4*(PlotControl!$C$6-1),12,1))) -> 1390.9 | D49: =IF(PlotControl!$B$4 = "Annual Max",MAX(OFFSET('1EPond'!$E$10,12*$A49,4*(PlotControl!$C$6-1),12,1)),AVERAGE(OFFSET('1EPond'!$E$10,12*$A49,4*(PlotControl!$C$6-1),12,1))) -> 1520.5 | X49: 43.66666667 | Y49: =IF($X49<=7,OFFSET('2EPond'!$C$10,12*$X49,4*(PlotControl!$C$6-1),1,1),OFFSET('1EPond'!$C$10,12*$X49,4*(PlotControl!$C$6-1),1,1)) -> 1300.4 | Z49: =IF(X49<=7,OFFSET('2EPond'!$D$10,12*$X49,4*(PlotControl!$C$6-1),1,1),OFFSET('1EPond'!$D$10,12*$X49,4*(PlotControl!$C$6-1),1,1)) -> 1405.3 | AA49: =IF(X49<=7,OFFSET('2EPond'!$E$10,12*$X49,4*(PlotControl!$C$6-1),1,1),OFFSET('1EPond'!$E$10,12*$X49,4*(PlotControl!$C$6-1),1,1)) -> 1527.8
A50: 45 | B50: =IF(PlotControl!$B$4 = "Annual Max",MAX(OFFSET('1EPond'!$C$10,12*$A50,4*(PlotControl!$C$6-1),12,1)),AVERAGE(OFFSET('1EPond'!$C$10,12*$A50,4*(PlotControl!$C$6-1),12,1))) -> 1260.6 | C50: =IF(PlotControl!$B$4 = "Annual Max",MAX(OFFSET('1EPond'!$D$10,12*$A50,4*(PlotControl!$C$6-1),12,1)),AVERAGE(OFFSET('1EPond'!$D$10,12*$A50,4*(PlotControl!$C$6-1),12,1))) -> 1357.2 | D50: =IF(PlotControl!$B$4 = "Annual Max",MAX(OFFSET('1EPond'!$E$10,12*$A50,4*(PlotControl!$C$6-1),12,1)),AVERAGE(OFFSET('1EPond'!$E$10,12*$A50,4*(PlotControl!$C$6-1),12,1))) -> 1489.8 | X50: 43.75 | Y50: =IF($X50<=7,OFFSET('2EPond'!$C$10,12*$X50,4*(PlotControl!$C$6-1),1,1),OFFSET('1EPond'!$C$10,12*$X50,4*(PlotControl!$C$6-1),1,1)) -> 1278.3 | Z50: =IF(X50<=7,OFFSET('2EPond'!$D$10,12*$X50,4*(PlotControl!$C$6-1),1,1),OFFSET('1EPond'!$D$10,12*$X50,4*(PlotControl!$C$6-1),1,1)) -> 1387 | AA50: =IF(X50<=7,OFFSET('2EPond'!$E$10,12*$X50,4*(PlotControl!$C$6-1),1,1),OFFSET('1EPond'!$E$10,12*$X50,4*(PlotControl!$C$6-1),1,1)) -> 1515
A51: 46 | B51: =IF(PlotControl!$B$4 = "Annual Max",MAX(OFFSET('1EPond'!$C$10,12*$A51,4*(PlotControl!$C$6-1),12,1)),AVERAGE(OFFSET('1EPond'!$C$10,12*$A51,4*(PlotControl!$C$6-1),12,1))) -> 1228 | C51: =IF(PlotControl!$B$4 = "Annual Max",MAX(OFFSET('1EPond'!$D$10,12*$A51,4*(PlotControl!$C$6-1),12,1)),AVERAGE(OFFSET('1EPond'!$D$10,12*$A51,4*(PlotControl!$C$6-1),12,1))) -> 1332.4 | D51: =IF(PlotControl!$B$4 = "Annual Max",MAX(OFFSET('1EPond'!$E$10,12*$A51,4*(PlotControl!$C$6-1),12,1)),AVERAGE(OFFSET('1EPond'!$E$10,12*$A51,4*(PlotControl!$C$6-1),12,1))) -> 1458.7 | X51: 43.83333333 | Y51: =IF($X51<=7,OFFSET('2EPond'!$C$10,12*$X51,4*(PlotControl!$C$6-1),1,1),OFFSET('1EPond'!$C$10,12*$X51,4*(PlotControl!$C$6-1),1,1)) -> 1263 | Z51: =IF(X51<=7,OFFSET('2EPond'!$D$10,12*$X51,4*(PlotControl!$C$6-1),1,1),OFFSET('1EPond'!$D$10,12*$X51,4*(PlotControl!$C$6-1),1,1)) -> 1380 | AA51: =IF(X51<=7,OFFSET('2EPond'!$E$10,12*$X51,4*(PlotControl!$C$6-1),1,1),OFFSET('1EPond'!$E$10,12*$X51,4*(PlotControl!$C$6-1),1,1)) -> 1508.5
A52: 47 | B52: =IF(PlotControl!$B$4 = "Annual Max",MAX(OFFSET('1EPond'!$C$10,12*$A52,4*(PlotControl!$C$6-1),12,1)),AVERAGE(OFFSET('1EPond'!$C$10,12*$A52,4*(PlotControl!$C$6-1),12,1))) -> 1200.3 | C52: =IF(PlotControl!$B$4 = "Annual Max",MAX(OFFSET('1EPond'!$D$10,12*$A52,4*(PlotControl!$C$6-1),12,1)),AVERAGE(OFFSET('1EPond'!$D$10,12*$A52,4*(PlotControl!$C$6-1),12,1))) -> 1315.7 | D52: =IF(PlotControl!$B$4 = "Annual Max",MAX(OFFSET('1EPond'!$E$10,12*$A52,4*(PlotControl!$C$6-1),12,1)),AVERAGE(OFFSET('1EPond'!$E$10,12*$A52,4*(PlotControl!$C$6-1),12,1))) -> 1427.5 | X52: 43.91666667 | Y52: =IF($X52<=7,OFFSET('2EPond'!$C$10,12*$X52,4*(PlotControl!$C$6-1),1,1),OFFSET('1EPond'!$C$10,12*$X52,4*(PlotControl!$C$6-1),1,1)) -> 1259.2 | Z52: =IF(X52<=7,OFFSET('2EPond'!$D$10,12*$X52,4*(PlotControl!$C$6-1),1,1),OFFSET('1EPond'!$D$10,12*$X52,4*(PlotControl!$C$6-1),1,1)) -> 1373.7 | AA52: =IF(X52<=7,OFFSET('2EPond'!$E$10,12*$X52,4*(PlotControl!$C$6-1),1,1),OFFSET('1EPond'!$E$10,12*$X52,4*(PlotControl!$C$6-1),1,1)) -> 1497.8
A53: 48 | B53: =IF(PlotControl!$B$4 = "Annual Max",MAX(OFFSET('1EPond'!$C$10,12*$A53,4*(PlotControl!$C$6-1),12,1)),AVERAGE(OFFSET('1EPond'!$C$10,12*$A53,4*(PlotControl!$C$6-1),12,1))) -> 1177.1 | C53: =IF(PlotControl!$B$4 = "Annual Max",MAX(OFFSET('1EPond'!$D$10,12*$A53,4*(PlotControl!$C$6-1),12,1)),AVERAGE(OFFSET('1EPond'!$D$10,12*$A53,4*(PlotControl!$C$6-1),12,1))) -> 1296.1 | D53: =IF(PlotControl!$B$4 = "Annual Max",MAX(OFFSET('1EPond'!$E$10,12*$A53,4*(PlotControl!$C$6-1),12,1)),AVERAGE(OFFSET('1EPond'!$E$10,12*$A53,4*(PlotControl!$C$6-1),12,1))) -> 1430.4 | X53: 44 | Y53: =IF($X53<=7,OFFSET('2EPond'!$C$10,12*$X53,4*(PlotControl!$C$6-1),1,1),OFFSET('1EPond'!$C$10,12*$X53,4*(PlotControl!$C$6-1),1,1)) -> 1253.5 | Z53: =IF(X53<=7,OFFSET('2EPond'!$D$10,12*$X53,4*(PlotControl!$C$6-1),1,1),OFFSET('1EPond'!$D$10,12*$X53,4*(PlotControl!$C$6-1),1,1)) -> 1365.7 | AA53: =IF(X53<=7,OFFSET('2EPond'!$E$10,12*$X53,4*(PlotControl!$C$6-1),1,1),OFFSET('1EPond'!$E$10,12*$X53,4*(PlotControl!$C$6-1),1,1)) -> 1489.6
A54: 49 | B54: =IF(PlotControl!$B$4 = "Annual Max",MAX(OFFSET('1EPond'!$C$10,12*$A54,4*(PlotControl!$C$6-1),12,1)),AVERAGE(OFFSET('1EPond'!$C$10,12*$A54,4*(PlotControl!$C$6-1),12,1))) -> 1165 | C54: =IF(PlotControl!$B$4 = "Annual Max",MAX(OFFSET('1EPond'!$D$10,12*$A54,4*(PlotControl!$C$6-1),12,1)),AVERAGE(OFFSET('1EPond'!$D$10,12*$A54,4*(PlotControl!$C$6-1),12,1))) -> 1275.7 | D54: =IF(PlotControl!$B$4 = "Annual Max",MAX(OFFSET('1EPond'!$E$10,12*$A54,4*(PlotControl!$C$6-1),12,1)),AVERAGE(OFFSET('1EPond'!$E$10,12*$A54,4*(PlotControl!$C$6-1),12,1))) -> 1398.2 | X54: 44.08333333 | Y54: =IF($X54<=7,OFFSET('2EPond'!$C$10,12*$X54,4*(PlotControl!$C$6-1),1,1),OFFSET('1EPond'!$C$10,12*$X54,4*(PlotControl!$C$6-1),1,1)) -> 1250.8 | Z54: =IF(X54<=7,OFFSET('2EPond'!$D$10,12*$X54,4*(PlotControl!$C$6-1),1,1),OFFSET('1EPond'!$D$10,12*$X54,4*(PlotControl!$C$6-1),1,1)) -> 1361.2 | AA54: =IF(X54<=7,OFFSET('2EPond'!$E$10,12*$X54,4*(PlotControl!$C$6-1),1,1),OFFSET('1EPond'!$E$10,12*$X54,4*(PlotControl!$C$6-1),1,1)) -> 1479.8
A55: 50 | B55: =IF(PlotControl!$B$4 = "Annual Max",MAX(OFFSET('1EPond'!$C$10,12*$A55,4*(PlotControl!$C$6-1),12,1)),AVERAGE(OFFSET('1EPond'!$C$10,12*$A55,4*(PlotControl!$C$6-1),12,1))) -> 1135.3 | C55: =IF(PlotControl!$B$4 = "Annual Max",MAX(OFFSET('1EPond'!$D$10,12*$A55,4*(PlotControl!$C$6-1),12,1)),AVERAGE(OFFSET('1EPond'!$D$10,12*$A55,4*(PlotControl!$C$6-1),12,1))) -> 1252.1 | D55: =IF(PlotControl!$B$4 = "Annual Max",MAX(OFFSET('1EPond'!$E$10,12*$A55,4*(PlotControl!$C$6-1),12,1)),AVERAGE(OFFSET('1EPond'!$E$10,12*$A55,4*(PlotControl!$C$6-1),12,1))) -> 1395.5 | X55: 44.16666667 | Y55: =IF($X55<=7,OFFSET('2EPond'!$C$10,12*$X55,4*(PlotControl!$C$6-1),1,1),OFFSET('1EPond'!$C$10,12*$X55,4*(PlotControl!$C$6-1),1,1)) -> 1251.5 | Z55: =IF(X55<=7,OFFSET('2EPond'!$D$10,12*$X55,4*(PlotControl!$C$6-1),1,1),OFFSET('1EPond'!$D$10,12*$X55,4*(PlotControl!$C$6-1),1,1)) -> 1357.8 | AA55: =IF(X55<=7,OFFSET('2EPond'!$E$10,12*$X55,4*(PlotControl!$C$6-1),1,1),OFFSET('1EPond'!$E$10,12*$X55,4*(PlotControl!$C$6-1),1,1)) -> 1472.4
A56: 51 | B56: =IF(PlotControl!$B$4 = "Annual Max",MAX(OFFSET('1EPond'!$C$10,12*$A56,4*(PlotControl!$C$6-1),12,1)),AVERAGE(OFFSET('1EPond'!$C$10,12*$A56,4*(PlotControl!$C$6-1),12,1))) -> 1121.3 | C56: =IF(PlotControl!$B$4 = "Annual Max",MAX(OFFSET('1EPond'!$D$10,12*$A56,4*(PlotControl!$C$6-1),12,1)),AVERAGE(OFFSET('1EPond'!$D$10,12*$A56,4*(PlotControl!$C$6-1),12,1))) -> 1229.5 | D56: =IF(PlotControl!$B$4 = "Annual Max",MAX(OFFSET('1EPond'!$E$10,12*$A56,4*(PlotControl!$C$6-1),12,1)),AVERAGE(OFFSET('1EPond'!$E$10,12*$A56,4*(PlotControl!$C$6-1),12,1))) -> 1378.6 | X56: 44.25 | Y56: =IF($X56<=7,OFFSET('2EPond'!$C$10,12*$X56,4*(PlotControl!$C$6-1),1,1),OFFSET('1EPond'!$C$10,12*$X56,4*(PlotControl!$C$6-1),1,1)) -> 1257.6 | Z56: =IF(X56<=7,OFFSET('2EPond'!$D$10,12*$X56,4*(PlotControl!$C$6-1),1,1),OFFSET('1EPond'!$D$10,12*$X56,4*(PlotControl!$C$6-1),1,1)) -> 1358.9 | AA56: =IF(X56<=7,OFFSET('2EPond'!$E$10,12*$X56,4*(PlotControl!$C$6-1),1,1),OFFSET('1EPond'!$E$10,12*$X56,4*(PlotControl!$C$6-1),1,1)) -> 1474.9
A57: 52 | B57: =IF(PlotControl!$B$4 = "Annual Max",MAX(OFFSET('1EPond'!$C$10,12*$A57,4*(PlotControl!$C$6-1),12,1)),AVERAGE(OFFSET('1EPond'!$C$10,12*$A57,4*(PlotControl!$C$6-1),12,1))) -> 1102.8 | C57: =IF(PlotControl!$B$4 = "Annual Max",MAX(OFFSET('1EPond'!$D$10,12*$A57,4*(PlotControl!$C$6-1),12,1)),AVERAGE(OFFSET('1EPond'!$D$10,12*$A57,4*(PlotControl!$C$6-1),12,1))) -> 1220.2 | D57: =IF(PlotControl!$B$4 = "Annual Max",MAX(OFFSET('1EPond'!$E$10,12*$A57,4*(PlotControl!$C$6-1),12,1)),AVERAGE(OFFSET('1EPond'!$E$10,12*$A57,4*(PlotControl!$C$6-1),12,1))) -> 1395.5 | X57: 44.33333333 | Y57: =IF($X57<=7,OFFSET('2EPond'!$C$10,12*$X57,4*(PlotControl!$C$6-1),1,1),OFFSET('1EPond'!$C$10,12*$X57,4*(PlotControl!$C$6-1),1,1)) -> 1278.6 | Z57: =IF(X57<=7,OFFSET('2EPond'!$D$10,12*$X57,4*(PlotControl!$C$6-1),1,1),OFFSET('1EPond'!$D$10,12*$X57,4*(PlotControl!$C$6-1),1,1)) -> 1382.9 | AA57: =IF(X57<=7,OFFSET('2EPond'!$E$10,12*$X57,4*(PlotControl!$C$6-1),1,1),OFFSET('1EPond'!$E$10,12*$X57,4*(PlotControl!$C$6-1),1,1)) -> 1506.6
A58: 53 | B58: =IF(PlotControl!$B$4 = "Annual Max",MAX(OFFSET('1EPond'!$C$10,12*$A58,4*(PlotControl!$C$6-1),12,1)),AVERAGE(OFFSET('1EPond'!$C$10,12*$A58,4*(PlotControl!$C$6-1),12,1))) -> 1091.6 | C58: =IF(PlotControl!$B$4 = "Annual Max",MAX(OFFSET('1EPond'!$D$10,12*$A58,4*(PlotControl!$C$6-1),12,1)),AVERAGE(OFFSET('1EPond'!$D$10,12*$A58,4*(PlotControl!$C$6-1),12,1))) -> 1203.5 | D58: =IF(PlotControl!$B$4 = "Annual Max",MAX(OFFSET('1EPond'!$E$10,12*$A58,4*(PlotControl!$C$6-1),12,1)),AVERAGE(OFFSET('1EPond'!$E$10,12*$A58,4*(PlotControl!$C$6-1),12,1))) -> 1418.3 | X58: 44.41666667 | Y58: =IF($X58<=7,OFFSET('2EPond'!$C$10,12*$X58,4*(PlotControl!$C$6-1),1,1),OFFSET('1EPond'!$C$10,12*$X58,4*(PlotControl!$C$6-1),1,1)) -> 1282.8 | Z58: =IF(X58<=7,OFFSET('2EPond'!$D$10,12*$X58,4*(PlotControl!$C$6-1),1,1),OFFSET('1EPond'!$D$10,12*$X58,4*(PlotControl!$C$6-1),1,1)) -> 1390.9 | AA58: =IF(X58<=7,OFFSET('2EPond'!$E$10,12*$X58,4*(PlotControl!$C$6-1),1,1),OFFSET('1EPond'!$E$10,12*$X58,4*(PlotControl!$C$6-1),1,1)) -> 1516.8
A59: 54 | B59: =IF(PlotControl!$B$4 = "Annual Max",MAX(OFFSET('1EPond'!$C$10,12*$A59,4*(PlotControl!$C$6-1),12,1)),AVERAGE(OFFSET('1EPond'!$C$10,12*$A59,4*(PlotControl!$C$6-1),12,1))) -> 1066.1 | C59: =IF(PlotControl!$B$4 = "Annual Max",MAX(OFFSET('1EPond'!$D$10,12*$A59,4*(PlotControl!$C$6-1),12,1)),AVERAGE(OFFSET('1EPond'!$D$10,12*$A59,4*(PlotControl!$C$6-1),12,1))) -> 1193.6 | D59: =IF(PlotControl!$B$4 = "Annual Max",MAX(OFFSET('1EPond'!$E$10,12*$A59,4*(PlotControl!$C$6-1),12,1)),AVERAGE(OFFSET('1EPond'!$E$10,12*$A59,4*(PlotControl!$C$6-1),12,1))) -> 1403.2 | X59: 44.5 | Y59: =IF($X59<=7,OFFSET('2EPond'!$C$10,12*$X59,4*(PlotControl!$C$6-1),1,1),OFFSET('1EPond'!$C$10,12*$X59,4*(PlotControl!$C$6-1),1,1)) -> 1275.1 | Z59: =IF(X59<=7,OFFSET('2EPond'!$D$10,12*$X59,4*(PlotControl!$C$6-1),1,1),OFFSET('1EPond'!$D$10,12*$X59,4*(PlotControl!$C$6-1),1,1)) -> 1382.1 | AA59: =IF(X59<=7,OFFSET('2EPond'!$E$10,12*$X59,4*(PlotControl!$C$6-1),1,1),OFFSET('1EPond'!$E$10,12*$X59,4*(PlotControl!$C$6-1),1,1)) -> 1520.5
A60: 55 | B60: =IF(PlotControl!$B$4 = "Annual Max",MAX(OFFSET('1EPond'!$C$10,12*$A60,4*(PlotControl!$C$6-1),12,1)),AVERAGE(OFFSET('1EPond'!$C$10,12*$A60,4*(PlotControl!$C$6-1),12,1))) -> 1048.5 | C60: =IF(PlotControl!$B$4 = "Annual Max",MAX(OFFSET('1EPond'!$D$10,12*$A60,4*(PlotControl!$C$6-1),12,1)),AVERAGE(OFFSET('1EPond'!$D$10,12*$A60,4*(PlotControl!$C$6-1),12,1))) -> 1174.6 | D60: =IF(PlotControl!$B$4 = "Annual Max",MAX(OFFSET('1EPond'!$E$10,12*$A60,4*(PlotControl!$C$6-1),12,1)),AVERAGE(OFFSET('1EPond'!$E$10,12*$A60,4*(PlotControl!$C$6-1),12,1))) -> 1411.2 | X60: 44.58333333 | Y60: =IF($X60<=7,OFFSET('2EPond'!$C$10,12*$X60,4*(PlotControl!$C$6-1),1,1),OFFSET('1EPond'!$C$10,12*$X60,4*(PlotControl!$C$6-1),1,1)) -> 1260.2 | Z60: =IF(X60<=7,OFFSET('2EPond'!$D$10,12*$X60,4*(PlotControl!$C$6-1),1,1),OFFSET('1EPond'!$D$10,12*$X60,4*(PlotControl!$C$6-1),1,1)) -> 1376.7 | AA60: =IF(X60<=7,OFFSET('2EPond'!$E$10,12*$X60,4*(PlotControl!$C$6-1),1,1),OFFSET('1EPond'!$E$10,12*$X60,4*(PlotControl!$C$6-1),1,1)) -> 1514.6
A61: 56 | B61: =IF(PlotControl!$B$4 = "Annual Max",MAX(OFFSET('1EPond'!$C$10,12*$A61,4*(PlotControl!$C$6-1),12,1)),AVERAGE(OFFSET('1EPond'!$C$10,12*$A61,4*(PlotControl!$C$6-1),12,1))) -> 1034.3 | C61: =IF(PlotControl!$B$4 = "Annual Max",MAX(OFFSET('1EPond'!$D$10,12*$A61,4*(PlotControl!$C$6-1),12,1)),AVERAGE(OFFSET('1EPond'!$D$10,12*$A61,4*(PlotControl!$C$6-1),12,1))) -> 1167.2 | D61: =IF(PlotControl!$B$4 = "Annual Max",MAX(OFFSET('1EPond'!$E$10,12*$A61,4*(PlotControl!$C$6-1),12,1)),AVERAGE(OFFSET('1EPond'!$E$10,12*$A61,4*(PlotControl!$C$6-1),12,1))) -> 1395 | X61: 44.66666667 | Y61: =IF($X61<=7,OFFSET('2EPond'!$C$10,12*$X61,4*(PlotControl!$C$6-1),1,1),OFFSET('1EPond'!$C$10,12*$X61,4*(PlotControl!$C$6-1),1,1)) -> 1248.7 | Z61: =IF(X61<=7,OFFSET('2EPond'!$D$10,12*$X61,4*(PlotControl!$C$6-1),1,1),OFFSET('1EPond'!$D$10,12*$X61,4*(PlotControl!$C$6-1),1,1)) -> 1368.7 | AA61: =IF(X61<=7,OFFSET('2EPond'!$E$10,12*$X61,4*(PlotControl!$C$6-1),1,1),OFFSET('1EPond'!$E$10,12*$X61,4*(PlotControl!$C$6-1),1,1)) -> 1510.6
A62: 57 | B62: =IF(PlotControl!$B$4 = "Annual Max",MAX(OFFSET('1EPond'!$C$10,12*$A62,4*(PlotControl!$C$6-1),12,1)),AVERAGE(OFFSET('1EPond'!$C$10,12*$A62,4*(PlotControl!$C$6-1),12,1))) -> 1007 | C62: =IF(PlotControl!$B$4 = "Annual Max",MAX(OFFSET('1EPond'!$D$10,12*$A62,4*(PlotControl!$C$6-1),12,1)),AVERAGE(OFFSET('1EPond'!$D$10,12*$A62,4*(PlotControl!$C$6-1),12,1))) -> 1165.2 | D62: =IF(PlotControl!$B$4 = "Annual Max",MAX(OFFSET('1EPond'!$E$10,12*$A62,4*(PlotControl!$C$6-1),12,1)),AVERAGE(OFFSET('1EPond'!$E$10,12*$A62,4*(PlotControl!$C$6-1),12,1))) -> 1364.4 | X62: 44.75 | Y62: =IF($X62<=7,OFFSET('2EPond'!$C$10,12*$X62,4*(PlotControl!$C$6-1),1,1),OFFSET('1EPond'!$C$10,12*$X62,4*(PlotControl!$C$6-1),1,1)) -> 1228.8 | Z62: =IF(X62<=7,OFFSET('2EPond'!$D$10,12*$X62,4*(PlotControl!$C$6-1),1,1),OFFSET('1EPond'!$D$10,12*$X62,4*(PlotControl!$C$6-1),1,1)) -> 1352.8 | AA62: =IF(X62<=7,OFFSET('2EPond'!$E$10,12*$X62,4*(PlotControl!$C$6-1),1,1),OFFSET('1EPond'!$E$10,12*$X62,4*(PlotControl!$C$6-1),1,1)) -> 1492.2
A63: 58 | B63: =IF(PlotControl!$B$4 = "Annual Max",MAX(OFFSET('1EPond'!$C$10,12*$A63,4*(PlotControl!$C$6-1),12,1)),AVERAGE(OFFSET('1EPond'!$C$10,12*$A63,4*(PlotControl!$C$6-1),12,1))) -> 1003.1 | C63: =IF(PlotControl!$B$4 = "Annual Max",MAX(OFFSET('1EPond'!$D$10,12*$A63,4*(PlotControl!$C$6-1),12,1)),AVERAGE(OFFSET('1EPond'!$D$10,12*$A63,4*(PlotControl!$C$6-1),12,1))) -> 1168.5 | D63: =IF(PlotControl!$B$4 = "Annual Max",MAX(OFFSET('1EPond'!$E$10,12*$A63,4*(PlotControl!$C$6-1),12,1)),AVERAGE(OFFSET('1EPond'!$E$10,12*$A63,4*(PlotControl!$C$6-1),12,1))) -> 1378.4 | X63: 44.83333333 | Y63: =IF($X63<=7,OFFSET('2EPond'!$C$10,12*$X63,4*(PlotControl!$C$6-1),1,1),OFFSET('1EPond'!$C$10,12*$X63,4*(PlotControl!$C$6-1),1,1)) -> 1220.4 | Z63: =IF(X63<=7,OFFSET('2EPond'!$D$10,12*$X63,4*(PlotControl!$C$6-1),1,1),OFFSET('1EPond'!$D$10,12*$X63,4*(PlotControl!$C$6-1),1,1)) -> 1346.3 | AA63: =IF(X63<=7,OFFSET('2EPond'!$E$10,12*$X63,4*(PlotControl!$C$6-1),1,1),OFFSET('1EPond'!$E$10,12*$X63,4*(PlotControl!$C$6-1),1,1)) -> 1488.4
A64: 59 | B64: =IF(PlotControl!$B$4 = "Annual Max",MAX(OFFSET('1EPond'!$C$10,12*$A64,4*(PlotControl!$C$6-1),12,1)),AVERAGE(OFFSET('1EPond'!$C$10,12*$A64,4*(PlotControl!$C$6-1),12,1))) -> 992.81 | C64: =IF(PlotControl!$B$4 = "Annual Max",MAX(OFFSET('1EPond'!$D$10,12*$A64,4*(PlotControl!$C$6-1),12,1)),AVERAGE(OFFSET('1EPond'!$D$10,12*$A64,4*(PlotControl!$C$6-1),12,1))) -> 1151.5 | D64: =IF(PlotControl!$B$4 = "Annual Max",MAX(OFFSET('1EPond'!$E$10,12*$A64,4*(PlotControl!$C$6-1),12,1)),AVERAGE(OFFSET('1EPond'!$E$10,12*$A64,4*(PlotControl!$C$6-1),12,1))) -> 1397.3 | X64: 44.91666667 | Y64: =IF($X64<=7,OFFSET('2EPond'!$C$10,12*$X64,4*(PlotControl!$C$6-1),1,1),OFFSET('1EPond'!$C$10,12*$X64,4*(PlotControl!$C$6-1),1,1)) -> 1219.1 | Z64: =IF(X64<=7,OFFSET('2EPond'!$D$10,12*$X64,4*(PlotControl!$C$6-1),1,1),OFFSET('1EPond'!$D$10,12*$X64,4*(PlotControl!$C$6-1),1,1)) -> 1343.6 | AA64: =IF(X64<=7,OFFSET('2EPond'!$E$10,12*$X64,4*(PlotControl!$C$6-1),1,1),OFFSET('1EPond'!$E$10,12*$X64,4*(PlotControl!$C$6-1),1,1)) -> 1484.3
A65: 60 | B65: =IF(PlotControl!$B$4 = "Annual Max",MAX(OFFSET('1EPond'!$C$10,12*$A65,4*(PlotControl!$C$6-1),12,1)),AVERAGE(OFFSET('1EPond'!$C$10,12*$A65,4*(PlotControl!$C$6-1),12,1))) -> 986.46 | C65: =IF(PlotControl!$B$4 = "Annual Max",MAX(OFFSET('1EPond'!$D$10,12*$A65,4*(PlotControl!$C$6-1),12,1)),AVERAGE(OFFSET('1EPond'!$D$10,12*$A65,4*(PlotControl!$C$6-1),12,1))) -> 1151.7 | D65: =IF(PlotControl!$B$4 = "Annual Max",MAX(OFFSET('1EPond'!$E$10,12*$A65,4*(PlotControl!$C$6-1),12,1)),AVERAGE(OFFSET('1EPond'!$E$10,12*$A65,4*(PlotControl!$C$6-1),12,1))) -> 1389.8 | X65: 45 | Y65: =IF($X65<=7,OFFSET('2EPond'!$C$10,12*$X65,4*(PlotControl!$C$6-1),1,1),OFFSET('1EPond'!$C$10,12*$X65,4*(PlotControl!$C$6-1),1,1)) -> 1217.4 | Z65: =IF(X65<=7,OFFSET('2EPond'!$D$10,12*$X65,4*(PlotControl!$C$6-1),1,1),OFFSET('1EPond'!$D$10,12*$X65,4*(PlotControl!$C$6-1),1,1)) -> 1337.5 | AA65: =IF(X65<=7,OFFSET('2EPond'!$E$10,12*$X65,4*(PlotControl!$C$6-1),1,1),OFFSET('1EPond'!$E$10,12*$X65,4*(PlotControl!$C$6-1),1,1)) -> 1472.2
A66: 61 | B66: =IF(PlotControl!$B$4 = "Annual Max",MAX(OFFSET('1EPond'!$C$10,12*$A66,4*(PlotControl!$C$6-1),12,1)),AVERAGE(OFFSET('1EPond'!$C$10,12*$A66,4*(PlotControl!$C$6-1),12,1))) -> 973.32 | C66: =IF(PlotControl!$B$4 = "Annual Max",MAX(OFFSET('1EPond'!$D$10,12*$A66,4*(PlotControl!$C$6-1),12,1)),AVERAGE(OFFSET('1EPond'!$D$10,12*$A66,4*(PlotControl!$C$6-1),12,1))) -> 1137.6 | D66: =IF(PlotControl!$B$4 = "Annual Max",MAX(OFFSET('1EPond'!$E$10,12*$A66,4*(PlotControl!$C$6-1),12,1)),AVERAGE(OFFSET('1EPond'!$E$10,12*$A66,4*(PlotControl!$C$6-1),12,1))) -> 1371.5 | X66: 45.08333333 | Y66: =IF($X66<=7,OFFSET('2EPond'!$C$10,12*$X66,4*(PlotControl!$C$6-1),1,1),OFFSET('1EPond'!$C$10,12*$X66,4*(PlotControl!$C$6-1),1,1)) -> 1216 | Z66: =IF(X66<=7,OFFSET('2EPond'!$D$10,12*$X66,4*(PlotControl!$C$6-1),1,1),OFFSET('1EPond'!$D$10,12*$X66,4*(PlotControl!$C$6-1),1,1)) -> 1330.7 | AA66: =IF(X66<=7,OFFSET('2EPond'!$E$10,12*$X66,4*(PlotControl!$C$6-1),1,1),OFFSET('1EPond'!$E$10,12*$X66,4*(PlotControl!$C$6-1),1,1)) -> 1462.6
